Workbook

Sheet Input
A1: City electricity load profile and revenue impact analysis | BA1: Choose a City:
A2: Background: | O2: Instructions: | BA2: BLOEM
A3: This tool has been developed by Sustainable Energy Africa (SEA), with funding from the Renewable Energy and Energy Efficiency Partnership (REEEP), and is available at no cost. | O3: Complete the coloured cells in the sheet. | BA3: CTN
A4: This tool calculates the financial losses to municipalities in South Africa resulting from the uptake of embedded PV generation and energy efficiency interventions by their customer base. | O4: The tool is able to include all of these options simultaneously OR these can be analysed independently by not including any one of them in the input fields below for each scenario run. | BA4: DBN
A5: The tool has the ability to project these financial losses over 10 years (year 0; 3; 5 and 10) by sector, for the residential, business and industrial sectors. | O5: Refer to the 'Load Profile' sheet columns O to R (in orange) for typical commercial, residential and industrial user load profiles. These are generic and can be customised by changing the hourly percentage values. This is especially important for the Industrial sector, and if your summer consumption is more than in winter. | BA5: JHB
A6: It incorporates current electricity load data and shows the impact of the various interventions on an hourly basis on this - refer to 'Summary' and 'Summ weekend' sheets. | O6: When all the fields have been completed, click on the arrows below. | BA6: PE
A7: RE options include embedded PV for each sector, as well as landfill gas. Pumped storage (or any other load balancing) can also be inserted. There is also an option for residential load shifting. | O7: High level results are displayed in the 'Results Summary' worksheet. For detailed results, see 'Results'; 'Summary'; 'Summ Weekend' and 'Net Metering' worksheets. | BA7: PRETORIA
A8: A fixed service charge option has been included for PV customers the residential sector only, to demonstrate its potentially positive effect on municipal electricity income | O8: DO NOT CHANGE THE FILE NAME, or the macro will not run. | BA8: UPINGTON
A9: Current annual consumption | D9: Current # of customers | I9: Current average usuage/customer (kwh) | BA9: NELSPRUIT
A10: Residential (mid-high) | C10: kwh yearly | D10: Resid.
A11: Commercial buildings | C11: kwh yearly | D11: Commerc.
A12: Industrial | C12: kwh yearly | D12: LV | I12: LV
D13: MV | I13: MV
D14: MV TOU | I14: MV TOU
D15: HV TOU | I15: HV TOU
A20: Load Data
A21: Average monthly consumption (mid-high user) | D21: =B10/E10/12 ->  | E21: kwh | F21: Note: Do not change unless based on sound information
A23: Hourly Load Data
A24: Insert the average loads for the intake points used. The total hourly loads can be adjusted using the adjustment factor below to scale up to 100% of the load.
A25: hr | B25: 0 | C25: 1 | D25: 2 | E25: 3 | F25: 4 | G25: 5 | H25: 6 | I25: 7 | J25: 8 | K25: 9 | L25: 10 | M25: 11 | N25: 12 | O25: 13 | P25: 14 | Q25: 15 | R25: 16 | S25: 17 | T25: 18 | U25: 19 | V25: 20 | W25: 21 | X25: 22 | Y25: 23
A26: Weekday Winter (MWh) | B26: 1320 | C26: 1261 | D26: 1244 | E26: 1264 | F26: 1365 | G26: 1683 | H26: 2111 | I26: 2219 | J26: 2220 | K26: 2212 | L26: 2319 | M26: 2228 | N26: 2108 | O26: 2023 | P26: 1981 | Q26: 1984 | R26: 2031 | S26: 2212 | T26: 2371 | U26: 2318 | V26: 2340 | W26: 2058 | X26: 1712 | Y26: 1470
A27: Weekday Summer (MWh) | B27: 1120 | C27: 1080 | D27: 1067 | E27: 1081 | F27: 1154 | G27: 1388 | H27: 1692 | I27: 1750 | J27: 1792 | K27: 1804 | L27: 1910 | M27: 1841 | N27: 1774 | O27: 1739 | P27: 1723 | Q27: 1722 | R27: 1729 | S27: 1750 | T27: 1821 | U27: 1869 | V27: 1853 | W27: 1619 | X27: 1384 | Y27: 1226
A29: Weekend Winter (MWh) | B29: 1315 | C29: 1244 | D29: 1212 | E29: 1210 | F29: 1242 | G29: 1305 | H29: 1431 | I29: 1706 | J29: 1977 | K29: 2042 | L29: 2018 | M29: 1955 | N29: 1977 | O29: 1858 | P29: 1758 | Q29: 1721 | R29: 1775 | S29: 1964 | T29: 2182 | U29: 2159 | V29: 2051 | W29: 1832 | X29: 1579 | Y29: 1382
A30: Weekend Summer (MWh) | B30: 1107 | C30: 1060 | D30: 1039 | E30: 1038 | F30: 1059 | G30: 1100 | H30: 1224 | I30: 1448 | J30: 1627 | K30: 1652 | L30: 1642 | M30: 1603 | N30: 1610 | O30: 1531 | P30: 1463 | Q30: 1436 | R30: 1451 | S30: 1507 | T30: 1636 | U30: 1694 | V30: 1612 | W30: 1442 | X30: 1271 | Y30: 1139
A32: Adjustment factor
A45: Residential load shifting (optional)
A46: % of PV users who will load shift | B46: 0
A47: NB: The tool assumes no load shifting unless this cell is adjusted. Only change to determine the effect of load shifting of domestic appliances and water heating. See 'Assumptions'.
A52: Embedded generation
A53: Radiation (1) - select nearest city | B53: JHB
A55: Solar PV | B55: These are typical figures - do not change unless based on sound information
A56: Average resid. PV size | B56: 2 | C56: kWp/system | D56: % PV energy used by hh | F56: 0.7
A57: Average comm. PV size | B57: 4.5 | C57: kWp/system
A58: Average industrial PV size | B58: 250 | C58: kWp/system
A60: Landfill gas | B60: Set 'Installed capacity' to '0' if no landfill gas
A61: Installed capacity | B61: 0 | C61: MW
A62: Average generation cost | B62: 0 | C62: c/kWh
A64: Load balancing (pumped storage) | C64: Set these to '0' if no load balancing in place
A65: Daily energy generation | B65: 0 | C65: MWh
A66: Daily energy use | B66: 0 | C66: MWh
A70: PV Net metering
A71: NB: Turn on net metering by inserting '1', and turn off by inserting '0'.
A72: Residential | B72: 1
A73: Commercial | B73: 1
A74: Industrial | B74: 1
A76: Number of installations | C76: Note: These figures are based on a typical expected uptake based on the financial case for each intervention. Do not change unless based on sound information
B77: Residential PV | C77: SWH | D77: Other residential EE* | E77: Commercial PV | F77: Commercial EE | G77: Industrial pv | H77: Indust EE LV | I77: Indust EE MV | J77: Indust EE MV TOU | K77: Indust EE HV TOU | L77: Streetlights | M77: Traffic lights
A78: Current penetration
A79: Penetration of different options after 10 years
D80: * Low flow showerhead, geyser blanket, LED lights
A82: Penetration rates
A83: NB: Default penetration rates used are a percentage of total uptake by year 10: yr 3 = 10%; year 5=35%. To use other rates, insert rates below:
A84: year3 | B84: 0.1
A85: Year5 | B85: 0.35
A89: Financials
A91: Current electricity revenue
A92: Predicited electricity price increases | E92: Consumption forecast | G92: CPI+operational increases
A93: Year | B93: Predicted Eskom increase p.a | C93: Predicted Municipal increase p.a* | E93: % growth /reduction | G93: %
A94: 2013/14
A95: 2014/15
A96: 2015/16
A97: 2016/17
A98: 2017/18
A99: 2018/19
A100: 2019/20
A101: 2020/21
A102: 2021/22
A103: 2022/23
A104: 2023/24
C105: *This percentage is linked to the annual increased operational and capital requirements of the electricity department, NOT the overall electricity increase which is a blend of the Eskom and municipal increases
A107: Tariffs
A108: Current Eskom Elec tariffs (Megaflex)* (excl VAT)
A109: NB: If other Eskom tariffs structures are used e.g. Nightsave, continue to insert tariffs in the table below according to the time structures specified.
A110: These should include any levies and subsidies.
B111: Low demand | C111: Hi Demand | E111: R/kVA/mth (average)
A112: Off Peak | E112: Low demand | F112: Hi Demand
A113: Standard
A114: Peak
A115: Current Munic Electricity tariffs SUMMER * (excl VAT)
B116: Resid <600kwh/m* | C116: Resid >600kwh/m* | D116: Resid fixed charge scenario | E116: Comm (small power) | F116: Ind LV | G116: Indust MV | H116: Indust MV Peak | I116: Indust MV Std | J116: Indust MV Off peak | K116: Indust HV Peak | L116: Indust HV Std | M116: Indust HV Off peak
A117: c/kWh
A118: R/KVA
A119: Feed in tariff (generation)
A120: Fixed charge (per kWp of pv/day)
A121: Current Munic Elec tariffs WINTER * (excl VAT)
B122: Resid <600kwh/m* | C122: Resid >600kwh/m | D122: Resid fixed charge scenario | E122: Comm (small power) | F122: Ind LV | G122: Indust MV | H122: Indust MV Peak | I122: Indust MV Std | J122: Indust MV Offpeak | K122: Indust HV Peak | L122: Indust HV Std | M122: Indust HV offpeak
A123: c/kWh
A124: R/KVA
A125: Feed in tariff (generation)
A126: *Residential seasonal tariffs are the same.
A127: Distribution losses | B127: 0.057 | C127: Note: Do not change unless based on sound information
B131: CALCULATE THE IMPACT ON REVENUE BY CLICKING ON THE ARROW BELOW
B132: NB: The arrows run macros which need to be enabled. When you first click on an arrow, a 'Security Warning' tab will open. Click on 'Options' and select 'enable this content'.
B133: You can run the macro for each year separately by clicking the specific year arrows OR calculate for the entire period by clicking the 'Run all Macros' arrow
B134: Each macro finishes on the 'Results Summary' page so that you can see the results calculated. To run more macros return to this page ('Input'), and click the required arrow.
B135: Click arrows in the order shown.
G147: OR

Sheet Assumptions
A1: Assumptions
A3: High demand = Megaflex high demand months (June - August)
A4: Low demand = Megaflex low demand months (September - May)
A6: The average residential and commercial customer that is likely to adopt interventions uses more than 600kWh per month.
A7: It is assumed that the tariff level of the customer remains the same, i.e. A customer that would normally consume 950kWh per month would not drop to a lower tariff block when using PV and EE.
A8: For all calculations, it is assumed that all PV owners have a SWH.
A10: Load shifting - The commercial sector operates during Standard Megaflex times mainly. The industrial sector is on TOU and therefore operations are optimised already. Hence only residential load shifting is included.
A11: Residential load shifting includes pool pumps, water heating, washing machines and tumble driers. It is assumed that currently 50% of the load is during the day, and the remainder at peak hours. Refer to 'EE interventions' sheet.
A13: Radiation data Source: Eberhard, 1990. These measurements that have been taken over a 20 year period.
A14: The landfill gas price remains fixed over the period due to long term contracts.

Sheet Results Summary
A1: Results
B3: Revenue loss/surplus (R)
B4: Residential | F4: Commercial | I4: Industrial | L4: Landfill gas | M4: Load bal. | N4: Street & Traffic lights | O4: All interv. (no fixed Charge)
A5: year | B5: Res PV fixed charge | C5: Res PV no fixed charge | D5: SWHs | E5: Other res EE* | G5: Comm PV no fixed charge | H5: Commercial EE | J5: Ind PV no fixed charge | K5: Industr EE
A6: 0 | B6: =Results!B6 -> 4742.087988 | C6: =Results!C6 -> -889.6796727 | D6: =Results!D6 -> -1260.818807 | E6: =Results!E6 -> -600.4261426 | G6: =Results!G6 -> -4967.454338 | H6: =Results!H6 -> -2164.67816 | J6: =Results!J6 -> -124498.8766 | K6: =Results!K6 -> -11367.31888 | L6: =Results!L6 -> 0 | M6: =Results!M6 -> 0 | N6: =Results!N6 -> 35044078.63 | O6: =Results!P6 -> 34898329.38
A7: 3 | B7: =Results!B7 -> 2542464.876 | C7: =Results!C7 -> -480818.632 | D7: =Results!D7 -> -13547273.45 | E7: =Results!E7 -> -6454005.073 | G7: =Results!G7 -> -2006922.761 | H7: =Results!H7 -> -2909630.181 | J7: =Results!J7 -> -13669264.54 | K7: =Results!K7 -> -4608797.859 | L7: =Results!L7 -> 0 | M7: =Results!M7 -> 0 | N7: =Results!N7 -> 47687719.52 | O7: =Results!P7 -> 4011007.016
A8: 5 | B8: =Results!B8 -> 9125088.98 | C8: =Results!C8 -> -1945781.74 | D8: =Results!D8 -> -55069218.44 | E8: =Results!E8 -> -26227776.96 | G8: =Results!G8 -> -8140612.869 | H8: =Results!H8 -> -11820296.73 | J8: =Results!J8 -> -55032650.02 | K8: =Results!K8 -> -18646277.34 | L8: =Results!L8 -> 0 | M8: =Results!M8 -> 0 | N8: =Results!N8 -> 58228537.2 | O8: =Results!P8 -> -118602764.9
A9: 10 | B9: =Results!B9 -> 43304171 | C9: =Results!C9 -> -8023314.596 | D9: =Results!D9 -> -228776342.3 | E9: =Results!E9 -> -108880447 | G9: =Results!G9 -> -33811030.27 | H9: =Results!H9 -> -49098946.02 | J9: =Results!J9 -> -245455295.1 | K9: =Results!K9 -> -76941971.14 | L9: =Results!L9 -> 0 | M9: =Results!M9 -> 0 | N9: =Results!N9 -> 95510803.83 | O9: =Results!P9 -> -642748945
B66: Year3
B67: Revenue gain/loss | C67: ='Results Summary'!O7 -> 4011007.016
E68: Operational | F68: Total
B69: Real value at yr 3, BAU | E69: =(Projections!Q18+Results!M7)/(1+Projections!W8) -> 0 | F69: =(Projections!Q19+Results!M7)/(1+Projections!W8) -> 0
B70: Real value at year 3 with EE/RE losses | E70: =(Projections!Q18+C67)/(1+Projections!W8) -> 4011007.016 | F70: =(Projections!Q19+C67)/(1+Projections!W8) -> 4011007.016
B71: Year 0 value (growth adj. to reflect impact of tariff incr. over CPI) | E71: =Projections!$Q$6*(1+Projections!M18) -> 0 | F71: =Projections!$Q$7*(1+Projections!M18) -> 0
B72: Growth (%) BAU (growth adjusted) | E72: =(E69-E$71)/E$71 ->  | F72: =(F69-F$71)/F$71 -> 
B73: Growth (%) with EE/RE losses (%) (growth adjusted) | E73: =(E70-E$71)/E$71 ->  | F73: =(F70-F$71)/F$71 -> 
B74: Impact from EE/RE (%) | E74: =E73-E72 ->  | F74: =F73-F72 -> 
B75: Growth (%) BAU against current value (no growth adjust) | E75: =(E69-Projections!Q$6)/Projections!Q$6 ->  | F75: =(F69-Projections!Q7)/Projections!Q7 -> 
B76: Growth (%) with EE/RE losses (%) (no growth adjusted) | E76: =(E70-Projections!Q$6)/Projections!Q$6 ->  | F76: =(F70-Projections!Q7)/Projections!Q7 -> 
B77: Impact from EE/RE (%) (no growth adjusted) | E77: =E76-E75 ->  | F77: =F76-F75 -> 
B78: Year5
B79: Revenue gain/loss | C79: =Results!P8 -> -118602764.9
E80: Operational | F80: Total
B81: Real value at yr 5, BAU | E81: =(Projections!Q26+Results!M8)/(1+Projections!W10) -> 0 | F81: =(Projections!Q27+Results!M8)/(1+Projections!W10) -> 0
B82: Real value at year 5 with EE/RE losses | E82: =(Projections!Q26+C79)/(1+Projections!W10) -> -118602764.9 | F82: =(Projections!Q27+C79)/(1+Projections!W10) -> -118602764.9
B83: Year 0 value (growth adj. to reflect impact of tariff incr. over CPI) | E83: =Projections!$Q$6*(1+Projections!M20) -> 0 | F83: =Projections!$Q$7*(1+Projections!M20) -> 0
B84: Growth (%) BAU (growth adjusted) | E84: =(E81-E83)/E83 ->  | F84: =(F81-F$71)/F$71 -> 
B85: Growth (%) with EE/RE losses (%) (growth adjusted) | E85: =(E82-E83)/E83 ->  | F85: =(F82-F$71)/F$71 -> 
B86: Impact from EE/RE (%) | E86: =E85-E84 ->  | F86: =F85-F84 -> 
B87: Growth (%) BAU against current value (no growth adjust) | E87: =(E81-Projections!Q6)/Projections!Q6 ->  | F87: =(F81-Projections!Q7)/Projections!Q7 -> 
B88: Growth (%) with EE/RE losses (%) (no growth adjusted) | E88: =(E82-Projections!Q6)/Projections!Q6 ->  | F88: =(F82-Projections!Q7)/Projections!Q7 -> 
B89: Impact from EE/RE (%) (no growth adjusted) | E89: =E88-E87 ->  | F89: =F88-F87 -> 
B90: Year 10
B91: Revenue gain/loss | C91: =Results!P9 -> -642748945
E92: Operational | F92: Total
B93: Real value at yr 5, BAU | E93: =(Projections!Q46+Results!M9)/(1+Projections!W15) -> 0 | F93: =(Projections!Q47+Results!M9)/(1+Projections!W15) -> 0
B94: Real value at year 5 with EE/RE losses | E94: =(Projections!Q46+C91)/(1+Projections!W15) -> -642748945 | F94: =(Projections!Q47+C91)/(1+Projections!W15) -> -642748945
B95: Year 0 value (growth adj. to reflect impact of tariff incr. over CPI) | E95: =Projections!$Q$6*(1+Projections!M25) -> 0 | F95: =Projections!$Q$7*(1+Projections!M25) -> 0
B96: Growth (%) BAU (growth adjusted) | E96: =(E93-E95)/E95 ->  | F96: =(F93-F$71)/F$71 -> 
B97: Growth (%) with EE/RE losses (%) (growth adjusted) | E97: =(E94-E95)/E95 ->  | F97: =(F94-F$71)/F$71 -> 
B98: Impact from EE/RE (%) | E98: =E97-E96 ->  | F98: =F97-F96 -> 
B99: Growth (%) BAU against current value (no growth adjust) | E99: =(E93-Projections!Q6)/Projections!Q6 ->  | F99: =(F93-Projections!Q7)/Projections!Q7 -> 
B100: Growth (%) with EE/RE losses (%) (no growth adjusted) | E100: =(E94-Projections!Q6)/Projections!Q6 ->  | F100: =(F94-Projections!Q7)/Projections!Q7 -> 
B101: Impact from EE/RE (%) (no growth adjusted) | E101: =E100-E99 ->  | F101: =F100-F99 -> 

Sheet Projections
A1: Projections of tariffs, revenue and technology penetration | M1: Colour code: | N1: current | O1: year 3 | P1: year 5 | Q1: year 10
A2: Penetration of different options over time | H2: 3yrs, 5 yrs, 10 yrs, 15 years
A3: year | B3: PV implement | C3: SWH realistic | D3: Other res EE (No hhs)* | E3: Commercial PV | F3: Commercial EE (customers) | G3: Industrial pv | H3: Indust EE LV (customers) | I3: Indust EE MV (customers) | J3: Indust EE MV TOU (customers) | K3: Indust EE HV TOU (customers) | L3: Streetlights | M3: Traffic lights | T3: Inflation
A4: 0 | B4: =IF(Input!B78=0,0.00000001,Input!B78) -> 1e-08 | C4: =IF(Input!C78=0,0.00000001,Input!C78) -> 1e-08 | D4: =IF(Input!D78=0,0.00000001,Input!D78) -> 1e-08 | E4: =IF(Input!E78=0,0.00000001,Input!E78) -> 1e-08 | F4: =IF(Input!F78=0,0.00000001,Input!F78) -> 1e-08 | G4: =IF(Input!G78=0,0.00000001,Input!G78) -> 1e-08 | H4: =IF(Input!H78=0,0.00000001,Input!H78) -> 1e-08 | I4: =IF(Input!I78=0,0.00000001,Input!I78) -> 1e-08 | J4: =IF(Input!J78=0,0.00000001,Input!J78) -> 1e-08 | K4: =IF(Input!K78=0,0.00000001,Input!K78) -> 1e-08 | L4: =IF(Input!L78=0,0.00000001,Input!L78) -> 1e-08 | M4: =IF(Input!M78=0,0.00000001,Input!M78) -> 1e-08 | N4: Year | T4: Year | U4: CPI forecast (%) | V4: Inflated value | W4: Inflated increase (%)
A5: 3 | B5: =(B7-B$4)*Input!$B$84+B4 -> 0.100000009 | C5: =(C7-C$4)*Input!$B$84+C4 -> 0.100000009 | D5: =(D7-D$4)*Input!$B$84+D4 -> 0.100000009 | E5: =(E7-E$4)*Input!$B$84+E4 -> 0.100000009 | F5: =(F7-F$4)*Input!$B$84+F4 -> 0.100000009 | G5: =(G7-G$4)*Input!$B$84+G4 -> 0.100000009 | H5: =(H7-H$4)*Input!$B$84+H4 -> 0.100000009 | I5: =(I7-I$4)*Input!$B$84+I4 -> 0.100000009 | J5: =(J7-J$4)*Input!$B$84+J4 -> 0.100000009 | K5: =(K7-K$4)*Input!$B$84+K4 -> 0.100000009 | L5: =(L7-L$4)*Input!$B$84+L4 -> 0.100000009 | M5: =(M7-M$4)*Input!$B$84+M4 -> 0.100000009 | N5: 0 | O5: Elec increase (nom) | P5: =C15 -> 0 | Q5: =(Results!B22-Results!E22)*(1+P5)*(1+K15) -> 0 | R5: =Q5/Q7 ->  | T5: 0 | V5: 1 | W5: 0
A6: 5 | B6: =(B7-B$4)*Input!$B$85+B4 -> 0.3500000065 | C6: =(C7-C$4)*Input!$B$85+C4 -> 0.3500000065 | D6: =(D7-D$4)*Input!$B$85+D4 -> 0.3500000065 | E6: =(E7-E$4)*Input!$B$85+E4 -> 0.3500000065 | F6: =(F7-F$4)*Input!$B$85+F4 -> 0.3500000065 | G6: =(G7-G$4)*Input!$B$85+G4 -> 0.3500000065 | H6: =(H7-H$4)*Input!$B$85+H4 -> 0.3500000065 | I6: =(I7-I$4)*Input!$B$85+I4 -> 0.3500000065 | J6: =(J7-J$4)*Input!$B$85+J4 -> 0.3500000065 | K6: =(K7-K$4)*Input!$B$85+K4 -> 0.3500000065 | L6: =(L7-L$4)*Input!$B$85+L4 -> 0.3500000065 | M6: =(M7-M$4)*Input!$B$85+M4 -> 0.3500000065 | O6: Operation cost increase (nom) | P6: =E15 -> 0 | Q6: =Results!E22*(1+P6)*(1+K15) -> 0 | R6: =Q6/Q7 ->  | T6: 1 | U6: =Input!G95 -> 0 | V6: =V5*(1+(U6/100)) -> 1 | W6: =(V6-V$5) -> 0
A7: 10 | B7: =IF(Input!B79=0,1,Input!B79) -> 1 | C7: =IF(Input!C79=0,1,Input!C79) -> 1 | D7: =IF(Input!D79=0,1,Input!D79) -> 1 | E7: =IF(Input!E79=0,1,Input!E79) -> 1 | F7: =IF(Input!F79=0,1,Input!F79) -> 1 | G7: =IF(Input!G79=0,1,Input!G79) -> 1 | H7: =IF(Input!H79=0,1,Input!H79) -> 1 | I7: =IF(Input!I79=0,1,Input!I79) -> 1 | J7: =IF(Input!J79=0,1,Input!J79) -> 1 | K7: =IF(Input!K79=0,1,Input!K79) -> 1 | L7: =IF(Input!L79=0,1,Input!L79) -> 1 | M7: =IF(Input!M79=0,1,Input!M79) -> 1 | P7: =Results!C22*(1+P5)+Results!D22*(1+P6) -> 1 | Q7: =P7*Results!B22 -> 0 | T7: 2 | U7: =Input!G96 -> 0 | V7: =V6*(1+(U7/100)) -> 1 | W7: 0
A8: SWH owners load shift | B8: =B5*Input!B46/C5 -> 0 | O8: Nominal growth | Q8: =Q7/B34-1 ->  | T8: 3 | U8: =Input!G97 -> 0 | V8: 1 | W8: 0
B9: % of SWH owners who have PV and load shift | F9: Residential (mid-high) | G9: Commecial | H9: Indust EE LV (customers) | I9: Indust EE MV (customers) | J9: Indust EE MV TOU (customers) | K9: Indust EE HV TOU (customers) | L9: Total customers | N9: 1 | O9: Elec increase (nom) | P9: =C16 -> 0 | Q9: =Q5*(1+P9)*(1+K16) -> 0 | R9: =Q9/Q11 ->  | T9: 4 | U9: =Input!G98 -> 0 | V9: 1 | W9: 0
E10: Av usuage/cust (kwh) | H10: =Input!J12 -> 0 | I10: =Input!J13 -> 0 | J10: =Input!J14 -> 0 | K10: =Input!J15 -> 0 | O10: Operation cost increase (nom) | P10: =E16 -> 0 | Q10: =Q6*(1+P10)*(1+K16) -> 0 | R10: =Q10/Q11 ->  | T10: 5 | U10: =Input!G99 -> 0 | V10: 1 | W10: 0
E11: # of customers | F11: =Input!E10 -> 0 | G11: =Input!E11 -> 0 | H11: =Input!E12 -> 0 | I11: =Input!E13 -> 0 | J11: =Input!E14 -> 0 | K11: =Input!E15 -> 0 | L11: =SUM(H11:K11) -> 0 | O11: Total Growth | Q11: =SUM(Q9:Q10) -> 0 | T11: 6 | U11: =Input!G100 -> 0 | V11: 1 | W11: 0
A12: Elec price increases | O12: Nominal growth | P12: =(P9*Q9+P10*Q10)/Q11 ->  | Q12: =Q11/Q7-1 ->  | T12: 7 | U12: =Input!G101 -> 0 | V12: 1 | W12: 0
C13: NERSA increase | F13: City increase | I13: Customer growth | N13: 2 | O13: Elec increase (nom) | P13: =C17 -> 0 | Q13: =Q9*(1+P13)*(1+K17) -> 0 | R13: =Q13/Q15 ->  | T13: 8 | U13: =Input!G102 -> 0 | V13: 1 | W13: 0
A14: year no. | B14: year | C14: inc p.a. | D14: inc % cum | E14: Operational | F14: op increase | G14: inc % cum | I14: year no. | J14: Year | K14: % growth | O14: Operation cost increase (nom) | P14: =E17 -> 0 | Q14: =Q10*(1+P14)*(1+K17) -> 0 | R14: =Q14/Q15 ->  | T14: 9 | U14: =Input!G103 -> 0 | V14: 1 | W14: 0
A15: 0 | B15: 13/14 | C15: =Input!B94 -> 0 | D15: =C15 -> 0 | E15: =Input!C94 -> 0 | F15: =Q8 ->  | G15: =F15 ->  | I15: 0 | J15: 13/14 | K15: =Input!E94 -> 0 | L15: =1 -> 1 | O15: Total Growth | Q15: =SUM(Q13:Q14) -> 0 | T15: 10 | U15: =Input!G104 -> 0 | V15: 1 | W15: 0
A16: 1 | B16: 14/15 | C16: =Input!B95 -> 0 | D16: =(1+D15)*(1+C16)-1 -> 0 | E16: =Input!C95 -> 0 | F16: =P12 ->  | G16: =(1+G15)*(1+F16)-1 ->  | I16: 1 | J16: 14/15 | K16: =Input!E95 -> 0 | L16: =L15*(1+K16) -> 1 | O16: Nominal growth | P16: =(P13*Q13+P14*Q14)/Q15 ->  | Q16: =Q15/Q11-1 -> 
A17: 2 | B17: 15/16 | C17: =Input!B96 -> 0 | D17: 0 | E17: =Input!C96 -> 0 | F17: =P16 ->  | I17: 2 | J17: 15/16 | K17: =Input!E96 -> 0 | L17: =L16*(1+K17) -> 1 | N17: 3 | O17: Elec increase (nom) | P17: =C18 -> 0 | Q17: =Q13*(1+P17)*(1+K18) -> 0 | R17: =Q17/Q19 -> 
A18: 3 | B18: 16/17 | C18: =Input!B97 -> 0 | D18: 0 | E18: =Input!C97 -> 0 | F18: =P20 ->  | G18: =(1+G17)*(1+F18)-1 ->  | I18: 3 | J18: 16/17 | K18: =Input!E97 -> 0 | L18: 1 | M18: =L18-1 -> 0 | O18: Operation cost increase (nom) | P18: =E18 -> 0 | Q18: =Q14*(1+P18)*(1+K18) -> 0 | R18: =Q18/Q19 -> 
A19: 4 | B19: 17/18 | C19: =Input!B98 -> 0 | D19: 0 | E19: =Input!C98 -> 0 | F19: =P24 ->  | I19: 4 | J19: 17/18 | K19: =Input!E98 -> 0 | L19: 1 | M19: =L19-1 -> 0 | Q19: =SUM(Q17:Q18) -> 0
A20: 5 | B20: 18/19 | C20: =Input!B99 -> 0 | D20: 0 | E20: =Input!C99 -> 0 | F20: =P28 ->  | I20: 5 | J20: 18/19 | K20: =Input!E99 -> 0 | L20: 1 | M20: 0 | O20: Nominal growth | P20: =(P17*Q17+P18*Q18)/Q19 ->  | Q20: =Q19/Q15-1 -> 
A21: 6 | B21: 19/20 | C21: =Input!B100 -> 0 | D21: 0 | E21: =Input!C100 -> 0 | F21: =P32 ->  | I21: 6 | J21: 19/20 | K21: =Input!E100 -> 0 | L21: 1 | M21: 0 | N21: 4 | O21: Elec increase (nom) | P21: =C19 -> 0 | Q21: =Q17*(1+P21)*(1+K19) -> 0 | R21: =Q21/Q23 -> 
A22: 7 | B22: 20/21 | C22: =Input!B101 -> 0 | D22: 0 | E22: =Input!C101 -> 0 | F22: =P36 ->  | I22: 7 | J22: 20/21 | K22: =Input!E101 -> 0 | L22: 1 | M22: 0 | O22: Operation cost increase (nom) | P22: =E19 -> 0 | Q22: =Q18*(1+P22)*(1+K19) -> 0 | R22: =Q22/Q23 -> 
A23: 8 | B23: 21/22 | C23: =Input!B102 -> 0 | D23: 0 | E23: =Input!C102 -> 0 | F23: =P40 ->  | I23: 8 | J23: 21/22 | K23: =Input!E102 -> 0 | L23: 1 | M23: 0 | O23: Total Growth | Q23: =SUM(Q21:Q22) -> 0
A24: 9 | B24: 22/23 | C24: =Input!B103 -> 0 | D24: 0 | E24: =Input!C103 -> 0 | F24: =P44 ->  | I24: 9 | J24: 22/23 | K24: =Input!E103 -> 0 | L24: 1 | M24: 0 | O24: Nominal growth | P24: =(P21*Q21+P22*Q22)/Q23 ->  | Q24: =Q23/Q19-1 -> 
A25: 10 | B25: 23/24 | C25: =Input!B104 -> 0 | D25: 0 | E25: =Input!C104 -> 0 | F25: =P48 ->  | I25: 10 | J25: 23/24 | K25: =Input!E104 -> 0 | L25: 1 | M25: 0 | N25: 5 | O25: Elec increase (nom) | P25: =C20 -> 0 | Q25: =Q21*(1+P25)*(1+K20) -> 0 | R25: =Q25/Q27 -> 
O26: Operation cost increase (nom) | P26: =E20 -> 0 | Q26: =Q22*(1+P26)*(1+K20) -> 0 | R26: =Q26/Q27 -> 
Q27: =SUM(Q25:Q26) -> 0
O28: Nominal growth | P28: =(P25*Q25+P26*Q26)/Q27 ->  | Q28: =Q27/Q23-1 -> 
A29: Elec revenue growth | N29: 6 | O29: Elec increase (nom) | P29: =C21 -> 0 | Q29: =Q25*(1+P29)*(1+K21) -> 0 | R29: =Q29/Q31 -> 
H30: Elec tariffs (Megaflex)* (excl VAT) | O30: Operation cost increase (nom) | P30: =E21 -> 0 | Q30: =Q26*(1+P30)*(1+K21) -> 0 | R30: =Q30/Q31 -> 
A31: Year | B31: R bn | C31: Rev+Cons growth | D31: cum % growth | E31: Revenue projn | F31: nom% growth | H31: 2012/13 | I31: Low demand** | J31: Hi Demand** | K31: R/kVA/mth (Hi demand) | L31: R/kVA/mth (Low demand) | O31: Total Growth | Q31: =SUM(Q29:Q30) -> 0
H32: Off Peak | I32: =Input!B112 -> 0 | J32: =Input!C112 -> 0 | K32: =Input!F113 -> 0 | L32: =Input!E113 -> 0 | O32: Nominal growth | P32: =(P29*Q29+P30*Q30)/Q31 ->  | Q32: =Q31/Q27-1 -> 
H33: Standard | I33: =Input!B113 -> 0 | J33: =Input!C113 -> 0 | N33: 7 | O33: Elec increase (nom) | P33: =C22 -> 0 | Q33: =Q29*(1+P33)*(1+K22) -> 0 | R33: =Q33/Q35 -> 
B34: =Input!B91 -> 0 | H34: Peak | I34: =Input!B114 -> 0 | J34: =Input!C114 -> 0 | O34: Operation cost increase (nom) | P34: =E22 -> 0 | Q34: =Q30*(1+P34)*(1+K22) -> 0 | R34: =Q34/Q35 -> 
A35: 13/14 | C35: =F35+K15 ->  | D35: 0.07 | E35: =B34*(1+C35) ->  | F35: =Q8 ->  | H35: 2015/16 (Yr 3) | I35: increase: | J35: =D18 -> 0 | O35: Total Growth | Q35: =SUM(Q33:Q34) -> 0
A36: 14/15 | C36: =F36 ->  | D36: =(1+D35)*(1+C36)-1 ->  | E36: =E35*(1+C36) ->  | F36: =Q12 ->  | H36: Off Peak | I36: =I32*(1+$J$35) -> 0 | J36: =J32*(1+$J$35) -> 0 | K36: =K32*(1+$J$35) -> 0 | L36: =L32*(1+$J$35) -> 0 | O36: Nominal growth | P36: =(P33*Q33+P34*Q34)/Q35 ->  | Q36: =Q35/Q31-1 -> 
A37: 15/16 | C37: =F37 ->  | D37: =(1+D36)*(1+C37)-1 ->  | E37: =E36*(1+C37) ->  | F37: =Q16 ->  | H37: Standard | I37: =I33*(1+$J$35) -> 0 | J37: =J33*(1+$J$35) -> 0 | N37: 8 | O37: Elec increase (nom) | P37: =C23 -> 0 | Q37: =Q33*(1+P37)*(1+K23) -> 0 | R37: =Q37/Q39 -> 
A38: 16/17 | F38: =Q20 ->  | H38: Peak | I38: =I34*(1+$J$35) -> 0 | J38: =J34*(1+$J$35) -> 0 | O38: Operation cost increase (nom) | P38: =E23 -> 0 | Q38: =Q34*(1+P38)*(1+K23) -> 0 | R38: =Q38/Q39 -> 
A39: 17/18 | F39: =Q24 ->  | H39: 2017/18 (Yr 5) | I39: increase: | J39: =D20 -> 0 | O39: Total Growth | Q39: =SUM(Q37:Q38) -> 0
A40: 18/19 | F40: =Q28 ->  | H40: Off Peak | I40: =I32*(1+$J$39) -> 0 | J40: =J32*(1+$J$39) -> 0 | K40: =K32*(1+$J$39) -> 0 | L40: =L32*(1+$J$39) -> 0 | O40: Nominal growth | P40: =(P37*Q37+P38*Q38)/Q39 ->  | Q40: =Q39/Q35-1 -> 
A41: 19/20 | C41: =F41 ->  | F41: =Q32 ->  | H41: Standard | I41: =I33*(1+$J$39) -> 0 | J41: =J33*(1+$J$39) -> 0 | N41: 9 | O41: Elec increase (nom) | P41: =C24 -> 0 | Q41: =Q37*(1+P41)*(1+K24) -> 0 | R41: =Q41/Q43 -> 
A42: 20/21 | F42: =Q36 ->  | H42: Peak | I42: =I34*(1+$J$39) -> 0 | J42: =J34*(1+$J$39) -> 0 | O42: Operation cost increase (nom) | P42: =E24 -> 0 | Q42: =Q38*(1+P42)*(1+K24) -> 0 | R42: =Q42/Q43 -> 
A43: 21/22 | F43: =Q40 ->  | H43: 2022/23 (Yr 10) | I43: increase: | J43: =D25 -> 0 | O43: Total Growth | Q43: =SUM(Q41:Q42) -> 0
A44: 22/23 | F44: =Q44 ->  | H44: Off Peak | I44: =I32*(1+$J$43) -> 0 | J44: =J32*(1+$J$43) -> 0 | K44: =K32*(1+$J$43) -> 0 | L44: =L32*(1+$J$43) -> 0 | O44: Nominal growth | P44: =(P41*Q41+P42*Q42)/Q43 ->  | Q44: =Q43/Q39-1 -> 
A45: 23/24 | F45: =Q48 ->  | H45: Standard | I45: =I33*(1+$J$43) -> 0 | J45: =J33*(1+$J$43) -> 0 | N45: 10 | O45: Elec increase (nom) | P45: =C25 -> 0 | Q45: =Q41*(1+P45)*(1+K25) -> 0 | R45: =Q45/Q47 -> 
H46: Peak | I46: =I34*(1+$J$43) -> 0 | J46: =J34*(1+$J$43) -> 0 | O46: Operation cost increase (nom) | P46: =E25 -> 0 | Q46: =Q42*(1+P46)*(1+K25) -> 0 | R46: =Q46/Q47 -> 
H47: * - increass from 'Elec price increases' table above | O47: Total Growth | Q47: =SUM(Q45:Q46) -> 0
H48: ** - incl environ levy and elec subsidy | O48: Nominal growth | P48: =(P45*Q45+P46*Q46)/Q47 ->  | Q48: =Q47/Q43-1 -> 
A50: Elec tariffs SUMMER * (excl VAT)
A51: 2012/13 | B51: Resid>600kwh/m | C51: Res feed in | D51: Res resale | E51: Comm (small) | F51: Comm feed in | G51: Comm resale | H51: Ind LV | I51: Indust MV | J51: Indust MV Peak | K51: Indust MV Std | L51: Indust MV Off peak | M51: Indust HV Peak | N51: Indust HV Std | O51: Indust HV Off peak | P51: Ind feed in | Q51: Ind resale
A52: c/kWh summer | C52: =Input!C119 -> 0 | D52: =AVERAGE(G85:H85) -> 0 | E52: =Input!E117 -> 0 | F52: =Input!E119 -> 0 | G52: =E52 -> 0 | H52: =Input!F117 -> 0 | I52: =Input!G117 -> 0 | J52: =Input!H117 -> 0 | K52: =Input!I117 -> 0 | L52: =Input!J117 -> 0 | M52: =Input!K117 -> 0 | N52: =Input!L117 -> 0 | O52: =Input!M117 -> 0 | P52: =Input!F119 -> 0 | Q52: =SUM(H52,I52,K52,N52)/$V$52 ->  | R52: =IF(H52>0,1,0) -> 0 | S52: =IF(I52>0,1,0) -> 0 | T52: =IF(K52>0,1,0) -> 0 | U52: =IF(N52>0,1,0) -> 0 | V52: =SUM(R52:U52) -> 0
A53: R/KVA | H53: =Input!F118 -> 0 | I53: =Input!G118 -> 0 | J53: =Input!H118 -> 0 | K53: =Input!I118 -> 0 | L53: =Input!J118 -> 0 | M53: =Input!K118 -> 0 | N53: =Input!L118 -> 0 | O53: =Input!M118 -> 0 | W53: =1-'Results Summary'!E94/'Results Summary'!E93 -> 
C54: =E86*Summary!AC9 -> 0
A55: 2015/16 (Yr 3) | E55: =G18 -> 
A56: c/kWh | C56: =C52*(1+$E$73) ->  | F56: =C56 ->  | P56: =C56 ->  | Q56: =K56 -> 
A57: R/KVA | H57: =H53*(1+$E$55) ->  | U57: 2007 | V57: 2013 | W57: difference
T58: fbe | U58: 250000 | V58: 306194 | W58: =V58-U58 -> 56194 | X58: =W58/6/U58 -> 0.03746266667
A59: 2017/18 (Yr 5) | E59: =G20 ->  | T59: mid-high | U59: 271000 | V59: 265000 | W59: =V59-U59 -> -6000 | X59: =W59/6/U59 -> -0.0036900369
A60: c/kWh | C60: =C52*(1+$E$76) ->  | F60: =C60 ->  | P60: =C60 ->  | Q60: =K60 ->  | T60: sc | U60: 28835 | V60: 30933 | W60: =V60-U60 -> 2098 | X60: =W60/6/U60 -> 0.01212646668
A61: R/KVA | H61: =H53*(1+$E$76) ->  | T61: in | U61: 1628 | V61: 1526 | W61: =V61-U61 -> -102 | X61: =W61/6/U61 -> -0.01044226044
U62: =SUM(U59:U61) -> 301463 | V62: =SUM(V59:V61) -> 297459 | W62: =(V62-U62)/6 -> -667.3333333 | X62: =W62/V62 -> -0.002243446436
A63: 2022/23 (Yr 10) | E63: =G25 ->  | U63: =SUM(U58:U61) -> 551463 | V63: =SUM(V58:V61) -> 603653 | W63: =(V63-U63)/6 -> 8698.333333 | X63: =W63/V63 -> 0.01440949243
A64: c/kWh | C64: =C52*(1+$E$79) ->  | F64: =C64 ->  | P64: =C64 ->  | Q64: =K64 -> 
A65: R/KVA | H65: =H53*(1+$E$79) -> 
A69: Elec tariffs WINTER * (excl VAT)
A70: 2012/13 | B70: Resid>600kwh/m | C70: Res feed in | D70: Res resale | E70: Comm (small) | F70: Comm feed in | G70: Comm resale | H70: Ind LV | I70: Indust MV | J70: Indust MV Peak | K70: Indust MV Std | L70: Indust MV Offpeak | M70: Indust HV Peak | N70: Indust HV Std | O70: Indust HV offpeak | P70: Ind feed in | Q70: Ind resale
A71: c/kWh summer | C71: =Input!C125 -> 0 | D71: =AVERAGE(G85:H85) -> 0 | E71: =Input!E123 -> 0 | F71: =Input!E125 -> 0 | G71: =E71 -> 0 | H71: =Input!F123 -> 0 | I71: =Input!G123 -> 0 | J71: =Input!H123 -> 0 | K71: =Input!I123 -> 0 | L71: =Input!J123 -> 0 | M71: =Input!K123 -> 0 | N71: =Input!L123 -> 0 | O71: =Input!M123 -> 0 | P71: =Input!F125 -> 0 | Q71: =SUM(H71,I71,K71,N71)/V71 ->  | R71: =IF(H71>0,1,0) -> 0 | S71: =IF(I71>0,1,0) -> 0 | T71: =IF(K71>0,1,0) -> 0 | U71: =IF(N71>0,1,0) -> 0 | V71: =SUM(R71:U71) -> 0
A72: R/KVA | H72: =Input!F124 -> 0 | I72: =Input!G124 -> 0 | J72: =Input!H124 -> 0 | K72: =Input!I124 -> 0 | L72: =Input!J124 -> 0 | M72: =Input!K124 -> 0 | N72: =Input!L124 -> 0 | O72: =Input!M124 -> 0
A73: 2015/16 (Yr 3) | E73: =G18 -> 
A74: c/kWh | C74: =C71*(1+$E$73) ->  | F74: =C74 ->  | P74: =C74 ->  | Q74: =K74 -> 
A75: R/KVA | H75: =H72*(1+$E$73) -> 
A76: 2017/18 (Yr 5) | E76: =G20 -> 
A77: c/kWh | C77: =C71*(1+$E$76) ->  | F77: =C77 ->  | P77: =C77 ->  | Q77: =K77 -> 
A78: R/KVA | H78: =H72*(1+$E$76) -> 
A79: 2022/23 (Yr 10) | E79: =G25 -> 
A80: c/kWh | C80: =C71*(1+$E$79) ->  | F80: =C80 ->  | P80: =C80 ->  | Q80: =K80 -> 
A81: R/KVA | H81: =H72*(1+$E$79) -> 
E83: Fixed Charge Scenario | G83: Non fixed charge scenario
C84: Year | G84: Block 2 IBT | H84: Block 1 IBT
C85: 0 | D85: Residential tariff | E85: =Input!D117 -> 0 | G85: =Input!C117 -> 0 | H85: =Input!B117 -> 0
D86: Charge kwp/day | E86: =Input!D120 -> 0 | G86: 0
C87: 3 | E87: Fixed Charge Scenario | G87: Non fixed charge scenario
D88: Residential tariff | E88: =E85*(1+E73) ->  | G88: =G85*(1+E73) ->  | H88: =H85*(1+E73) -> 
D89: Charge kwp/day | E89: =E86*(1+E73) ->  | G89: 0
C90: 5 | E90: Fixed Charge Scenario | G90: Non fixed charge scenario
D91: Residential tariff | E91: =E85*(1+E76) ->  | G91: =G85*(1+E76) ->  | H91: =H85*(1+E76) -> 
D92: Charge kwp/day | E92: =E86*(1+E76) ->  | G92: 0
C93: 10 | E93: Fixed Charge Scenario | G93: Non fixed charge scenario
D94: Residential tariff | E94: =E85*(1+E79) ->  | G94: =G85*(1+E79) ->  | H94: =H85*(1+E79) -> 
D95: Charge kwp/day | E95: =E86*(1+E79) ->  | G95: 0

Sheet Results
A1: Results detailed
B3: Revenue loss (R)
B4: Residential | F4: Commercial | I4: Industrial | L4: Landfill gas | M4: Load bal. | N4: Street & Traffic lights | P4: All interv. (no fixed Charge)
A5: year | B5: Res PV fixed charge | C5: Res PV no fixed charge | D5: SWHs | E5: Other res EE* | G5: Comm PV no fixed charge | H5: Commercial EE | J5: Ind PV no fixed charge | K5: Industr EE
A6: 0 | B6: 4742.087988 | C6: -889.6796727 | D6: -1260.818807 | E6: -600.4261426 | G6: -4967.454338 | H6: -2164.67816 | J6: -124498.8766 | K6: -11367.31888 | L6: 0 | M6: 0 | N6: 35044078.63 | P6: 34898329.38
A7: 3 | B7: 2542464.876 | C7: -480818.632 | D7: -13547273.45 | E7: -6454005.073 | G7: -2006922.761 | H7: -2909630.181 | J7: -13669264.54 | K7: -4608797.859 | L7: 0 | M7: 0 | N7: 47687719.52 | P7: 4011007.016
A8: 5 | B8: 9125088.98 | C8: -1945781.74 | D8: -55069218.44 | E8: -26227776.96 | G8: -8140612.869 | H8: -11820296.73 | J8: -55032650.02 | K8: -18646277.34 | L8: 0 | M8: 0 | N8: 58228537.2 | P8: -118602764.9 | AC8: =Projections!B5 -> 0.100000009
A9: 10 | B9: 43304171 | C9: -8023314.596 | D9: -228776342.3 | E9: -108880447 | G9: -33811030.27 | H9: -49098946.02 | J9: -245455295.1 | K9: -76941971.14 | L9: 0 | M9: 0 | N9: 95510803.83 | P9: -642748945
AC11: =Projections!E5 -> 0.100000009
B12: Revenue loss (of total revenue) %
B13: Residential | F13: Commercial | I13: Industrial | L13: Landfill gas | M13: Load bal. | N13: Street & Traffic lights | P13: All interv. (no fixed Charge)
A14: year | B14: Res PV fixed charge | C14: Res PV no fixed charge | D14: SWHs | E14: Other res EE* | G14: Comm PV no fixed charge | H14: Commercial EE | J14: Ind PV no fixed charge | K14: Industr EE | AC14: =Projections!G5 -> 0.100000009
A15: 0 | B15: =B6/B22 ->  | C15: =C6/$B22 ->  | D15: =D6/$B22 ->  | E15: =E6/$B22 ->  | P15: =P6/$B22 -> 
A16: 3 | B16: =B7/B23 ->  | C16: =C7/$B23 ->  | P16: =P7/$B23 -> 
A17: 5 | B17: =B8/B24 ->  | P17: =P8/$B24 -> 
A18: 10 | B18: =B9/B25 ->  | P18: =P9/$B25 -> 
B20: Bulk purchases vs operational revenue
A21: year | B21: Total revenue* | C21: Bulk purchase %* | D21: Op revenue % | E21: Op revenue est
A22: 0 | B22: =Projections!B34 -> 0 | C22: 0.63 | D22: =1-C22 -> 0.37 | E22: =D22*B22 -> 0
A23: 3 | B23: =Projections!E38 ->  | C23: =Projections!R17 ->  | D23: =1-C23 ->  | E23: =D23*B23 -> 
A24: 5 | B24: =Projections!E40 ->  | C24: =Projections!R25 ->  | D24: =1-C24 ->  | E24: =D24*B24 ->  | AC24: =Projections!C5 -> 0.100000009
A25: 10 | B25: =Projections!E45 ->  | C25: =Projections!R45 ->  | D25: =1-C25 ->  | E25: =D25*B25 -> 
B26: * Total revenue from 'Projections' worksheet
AC27: =Projections!D5 -> 0.100000009
B28: Revenue loss (of operational revenue) %
B29: Residential | F29: Commercial | I29: Industrial | L29: Landfill gas | M29: Load bal. | N29: Street & Traffic lights | P29: All interv. (no fixed Charge)
A30: year | B30: Res PV fixed charge | C30: Res PV no fixed charge | D30: SWHs | E30: Other res EE* | G30: Comm PV no fixed charge | H30: Commercial EE | J30: Ind PV no fixed charge | K30: Industr EE | AC30: =Projections!D5 -> 0.100000009
A31: 0 | B31: =B6/E22 ->  | C31: =C6/$E$22 ->  | D31: =D6/$E22 ->  | E31: =E6/$E22 ->  | G31: =G6/$E22 ->  | H31: =H6/$E22 ->  | J31: =J6/$E22 ->  | K31: =K6/$E22 ->  | L31: =L6/$E22 ->  | M31: =M6/$E22 ->  | N31: =N6/$E22 ->  | P31: =P6/$E22 -> 
A32: 3 | B32: =B7/E23 ->  | C32: =C7/E23 ->  | D32: =D7/$E23 ->  | K32: =K7/$E23 ->  | P32: =P7/$E23 -> 
A33: 5 | B33: =B8/E24 ->  | C33: =C8/E24 ->  | P33: =P8/$E24 ->  | AC33: =Projections!D5 -> 0.100000009
A34: 10 | B34: =B9/E25 ->  | C34: =C9/E25 ->  | N34: =N9/$E25 ->  | P34: =P9/$E25 -> 
AC36: =Projections!F5 -> 0.100000009
AC40: =Projections!H5 -> 0.100000009
AC41: =Projections!I5 -> 0.100000009
AC42: =Projections!J5 -> 0.100000009
AC43: =Projections!K5 -> 0.100000009
AC47: =Projections!L5 -> 0.100000009
AC50: =Projections!M5 -> 0.100000009
AC55: =Projections!G85 -> 0
AC56: =Projections!G85 -> 0
AC57: 0
AC58: =Projections!D56 -> 
AC59: =Projections!D74 -> 
AC60: =Projections!C56 -> 
AC61: =Projections!C74 -> 
AC63: =Projections!E74 -> 
AC64: =Projections!E56 -> 
AC65: 0
AC66: =Projections!G56 -> 
AC67: =Projections!G74 -> 
AC68: =Projections!F56 -> 
AC69: =Projections!F74 -> 
AC71: =Projections!Q74 -> 
AC72: =Projections!Q56 -> 
AC73: 0
AC74: 0
AC75: 0
AC76: =Projections!Q56 -> 
AC77: =Projections!Q74 -> 
AC78: =Projections!P56 -> 
AC79: =Projections!P74 -> 
AC80: =Projections!H74 -> 
AC81: =Projections!H56 -> 
AC82: =Projections!H57 -> 
AC83: =Projections!H75 -> 
AC84: =Projections!I74 -> 
AC85: =Projections!I56 -> 
AC86: =Projections!I57 -> 
AC87: =Projections!I75 -> 
AC88: =Projections!J74 -> 
AC89: =Projections!J56 -> 
AC90: =Projections!K74 -> 
AC91: =Projections!K56 -> 
AC92: =Projections!L74 -> 
AC93: =Projections!L56 -> 
AC94: =Projections!J57 -> 
AC95: =Projections!J75 -> 
AC96: =Projections!M74 -> 
AC97: =Projections!M56 -> 
AC98: =Projections!N74 -> 
AC99: =Projections!N56 -> 
AC100: =Projections!O74 -> 
AC101: =Projections!O56 -> 
AC102: =Projections!M53 -> 0
AC103: =Projections!M75 -> 
AC105: =Projections!I36 -> 0
AC106: =Projections!J36 -> 0
AC107: =Projections!I37 -> 0
AC108: =Projections!J37 -> 0
AC109: =Projections!I38 -> 0
AC110: =Projections!J38 -> 0
AC111: =Projections!K36 -> 0
AC112: =Projections!E38 -> 

Sheet Summary
A1: City electricity load profile (MW) and revenue impact analysis | N1: Weekday
AB2: Loads
AB3: Residential | AC3: =Input!B10 -> 0 | AD3: kwh yearly
AB4: Commercial buildings | AC4: =Input!B11 -> 0 | AD4: kwh yearly
AB5: Industrial | AC5: =Input!B12 -> 0 | AD5: kwh yearly
AB6: RE generation
AB7: Residential PV
AB8: No. sys | AC8: =Projections!B7 -> 1
AB9: kWp/sys | AC9: =Input!B56 -> 2 | AD9: kW
AB10: Commercial PV
AB11: No. sys | AC11: =Projections!E7 -> 1
AB12: kWp/sys | AC12: =Input!B57 -> 4.5 | AD12: kW
AB13: Industrial PV
AB14: No. sys | AC14: =Projections!G7 -> 1
AB15: kWp/sys | AC15: =Input!B58 -> 250 | AD15: kW
AB16: Landfill gas
C17: off pk | D17: off pk | E17: off pk | F17: off pk | G17: off pk | H17: off pk | I17: std | J17: peak | K17: peak | L17: peak | M17: std | N17: std | O17: std | P17: std | Q17: std | R17: std | S17: std | T17: std | U17: peak | V17: peak | W17: std | X17: std | Y17: off pk | Z17: off pk | AB17: Installed MW | AC17: =Input!B61 -> 0 | AD17: MW
AB18: Av Generation cost | AC18: =Input!B62 -> 0 | AD18: c/kWh
AB19: Load balancing
AB20: Daily energy gen | AC20: =Input!B65 -> 0 | AD20: MWh
AB21: Daily energy use | AC21: =Input!B66 -> 0 | AD21: MWh
AB22: Energy Efficiency
AB23: Residential water heating
AB24: No SWHs | AC24: =Projections!C7 -> 1
AB25: Demand / cyl | AC25: 3 | AD25: kW
AB26: Residential cooking to gas
AB27: No hhs to gas | AC27: =Projections!D7 -> 1
AB28: kW avoided per hh | AC28: 2 | AD28: kW
AB29: Residential LED downlighters
AB30: No lights | AC30: =Projections!D7 -> 1
AB31: Savings per light | AC31: 40 | AD31: watts
AB32: Residential showrhd, geyser blk
AB33: No installations | AC33: =Projections!D7 -> 1
AB34: Savings per install | AC34: 0.03
AB35: Commercial efficiency
AB36: No. Customers | AC36: =Projections!F7 -> 1
AB37: Av demand/customer | AC37: =Input!B11/Input!E11/365*5/68 ->  | AD37: kW
AB38: Savings per customer | AC38: =AC37/10 ->  | AD38: kW
AB39: Industrial load reduction
AB40: No customers LV | AC40: =Projections!H7 -> 1
P41: daily (wkday) | S41: daily (wkend) | V41: monthly | Y41: Annual | AB41: No customers MV | AC41: =Projections!I7 -> 1
A42: Revenue Impact | N42: Loss from interventions - low demand (summer): | O42: =AA211 ->  | R42: ='Summ weekend'!AA190 ->  | U42: =X42/12 ->  | X42: =(O42*251+R42*114)*0.75 ->  | AB42: No customers MV TOU | AC42: =Projections!J7 -> 1
AB43: No customers HV TOU | AC43: =Projections!K7 -> 1
N44: Loss from interventions - hi demand (winter)*: | O44: =AA213 ->  | R44: ='Summ weekend'!AA192 ->  | U44: =X44/12 ->  | X44: =(O44*251+R44*114)*0.25 ->  | AB44: Av demand/cust (pk) | AC44: 600 | AD44: kW
V45: Savings (loss) from interventions - average over year: | W45: =X42+X44 ->  | AB45: Savings per customer | AC45: 0.05 | AD45: kW
V46: City elec revenue: | W46: =AC112 ->  | AB46: Streetlights
V47: Impact on revenue: | W47: =W45/W46 ->  | AB47: No lights | AC47: =Projections!L7 -> 1
A48: Hourly load impact | AB48: Savings per light | AC48: 55 | AD48: watts
A49: hr | C49: 0 | D49: 1 | E49: 2 | F49: 3 | G49: 4 | H49: 5 | I49: 6 | J49: 7 | K49: 8 | L49: 9 | M49: 10 | N49: 11 | O49: 12 | P49: 13 | Q49: 14 | R49: 15 | S49: 16 | T49: 17 | U49: 18 | V49: 19 | W49: 20 | X49: 21 | Y49: 22 | Z49: 23 | AB49: Traffic lights
A50: Nett MW purchas frm Eskom (sum) | C50: =(C52-C54-C77-C94-C63) ->  | D50: =(D52-D54-D77-D94-D63) ->  | AB50: No lights on | AC50: =Projections!M7 -> 1
A51: Nett MW purchas frm Eskom (wint) | C51: =(C53-C55-C78-C94-C63) ->  | D51: =(D53-D55-D78-D94-D63) ->  | AB51: Av demand/light | AC51: 75 | AD51: watts
A52: Original Demand MW (sum) | C52: ='Load profiles'!B5 -> 0 | D52: ='Load profiles'!C5 -> 0 | E52: ='Load profiles'!D5 -> 0 | F52: ='Load profiles'!E5 -> 0 | G52: ='Load profiles'!F5 -> 0 | H52: ='Load profiles'!G5 -> 0 | I52: ='Load profiles'!H5 -> 0 | J52: ='Load profiles'!I5 -> 0 | K52: ='Load profiles'!J5 -> 0 | L52: ='Load profiles'!K5 -> 0 | M52: ='Load profiles'!L5 -> 0 | N52: ='Load profiles'!M5 -> 0 | O52: ='Load profiles'!N5 -> 0 | P52: ='Load profiles'!O5 -> 0 | Q52: ='Load profiles'!P5 -> 0 | R52: ='Load profiles'!Q5 -> 0 | S52: ='Load profiles'!R5 -> 0 | T52: ='Load profiles'!S5 -> 0 | U52: ='Load profiles'!T5 -> 0 | V52: ='Load profiles'!U5 -> 0 | W52: ='Load profiles'!V5 -> 0 | X52: ='Load profiles'!W5 -> 0 | Y52: ='Load profiles'!X5 -> 0 | Z52: ='Load profiles'!Y5 -> 0 | AB52: Savings per light | AC52: 60 | AD52: watts
A53: Original Demand MW (wint) | C53: ='Load profiles'!B4 -> 0 | D53: ='Load profiles'!C4 -> 0 | E53: ='Load profiles'!D4 -> 0 | F53: ='Load profiles'!E4 -> 0 | G53: ='Load profiles'!F4 -> 0 | H53: ='Load profiles'!G4 -> 0 | I53: ='Load profiles'!H4 -> 0 | J53: ='Load profiles'!I4 -> 0 | K53: ='Load profiles'!J4 -> 0 | L53: ='Load profiles'!K4 -> 0 | M53: ='Load profiles'!L4 -> 0 | N53: ='Load profiles'!M4 -> 0 | O53: ='Load profiles'!N4 -> 0 | P53: ='Load profiles'!O4 -> 0 | Q53: ='Load profiles'!P4 -> 0 | R53: ='Load profiles'!Q4 -> 0 | S53: ='Load profiles'!R4 -> 0 | T53: ='Load profiles'!S4 -> 0 | U53: ='Load profiles'!T4 -> 0 | V53: ='Load profiles'!U4 -> 0 | W53: ='Load profiles'!V4 -> 0 | X53: ='Load profiles'!W4 -> 0 | Y53: ='Load profiles'!X4 -> 0 | Z53: ='Load profiles'!Y4 -> 0 | AB53: Tariffs
A54: PV generation (summer) | C54: =C57+C64+C70 -> 0 | D54: =D57+D64+D70 -> 0 | E54: 0 | F54: 0 | G54: 0 | H54: 0 | I54: 2.078031488e-05 | J54: 0.0001922179126 | K54: 0.0004923780164 | L54: 0.0008009079693 | M54: 0.001067011446 | N54: 0.001266733361 | O54: 0.001360533394 | P54: 0.001359378932 | Q54: 0.001245664431 | R54: 0.001026893894 | S54: 0.0007472254892 | T54: 0.000445622308 | U54: 0.0001740351371 | V54: 2.020308391e-05 | W54: 0 | X54: 0 | Y54: 0 | Z54: 0 | AB54: Residential
A55: PV generation (winter) | C55: =C58+C65+C71 -> 0 | D55: =D58+D65+D71 -> 0 | E55: 0 | F55: 0 | G55: 0 | H55: 0 | I55: 0 | J55: 1.750413531e-05 | K55: 0.0002888182326 | L55: 0.0007280129003 | M55: 0.0011266298 | N55: 0.001422608815 | O55: 0.001580146033 | P55: 0.001568211395 | Q55: 0.001417039317 | R55: 0.001042291693 | S55: 0.0007240346877 | T55: 0.0002840443775 | U55: 1.591285028e-05 | V55: 0 | W55: 0 | X55: 0 | Y55: 0 | Z55: 0 | AB55: Tariff (winter) | AC55: =Projections!E94 ->  | AD55: c/kWh
B56: Yes=1 /No=0 | AB56: Tariff (summer) | AC56: =Projections!E94 ->  | AD56: c/kWh
A57: Resid PV (MW) summer | B57: 1 | C57: ='RE generation'!C3*$B$57 -> 0 | D57: ='RE generation'!D3*$B$57 -> 0 | E57: ='RE generation'!E3*$B$57 -> 0 | F57: ='RE generation'!F3*$B$57 -> 0 | G57: ='RE generation'!G3*$B$57 -> 0 | H57: ='RE generation'!H3*$B$57 -> 0 | I57: ='RE generation'!I3*$B$57 -> 2.078031488e-05 | J57: ='RE generation'!J3*$B$57 -> 0.0001922179126 | K57: ='RE generation'!K3*$B$57 -> 0.0004923780164 | L57: ='RE generation'!L3*$B$57 -> 0.0008009079693 | M57: ='RE generation'!M3*$B$57 -> 0.001067011446 | N57: ='RE generation'!N3*$B$57 -> 0.001266733361 | O57: ='RE generation'!O3*$B$57 -> 0.001360533394 | P57: ='RE generation'!P3*$B$57 -> 0.001359378932 | Q57: ='RE generation'!Q3*$B$57 -> 0.001245664431 | R57: ='RE generation'!R3*$B$57 -> 0.001026893894 | S57: ='RE generation'!S3*$B$57 -> 0.0007472254892 | T57: ='RE generation'!T3*$B$57 -> 0.000445622308 | U57: ='RE generation'!U3*$B$57 -> 0.0001740351371 | V57: ='RE generation'!V3*$B$57 -> 2.020308391e-05 | W57: ='RE generation'!W3*$B$57 -> 0 | X57: ='RE generation'!X3*$B$57 -> 0 | Y57: ='RE generation'!Y3*$B$57 -> 0 | Z57: ='RE generation'!Z3*$B$57 -> 0 | AB57: PV daily charge | AC57: =Projections!E95*Summary!AC9 ->  | AD57: R/day
A58: Resid PV (MW) winter | B58: 1 | C58: ='RE generation'!C5*$B$58 -> 0 | D58: ='RE generation'!D5*$B$58 -> 0 | E58: ='RE generation'!E5*$B$58 -> 0 | F58: ='RE generation'!F5*$B$58 -> 0 | G58: ='RE generation'!G5*$B$58 -> 0 | H58: ='RE generation'!H5*$B$58 -> 0 | I58: ='RE generation'!I5*$B$58 -> 0 | J58: ='RE generation'!J5*$B$58 -> 1.750413531e-05 | K58: ='RE generation'!K5*$B$58 -> 0.0002888182326 | L58: ='RE generation'!L5*$B$58 -> 0.0007280129003 | M58: ='RE generation'!M5*$B$58 -> 0.0011266298 | N58: ='RE generation'!N5*$B$58 -> 0.001422608815 | O58: ='RE generation'!O5*$B$58 -> 0.001580146033 | P58: ='RE generation'!P5*$B$58 -> 0.001568211395 | Q58: ='RE generation'!Q5*$B$58 -> 0.001417039317 | R58: ='RE generation'!R5*$B$58 -> 0.001042291693 | S58: ='RE generation'!S5*$B$58 -> 0.0007240346877 | T58: ='RE generation'!T5*$B$58 -> 0.0002840443775 | U58: ='RE generation'!U5*$B$58 -> 1.591285028e-05 | V58: ='RE generation'!V5*$B$58 -> 0 | W58: ='RE generation'!W5*$B$58 -> 0 | X58: ='RE generation'!X5*$B$58 -> 0 | Y58: ='RE generation'!Y5*$B$58 -> 0 | Z58: ='RE generation'!Z5*$B$58 -> 0 | AB58: PV resale tariff (summer) | AC58: =Projections!D64 ->  | AD58: c/kWh
A59: Net metering summer (MW) | B59: 1 | C59: =IF('Net metering'!AK96>0,0,'Net metering'!AK96*-Summary!$B$59)/1000 ->  | D59: =IF('Net metering'!AL96>0,0,'Net metering'!AL96*-Summary!$B$59)/1000 ->  | E59: =IF('Net metering'!AM96>0,0,'Net metering'!AM96*-Summary!$B$59)/1000 ->  | F59: =IF('Net metering'!AN96>0,0,'Net metering'!AN96*-Summary!$B$59)/1000 ->  | G59: =IF('Net metering'!AO96>0,0,'Net metering'!AO96*-Summary!$B$59)/1000 ->  | H59: =IF('Net metering'!AP96>0,0,'Net metering'!AP96*-Summary!$B$59)/1000 ->  | I59: =IF('Net metering'!AQ96>0,0,'Net metering'!AQ96*-Summary!$B$59)/1000 ->  | J59: =IF('Net metering'!AR96>0,0,'Net metering'!AR96*-Summary!$B$59)/1000 ->  | K59: =IF('Net metering'!AS96>0,0,'Net metering'!AS96*-Summary!$B$59)/1000 ->  | L59: =IF('Net metering'!AT96>0,0,'Net metering'!AT96*-Summary!$B$59)/1000 ->  | M59: =IF('Net metering'!AU96>0,0,'Net metering'!AU96*-Summary!$B$59)/1000 ->  | N59: =IF('Net metering'!AV96>0,0,'Net metering'!AV96*-Summary!$B$59)/1000 ->  | O59: =IF('Net metering'!AW96>0,0,'Net metering'!AW96*-Summary!$B$59)/1000 ->  | P59: =IF('Net metering'!AX96>0,0,'Net metering'!AX96*-Summary!$B$59)/1000 ->  | Q59: =IF('Net metering'!AY96>0,0,'Net metering'!AY96*-Summary!$B$59)/1000 ->  | R59: =IF('Net metering'!AZ96>0,0,'Net metering'!AZ96*-Summary!$B$59)/1000 ->  | S59: =IF('Net metering'!BA96>0,0,'Net metering'!BA96*-Summary!$B$59)/1000 ->  | T59: =IF('Net metering'!BB96>0,0,'Net metering'!BB96*-Summary!$B$59)/1000 ->  | U59: =IF('Net metering'!BC96>0,0,'Net metering'!BC96*-Summary!$B$59)/1000 ->  | V59: =IF('Net metering'!BD96>0,0,'Net metering'!BD96*-Summary!$B$59)/1000 ->  | W59: =IF('Net metering'!BE96>0,0,'Net metering'!BE96*-Summary!$B$59)/1000 ->  | X59: =IF('Net metering'!BF96>0,0,'Net metering'!BF96*-Summary!$B$59)/1000 ->  | Y59: =IF('Net metering'!BG96>0,0,'Net metering'!BG96*-Summary!$B$59)/1000 ->  | Z59: =IF('Net metering'!BH96>0,0,'Net metering'!BH96*-Summary!$B$59)/1000 ->  | AB59: PV resale tariff (winter) | AC59: =Projections!D80 ->  | AD59: c/kWh
A60: Net metering winter (MW) | B60: 1 | C60: =IF('Net metering'!AK97>0,0,'Net metering'!AK97*-Summary!$B$59)/1000 ->  | D60: =IF('Net metering'!AL97>0,0,'Net metering'!AL97*-Summary!$B$59)/1000 ->  | E60: =IF('Net metering'!AM97>0,0,'Net metering'!AM97*-Summary!$B$59)/1000 ->  | F60: =IF('Net metering'!AN97>0,0,'Net metering'!AN97*-Summary!$B$59)/1000 ->  | G60: =IF('Net metering'!AO97>0,0,'Net metering'!AO97*-Summary!$B$59)/1000 ->  | H60: =IF('Net metering'!AP97>0,0,'Net metering'!AP97*-Summary!$B$59)/1000 ->  | I60: =IF('Net metering'!AQ97>0,0,'Net metering'!AQ97*-Summary!$B$59)/1000 ->  | J60: =IF('Net metering'!AR97>0,0,'Net metering'!AR97*-Summary!$B$59)/1000 ->  | K60: =IF('Net metering'!AS97>0,0,'Net metering'!AS97*-Summary!$B$59)/1000 ->  | L60: =IF('Net metering'!AT97>0,0,'Net metering'!AT97*-Summary!$B$59)/1000 ->  | M60: =IF('Net metering'!AU97>0,0,'Net metering'!AU97*-Summary!$B$59)/1000 ->  | N60: =IF('Net metering'!AV97>0,0,'Net metering'!AV97*-Summary!$B$59)/1000 ->  | O60: =IF('Net metering'!AW97>0,0,'Net metering'!AW97*-Summary!$B$59)/1000 ->  | P60: =IF('Net metering'!AX97>0,0,'Net metering'!AX97*-Summary!$B$59)/1000 ->  | Q60: =IF('Net metering'!AY97>0,0,'Net metering'!AY97*-Summary!$B$59)/1000 ->  | R60: =IF('Net metering'!AZ97>0,0,'Net metering'!AZ97*-Summary!$B$59)/1000 ->  | S60: =IF('Net metering'!BA97>0,0,'Net metering'!BA97*-Summary!$B$59)/1000 ->  | T60: =IF('Net metering'!BB97>0,0,'Net metering'!BB97*-Summary!$B$59)/1000 ->  | U60: =IF('Net metering'!BC97>0,0,'Net metering'!BC97*-Summary!$B$59)/1000 ->  | V60: =IF('Net metering'!BD97>0,0,'Net metering'!BD97*-Summary!$B$59)/1000 ->  | W60: =IF('Net metering'!BE97>0,0,'Net metering'!BE97*-Summary!$B$59)/1000 ->  | X60: =IF('Net metering'!BF97>0,0,'Net metering'!BF97*-Summary!$B$59)/1000 ->  | Y60: =IF('Net metering'!BG97>0,0,'Net metering'!BG97*-Summary!$B$59)/1000 ->  | Z60: =IF('Net metering'!BH97>0,0,'Net metering'!BH97*-Summary!$B$59)/1000 ->  | AB60: PV feed-in tariff (summer) | AC60: =Projections!C64 ->  | AD60: c/kWh
A61: Resid PV used internally (summer) | B61: x | C61: =C57-C59 ->  | D61: =D57-D59 ->  | AB61: PV feed-in charge (winter) | AC61: =Projections!C80 ->  | AD61: c/kWh
A62: Resid PV used internally (winter) | C62: =C58-C60 ->  | D62: =D58-D60 ->  | O62: =O58-O60 ->  | AB62: Commercial
A63: Landfill gas (MW) | B63: 0 | C63: ='RE generation'!C54*$B$63 -> 0 | D63: ='RE generation'!D54*$B$63 -> 0 | E63: ='RE generation'!E54*$B$63 -> 0 | F63: ='RE generation'!F54*$B$63 -> 0 | G63: ='RE generation'!G54*$B$63 -> 0 | H63: ='RE generation'!H54*$B$63 -> 0 | I63: ='RE generation'!I54*$B$63 -> 0 | J63: ='RE generation'!J54*$B$63 -> 0 | K63: ='RE generation'!K54*$B$63 -> 0 | L63: ='RE generation'!L54*$B$63 -> 0 | M63: ='RE generation'!M54*$B$63 -> 0 | N63: ='RE generation'!N54*$B$63 -> 0 | O63: ='RE generation'!O54*$B$63 -> 0 | P63: ='RE generation'!P54*$B$63 -> 0 | Q63: ='RE generation'!Q54*$B$63 -> 0 | R63: ='RE generation'!R54*$B$63 -> 0 | S63: ='RE generation'!S54*$B$63 -> 0 | T63: ='RE generation'!T54*$B$63 -> 0 | U63: ='RE generation'!U54*$B$63 -> 0 | V63: ='RE generation'!V54*$B$63 -> 0 | W63: ='RE generation'!W54*$B$63 -> 0 | X63: ='RE generation'!X54*$B$63 -> 0 | Y63: ='RE generation'!Y54*$B$63 -> 0 | Z63: ='RE generation'!Z54*$B$63 -> 0 | AB63: Tariff (winter) | AC63: =Projections!E80 ->  | AD63: c/kWh
A64: Comm PV (MW) summer | B64: 0 | C64: ='RE generation'!C26*$B$64 -> 0 | D64: ='RE generation'!D26*$B$64 -> 0 | E64: ='RE generation'!E26*$B$64 -> 0 | F64: ='RE generation'!F26*$B$64 -> 0 | G64: ='RE generation'!G26*$B$64 -> 0 | H64: ='RE generation'!H26*$B$64 -> 0 | I64: ='RE generation'!I26*$B$64 -> 0 | J64: ='RE generation'!J26*$B$64 -> 0 | K64: ='RE generation'!K26*$B$64 -> 0 | L64: ='RE generation'!L26*$B$64 -> 0 | M64: ='RE generation'!M26*$B$64 -> 0 | N64: ='RE generation'!N26*$B$64 -> 0 | O64: ='RE generation'!O26*$B$64 -> 0 | P64: ='RE generation'!P26*$B$64 -> 0 | Q64: ='RE generation'!Q26*$B$64 -> 0 | R64: ='RE generation'!R26*$B$64 -> 0 | S64: ='RE generation'!S26*$B$64 -> 0 | T64: ='RE generation'!T26*$B$64 -> 0 | U64: ='RE generation'!U26*$B$64 -> 0 | V64: ='RE generation'!V26*$B$64 -> 0 | W64: ='RE generation'!W26*$B$64 -> 0 | X64: ='RE generation'!X26*$B$64 -> 0 | Y64: ='RE generation'!Y26*$B$64 -> 0 | Z64: ='RE generation'!Z26*$B$64 -> 0 | AB64: Tariff (summer) | AC64: =Projections!E64 ->  | AD64: c/kWh
A65: Comm PV (MW) winter | B65: 0 | C65: ='RE generation'!C28*$B$65 -> 0 | D65: ='RE generation'!D28*$B$65 -> 0 | E65: ='RE generation'!E28*$B$65 -> 0 | F65: ='RE generation'!F28*$B$65 -> 0 | G65: ='RE generation'!G28*$B$65 -> 0 | H65: ='RE generation'!H28*$B$65 -> 0 | I65: ='RE generation'!I28*$B$65 -> 0 | J65: ='RE generation'!J28*$B$65 -> 0 | K65: ='RE generation'!K28*$B$65 -> 0 | L65: ='RE generation'!L28*$B$65 -> 0 | M65: ='RE generation'!M28*$B$65 -> 0 | N65: ='RE generation'!N28*$B$65 -> 0 | O65: ='RE generation'!O28*$B$65 -> 0 | P65: ='RE generation'!P28*$B$65 -> 0 | Q65: ='RE generation'!Q28*$B$65 -> 0 | R65: ='RE generation'!R28*$B$65 -> 0 | S65: ='RE generation'!S28*$B$65 -> 0 | T65: ='RE generation'!T28*$B$65 -> 0 | U65: ='RE generation'!U28*$B$65 -> 0 | V65: ='RE generation'!V28*$B$65 -> 0 | W65: ='RE generation'!W28*$B$65 -> 0 | X65: ='RE generation'!X28*$B$65 -> 0 | Y65: ='RE generation'!Y28*$B$65 -> 0 | Z65: ='RE generation'!Z28*$B$65 -> 0 | AB65: PV daily charge | AC65: 0 | AD65: R/day
A66: Net metering summer (MW) | B66: 0 | C66: =IF('Net metering'!V203>0,0,'Net metering'!V203*-Summary!$B$66)/1000 ->  | D66: =IF('Net metering'!W203>0,0,'Net metering'!W203*-Summary!$B$66)/1000 ->  | E66: =IF('Net metering'!X203>0,0,'Net metering'!X203*-Summary!$B$66)/1000 ->  | F66: =IF('Net metering'!Y203>0,0,'Net metering'!Y203*-Summary!$B$66)/1000 ->  | G66: =IF('Net metering'!Z203>0,0,'Net metering'!Z203*-Summary!$B$66)/1000 ->  | H66: =IF('Net metering'!AA203>0,0,'Net metering'!AA203*-Summary!$B$66)/1000 ->  | I66: =IF('Net metering'!AB203>0,0,'Net metering'!AB203*-Summary!$B$66)/1000 ->  | J66: =IF('Net metering'!AC203>0,0,'Net metering'!AC203*-Summary!$B$66)/1000 ->  | K66: =IF('Net metering'!AD203>0,0,'Net metering'!AD203*-Summary!$B$66)/1000 ->  | L66: =IF('Net metering'!AE203>0,0,'Net metering'!AE203*-Summary!$B$66)/1000 ->  | M66: =IF('Net metering'!AF203>0,0,'Net metering'!AF203*-Summary!$B$66)/1000 ->  | N66: =IF('Net metering'!AG203>0,0,'Net metering'!AG203*-Summary!$B$66)/1000 ->  | O66: =IF('Net metering'!AH203>0,0,'Net metering'!AH203*-Summary!$B$66)/1000 ->  | P66: =IF('Net metering'!AI203>0,0,'Net metering'!AI203*-Summary!$B$66)/1000 ->  | Q66: =IF('Net metering'!AJ203>0,0,'Net metering'!AJ203*-Summary!$B$66)/1000 ->  | R66: =IF('Net metering'!AK203>0,0,'Net metering'!AK203*-Summary!$B$66)/1000 ->  | S66: =IF('Net metering'!AL203>0,0,'Net metering'!AL203*-Summary!$B$66)/1000 ->  | T66: =IF('Net metering'!AM203>0,0,'Net metering'!AM203*-Summary!$B$66)/1000 ->  | U66: =IF('Net metering'!AN203>0,0,'Net metering'!AN203*-Summary!$B$66)/1000 ->  | V66: =IF('Net metering'!AO203>0,0,'Net metering'!AO203*-Summary!$B$66)/1000 ->  | W66: =IF('Net metering'!AP203>0,0,'Net metering'!AP203*-Summary!$B$66)/1000 ->  | X66: =IF('Net metering'!AQ203>0,0,'Net metering'!AQ203*-Summary!$B$66)/1000 ->  | Y66: =IF('Net metering'!AR203>0,0,'Net metering'!AR203*-Summary!$B$66)/1000 ->  | Z66: =IF('Net metering'!AS203>0,0,'Net metering'!AS203*-Summary!$B$66)/1000 ->  | AB66: PV resale tariff (summer) | AC66: =Projections!G64 ->  | AD66: c/kWh
A67: Net metering winter (MW) | B67: 0 | C67: =IF('Net metering'!V204>0,0,'Net metering'!V204*-Summary!$B$67)/1000 ->  | D67: =IF('Net metering'!W204>0,0,'Net metering'!W204*-Summary!$B$67)/1000 ->  | E67: =IF('Net metering'!X204>0,0,'Net metering'!X204*-Summary!$B$67)/1000 ->  | F67: =IF('Net metering'!Y204>0,0,'Net metering'!Y204*-Summary!$B$67)/1000 ->  | G67: =IF('Net metering'!Z204>0,0,'Net metering'!Z204*-Summary!$B$67)/1000 ->  | H67: =IF('Net metering'!AA204>0,0,'Net metering'!AA204*-Summary!$B$67)/1000 ->  | I67: =IF('Net metering'!AB204>0,0,'Net metering'!AB204*-Summary!$B$67)/1000 ->  | J67: =IF('Net metering'!AC204>0,0,'Net metering'!AC204*-Summary!$B$67)/1000 ->  | K67: =IF('Net metering'!AD204>0,0,'Net metering'!AD204*-Summary!$B$67)/1000 ->  | L67: =IF('Net metering'!AE204>0,0,'Net metering'!AE204*-Summary!$B$67)/1000 ->  | M67: =IF('Net metering'!AF204>0,0,'Net metering'!AF204*-Summary!$B$67)/1000 ->  | N67: =IF('Net metering'!AG204>0,0,'Net metering'!AG204*-Summary!$B$67)/1000 ->  | O67: =IF('Net metering'!AH204>0,0,'Net metering'!AH204*-Summary!$B$67)/1000 ->  | P67: =IF('Net metering'!AI204>0,0,'Net metering'!AI204*-Summary!$B$67)/1000 ->  | Q67: =IF('Net metering'!AJ204>0,0,'Net metering'!AJ204*-Summary!$B$67)/1000 ->  | R67: =IF('Net metering'!AK204>0,0,'Net metering'!AK204*-Summary!$B$67)/1000 ->  | S67: =IF('Net metering'!AL204>0,0,'Net metering'!AL204*-Summary!$B$67)/1000 ->  | T67: =IF('Net metering'!AM204>0,0,'Net metering'!AM204*-Summary!$B$67)/1000 ->  | U67: =IF('Net metering'!AN204>0,0,'Net metering'!AN204*-Summary!$B$67)/1000 ->  | V67: =IF('Net metering'!AO204>0,0,'Net metering'!AO204*-Summary!$B$67)/1000 ->  | W67: =IF('Net metering'!AP204>0,0,'Net metering'!AP204*-Summary!$B$67)/1000 ->  | X67: =IF('Net metering'!AQ204>0,0,'Net metering'!AQ204*-Summary!$B$67)/1000 ->  | Y67: =IF('Net metering'!AR204>0,0,'Net metering'!AR204*-Summary!$B$67)/1000 ->  | Z67: =IF('Net metering'!AS204>0,0,'Net metering'!AS204*-Summary!$B$67)/1000 ->  | AB67: PV resale tariff (winter) | AC67: =Projections!G80 ->  | AD67: c/kWh
A68: Comm PV used internally (summer) | B68: x | C68: =C64-C66 ->  | D68: =D64-D66 ->  | AB68: PV feed-in tariff (summer) | AC68: =Projections!F64 ->  | AD68: c/kWh
A69: Comm PV used internally (winter) | C69: =C65-C67 ->  | D69: =D65-D67 ->  | AB69: PV feed-in charge (winter) | AC69: =Projections!F80 ->  | AD69: c/kWh
A70: Ind PV (MW) summer | B70: 0 | C70: ='RE generation'!C34*$B$70 -> 0 | D70: ='RE generation'!D34*$B$70 -> 0 | E70: ='RE generation'!E34*$B$70 -> 0 | F70: ='RE generation'!F34*$B$70 -> 0 | G70: ='RE generation'!G34*$B$70 -> 0 | H70: ='RE generation'!H34*$B$70 -> 0 | I70: ='RE generation'!I34*$B$70 -> 0 | J70: ='RE generation'!J34*$B$70 -> 0 | K70: ='RE generation'!K34*$B$70 -> 0 | L70: ='RE generation'!L34*$B$70 -> 0 | M70: ='RE generation'!M34*$B$70 -> 0 | N70: ='RE generation'!N34*$B$70 -> 0 | O70: ='RE generation'!O34*$B$70 -> 0 | P70: ='RE generation'!P34*$B$70 -> 0 | Q70: ='RE generation'!Q34*$B$70 -> 0 | R70: ='RE generation'!R34*$B$70 -> 0 | S70: ='RE generation'!S34*$B$70 -> 0 | T70: ='RE generation'!T34*$B$70 -> 0 | U70: ='RE generation'!U34*$B$70 -> 0 | V70: ='RE generation'!V34*$B$70 -> 0 | W70: ='RE generation'!W34*$B$70 -> 0 | X70: ='RE generation'!X34*$B$70 -> 0 | Y70: ='RE generation'!Y34*$B$70 -> 0 | Z70: ='RE generation'!Z34*$B$70 -> 0 | AB70: Industrial
A71: Ind PV (MW) winter | B71: 0 | C71: ='RE generation'!C36*$B$71 -> 0 | D71: ='RE generation'!D36*$B$71 -> 0 | E71: ='RE generation'!E36*$B$71 -> 0 | F71: ='RE generation'!F36*$B$71 -> 0 | G71: ='RE generation'!G36*$B$71 -> 0 | H71: ='RE generation'!H36*$B$71 -> 0 | I71: ='RE generation'!I36*$B$71 -> 0 | J71: ='RE generation'!J36*$B$71 -> 0 | K71: ='RE generation'!K36*$B$71 -> 0 | L71: ='RE generation'!L36*$B$71 -> 0 | M71: ='RE generation'!M36*$B$71 -> 0 | N71: ='RE generation'!N36*$B$71 -> 0 | O71: ='RE generation'!O36*$B$71 -> 0 | P71: ='RE generation'!P36*$B$71 -> 0 | Q71: ='RE generation'!Q36*$B$71 -> 0 | R71: ='RE generation'!R36*$B$71 -> 0 | S71: ='RE generation'!S36*$B$71 -> 0 | T71: ='RE generation'!T36*$B$71 -> 0 | U71: ='RE generation'!U36*$B$71 -> 0 | V71: ='RE generation'!V36*$B$71 -> 0 | W71: ='RE generation'!W36*$B$71 -> 0 | X71: ='RE generation'!X36*$B$71 -> 0 | Y71: ='RE generation'!Y36*$B$71 -> 0 | Z71: ='RE generation'!Z36*$B$71 -> 0 | AB71: Average Standard Tariff (winter) | AC71: =Projections!Q80 ->  | AD71: c/kWh
A72: Net metering summer (MW) | B72: 0 | C72: =IF('Net metering'!V270>0,0,'Net metering'!V270*-Summary!$B$72)/1000 ->  | D72: =IF('Net metering'!W270>0,0,'Net metering'!W270*-Summary!$B$72)/1000 ->  | E72: =IF('Net metering'!X270>0,0,'Net metering'!X270*-Summary!$B$72)/1000 ->  | F72: =IF('Net metering'!Y270>0,0,'Net metering'!Y270*-Summary!$B$72)/1000 ->  | G72: =IF('Net metering'!Z270>0,0,'Net metering'!Z270*-Summary!$B$72)/1000 ->  | H72: =IF('Net metering'!AA270>0,0,'Net metering'!AA270*-Summary!$B$72)/1000 ->  | I72: =IF('Net metering'!AB270>0,0,'Net metering'!AB270*-Summary!$B$72)/1000 ->  | J72: =IF('Net metering'!AC270>0,0,'Net metering'!AC270*-Summary!$B$72)/1000 ->  | K72: =IF('Net metering'!AD270>0,0,'Net metering'!AD270*-Summary!$B$72)/1000 ->  | L72: =IF('Net metering'!AE270>0,0,'Net metering'!AE270*-Summary!$B$72)/1000 ->  | M72: =IF('Net metering'!AF270>0,0,'Net metering'!AF270*-Summary!$B$72)/1000 ->  | N72: =IF('Net metering'!AG270>0,0,'Net metering'!AG270*-Summary!$B$72)/1000 ->  | O72: =IF('Net metering'!AH270>0,0,'Net metering'!AH270*-Summary!$B$72)/1000 ->  | P72: =IF('Net metering'!AI270>0,0,'Net metering'!AI270*-Summary!$B$72)/1000 ->  | Q72: =IF('Net metering'!AJ270>0,0,'Net metering'!AJ270*-Summary!$B$72)/1000 ->  | R72: =IF('Net metering'!AK270>0,0,'Net metering'!AK270*-Summary!$B$72)/1000 ->  | S72: =IF('Net metering'!AL270>0,0,'Net metering'!AL270*-Summary!$B$72)/1000 ->  | T72: =IF('Net metering'!AM270>0,0,'Net metering'!AM270*-Summary!$B$72)/1000 ->  | U72: =IF('Net metering'!AN270>0,0,'Net metering'!AN270*-Summary!$B$72)/1000 ->  | V72: =IF('Net metering'!AO270>0,0,'Net metering'!AO270*-Summary!$B$72)/1000 ->  | W72: =IF('Net metering'!AP270>0,0,'Net metering'!AP270*-Summary!$B$72)/1000 ->  | X72: =IF('Net metering'!AQ270>0,0,'Net metering'!AQ270*-Summary!$B$72)/1000 ->  | Y72: =IF('Net metering'!AR270>0,0,'Net metering'!AR270*-Summary!$B$72)/1000 ->  | Z72: =IF('Net metering'!AS270>0,0,'Net metering'!AS270*-Summary!$B$72)/1000 ->  | AB72: Average Standard Tariff (summer) | AC72: =Projections!Q64 ->  | AD72: c/kWh
A73: Net metering winter (MW) | B73: 0 | C73: =IF('Net metering'!V271>0,0,'Net metering'!V271*-Summary!$B$73)/1000 ->  | D73: =IF('Net metering'!W271>0,0,'Net metering'!W271*-Summary!$B$73)/1000 ->  | E73: =IF('Net metering'!X271>0,0,'Net metering'!X271*-Summary!$B$73)/1000 ->  | F73: =IF('Net metering'!Y271>0,0,'Net metering'!Y271*-Summary!$B$73)/1000 ->  | G73: =IF('Net metering'!Z271>0,0,'Net metering'!Z271*-Summary!$B$73)/1000 ->  | H73: =IF('Net metering'!AA271>0,0,'Net metering'!AA271*-Summary!$B$73)/1000 ->  | I73: =IF('Net metering'!AB271>0,0,'Net metering'!AB271*-Summary!$B$73)/1000 ->  | J73: =IF('Net metering'!AC271>0,0,'Net metering'!AC271*-Summary!$B$73)/1000 ->  | K73: =IF('Net metering'!AD271>0,0,'Net metering'!AD271*-Summary!$B$73)/1000 ->  | L73: =IF('Net metering'!AE271>0,0,'Net metering'!AE271*-Summary!$B$73)/1000 ->  | M73: =IF('Net metering'!AF271>0,0,'Net metering'!AF271*-Summary!$B$73)/1000 ->  | N73: =IF('Net metering'!AG271>0,0,'Net metering'!AG271*-Summary!$B$73)/1000 ->  | O73: =IF('Net metering'!AH271>0,0,'Net metering'!AH271*-Summary!$B$73)/1000 ->  | P73: =IF('Net metering'!AI271>0,0,'Net metering'!AI271*-Summary!$B$73)/1000 ->  | Q73: =IF('Net metering'!AJ271>0,0,'Net metering'!AJ271*-Summary!$B$73)/1000 ->  | R73: =IF('Net metering'!AK271>0,0,'Net metering'!AK271*-Summary!$B$73)/1000 ->  | S73: =IF('Net metering'!AL271>0,0,'Net metering'!AL271*-Summary!$B$73)/1000 ->  | T73: =IF('Net metering'!AM271>0,0,'Net metering'!AM271*-Summary!$B$73)/1000 ->  | U73: =IF('Net metering'!AN271>0,0,'Net metering'!AN271*-Summary!$B$73)/1000 ->  | V73: =IF('Net metering'!AO271>0,0,'Net metering'!AO271*-Summary!$B$73)/1000 ->  | W73: =IF('Net metering'!AP271>0,0,'Net metering'!AP271*-Summary!$B$73)/1000 ->  | X73: =IF('Net metering'!AQ271>0,0,'Net metering'!AQ271*-Summary!$B$73)/1000 ->  | Y73: =IF('Net metering'!AR271>0,0,'Net metering'!AR271*-Summary!$B$73)/1000 ->  | Z73: =IF('Net metering'!AS271>0,0,'Net metering'!AS271*-Summary!$B$73)/1000 ->  | AB73: PV daily charge (LV) | AC73: 0 | AD73: R/day
A74: Ind PV used internally (summer) | B74: x | C74: =C70-C72 ->  | D74: =D70-D72 ->  | AB74: PV daily charge (MV) | AC74: 0 | AD74: R/day
A75: Ind PV used internally (winter) | C75: =C71-C73 ->  | D75: =D71-D73 ->  | AB75: PV daily charge (HV) | AC75: 0 | AD75: R/day
A76: EE savings (average) | C76: =AVERAGE(C77:C78) ->  | D76: =AVERAGE(D77:D78) ->  | AB76: PV resale tariff summer | AC76: =Projections!Q64 ->  | AD76: c/kWh
A77: EE savings (summer) | C77: =C80+C82+C83+C84+C86+C87+C88+C92+C90+C91+C93+C89 ->  | D77: =D80+D82+D83+D84+D86+D87+D88+D92+D90+D91+D93+D89 ->  | M77: =M80+M82+M83+M84+M86+M87+M88+M92+M90+M91+M93+M89 ->  | N77: =N80+N82+N83+N84+N86+N87+N88+N92+N90+N91+N93+N89 ->  | O77: =O80+O82+O83+O84+O86+O87+O88+O92+O90+O91+O93+O89 ->  | P77: =P80+P82+P83+P84+P86+P87+P88+P92+P90+P91+P93+P89 ->  | Y77: =Y80+Y82+Y83+Y84+Y86+Y87+Y88+Y92+Y90+Y91+Y93+Y89 ->  | Z77: =Z80+Z82+Z83+Z84+Z86+Z87+Z88+Z92+Z90+Z91+Z93+Z89 ->  | AB77: PV resale tariff winter | AC77: =Projections!Q80 ->  | AD77: c/kWh
A78: EE Savings (winter) | C78: =C81+C82+C83+C85+C86+C87+C88+C92+C90+C91+C93+C89 ->  | D78: =D81+D82+D83+D85+D86+D87+D88+D92+D90+D91+D93+D89 ->  | M78: =M81+M82+M83+M85+M86+M87+M88+M92+M90+M91+M93+M89 ->  | N78: =N81+N82+N83+N85+N86+N87+N88+N92+N90+N91+N93+N89 ->  | O78: =O81+O82+O83+O85+O86+O87+O88+O92+O90+O91+O93+O89 ->  | P78: =P81+P82+P83+P85+P86+P87+P88+P92+P90+P91+P93+P89 ->  | Y78: =Y81+Y82+Y83+Y85+Y86+Y87+Y88+Y92+Y90+Y91+Y93+Y89 ->  | Z78: =Z81+Z82+Z83+Z85+Z86+Z87+Z88+Z92+Z90+Z91+Z93+Z89 ->  | AB78: PV feed-in tariff (summer) | AC78: =Projections!P64 ->  | AD78: c/kWh
B79: Yes=1 /No=0 | AB79: PV feed-in charge (winter) | AC79: =Projections!P80 ->  | AD79: c/kWh
A80: Streetlights (summer) | B80: 0 | C80: ='EE interventions'!B3*$B$80 -> 0 | D80: ='EE interventions'!C3*$B$80 -> 0 | E80: ='EE interventions'!D3*$B$80 -> 0 | F80: ='EE interventions'!E3*$B$80 -> 0 | G80: ='EE interventions'!F3*$B$80 -> 0 | H80: ='EE interventions'!G3*$B$80 -> 0 | I80: ='EE interventions'!H3*$B$80 -> 0 | J80: ='EE interventions'!I3*$B$80 -> 0 | K80: ='EE interventions'!J3*$B$80 -> 0 | L80: ='EE interventions'!K3*$B$80 -> 0 | M80: ='EE interventions'!L3*$B$80 -> 0 | N80: ='EE interventions'!M3*$B$80 -> 0 | O80: ='EE interventions'!N3*$B$80 -> 0 | P80: ='EE interventions'!O3*$B$80 -> 0 | Q80: ='EE interventions'!P3*$B$80 -> 0 | R80: ='EE interventions'!Q3*$B$80 -> 0 | S80: ='EE interventions'!R3*$B$80 -> 0 | T80: ='EE interventions'!S3*$B$80 -> 0 | U80: ='EE interventions'!T3*$B$80 -> 0 | V80: ='EE interventions'!U3*$B$80 -> 0 | W80: ='EE interventions'!V3*$B$80 -> 0 | X80: ='EE interventions'!W3*$B$80 -> 0 | Y80: ='EE interventions'!X3*$B$80 -> 0 | Z80: ='EE interventions'!Y3*$B$80 -> 0 | AB80: LV (winter) | AC80: =Projections!H80 ->  | AD80: c/kWh
A81: Streetlights (winter) | B81: 0 | C81: ='EE interventions'!B4*$B$81 -> 0 | D81: ='EE interventions'!C4*$B$81 -> 0 | E81: ='EE interventions'!D4*$B$81 -> 0 | F81: ='EE interventions'!E4*$B$81 -> 0 | G81: ='EE interventions'!F4*$B$81 -> 0 | H81: ='EE interventions'!G4*$B$81 -> 0 | I81: ='EE interventions'!H4*$B$81 -> 0 | J81: ='EE interventions'!I4*$B$81 -> 0 | K81: ='EE interventions'!J4*$B$81 -> 0 | L81: ='EE interventions'!K4*$B$81 -> 0 | M81: ='EE interventions'!L4*$B$81 -> 0 | N81: ='EE interventions'!M4*$B$81 -> 0 | O81: ='EE interventions'!N4*$B$81 -> 0 | P81: ='EE interventions'!O4*$B$81 -> 0 | Q81: ='EE interventions'!P4*$B$81 -> 0 | R81: ='EE interventions'!Q4*$B$81 -> 0 | S81: ='EE interventions'!R4*$B$81 -> 0 | T81: ='EE interventions'!S4*$B$81 -> 0 | U81: ='EE interventions'!T4*$B$81 -> 0 | V81: ='EE interventions'!U4*$B$81 -> 0 | W81: ='EE interventions'!V4*$B$81 -> 0 | X81: ='EE interventions'!W4*$B$81 -> 0 | Y81: ='EE interventions'!X4*$B$81 -> 0 | Z81: ='EE interventions'!Y4*$B$81 -> 0 | AB81: LV (summer) | AC81: =Projections!H64 ->  | AD81: c/kWh
A82: Traffic lights | B82: 0 | C82: ='EE interventions'!B5*$B$82 -> 0 | D82: ='EE interventions'!C5*$B$82 -> 0 | E82: ='EE interventions'!D5*$B$82 -> 0 | F82: ='EE interventions'!E5*$B$82 -> 0 | G82: ='EE interventions'!F5*$B$82 -> 0 | H82: ='EE interventions'!G5*$B$82 -> 0 | I82: ='EE interventions'!H5*$B$82 -> 0 | J82: ='EE interventions'!I5*$B$82 -> 0 | K82: ='EE interventions'!J5*$B$82 -> 0 | L82: ='EE interventions'!K5*$B$82 -> 0 | M82: ='EE interventions'!L5*$B$82 -> 0 | N82: ='EE interventions'!M5*$B$82 -> 0 | O82: ='EE interventions'!N5*$B$82 -> 0 | P82: ='EE interventions'!O5*$B$82 -> 0 | Q82: ='EE interventions'!P5*$B$82 -> 0 | R82: ='EE interventions'!Q5*$B$82 -> 0 | S82: ='EE interventions'!R5*$B$82 -> 0 | T82: ='EE interventions'!S5*$B$82 -> 0 | U82: ='EE interventions'!T5*$B$82 -> 0 | V82: ='EE interventions'!U5*$B$82 -> 0 | W82: ='EE interventions'!V5*$B$82 -> 0 | X82: ='EE interventions'!W5*$B$82 -> 0 | Y82: ='EE interventions'!X5*$B$82 -> 0 | Z82: ='EE interventions'!Y5*$B$82 -> 0 | AB82: LV KVA summer | AC82: =Projections!H65 ->  | AD82: R/KVA
A83: Commercial EE | B83: 0 | C83: ='EE interventions'!B8*$B$83 ->  | D83: ='EE interventions'!C8*$B$83 ->  | E83: ='EE interventions'!D8*$B$83 ->  | F83: ='EE interventions'!E8*$B$83 ->  | G83: ='EE interventions'!F8*$B$83 ->  | H83: ='EE interventions'!G8*$B$83 ->  | I83: ='EE interventions'!H8*$B$83 ->  | J83: ='EE interventions'!I8*$B$83 ->  | K83: ='EE interventions'!J8*$B$83 ->  | L83: ='EE interventions'!K8*$B$83 ->  | M83: ='EE interventions'!L8*$B$83 ->  | N83: ='EE interventions'!M8*$B$83 ->  | O83: ='EE interventions'!N8*$B$83 ->  | P83: ='EE interventions'!O8*$B$83 ->  | Q83: ='EE interventions'!P8*$B$83 ->  | R83: ='EE interventions'!Q8*$B$83 ->  | S83: ='EE interventions'!R8*$B$83 ->  | T83: ='EE interventions'!S8*$B$83 ->  | U83: ='EE interventions'!T8*$B$83 ->  | V83: ='EE interventions'!U8*$B$83 ->  | W83: ='EE interventions'!V8*$B$83 ->  | X83: ='EE interventions'!W8*$B$83 ->  | Y83: ='EE interventions'!X8*$B$83 ->  | Z83: ='EE interventions'!Y8*$B$83 ->  | AB83: LV KVA winter | AC83: =Projections!H81 ->  | AD83: R/KVA
A84: Residential SWH (sum) | B84: 0 | C84: ='EE interventions'!B11*$B$84 -> 0 | D84: ='EE interventions'!C11*$B$84 -> 0 | E84: ='EE interventions'!D11*$B$84 -> 0 | F84: ='EE interventions'!E11*$B$84 -> 0 | G84: ='EE interventions'!F11*$B$84 -> 0 | H84: ='EE interventions'!G11*$B$84 -> 0 | I84: ='EE interventions'!H11*$B$84 -> 0 | J84: ='EE interventions'!I11*$B$84 -> 0 | K84: ='EE interventions'!J11*$B$84 -> 0 | L84: ='EE interventions'!K11*$B$84 -> 0 | M84: ='EE interventions'!L11*$B$84 -> 0 | N84: ='EE interventions'!M11*$B$84 -> 0 | O84: ='EE interventions'!N11*$B$84 -> 0 | P84: ='EE interventions'!O11*$B$84 -> 0 | Q84: ='EE interventions'!P11*$B$84 -> 0 | R84: ='EE interventions'!Q11*$B$84 -> 0 | S84: ='EE interventions'!R11*$B$84 -> 0 | T84: ='EE interventions'!S11*$B$84 -> 0 | U84: ='EE interventions'!T11*$B$84 -> 0 | V84: ='EE interventions'!U11*$B$84 -> 0 | W84: ='EE interventions'!V11*$B$84 -> 0 | X84: ='EE interventions'!W11*$B$84 -> 0 | Y84: ='EE interventions'!X11*$B$84 -> 0 | Z84: ='EE interventions'!Y11*$B$84 -> 0 | AB84: MV (winter) | AC84: =Projections!I80 ->  | AD84: c/kWh
A85: Residential SWHs (wint) | B85: 0 | C85: ='EE interventions'!B12*$B$85 -> 0 | D85: ='EE interventions'!C12*$B$85 -> 0 | E85: ='EE interventions'!D12*$B$85 -> 0 | F85: ='EE interventions'!E12*$B$85 -> 0 | G85: ='EE interventions'!F12*$B$85 -> 0 | H85: ='EE interventions'!G12*$B$85 -> 0 | I85: ='EE interventions'!H12*$B$85 -> 0 | J85: ='EE interventions'!I12*$B$85 -> 0 | K85: ='EE interventions'!J12*$B$85 -> 0 | L85: ='EE interventions'!K12*$B$85 -> 0 | M85: ='EE interventions'!L12*$B$85 -> 0 | N85: ='EE interventions'!M12*$B$85 -> 0 | O85: ='EE interventions'!N12*$B$85 -> 0 | P85: ='EE interventions'!O12*$B$85 -> 0 | Q85: ='EE interventions'!P12*$B$85 -> 0 | R85: ='EE interventions'!Q12*$B$85 -> 0 | S85: ='EE interventions'!R12*$B$85 -> 0 | T85: ='EE interventions'!S12*$B$85 -> 0 | U85: ='EE interventions'!T12*$B$85 -> 0 | V85: ='EE interventions'!U12*$B$85 -> 0 | W85: ='EE interventions'!V12*$B$85 -> 0 | X85: ='EE interventions'!W12*$B$85 -> 0 | Y85: ='EE interventions'!X12*$B$85 -> 0 | Z85: ='EE interventions'!Y12*$B$85 -> 0 | AB85: MV (summer) | AC85: =Projections!I64 ->  | AD85: c/kWh
A86: Residential cook (gas) | B86: 0 | C86: ='EE interventions'!B19*$B$86 -> 0 | D86: ='EE interventions'!C19*$B$86 -> 0 | E86: ='EE interventions'!D19*$B$86 -> 0 | F86: ='EE interventions'!E19*$B$86 -> 0 | G86: ='EE interventions'!F19*$B$86 -> 0 | H86: ='EE interventions'!G19*$B$86 -> 0 | I86: ='EE interventions'!H19*$B$86 -> 0 | J86: ='EE interventions'!I19*$B$86 -> 0 | K86: ='EE interventions'!J19*$B$86 -> 0 | L86: ='EE interventions'!K19*$B$86 -> 0 | M86: ='EE interventions'!L19*$B$86 -> 0 | N86: ='EE interventions'!M19*$B$86 -> 0 | O86: ='EE interventions'!N19*$B$86 -> 0 | P86: ='EE interventions'!O19*$B$86 -> 0 | Q86: ='EE interventions'!P19*$B$86 -> 0 | R86: ='EE interventions'!Q19*$B$86 -> 0 | S86: ='EE interventions'!R19*$B$86 -> 0 | T86: ='EE interventions'!S19*$B$86 -> 0 | U86: ='EE interventions'!T19*$B$86 -> 0 | V86: ='EE interventions'!U19*$B$86 -> 0 | W86: ='EE interventions'!V19*$B$86 -> 0 | X86: ='EE interventions'!W19*$B$86 -> 0 | Y86: ='EE interventions'!X19*$B$86 -> 0 | Z86: ='EE interventions'!Y19*$B$86 -> 0 | AB86: MV KVA summer | AC86: =Projections!I65 ->  | AD86: R/KVA
A87: Residential light (LED downlt) | B87: 0 | C87: ='EE interventions'!B21*$B$87 -> 0 | D87: ='EE interventions'!C21*$B$87 -> 0 | E87: ='EE interventions'!D21*$B$87 -> 0 | F87: ='EE interventions'!E21*$B$87 -> 0 | G87: ='EE interventions'!F21*$B$87 -> 0 | H87: ='EE interventions'!G21*$B$87 -> 0 | I87: ='EE interventions'!H21*$B$87 -> 0 | J87: ='EE interventions'!I21*$B$87 -> 0 | K87: ='EE interventions'!J21*$B$87 -> 0 | L87: ='EE interventions'!K21*$B$87 -> 0 | M87: ='EE interventions'!L21*$B$87 -> 0 | N87: ='EE interventions'!M21*$B$87 -> 0 | O87: ='EE interventions'!N21*$B$87 -> 0 | P87: ='EE interventions'!O21*$B$87 -> 0 | Q87: ='EE interventions'!P21*$B$87 -> 0 | R87: ='EE interventions'!Q21*$B$87 -> 0 | S87: ='EE interventions'!R21*$B$87 -> 0 | T87: ='EE interventions'!S21*$B$87 -> 0 | U87: ='EE interventions'!T21*$B$87 -> 0 | V87: ='EE interventions'!U21*$B$87 -> 0 | W87: ='EE interventions'!V21*$B$87 -> 0 | X87: ='EE interventions'!W21*$B$87 -> 0 | Y87: ='EE interventions'!X21*$B$87 -> 0 | Z87: ='EE interventions'!Y21*$B$87 -> 0 | AB87: MV KVA winter | AC87: =Projections!I81 ->  | AD87: R/KVA
A88: Res showerhd, geyser blankt | B88: 0 | C88: ='EE interventions'!B23*$B$88 -> 0 | D88: ='EE interventions'!C23*$B$88 -> 0 | E88: ='EE interventions'!D23*$B$88 -> 0 | F88: ='EE interventions'!E23*$B$88 -> 0 | G88: ='EE interventions'!F23*$B$88 -> 0 | H88: ='EE interventions'!G23*$B$88 -> 0 | I88: ='EE interventions'!H23*$B$88 -> 0 | J88: ='EE interventions'!I23*$B$88 -> 0 | K88: ='EE interventions'!J23*$B$88 -> 0 | L88: ='EE interventions'!K23*$B$88 -> 0 | M88: ='EE interventions'!L23*$B$88 -> 0 | N88: ='EE interventions'!M23*$B$88 -> 0 | O88: ='EE interventions'!N23*$B$88 -> 0 | P88: ='EE interventions'!O23*$B$88 -> 0 | Q88: ='EE interventions'!P23*$B$88 -> 0 | R88: ='EE interventions'!Q23*$B$88 -> 0 | S88: ='EE interventions'!R23*$B$88 -> 0 | T88: ='EE interventions'!S23*$B$88 -> 0 | U88: ='EE interventions'!T23*$B$88 -> 0 | V88: ='EE interventions'!U23*$B$88 -> 0 | W88: ='EE interventions'!V23*$B$88 -> 0 | X88: ='EE interventions'!W23*$B$88 -> 0 | Y88: ='EE interventions'!X23*$B$88 -> 0 | Z88: ='EE interventions'!Y23*$B$88 -> 0 | AB88: MV TOU (winter) Peak | AC88: =Projections!J80 ->  | AD88: c/kWh
A89: Domestic load shifting | B89: x | C89: ='EE interventions'!B25 -> 0 | D89: ='EE interventions'!C25 -> 0 | E89: ='EE interventions'!D25 -> 0 | F89: ='EE interventions'!E25 -> 0 | G89: ='EE interventions'!F25 -> 0 | H89: ='EE interventions'!G25 -> 0 | I89: ='EE interventions'!H25 -> 0 | J89: ='EE interventions'!I25 -> 0 | K89: ='EE interventions'!J25 -> 0 | L89: ='EE interventions'!K25 -> 0 | M89: ='EE interventions'!L25 -> 0 | N89: ='EE interventions'!M25 -> 0 | O89: ='EE interventions'!N25 -> 0 | P89: ='EE interventions'!O25 -> 0 | Q89: ='EE interventions'!P25 -> 0 | R89: ='EE interventions'!Q25 -> 0 | S89: ='EE interventions'!R25 -> 0 | T89: ='EE interventions'!S25 -> 0 | U89: ='EE interventions'!T25 -> 0 | V89: ='EE interventions'!U25 -> 0 | W89: ='EE interventions'!V25 -> 0 | X89: ='EE interventions'!W25 -> 0 | Y89: ='EE interventions'!X25 -> 0 | Z89: ='EE interventions'!Y25 -> 0 | AB89: MV TOU (summer) Peak | AC89: =Projections!J64 ->  | AD89: c/kWh
A90: Indust eff LV | B90: 0 | C90: ='EE interventions'!B26*$B$90 -> 0 | D90: ='EE interventions'!C26*$B$90 -> 0 | E90: ='EE interventions'!D26*$B$90 -> 0 | F90: ='EE interventions'!E26*$B$90 -> 0 | G90: ='EE interventions'!F26*$B$90 -> 0 | H90: ='EE interventions'!G26*$B$90 -> 0 | I90: ='EE interventions'!H26*$B$90 -> 0 | J90: ='EE interventions'!I26*$B$90 -> 0 | K90: ='EE interventions'!J26*$B$90 -> 0 | L90: ='EE interventions'!K26*$B$90 -> 0 | M90: ='EE interventions'!L26*$B$90 -> 0 | N90: ='EE interventions'!M26*$B$90 -> 0 | O90: ='EE interventions'!N26*$B$90 -> 0 | P90: ='EE interventions'!O26*$B$90 -> 0 | Q90: ='EE interventions'!P26*$B$90 -> 0 | R90: ='EE interventions'!Q26*$B$90 -> 0 | S90: ='EE interventions'!R26*$B$90 -> 0 | T90: ='EE interventions'!S26*$B$90 -> 0 | U90: ='EE interventions'!T26*$B$90 -> 0 | V90: ='EE interventions'!U26*$B$90 -> 0 | W90: ='EE interventions'!V26*$B$90 -> 0 | X90: ='EE interventions'!W26*$B$90 -> 0 | Y90: ='EE interventions'!X26*$B$90 -> 0 | Z90: ='EE interventions'!Y26*$B$90 -> 0 | AB90: MV TOU (winter) Std | AC90: =Projections!K80 ->  | AD90: c/kWh
A91: Indust eff MV | B91: 0 | C91: ='EE interventions'!B27*$B$91 -> 0 | D91: ='EE interventions'!C27*$B$91 -> 0 | E91: ='EE interventions'!D27*$B$91 -> 0 | F91: ='EE interventions'!E27*$B$91 -> 0 | G91: ='EE interventions'!F27*$B$91 -> 0 | H91: ='EE interventions'!G27*$B$91 -> 0 | I91: ='EE interventions'!H27*$B$91 -> 0 | J91: ='EE interventions'!I27*$B$91 -> 0 | K91: ='EE interventions'!J27*$B$91 -> 0 | L91: ='EE interventions'!K27*$B$91 -> 0 | M91: ='EE interventions'!L27*$B$91 -> 0 | N91: ='EE interventions'!M27*$B$91 -> 0 | O91: ='EE interventions'!N27*$B$91 -> 0 | P91: ='EE interventions'!O27*$B$91 -> 0 | Q91: ='EE interventions'!P27*$B$91 -> 0 | R91: ='EE interventions'!Q27*$B$91 -> 0 | S91: ='EE interventions'!R27*$B$91 -> 0 | T91: ='EE interventions'!S27*$B$91 -> 0 | U91: ='EE interventions'!T27*$B$91 -> 0 | V91: ='EE interventions'!U27*$B$91 -> 0 | W91: ='EE interventions'!V27*$B$91 -> 0 | X91: ='EE interventions'!W27*$B$91 -> 0 | Y91: ='EE interventions'!X27*$B$91 -> 0 | Z91: ='EE interventions'!Y27*$B$91 -> 0 | AB91: MV TOU (summer) Std | AC91: =Projections!K64 ->  | AD91: c/kWh
A92: Indust eff MV TOU | B92: 0 | C92: ='EE interventions'!B28*$B$92 -> 0 | D92: ='EE interventions'!C28*$B$92 -> 0 | E92: ='EE interventions'!D28*$B$92 -> 0 | F92: ='EE interventions'!E28*$B$92 -> 0 | G92: ='EE interventions'!F28*$B$92 -> 0 | H92: ='EE interventions'!G28*$B$92 -> 0 | I92: ='EE interventions'!H28*$B$92 -> 0 | J92: ='EE interventions'!I28*$B$92 -> 0 | K92: ='EE interventions'!J28*$B$92 -> 0 | L92: ='EE interventions'!K28*$B$92 -> 0 | M92: ='EE interventions'!L28*$B$92 -> 0 | N92: ='EE interventions'!M28*$B$92 -> 0 | O92: ='EE interventions'!N28*$B$92 -> 0 | P92: ='EE interventions'!O28*$B$92 -> 0 | Q92: ='EE interventions'!P28*$B$92 -> 0 | R92: ='EE interventions'!Q28*$B$92 -> 0 | S92: ='EE interventions'!R28*$B$92 -> 0 | T92: ='EE interventions'!S28*$B$92 -> 0 | U92: ='EE interventions'!T28*$B$92 -> 0 | V92: ='EE interventions'!U28*$B$92 -> 0 | W92: ='EE interventions'!V28*$B$92 -> 0 | X92: ='EE interventions'!W28*$B$92 -> 0 | Y92: ='EE interventions'!X28*$B$92 -> 0 | Z92: ='EE interventions'!Y28*$B$92 -> 0 | AB92: MV TOU (winter) Off peak | AC92: =Projections!L80 ->  | AD92: c/kWh
A93: Indust eff HV TOU | B93: 0 | C93: ='EE interventions'!B29*$B$93 -> 0 | D93: ='EE interventions'!C29*$B$93 -> 0 | E93: ='EE interventions'!D29*$B$93 -> 0 | F93: ='EE interventions'!E29*$B$93 -> 0 | G93: ='EE interventions'!F29*$B$93 -> 0 | H93: ='EE interventions'!G29*$B$93 -> 0 | I93: ='EE interventions'!H29*$B$93 -> 0 | J93: ='EE interventions'!I29*$B$93 -> 0 | K93: ='EE interventions'!J29*$B$93 -> 0 | L93: ='EE interventions'!K29*$B$93 -> 0 | M93: ='EE interventions'!L29*$B$93 -> 0 | N93: ='EE interventions'!M29*$B$93 -> 0 | O93: ='EE interventions'!N29*$B$93 -> 0 | P93: ='EE interventions'!O29*$B$93 -> 0 | Q93: ='EE interventions'!P29*$B$93 -> 0 | R93: ='EE interventions'!Q29*$B$93 -> 0 | S93: ='EE interventions'!R29*$B$93 -> 0 | T93: ='EE interventions'!S29*$B$93 -> 0 | U93: ='EE interventions'!T29*$B$93 -> 0 | V93: ='EE interventions'!U29*$B$93 -> 0 | W93: ='EE interventions'!V29*$B$93 -> 0 | X93: ='EE interventions'!W29*$B$93 -> 0 | Y93: ='EE interventions'!X29*$B$93 -> 0 | Z93: ='EE interventions'!Y29*$B$93 -> 0 | AB93: MV TOU (summer) Off peak | AC93: =Projections!L64 ->  | AD93: c/kWh
A94: Load balancing | B94: 0 | C94: =$B$94*'Load Balancing'!B5 -> 0 | D94: =$B$94*'Load Balancing'!C5 -> 0 | E94: =$B$94*'Load Balancing'!D5 -> 0 | F94: =$B$94*'Load Balancing'!E5 -> 0 | G94: =$B$94*'Load Balancing'!F5 -> 0 | H94: =$B$94*'Load Balancing'!G5 -> 0 | I94: =$B$94*'Load Balancing'!H5 -> 0 | J94: =$B$94*'Load Balancing'!I5 -> 0 | K94: =$B$94*'Load Balancing'!J5 -> 0 | L94: =$B$94*'Load Balancing'!K5 -> 0 | M94: =$B$94*'Load Balancing'!L5 -> 0 | N94: =$B$94*'Load Balancing'!M5 -> 0 | O94: =$B$94*'Load Balancing'!N5 -> 0 | P94: =$B$94*'Load Balancing'!O5 -> 0 | Q94: =$B$94*'Load Balancing'!P5 -> 0 | R94: =$B$94*'Load Balancing'!Q5 -> 0 | S94: =$B$94*'Load Balancing'!R5 -> 0 | T94: =$B$94*'Load Balancing'!S5 -> 0 | U94: =$B$94*'Load Balancing'!T5 -> 0 | V94: =$B$94*'Load Balancing'!U5 -> 0 | W94: =$B$94*'Load Balancing'!V5 -> 0 | X94: =$B$94*'Load Balancing'!W5 -> 0 | Y94: =$B$94*'Load Balancing'!X5 -> 0 | Z94: =$B$94*'Load Balancing'!Y5 -> 0 | AB94: MV KVA TOU summer | AC94: =Projections!J65 ->  | AD94: R/KVA
AB95: MV KVA TOU winter | AC95: =Projections!J81 ->  | AD95: R/KVA
A96: Tariffs and revenue calcs | AB96: HV TOU (winter) Peak | AC96: =Projections!M80 ->  | AD96: c/kWh
A97: Tariff (Megaflex) | AB97: HV TOU (summer) Peak | AC97: =Projections!M64 ->  | AD97: c/kWh
A98: Period | C98: off pk | D98: off pk | E98: off pk | F98: off pk | G98: off pk | H98: off pk | I98: std | J98: peak | K98: peak | L98: peak | M98: std | N98: std | O98: std | P98: std | Q98: std | R98: std | S98: std | T98: std | U98: peak | V98: peak | W98: std | X98: std | Y98: off pk | Z98: off pk | AB98: HV TOU (winter) Std | AC98: =Projections!N80 ->  | AD98: c/kWh
A99: Low demand c/kWh | C99: =AC105 -> 0 | D99: =$C$99 -> 0 | E99: =$C$99 -> 0 | F99: =$C$99 -> 0 | G99: =$C$99 -> 0 | H99: =$C$99 -> 0 | I99: =AC107 -> 0 | J99: =AC109 -> 0 | K99: =$J$99 -> 0 | L99: =$J$99 -> 0 | M99: =$I$99 -> 0 | N99: =$I$99 -> 0 | O99: 0 | P99: 0 | Q99: 0 | R99: 0 | S99: 0 | T99: 0 | U99: =$J$99 -> 0 | V99: =$J$99 -> 0 | W99: =$I$99 -> 0 | X99: =$I$99 -> 0 | Y99: =$C$99 -> 0 | Z99: =$C$99 -> 0 | AB99: HV TOU (summer) Std | AC99: =Projections!N64 ->  | AD99: c/kWh
A100: Hi demand c/kWh | C100: =AC106 -> 0 | D100: =$C$100 -> 0 | E100: =$C$100 -> 0 | F100: =$C$100 -> 0 | G100: =$C$100 -> 0 | H100: =$C$100 -> 0 | I100: =AC108 -> 0 | J100: =AC110 -> 0 | K100: =$J$100 -> 0 | L100: =$J$100 -> 0 | M100: =$I$100 -> 0 | N100: =$I$100 -> 0 | O100: 0 | P100: 0 | Q100: 0 | R100: 0 | S100: 0 | T100: 0 | U100: =$J$100 -> 0 | V100: =$J$100 -> 0 | W100: =$I$100 -> 0 | X100: =$I$100 -> 0 | Y100: =$C$100 -> 0 | Z100: =$C$100 -> 0 | AB100: HV TOU (winter) Off peak | AC100: =Projections!O80 ->  | AD100: c/kWh
A101: Eskom demand charges: | B101: Winter | C101: =AC111 -> 0 | D101: R/KVA/mth | G101: Summer | H101: =AF111 -> 0 | I101: R/KVA/mth | AB101: HV TOU (summer) Off peak | AC101: =Projections!O64 ->  | AD101: c/kWh
A102: Revenue lost from PV feed in tariff | AA102: Daily loss | AB102: HV KVA TOU summer | AC102: =Projections!M65 ->  | AD102: R/KVA
A103: Resid PV feed-in tariff (summ) | B103: =AC60 ->  | C103: c/kWh | AB103: HV KVA TOU winter | AC103: =Projections!M81 ->  | AD103: R/KVA
A104: Resid PV feed-in tariff (winter) | B104: =AC61 ->  | C104: c/kWh | AB104: Eskom tariffs
A105: Resid PV net generation feed-in(summer) | C105: =C59*$B$103/100*1000 ->  | D105: =D59*$B$103/100*1000 ->  | W105: =W59*$B$103/100*1000 ->  | AA105: =SUM(C105:Z105) ->  | AB105: Low demand Off peak | AC105: =Projections!I44 -> 0 | AD105: c/kWh
A106: Resid PV net generation feed-in (winter) | C106: =C60*$B$104/100*1000 ->  | D106: =D60*$B$104/100*1000 ->  | AA106: =SUM(C106:Z106) ->  | AB106: Hi demand Off peak | AC106: =Projections!J44 -> 0 | AD106: c/kWh
AB107: Low demand Std | AC107: =Projections!I45 -> 0 | AD107: c/kWh
A108: Comm PV feed-in tariff (summer) | B108: =AC68 ->  | C108: c/kWh | AB108: Hi demand Std | AC108: =Projections!J45 -> 0 | AD108: c/kWh
A109: Comm PV feed-in tariff (winter) | B109: =AC69 ->  | C109: c/kWh | AB109: Low demand Peak | AC109: =Projections!I46 -> 0 | AD109: c/kWh
A110: Comm PV net generation feed-in (summer) | C110: =C66*$B$108/100*1000 ->  | D110: =D66*$B$108/100*1000 ->  | AA110: =SUM(C110:Z110) ->  | AB110: Hi demand c/kWh Peak | AC110: =Projections!J46 -> 0 | AD110: c/kWh
A111: Comm PV net generation feed-in (winter) | C111: =C67*$B$109/100*1000 ->  | D111: =D67*$B$109/100*1000 ->  | AA111: =SUM(C111:Z111) ->  | AB111: Demand charges (Winter) | AC111: =Projections!K44 -> 0 | AD111: R/KVA/mth | AE111: Summer | AF111: =Projections!L44 -> 0 | AG111: R/KVA/mth
AB112: Electricity Revenue | AC112: =Projections!E45 -> 
A113: Indus PV feed-in tariff (summer) | B113: =AC78 ->  | C113: c/kWh | AB113: Distribution losses | AC113: =Input!B127 -> 0.057
A114: Indus PV feed-in tariff (winter) | B114: =AC79 ->  | C114: c/kWh
A115: Indus PV net generation feed-in (summer) | C115: =C72*$B$113/100*1000 ->  | D115: =D72*$B$113/100*1000 ->  | AA115: =SUM(C115:Z115) -> 
A116: Indus PV net generation feed-in (winter) | C116: =C73*$B$114/100*1000 ->  | D116: =D73*$B$114/100*1000 ->  | AA116: =SUM(C116:Z116) -> 
A118: Revenue gained from PV resale
A119: Resid PV resale tariff (summer) | B119: =AC58 ->  | C119: c/kWh
A120: Resid PV resale tariff (winter) | B120: =AC59 ->  | C120: c/kWh
A121: Resid PV net generation resale (summer) | C121: =C59*$B$119/100*1000 ->  | D121: =D59*$B$119/100*1000 ->  | O121: =O59*$B$119/100*1000 ->  | AA121: =-SUM(C121:Z121) -> 
A122: Resid PV net generation resale (winter) | C122: =C60*$B$120/100*1000 ->  | D122: =D60*$B$120/100*1000 ->  | AA122: =-SUM(C122:Z122) -> 
A124: Comm PV resale tariff (summer) | B124: =AC66 ->  | C124: c/kWh
A125: Comm PV resale tariff (winter) | B125: =AC67 ->  | C125: c/kWh
A126: Comm PV net generation resale (summer) | C126: =C66*$B$124/100*1000 ->  | D126: =D66*$B$124/100*1000 ->  | AA126: =-SUM(C126:Z126) -> 
A127: Comm PV net generation resale (winter) | C127: =C67*$B$125/100*1000 ->  | D127: =D67*$B$125/100*1000 ->  | AA127: =-SUM(C127:Z127) -> 
A129: Indus PV resale tariff (summer) | B129: =AC76 ->  | C129: c/kWh
A130: Indus PV resale tariff (winter) | B130: =AC77 ->  | C130: c/kWh
A131: Indus PV net generation resale(summer) | C131: =C72*$B$129/100*1000 ->  | D131: =D72*$B$129/100*1000 ->  | AA131: =-SUM(C131:Z131) -> 
A132: Indus PV net generation resale (winter) | C132: =C73*$B$130/100*1000 ->  | D132: =D73*$B$130/100*1000 ->  | AA132: =-SUM(C132:Z132) -> 
A135: Financial savings from reduced purchases | AA135: Daily save
A136: Saving - low demand (kWh related) | C136: =(C52-C50)*C99/100*1000/(1-$AC$113) ->  | D136: =(D52-D50)*D99/100*1000/(1-$AC$113) ->  | P136: =(P52-P50)*P99/100*1000/(1-$AC$113) ->  | Q136: =(Q52-Q50)*Q99/100*1000/(1-$AC$113) ->  | Z136: =(Z52-Z50)*Z99/100*1000/(1-$AC$113) ->  | AA136: =SUM(C136:Z136) -> 
A137: Saving - hi demand (kWh related) | C137: =(C53-C51)*C100/100*1000/(1-$AC$113) ->  | D137: =(D53-D51)*D100/100*1000/(1-$AC$113) ->  | P137: =(P53-P51)*P100/100*1000/(1-$AC$113) ->  | Q137: =(Q53-Q51)*Q100/100*1000/(1-$AC$113) ->  | AA137: =SUM(C137:Z137) -> 
A138: Saving demand kVA | C138: Summer: | F138: Original MVAmax: | G138: =MAX(C52:Z52) -> 0 | J138: Final MVAmax: | K138: =MAX(C50:Z50) ->  | M138: Saving: | N138: =(G138-K138)*1000*$H$101 ->  | P138: /mth | Z138: Summer: | AA138: =N138/30 -> 
C139: Winter: | F139: Original MVAmax: | G139: =MAX(C53:Z53) -> 0 | J139: Final MVAmax: | K139: =MAX(C51:Z51) ->  | M139: Saving: | N139: =(G139-K139)*1000*$C$101 ->  | P139: /mth | Z139: Winter: | AA139: =N139/30 -> 
A140: Municipal Tariffs: Revenue reductions from reduced sales | AA140: Daily loss
A141: Revenue loss from PV
A142: Resid PV c/kWh lost (winter) | B142: =AC55 ->  | C142: c/kWh
A143: Resid PV c/kWh lost (summer) | B143: =AC56 ->  | C143: c/kWh
A144: Resid PV daily charge | B144: =AC57 ->  | C144: R/day | AB144: DO NOT REMOVE
A145: Resid PV revenue loss (summer) | C145: =(C61)*1000*$B$143/100*Input!$F$56 ->  | D145: =(D61)*1000*$B$143/100*Input!$F$56 ->  | E145: =(E61)*1000*$B$143/100*Input!$F$56 ->  | F145: =(F61)*1000*$B$143/100*Input!$F$56 ->  | G145: =(G61)*1000*$B$143/100*Input!$F$56 ->  | H145: =(H61)*1000*$B$143/100*Input!$F$56 ->  | I145: =(I61)*1000*$B$143/100*Input!$F$56 ->  | J145: =(J61)*1000*$B$143/100*Input!$F$56 ->  | K145: =(K61)*1000*$B$143/100*Input!$F$56 ->  | L145: =(L61)*1000*$B$143/100*Input!$F$56 ->  | M145: =(M61)*1000*$B$143/100*Input!$F$56 ->  | N145: =(N61)*1000*$B$143/100*Input!$F$56 ->  | O145: =(O61)*1000*$B$143/100*Input!$F$56 ->  | P145: =(P61)*1000*$B$143/100*Input!$F$56 ->  | Q145: =(Q61)*1000*$B$143/100*Input!$F$56 ->  | R145: =(R61)*1000*$B$143/100*Input!$F$56 ->  | S145: =(S61)*1000*$B$143/100*Input!$F$56 ->  | T145: =(T61)*1000*$B$143/100*Input!$F$56 ->  | U145: =(U61)*1000*$B$143/100*Input!$F$56 ->  | V145: =(V61)*1000*$B$143/100*Input!$F$56 ->  | W145: =(W61)*1000*$B$143/100*Input!$F$56 ->  | X145: =(X61)*1000*$B$143/100*Input!$F$56 ->  | Y145: =(Y61)*1000*$B$143/100*Input!$F$56 ->  | Z145: =(Z61)*1000*$B$143/100*Input!$F$56 ->  | AA145: =IF(AC57>0,'RE generation'!AN35,Summary!AB145) ->  | AB145: =SUM(C145:Z145) -> 
A146: Resid PV revenue loss (winter) | C146: =(C62)*1000*$B$142/100*Input!$F$56 ->  | D146: =(D62)*1000*$B$142/100*Input!$F$56 ->  | E146: =(E62)*1000*$B$142/100*Input!$F$56 ->  | F146: =(F62)*1000*$B$142/100*Input!$F$56 ->  | G146: =(G62)*1000*$B$142/100*Input!$F$56 ->  | H146: =(H62)*1000*$B$142/100*Input!$F$56 ->  | I146: =(I62)*1000*$B$142/100*Input!$F$56 ->  | J146: =(J62)*1000*$B$142/100*Input!$F$56 ->  | K146: =(K62)*1000*$B$142/100*Input!$F$56 ->  | L146: =(L62)*1000*$B$142/100*Input!$F$56 ->  | M146: =(M62)*1000*$B$142/100*Input!$F$56 ->  | N146: =(N62)*1000*$B$142/100*Input!$F$56 ->  | O146: =(O62)*1000*$B$142/100*Input!$F$56 ->  | P146: =(P62)*1000*$B$142/100*Input!$F$56 ->  | Q146: =(Q62)*1000*$B$142/100*Input!$F$56 ->  | R146: =(R62)*1000*$B$142/100*Input!$F$56 ->  | S146: =(S62)*1000*$B$142/100*Input!$F$56 ->  | T146: =(T62)*1000*$B$142/100*Input!$F$56 ->  | U146: =(U62)*1000*$B$142/100*Input!$F$56 ->  | V146: =(V62)*1000*$B$142/100*Input!$F$56 ->  | W146: =(W62)*1000*$B$142/100*Input!$F$56 ->  | X146: =(X62)*1000*$B$142/100*Input!$F$56 ->  | Y146: =(Y62)*1000*$B$142/100*Input!$F$56 ->  | Z146: =(Z62)*1000*$B$142/100*Input!$F$56 ->  | AA146: =IF(AC57>0,'RE generation'!AN36,Summary!AB146) ->  | AB146: =SUM(C146:Z146) -> 
A147: Comm PV c/kWh lost (winter) | B147: =AC63 ->  | C147: c/kWh
A148: Comm PV c/kWh lost (summer) | B148: =AC64 ->  | C148: c/kWh
A149: Comm PV daily charge | B149: =AC65*AC12 -> 0 | C149: R/day
A150: Comm PV revenue loss (summer) | C150: =(C68)*1000*$B$148/100 ->  | D150: =(D68)*1000*$B$148/100 ->  | AA150: =SUM(C150:Z150)-$B$149*$AC$11*B64 -> 
A151: Comm PV revenue loss (winter) | C151: =(C69)*1000*$B$147/100 ->  | D151: =(D69)*1000*$B$147/100 ->  | AA151: =SUM(C151:Z151)-$B$149*$AC$11*B65 -> 
A152: Ind PV c/kWh lost (winter) | B152: =AC71 ->  | C152: c/kWh
A153: Ind PV c/kWh lost (summer) | B153: =AC72 ->  | C153: c/kWh
A154: Ind PV daily charge | B154: =AC73*AC15 -> 0 | C154: R/day
A155: Ind KVA summer | B155: =AC82 ->  | C155: R/KVA | E155: Max KVA reduction | G155: ='Net metering'!J277 ->  | I155: KVA charge lost to city/day | L155: =B155/30*G155*B70 ->  | AA155: =L155 -> 
A156: Ind KVA winter | B156: =AC83 ->  | C156: R/KVA | E156: Max KVA reduction | G156: ='Net metering'!J312 ->  | I156: KVA charge lost to city/day | L156: =B156/30*G156*B71 ->  | AA156: =L156 -> 
A157: Ind PV revenue loss (summer) | C157: =(C74)*1000*$B$153/100 ->  | D157: =(D74)*1000*$B$153/100 ->  | AA157: =SUM(C157:Z157)-$B$149*$AC$11*B70 -> 
A158: Ind PV revenue loss (winter) | C158: =(C75)*1000*$B$152/100 ->  | D158: =(D75)*1000*$B$152/100 ->  | AA158: =SUM(C158:Z158)-$B$149*$AC$11*B71 -> 
A160: Landfill gas av generation cost | B160: =AC18 -> 0 | C160: c/kWh
A161: (revenue loss thro greater expend) | C161: =C63*1000*$B$160/100*$B$63 -> 0 | D161: 0 | E161: 0 | F161: 0 | G161: 0 | H161: 0 | I161: 0 | J161: 0 | K161: 0 | L161: 0 | M161: 0 | N161: 0 | O161: 0 | P161: 0 | Q161: 0 | R161: 0 | S161: 0 | T161: 0 | U161: 0 | V161: 0 | W161: 0 | X161: 0 | Y161: 0 | Z161: 0 | AA161: =SUM(C161:Z161) -> 0
A163: Revenue loss from EE
A164: Residential tariff (summer) | B164: =AC56 ->  | C164: c/kWh
A165: Residential tariff (winter) | B165: =AC55 ->  | C165: c/kWh
A166: Res revenue loss (summer) | C166: =(C84+C86+C87+C88)*1000*$B164/100 ->  | AA166: =SUM(C166:Z166) -> 
A167: Res revenue loss (winter) | C167: =(C85+C86+C87+C88)*1000*$B165/100 ->  | AA167: =SUM(C167:Z167) -> 
A169: Comm (winter) | B169: =AC63 ->  | C169: c/kWh
A170: Comm (summer) | B170: =AC64 ->  | C170: c/kWh
A171: Comm revenue loss summer | C171: =C83*1000*$B$170/100 ->  | D171: =D83*1000*$B$170/100 ->  | AA171: =SUM(C171:Z171) -> 
A172: Comm revenue loss winter | C172: =C83*1000*$B$169/100 ->  | D172: =D83*1000*$B$169/100 ->  | AA172: =SUM(C172:Z172) -> 
A174: LV (winter) | B174: =AC80 ->  | C174: c/kWh
A175: LV (summer) | B175: =AC81 ->  | C175: c/kWh
A176: LV KVA summer | B176: =AC82 ->  | C176: R/KVA | E176: Max KVA reduction | G176: =MAX(C90:Z90)*1000 -> 0 | I176: KVA charge lost to city/day | L176: =B176/30*G176 ->  | AA176: =L176 -> 
A177: LV KVA winter | B177: =AC83 ->  | C177: R/KVA | E177: Max KVA reduction | G177: =G176 -> 0 | I177: KVA charge lost to city/day | L177: =B177/30*G177 ->  | AA177: =L177 -> 
A178: LV Indust revenue loss from EE (summer) | C178: =C90*1000*$B$175/100 ->  | D178: =D90*1000*$B$175/100 ->  | AA178: =SUM(C178:Z178) -> 
A179: LV Indust revenue loss from EE (winter) | C179: =$B$174/100*C90*1000 ->  | D179: =$B$174/100*D90*1000 ->  | AA179: =SUM(C179:Z179) -> 
A181: MV (winter) | B181: =AC84 ->  | C181: c/kWh
A182: MV (summer) | B182: =AC85 ->  | C182: c/kWh
A183: MV KVA summer | B183: =AC86 ->  | C183: R/KVA | E183: Max KVA reduction | G183: =MAX(C91:Z91)*1000 -> 0 | I183: KVA charge lost to city/day | L183: =B183/30*G183 ->  | AA183: =L183 -> 
A184: MV KVA winter | B184: =AC87 ->  | C184: R/KVA | E184: Max KVA reduction | G184: =G183 -> 0 | I184: KVA charge lost to city/day | L184: =B184/30*G184 ->  | AA184: =L184 -> 
A185: MV Indust revenue loss from EE (summer) | C185: =(C91*1000*$B$182/100) ->  | D185: =(D91*1000*$B$182/100) ->  | AA185: =SUM(C185:Z185) -> 
A186: MV Indust revenue loss from EE (winter) | C186: =(C91*1000*$B$181/100) ->  | D186: =(D91*1000*$B$181/100) ->  | AA186: =SUM(C186:Z186) -> 
A188: MV TOU (winter) Peak | B188: =AC88 ->  | C188: c/kWh
A189: MV TOU (summer) Peak | C189: c/kWh
A190: MV TOU (winter) Std | C190: c/kWh
A191: MV TOU (summer) Std | C191: c/kWh
A192: MV TOU (winter) Off peak | C192: c/kWh
A193: MV TOU (summer) Off peak | C193: c/kWh
A194: MV KVA TOU summer | C194: R/KVA | E194: Max KVA reduction | G194: =MAX(C92:Z92)*1000 -> 0 | I194: KVA charge lost to city/day | L194: =B194/30*G194 ->  | AA194: =L194 -> 
A195: MV KVA TOU winter | C195: R/KVA | E195: Max KVA reduction | G195: =G194 -> 0 | I195: KVA charge lost to city/day | L195: =B195/30*G195 ->  | AA195: =L195 -> 
A196: MV TOU Indust revenue loss from EE (summer) | C196: =(C92*1000*$B$193/100) ->  | I196: =(I92*1000*$B$191/100) ->  | J196: =(J92*1000*$B$189/100) ->  | K196: =(K92*1000*$B$189/100) ->  | L196: =(L92*1000*$B$189/100) ->  | M196: =(M92*1000*$B$191/100) ->  | U196: =(U92*1000*$B$189/100) ->  | V196: =(V92*1000*$B$189/100) ->  | W196: =(W92*1000*$B$191/100) ->  | X196: =(X92*1000*$B$191/100) ->  | Y196: =(Y92*1000*$B$193/100) ->  | Z196: =(Z92*1000*$B$193/100) ->  | AA196: =SUM(C196:Z196) -> 
A197: MV TOU Indust revenue loss from EE (winter) | C197: =(C92*1000*$B$192/100) ->  | I197: =(I92*1000*$B$190/100) ->  | J197: =(J92*1000*$B$188/100) ->  | K197: =(K92*1000*$B$188/100) ->  | L197: =(L92*1000*$B$188/100) ->  | M197: =(M92*1000*$B$190/100) ->  | U197: =(U92*1000*$B$188/100) ->  | V197: =(V92*1000*$B$188/100) ->  | W197: =(W92*1000*$B$190/100) ->  | X197: =(X92*1000*$B$190/100) ->  | Y197: =(Y92*1000*$B$192/100) ->  | Z197: =(Z92*1000*$B$192/100) ->  | AA197: =SUM(C197:Z197) -> 
A199: HV TOU (winter) Peak | B199: =AC96 ->  | C199: c/kWh
A200: HV TOU (summer) Peak | C200: c/kWh
A201: HV TOU (winter) Std | C201: c/kWh
A202: HV TOU (summer) Std | C202: c/kWh
A203: HV TOU (winter) Off peak | C203: c/kWh
A204: HV TOU (summer) Off peak | C204: c/kWh
A205: HV KVA TOU summer | C205: R/KVA | E205: Max KVA reduction | G205: =MAX(C93:Z93)*1000 -> 0 | I205: KVA charge lost to city/day | L205: =B205/30*G205 ->  | AA205: =L205 -> 
A206: HV KVA TOU winter | C206: R/KVA | E206: Max KVA reduction | G206: =G205 -> 0 | I206: KVA charge lost to city/day | L206: =B206/30*G206 ->  | AA206: =L206 -> 
A207: HV TOU Indust revenue loss from EE (summer) | C207: =(C93*1000*$B$204/100) ->  | I207: =(I93*1000*$B$202/100) ->  | J207: =(J93*1000*$B$200/100) ->  | K207: =(K93*1000*$B$200/100) ->  | L207: =(L93*1000*$B$200/100) ->  | M207: =(M93*1000*$B$202/100) ->  | U207: =(U93*1000*$B$200/100) ->  | V207: =(V93*1000*$B$200/100) ->  | W207: =(W93*1000*$B$202/100) ->  | X207: =(X93*1000*$B$202/100) ->  | Y207: =(Y93*1000*$B$204/100) ->  | Z207: =(Z93*1000*$B$204/100) ->  | AA207: =SUM(C207:Z207) -> 
A208: HV TOU Indust revenue loss from EE (winter) | C208: =(C93*1000*$B$203/100) ->  | I208: =(I93*1000*$B$201/100) ->  | J208: =(J93*1000*$B$199/100) ->  | K208: =(K93*1000*$B$199/100) ->  | L208: =(L93*1000*$B$199/100) ->  | M208: =(M93*1000*$B$201/100) ->  | U208: =(U93*1000*$B$199/100) ->  | V208: =(V93*1000*$B$199/100) ->  | W208: =(W93*1000*$B$201/100) ->  | X208: =(X93*1000*$B$201/100) ->  | Y208: =(Y93*1000*$B$203/100) ->  | Z208: =(Z93*1000*$B$203/100) ->  | AA208: =SUM(C208:Z208) -> 
A209: TOTAL revenue loss (summer) | C209: =C110+C115+C145+C150+C157+C161+C166+C171+C178+C185+C196+C207 ->  | D209: =D105+D110+D115+D145+D150+D157+D161+D166+D171+D178+D185+D196+D207 ->  | AA209: =AA105+AA110+AA115+AA145+AA150+AA161+AA178+AA185+AA207+AA121+AA126+AA131+AA155+AA157+AA166+AA171+AA176+AA183+AA194+AA196+AA205 -> 
A210: TOTAL revenue loss (winter) | C210: =C106+C111+C116+C146+C151+C158+C161+C167+C172+C197+C179+C186+C208 ->  | AA210: =AA106+AA111+AA116+AA146+AA151+AA158+AA161+AA167+AA179+AA184+AA186+AA208+AA122+AA127+AA132+AA156+AA172+AA177+AA195+AA197+AA206 -> 
Z211: Loss from interventions - low demand (summer): | AA211: =(AA136+AA138)-AA209 -> 
Z213: Loss from interventions - hi demand (winter)*: | AA213: =AA137+AA139-AA210 -> 
... 1 more rows

Sheet Summ weekend
A1: Weekend: City electricity load profile (MW) and revenue impact analysis
B16: Megaflex preiods: | C16: off pk | D16: off pk | E16: off pk | F16: off pk | G16: off pk | H16: off pk | I16: off pk | J16: off pk | K16: std | L16: std | M16: std | N16: off pk | O16: off pk | P16: off pk | Q16: off pk | R16: off pk | S16: off pk | T16: off pk | U16: off pk | V16: off pk | W16: off pk | X16: off pk | Y16: off pk | Z16: off pk
A33: hr | C33: 0 | D33: 1 | E33: 2 | F33: 3 | G33: 4 | H33: 5 | I33: 6 | J33: 7 | K33: 8 | L33: 9 | M33: 10 | N33: 11 | O33: 12 | P33: 13 | Q33: 14 | R33: 15 | S33: 16 | T33: 17 | U33: 18 | V33: 19 | W33: 20 | X33: 21 | Y33: 22 | Z33: 23
A34: Nett MW purchas frm Eskom (sum) | C34: =C36-C38-C61-C78-C47 ->  | D34: =D36-D38-D61-D78-D47 -> 
A35: Nett MW purchas frm Eskom (wint) | C35: =C37-C39-C62-C78-C47 ->  | D35: =D37-D39-D62-D78-D47 -> 
A36: Original Demand MW (sum) | C36: ='Load profiles'!B27 -> 0 | D36: ='Load profiles'!C27 -> 0 | E36: ='Load profiles'!D27 -> 0 | F36: ='Load profiles'!E27 -> 0 | G36: ='Load profiles'!F27 -> 0 | H36: ='Load profiles'!G27 -> 0 | I36: ='Load profiles'!H27 -> 0 | J36: ='Load profiles'!I27 -> 0 | K36: ='Load profiles'!J27 -> 0 | L36: ='Load profiles'!K27 -> 0 | M36: ='Load profiles'!L27 -> 0 | N36: ='Load profiles'!M27 -> 0 | O36: ='Load profiles'!N27 -> 0 | P36: ='Load profiles'!O27 -> 0 | Q36: ='Load profiles'!P27 -> 0 | R36: ='Load profiles'!Q27 -> 0 | S36: ='Load profiles'!R27 -> 0 | T36: ='Load profiles'!S27 -> 0 | U36: ='Load profiles'!T27 -> 0 | V36: ='Load profiles'!U27 -> 0 | W36: ='Load profiles'!V27 -> 0 | X36: ='Load profiles'!W27 -> 0 | Y36: ='Load profiles'!X27 -> 0 | Z36: ='Load profiles'!Y27 -> 0
A37: Original Demand MW (wint) | C37: ='Load profiles'!B26 -> 0 | D37: ='Load profiles'!C26 -> 0 | E37: ='Load profiles'!D26 -> 0 | F37: ='Load profiles'!E26 -> 0 | G37: ='Load profiles'!F26 -> 0 | H37: ='Load profiles'!G26 -> 0 | I37: ='Load profiles'!H26 -> 0 | J37: ='Load profiles'!I26 -> 0 | K37: ='Load profiles'!J26 -> 0 | L37: ='Load profiles'!K26 -> 0 | M37: ='Load profiles'!L26 -> 0 | N37: ='Load profiles'!M26 -> 0 | O37: ='Load profiles'!N26 -> 0 | P37: ='Load profiles'!O26 -> 0 | Q37: ='Load profiles'!P26 -> 0 | R37: ='Load profiles'!Q26 -> 0 | S37: ='Load profiles'!R26 -> 0 | T37: ='Load profiles'!S26 -> 0 | U37: ='Load profiles'!T26 -> 0 | V37: ='Load profiles'!U26 -> 0 | W37: ='Load profiles'!V26 -> 0 | X37: ='Load profiles'!W26 -> 0 | Y37: ='Load profiles'!X26 -> 0 | Z37: ='Load profiles'!Y26 -> 0
A38: PV generation(summer) | C38: =C45+C52+C58 ->  | D38: =D45+D52+D58 -> 
A39: PV generation (winter) | C39: =C46+C53+C59 ->  | D39: =D46+D53+D59 -> 
B40: Yes=1 /No=0
A41: Resid PV (MW) summer | B41: x | C41: =Summary!C57 -> 0 | D41: =Summary!D57 -> 0 | E41: =Summary!E57 -> 0 | F41: =Summary!F57 -> 0 | G41: =Summary!G57 -> 0 | H41: =Summary!H57 -> 0 | I41: =Summary!I57 -> 2.078031488e-05 | J41: =Summary!J57 -> 0.0001922179126 | K41: =Summary!K57 -> 0.0004923780164 | L41: =Summary!L57 -> 0.0008009079693 | M41: =Summary!M57 -> 0.001067011446 | N41: =Summary!N57 -> 0.001266733361 | O41: =Summary!O57 -> 0.001360533394 | P41: =Summary!P57 -> 0.001359378932 | Q41: =Summary!Q57 -> 0.001245664431 | R41: =Summary!R57 -> 0.001026893894 | S41: =Summary!S57 -> 0.0007472254892 | T41: =Summary!T57 -> 0.000445622308 | U41: =Summary!U57 -> 0.0001740351371 | V41: =Summary!V57 -> 2.020308391e-05 | W41: =Summary!W57 -> 0 | X41: =Summary!X57 -> 0 | Y41: =Summary!Y57 -> 0 | Z41: =Summary!Z57 -> 0
A42: Resid PV (MW) winter | B42: x | C42: =Summary!C58 -> 0 | D42: =Summary!D58 -> 0 | E42: =Summary!E58 -> 0 | F42: =Summary!F58 -> 0 | G42: =Summary!G58 -> 0 | H42: =Summary!H58 -> 0 | I42: =Summary!I58 -> 0 | J42: =Summary!J58 -> 1.750413531e-05 | K42: =Summary!K58 -> 0.0002888182326 | L42: =Summary!L58 -> 0.0007280129003 | M42: =Summary!M58 -> 0.0011266298 | N42: =Summary!N58 -> 0.001422608815 | O42: =Summary!O58 -> 0.001580146033 | P42: =Summary!P58 -> 0.001568211395 | Q42: =Summary!Q58 -> 0.001417039317 | R42: =Summary!R58 -> 0.001042291693 | S42: =Summary!S58 -> 0.0007240346877 | T42: =Summary!T58 -> 0.0002840443775 | U42: =Summary!U58 -> 1.591285028e-05 | V42: =Summary!V58 -> 0 | W42: =Summary!W58 -> 0 | X42: =Summary!X58 -> 0 | Y42: =Summary!Y58 -> 0 | Z42: =Summary!Z58 -> 0
A43: Net metering summer (MW) | B43: =Summary!B59 -> 1 | C43: =IF('Net metering'!AK$91>0,0,'Net metering'!AK$91*-$B$43)/1000 ->  | D43: =IF('Net metering'!AL$91>0,0,'Net metering'!AL$91*-$B$43)/1000 ->  | E43: =IF('Net metering'!AM$91>0,0,'Net metering'!AM$91*-$B$43)/1000 ->  | F43: =IF('Net metering'!AN$91>0,0,'Net metering'!AN$91*-$B$43)/1000 ->  | G43: =IF('Net metering'!AO$91>0,0,'Net metering'!AO$91*-$B$43)/1000 ->  | H43: =IF('Net metering'!AP$91>0,0,'Net metering'!AP$91*-$B$43)/1000 ->  | I43: =IF('Net metering'!AQ$91>0,0,'Net metering'!AQ$91*-$B$43)/1000 ->  | J43: =IF('Net metering'!AR$91>0,0,'Net metering'!AR$91*-$B$43)/1000 ->  | K43: =IF('Net metering'!AS$91>0,0,'Net metering'!AS$91*-$B$43)/1000 ->  | L43: =IF('Net metering'!AT$91>0,0,'Net metering'!AT$91*-$B$43)/1000 ->  | M43: =IF('Net metering'!AU$91>0,0,'Net metering'!AU$91*-$B$43)/1000 ->  | N43: =IF('Net metering'!AV$91>0,0,'Net metering'!AV$91*-$B$43)/1000 ->  | O43: =IF('Net metering'!AW$91>0,0,'Net metering'!AW$91*-$B$43)/1000 ->  | P43: =IF('Net metering'!AX$91>0,0,'Net metering'!AX$91*-$B$43)/1000 ->  | Q43: =IF('Net metering'!AY$91>0,0,'Net metering'!AY$91*-$B$43)/1000 ->  | R43: =IF('Net metering'!AZ$91>0,0,'Net metering'!AZ$91*-$B$43)/1000 ->  | S43: =IF('Net metering'!BA$91>0,0,'Net metering'!BA$91*-$B$43)/1000 ->  | T43: =IF('Net metering'!BB$91>0,0,'Net metering'!BB$91*-$B$43)/1000 ->  | U43: =IF('Net metering'!BC$91>0,0,'Net metering'!BC$91*-$B$43)/1000 ->  | V43: =IF('Net metering'!BD$91>0,0,'Net metering'!BD$91*-$B$43)/1000 ->  | W43: =IF('Net metering'!BE$91>0,0,'Net metering'!BE$91*-$B$43)/1000 ->  | X43: =IF('Net metering'!BF$91>0,0,'Net metering'!BF$91*-$B$43)/1000 ->  | Y43: =IF('Net metering'!BG$91>0,0,'Net metering'!BG$91*-$B$43)/1000 ->  | Z43: =IF('Net metering'!BH$91>0,0,'Net metering'!BH$91*-$B$43)/1000 -> 
A44: Net metering winter (MW) | B44: =Summary!B60 -> 1 | C44: =IF('Net metering'!AK$92>0,0,'Net metering'!AK$92*-$B$44)/1000 ->  | D44: =IF('Net metering'!AL$92>0,0,'Net metering'!AL$92*-$B$44)/1000 ->  | E44: =IF('Net metering'!AM$92>0,0,'Net metering'!AM$92*-$B$44)/1000 ->  | F44: =IF('Net metering'!AN$92>0,0,'Net metering'!AN$92*-$B$44)/1000 ->  | G44: =IF('Net metering'!AO$92>0,0,'Net metering'!AO$92*-$B$44)/1000 ->  | H44: =IF('Net metering'!AP$92>0,0,'Net metering'!AP$92*-$B$44)/1000 ->  | I44: =IF('Net metering'!AQ$92>0,0,'Net metering'!AQ$92*-$B$44)/1000 ->  | J44: =IF('Net metering'!AR$92>0,0,'Net metering'!AR$92*-$B$44)/1000 ->  | K44: =IF('Net metering'!AS$92>0,0,'Net metering'!AS$92*-$B$44)/1000 ->  | L44: =IF('Net metering'!AT$92>0,0,'Net metering'!AT$92*-$B$44)/1000 ->  | M44: =IF('Net metering'!AU$92>0,0,'Net metering'!AU$92*-$B$44)/1000 ->  | N44: =IF('Net metering'!AV$92>0,0,'Net metering'!AV$92*-$B$44)/1000 ->  | O44: =IF('Net metering'!AW$92>0,0,'Net metering'!AW$92*-$B$44)/1000 ->  | P44: =IF('Net metering'!AX$92>0,0,'Net metering'!AX$92*-$B$44)/1000 ->  | Q44: =IF('Net metering'!AY$92>0,0,'Net metering'!AY$92*-$B$44)/1000 ->  | R44: =IF('Net metering'!AZ$92>0,0,'Net metering'!AZ$92*-$B$44)/1000 ->  | S44: =IF('Net metering'!BA$92>0,0,'Net metering'!BA$92*-$B$44)/1000 ->  | T44: =IF('Net metering'!BB$92>0,0,'Net metering'!BB$92*-$B$44)/1000 ->  | U44: =IF('Net metering'!BC$92>0,0,'Net metering'!BC$92*-$B$44)/1000 ->  | V44: =IF('Net metering'!BD$92>0,0,'Net metering'!BD$92*-$B$44)/1000 ->  | W44: =IF('Net metering'!BE$92>0,0,'Net metering'!BE$92*-$B$44)/1000 ->  | X44: =IF('Net metering'!BF$92>0,0,'Net metering'!BF$92*-$B$44)/1000 ->  | Y44: =IF('Net metering'!BG$92>0,0,'Net metering'!BG$92*-$B$44)/1000 ->  | Z44: =IF('Net metering'!BH$92>0,0,'Net metering'!BH$92*-$B$44)/1000 -> 
A45: Resid PV used internally (summer) | B45: x | C45: =C41-C43 ->  | D45: =D41-D43 -> 
A46: Resid PV used internally (winter) | C46: =C42-C44 ->  | D46: =D42-D44 -> 
A47: Landfill gas (MW) | B47: =Summary!B63 -> 0 | C47: =Summary!C63 -> 0 | D47: =Summary!D63 -> 0 | E47: =Summary!E63 -> 0 | F47: =Summary!F63 -> 0 | G47: =Summary!G63 -> 0 | H47: =Summary!H63 -> 0 | I47: =Summary!I63 -> 0 | J47: =Summary!J63 -> 0 | K47: =Summary!K63 -> 0 | L47: =Summary!L63 -> 0 | M47: =Summary!M63 -> 0 | N47: =Summary!N63 -> 0 | O47: =Summary!O63 -> 0 | P47: =Summary!P63 -> 0 | Q47: =Summary!Q63 -> 0 | R47: =Summary!R63 -> 0 | S47: =Summary!S63 -> 0 | T47: =Summary!T63 -> 0 | U47: =Summary!U63 -> 0 | V47: =Summary!V63 -> 0 | W47: =Summary!W63 -> 0 | X47: =Summary!X63 -> 0 | Y47: =Summary!Y63 -> 0 | Z47: =Summary!Z63 -> 0
A48: Comm PV (MW) summer | B48: x | C48: =Summary!C64 -> 0 | D48: =Summary!D64 -> 0 | E48: =Summary!E64 -> 0 | F48: =Summary!F64 -> 0 | G48: =Summary!G64 -> 0 | H48: =Summary!H64 -> 0 | I48: =Summary!I64 -> 0 | J48: =Summary!J64 -> 0 | K48: =Summary!K64 -> 0 | L48: =Summary!L64 -> 0 | M48: =Summary!M64 -> 0 | N48: =Summary!N64 -> 0 | O48: =Summary!O64 -> 0 | P48: =Summary!P64 -> 0 | Q48: =Summary!Q64 -> 0 | R48: =Summary!R64 -> 0 | S48: =Summary!S64 -> 0 | T48: =Summary!T64 -> 0 | U48: =Summary!U64 -> 0 | V48: =Summary!V64 -> 0 | W48: =Summary!W64 -> 0 | X48: =Summary!X64 -> 0 | Y48: =Summary!Y64 -> 0 | Z48: =Summary!Z64 -> 0
A49: Comm PV (MW) winter | B49: x | C49: =Summary!C65 -> 0 | D49: =Summary!D65 -> 0 | E49: =Summary!E65 -> 0 | F49: =Summary!F65 -> 0 | G49: =Summary!G65 -> 0 | H49: =Summary!H65 -> 0 | I49: =Summary!I65 -> 0 | J49: =Summary!J65 -> 0 | K49: =Summary!K65 -> 0 | L49: =Summary!L65 -> 0 | M49: =Summary!M65 -> 0 | N49: =Summary!N65 -> 0 | O49: =Summary!O65 -> 0 | P49: =Summary!P65 -> 0 | Q49: =Summary!Q65 -> 0 | R49: =Summary!R65 -> 0 | S49: =Summary!S65 -> 0 | T49: =Summary!T65 -> 0 | U49: =Summary!U65 -> 0 | V49: =Summary!V65 -> 0 | W49: =Summary!W65 -> 0 | X49: =Summary!X65 -> 0 | Y49: =Summary!Y65 -> 0 | Z49: =Summary!Z65 -> 0
A50: Net metering summer (MW) | B50: =Summary!B66 -> 0 | C50: =IF('Net metering'!V198>0,0,'Net metering'!V198*-$B$50)/1000 ->  | D50: =IF('Net metering'!W198>0,0,'Net metering'!W198*-$B$50)/1000 ->  | E50: =IF('Net metering'!X198>0,0,'Net metering'!X198*-$B$50)/1000 ->  | F50: =IF('Net metering'!Y198>0,0,'Net metering'!Y198*-$B$50)/1000 ->  | G50: =IF('Net metering'!Z198>0,0,'Net metering'!Z198*-$B$50)/1000 ->  | H50: =IF('Net metering'!AA198>0,0,'Net metering'!AA198*-$B$50)/1000 ->  | I50: =IF('Net metering'!AB198>0,0,'Net metering'!AB198*-$B$50)/1000 ->  | J50: =IF('Net metering'!AC198>0,0,'Net metering'!AC198*-$B$50)/1000 ->  | K50: =IF('Net metering'!AD198>0,0,'Net metering'!AD198*-$B$50)/1000 ->  | L50: =IF('Net metering'!AE198>0,0,'Net metering'!AE198*-$B$50)/1000 ->  | M50: =IF('Net metering'!AF198>0,0,'Net metering'!AF198*-$B$50)/1000 ->  | N50: =IF('Net metering'!AG198>0,0,'Net metering'!AG198*-$B$50)/1000 ->  | O50: =IF('Net metering'!AH198>0,0,'Net metering'!AH198*-$B$50)/1000 ->  | P50: =IF('Net metering'!AI198>0,0,'Net metering'!AI198*-$B$50)/1000 ->  | Q50: =IF('Net metering'!AJ198>0,0,'Net metering'!AJ198*-$B$50)/1000 ->  | R50: =IF('Net metering'!AK198>0,0,'Net metering'!AK198*-$B$50)/1000 ->  | S50: =IF('Net metering'!AL198>0,0,'Net metering'!AL198*-$B$50)/1000 ->  | T50: =IF('Net metering'!AM198>0,0,'Net metering'!AM198*-$B$50)/1000 ->  | U50: =IF('Net metering'!AN198>0,0,'Net metering'!AN198*-$B$50)/1000 ->  | V50: =IF('Net metering'!AO198>0,0,'Net metering'!AO198*-$B$50)/1000 ->  | W50: =IF('Net metering'!AP198>0,0,'Net metering'!AP198*-$B$50)/1000 ->  | X50: =IF('Net metering'!AQ198>0,0,'Net metering'!AQ198*-$B$50)/1000 ->  | Y50: =IF('Net metering'!AR198>0,0,'Net metering'!AR198*-$B$50)/1000 ->  | Z50: =IF('Net metering'!AS198>0,0,'Net metering'!AS198*-$B$50)/1000 -> 
A51: Net metering winter (MW) | B51: =Summary!B67 -> 0 | C51: =IF('Net metering'!V199>0,0,'Net metering'!V199*-$B$51)/1000 ->  | D51: =IF('Net metering'!W199>0,0,'Net metering'!W199*-$B$51)/1000 ->  | E51: =IF('Net metering'!X199>0,0,'Net metering'!X199*-$B$51)/1000 ->  | F51: =IF('Net metering'!Y199>0,0,'Net metering'!Y199*-$B$51)/1000 ->  | G51: =IF('Net metering'!Z199>0,0,'Net metering'!Z199*-$B$51)/1000 ->  | H51: =IF('Net metering'!AA199>0,0,'Net metering'!AA199*-$B$51)/1000 ->  | I51: =IF('Net metering'!AB199>0,0,'Net metering'!AB199*-$B$51)/1000 ->  | J51: =IF('Net metering'!AC199>0,0,'Net metering'!AC199*-$B$51)/1000 ->  | K51: =IF('Net metering'!AD199>0,0,'Net metering'!AD199*-$B$51)/1000 ->  | L51: =IF('Net metering'!AE199>0,0,'Net metering'!AE199*-$B$51)/1000 ->  | M51: =IF('Net metering'!AF199>0,0,'Net metering'!AF199*-$B$51)/1000 ->  | N51: =IF('Net metering'!AG199>0,0,'Net metering'!AG199*-$B$51)/1000 ->  | O51: =IF('Net metering'!AH199>0,0,'Net metering'!AH199*-$B$51)/1000 ->  | P51: =IF('Net metering'!AI199>0,0,'Net metering'!AI199*-$B$51)/1000 ->  | Q51: =IF('Net metering'!AJ199>0,0,'Net metering'!AJ199*-$B$51)/1000 ->  | R51: =IF('Net metering'!AK199>0,0,'Net metering'!AK199*-$B$51)/1000 ->  | S51: =IF('Net metering'!AL199>0,0,'Net metering'!AL199*-$B$51)/1000 ->  | T51: =IF('Net metering'!AM199>0,0,'Net metering'!AM199*-$B$51)/1000 ->  | U51: =IF('Net metering'!AN199>0,0,'Net metering'!AN199*-$B$51)/1000 ->  | V51: =IF('Net metering'!AO199>0,0,'Net metering'!AO199*-$B$51)/1000 ->  | W51: =IF('Net metering'!AP199>0,0,'Net metering'!AP199*-$B$51)/1000 ->  | X51: =IF('Net metering'!AQ199>0,0,'Net metering'!AQ199*-$B$51)/1000 ->  | Y51: =IF('Net metering'!AR199>0,0,'Net metering'!AR199*-$B$51)/1000 ->  | Z51: =IF('Net metering'!AS199>0,0,'Net metering'!AS199*-$B$51)/1000 -> 
A52: Comm PV used internally (summer) | B52: x | C52: =C48-C50 ->  | D52: =D48-D50 -> 
A53: Comm PV used internally (winter) | C53: =C49-C51 ->  | D53: =D49-D51 -> 
A54: Ind PV (MW) summer | B54: x | C54: =Summary!C70 -> 0 | D54: =Summary!D70 -> 0 | E54: =Summary!E70 -> 0 | F54: =Summary!F70 -> 0 | G54: =Summary!G70 -> 0 | H54: =Summary!H70 -> 0 | I54: =Summary!I70 -> 0 | J54: =Summary!J70 -> 0 | K54: =Summary!K70 -> 0 | L54: =Summary!L70 -> 0 | M54: =Summary!M70 -> 0 | N54: =Summary!N70 -> 0 | O54: =Summary!O70 -> 0 | P54: =Summary!P70 -> 0 | Q54: =Summary!Q70 -> 0 | R54: =Summary!R70 -> 0 | S54: =Summary!S70 -> 0 | T54: =Summary!T70 -> 0 | U54: =Summary!U70 -> 0 | V54: =Summary!V70 -> 0 | W54: =Summary!W70 -> 0 | X54: =Summary!X70 -> 0 | Y54: =Summary!Y70 -> 0 | Z54: =Summary!Z70 -> 0
A55: Ind PV (MW) winter | B55: x | C55: =Summary!C71 -> 0 | D55: =Summary!D71 -> 0 | E55: =Summary!E71 -> 0 | F55: =Summary!F71 -> 0 | G55: =Summary!G71 -> 0 | H55: =Summary!H71 -> 0 | I55: =Summary!I71 -> 0 | J55: =Summary!J71 -> 0 | K55: =Summary!K71 -> 0 | L55: =Summary!L71 -> 0 | M55: =Summary!M71 -> 0 | N55: =Summary!N71 -> 0 | O55: =Summary!O71 -> 0 | P55: =Summary!P71 -> 0 | Q55: =Summary!Q71 -> 0 | R55: =Summary!R71 -> 0 | S55: =Summary!S71 -> 0 | T55: =Summary!T71 -> 0 | U55: =Summary!U71 -> 0 | V55: =Summary!V71 -> 0 | W55: =Summary!W71 -> 0 | X55: =Summary!X71 -> 0 | Y55: =Summary!Y71 -> 0 | Z55: =Summary!Z71 -> 0
A56: Net metering summer (MW) | B56: =Summary!B72 -> 0 | C56: =IF('Net metering'!V265>0,0,'Net metering'!V265*-$B$56)/1000 ->  | D56: =IF('Net metering'!W265>0,0,'Net metering'!W265*-$B$56)/1000 ->  | E56: =IF('Net metering'!X265>0,0,'Net metering'!X265*-$B$56)/1000 ->  | F56: =IF('Net metering'!Y265>0,0,'Net metering'!Y265*-$B$56)/1000 ->  | G56: =IF('Net metering'!Z265>0,0,'Net metering'!Z265*-$B$56)/1000 ->  | H56: =IF('Net metering'!AA265>0,0,'Net metering'!AA265*-$B$56)/1000 ->  | I56: =IF('Net metering'!AB265>0,0,'Net metering'!AB265*-$B$56)/1000 ->  | J56: =IF('Net metering'!AC265>0,0,'Net metering'!AC265*-$B$56)/1000 ->  | K56: =IF('Net metering'!AD265>0,0,'Net metering'!AD265*-$B$56)/1000 ->  | L56: =IF('Net metering'!AE265>0,0,'Net metering'!AE265*-$B$56)/1000 ->  | M56: =IF('Net metering'!AF265>0,0,'Net metering'!AF265*-$B$56)/1000 ->  | N56: =IF('Net metering'!AG265>0,0,'Net metering'!AG265*-$B$56)/1000 ->  | O56: =IF('Net metering'!AH265>0,0,'Net metering'!AH265*-$B$56)/1000 ->  | P56: =IF('Net metering'!AI265>0,0,'Net metering'!AI265*-$B$56)/1000 ->  | Q56: =IF('Net metering'!AJ265>0,0,'Net metering'!AJ265*-$B$56)/1000 ->  | R56: =IF('Net metering'!AK265>0,0,'Net metering'!AK265*-$B$56)/1000 ->  | S56: =IF('Net metering'!AL265>0,0,'Net metering'!AL265*-$B$56)/1000 ->  | T56: =IF('Net metering'!AM265>0,0,'Net metering'!AM265*-$B$56)/1000 ->  | U56: =IF('Net metering'!AN265>0,0,'Net metering'!AN265*-$B$56)/1000 ->  | V56: =IF('Net metering'!AO265>0,0,'Net metering'!AO265*-$B$56)/1000 ->  | W56: =IF('Net metering'!AP265>0,0,'Net metering'!AP265*-$B$56)/1000 ->  | X56: =IF('Net metering'!AQ265>0,0,'Net metering'!AQ265*-$B$56)/1000 ->  | Y56: =IF('Net metering'!AR265>0,0,'Net metering'!AR265*-$B$56)/1000 ->  | Z56: =IF('Net metering'!AS265>0,0,'Net metering'!AS265*-$B$56)/1000 -> 
A57: Net metering winter (MW) | B57: =Summary!B73 -> 0 | C57: =IF('Net metering'!V266>0,0,'Net metering'!V266*-$B$57)/1000 ->  | D57: =IF('Net metering'!W266>0,0,'Net metering'!W266*-$B$57)/1000 ->  | E57: =IF('Net metering'!X266>0,0,'Net metering'!X266*-$B$57)/1000 ->  | F57: =IF('Net metering'!Y266>0,0,'Net metering'!Y266*-$B$57)/1000 ->  | G57: =IF('Net metering'!Z266>0,0,'Net metering'!Z266*-$B$57)/1000 ->  | H57: =IF('Net metering'!AA266>0,0,'Net metering'!AA266*-$B$57)/1000 ->  | I57: =IF('Net metering'!AB266>0,0,'Net metering'!AB266*-$B$57)/1000 ->  | J57: =IF('Net metering'!AC266>0,0,'Net metering'!AC266*-$B$57)/1000 ->  | K57: =IF('Net metering'!AD266>0,0,'Net metering'!AD266*-$B$57)/1000 ->  | L57: =IF('Net metering'!AE266>0,0,'Net metering'!AE266*-$B$57)/1000 ->  | M57: =IF('Net metering'!AF266>0,0,'Net metering'!AF266*-$B$57)/1000 ->  | N57: =IF('Net metering'!AG266>0,0,'Net metering'!AG266*-$B$57)/1000 ->  | O57: =IF('Net metering'!AH266>0,0,'Net metering'!AH266*-$B$57)/1000 ->  | P57: =IF('Net metering'!AI266>0,0,'Net metering'!AI266*-$B$57)/1000 ->  | Q57: =IF('Net metering'!AJ266>0,0,'Net metering'!AJ266*-$B$57)/1000 ->  | R57: =IF('Net metering'!AK266>0,0,'Net metering'!AK266*-$B$57)/1000 ->  | S57: =IF('Net metering'!AL266>0,0,'Net metering'!AL266*-$B$57)/1000 ->  | T57: =IF('Net metering'!AM266>0,0,'Net metering'!AM266*-$B$57)/1000 ->  | U57: =IF('Net metering'!AN266>0,0,'Net metering'!AN266*-$B$57)/1000 ->  | V57: =IF('Net metering'!AO266>0,0,'Net metering'!AO266*-$B$57)/1000 ->  | W57: =IF('Net metering'!AP266>0,0,'Net metering'!AP266*-$B$57)/1000 ->  | X57: =IF('Net metering'!AQ266>0,0,'Net metering'!AQ266*-$B$57)/1000 ->  | Y57: =IF('Net metering'!AR266>0,0,'Net metering'!AR266*-$B$57)/1000 ->  | Z57: =IF('Net metering'!AS266>0,0,'Net metering'!AS266*-$B$57)/1000 -> 
A58: Ind PV used internally (summer) | B58: x | C58: =C54-C56 ->  | D58: =D54-D56 -> 
A59: Ind PV used internally (winter) | C59: =C55-C57 ->  | D59: =D55-D57 -> 
A60: EE savings (average) | C60: =AVERAGE(C61:C62) ->  | D60: =AVERAGE(D61:D62) -> 
A61: EE savings (summer) | C61: =C64+C66+C67+C68+C70+C71+C72+C74+C75+C76+C77+C73 ->  | D61: =D64+D66+D67+D68+D70+D71+D72+D74+D75+D76+D77+D73 -> 
A62: EE Savings (winter) | C62: =C65+C66+C67+C69+C70+C71+C72+C74+C75+C76+C77+C73 ->  | D62: =D65+D66+D67+D69+D70+D71+D72+D74+D75+D76+D77+D73 -> 
B63: Yes=1 /No=0
A64: Streetlights (summer) | B64: x | C64: =Summary!C80 -> 0 | D64: =Summary!D80 -> 0 | E64: =Summary!E80 -> 0 | F64: =Summary!F80 -> 0 | G64: =Summary!G80 -> 0 | H64: =Summary!H80 -> 0 | I64: =Summary!I80 -> 0 | J64: =Summary!J80 -> 0 | K64: =Summary!K80 -> 0 | L64: =Summary!L80 -> 0 | M64: =Summary!M80 -> 0 | N64: =Summary!N80 -> 0 | O64: =Summary!O80 -> 0 | P64: =Summary!P80 -> 0 | Q64: =Summary!Q80 -> 0 | R64: =Summary!R80 -> 0 | S64: =Summary!S80 -> 0 | T64: =Summary!T80 -> 0 | U64: =Summary!U80 -> 0 | V64: =Summary!V80 -> 0 | W64: =Summary!W80 -> 0 | X64: =Summary!X80 -> 0 | Y64: =Summary!Y80 -> 0 | Z64: =Summary!Z80 -> 0
A65: Streetlights (winter) | B65: x | C65: =Summary!C81 -> 0 | D65: =Summary!D81 -> 0 | E65: =Summary!E81 -> 0 | F65: =Summary!F81 -> 0 | G65: =Summary!G81 -> 0 | H65: =Summary!H81 -> 0 | I65: =Summary!I81 -> 0 | J65: =Summary!J81 -> 0 | K65: =Summary!K81 -> 0 | L65: =Summary!L81 -> 0 | M65: =Summary!M81 -> 0 | N65: =Summary!N81 -> 0 | O65: =Summary!O81 -> 0 | P65: =Summary!P81 -> 0 | Q65: =Summary!Q81 -> 0 | R65: =Summary!R81 -> 0 | S65: =Summary!S81 -> 0 | T65: =Summary!T81 -> 0 | U65: =Summary!U81 -> 0 | V65: =Summary!V81 -> 0 | W65: =Summary!W81 -> 0 | X65: =Summary!X81 -> 0 | Y65: =Summary!Y81 -> 0 | Z65: =Summary!Z81 -> 0
A66: Traffic lights | B66: x | C66: =Summary!C82 -> 0 | D66: =Summary!D82 -> 0 | E66: =Summary!E82 -> 0 | F66: =Summary!F82 -> 0 | G66: =Summary!G82 -> 0 | H66: =Summary!H82 -> 0 | I66: =Summary!I82 -> 0 | J66: =Summary!J82 -> 0 | K66: =Summary!K82 -> 0 | L66: =Summary!L82 -> 0 | M66: =Summary!M82 -> 0 | N66: =Summary!N82 -> 0 | O66: =Summary!O82 -> 0 | P66: =Summary!P82 -> 0 | Q66: =Summary!Q82 -> 0 | R66: =Summary!R82 -> 0 | S66: =Summary!S82 -> 0 | T66: =Summary!T82 -> 0 | U66: =Summary!U82 -> 0 | V66: =Summary!V82 -> 0 | W66: =Summary!W82 -> 0 | X66: =Summary!X82 -> 0 | Y66: =Summary!Y82 -> 0 | Z66: =Summary!Z82 -> 0
A67: Commercial EE | B67: x | C67: =Summary!C83 ->  | D67: =Summary!D83 ->  | E67: =Summary!E83 ->  | F67: =Summary!F83 ->  | G67: =Summary!G83 ->  | H67: =Summary!H83 ->  | I67: =Summary!I83 ->  | J67: =Summary!J83 ->  | K67: =Summary!K83 ->  | L67: =Summary!L83 ->  | M67: =Summary!M83 ->  | N67: =Summary!N83 ->  | O67: =Summary!O83 ->  | P67: =Summary!P83 ->  | Q67: =Summary!Q83 ->  | R67: =Summary!R83 ->  | S67: =Summary!S83 ->  | T67: =Summary!T83 ->  | U67: =Summary!U83 ->  | V67: =Summary!V83 ->  | W67: =Summary!W83 ->  | X67: =Summary!X83 ->  | Y67: =Summary!Y83 ->  | Z67: =Summary!Z83 -> 
A68: Residential SWH (sum) | B68: x | C68: =Summary!C84 -> 0 | D68: =Summary!D84 -> 0 | E68: =Summary!E84 -> 0 | F68: =Summary!F84 -> 0 | G68: =Summary!G84 -> 0 | H68: =Summary!H84 -> 0 | I68: =Summary!I84 -> 0 | J68: =Summary!J84 -> 0 | K68: =Summary!K84 -> 0 | L68: =Summary!L84 -> 0 | M68: =Summary!M84 -> 0 | N68: =Summary!N84 -> 0 | O68: =Summary!O84 -> 0 | P68: =Summary!P84 -> 0 | Q68: =Summary!Q84 -> 0 | R68: =Summary!R84 -> 0 | S68: =Summary!S84 -> 0 | T68: =Summary!T84 -> 0 | U68: =Summary!U84 -> 0 | V68: =Summary!V84 -> 0 | W68: =Summary!W84 -> 0 | X68: =Summary!X84 -> 0 | Y68: =Summary!Y84 -> 0 | Z68: =Summary!Z84 -> 0
A69: Residential SWHs (wint) | B69: x | C69: =Summary!C85 -> 0 | D69: =Summary!D85 -> 0 | E69: =Summary!E85 -> 0 | F69: =Summary!F85 -> 0 | G69: =Summary!G85 -> 0 | H69: =Summary!H85 -> 0 | I69: =Summary!I85 -> 0 | J69: =Summary!J85 -> 0 | K69: =Summary!K85 -> 0 | L69: =Summary!L85 -> 0 | M69: =Summary!M85 -> 0 | N69: =Summary!N85 -> 0 | O69: =Summary!O85 -> 0 | P69: =Summary!P85 -> 0 | Q69: =Summary!Q85 -> 0 | R69: =Summary!R85 -> 0 | S69: =Summary!S85 -> 0 | T69: =Summary!T85 -> 0 | U69: =Summary!U85 -> 0 | V69: =Summary!V85 -> 0 | W69: =Summary!W85 -> 0 | X69: =Summary!X85 -> 0 | Y69: =Summary!Y85 -> 0 | Z69: =Summary!Z85 -> 0
A70: Residential cook (gas) | B70: x | C70: =Summary!C86 -> 0 | D70: =Summary!D86 -> 0 | E70: =Summary!E86 -> 0 | F70: =Summary!F86 -> 0 | G70: =Summary!G86 -> 0 | H70: =Summary!H86 -> 0 | I70: =Summary!I86 -> 0 | J70: =Summary!J86 -> 0 | K70: =Summary!K86 -> 0 | L70: =Summary!L86 -> 0 | M70: =Summary!M86 -> 0 | N70: =Summary!N86 -> 0 | O70: =Summary!O86 -> 0 | P70: =Summary!P86 -> 0 | Q70: =Summary!Q86 -> 0 | R70: =Summary!R86 -> 0 | S70: =Summary!S86 -> 0 | T70: =Summary!T86 -> 0 | U70: =Summary!U86 -> 0 | V70: =Summary!V86 -> 0 | W70: =Summary!W86 -> 0 | X70: =Summary!X86 -> 0 | Y70: =Summary!Y86 -> 0 | Z70: =Summary!Z86 -> 0
A71: Residential light (LED downlt) | B71: x | C71: =Summary!C87 -> 0 | D71: =Summary!D87 -> 0 | E71: =Summary!E87 -> 0 | F71: =Summary!F87 -> 0 | G71: =Summary!G87 -> 0 | H71: =Summary!H87 -> 0 | I71: =Summary!I87 -> 0 | J71: =Summary!J87 -> 0 | K71: =Summary!K87 -> 0 | L71: =Summary!L87 -> 0 | M71: =Summary!M87 -> 0 | N71: =Summary!N87 -> 0 | O71: =Summary!O87 -> 0 | P71: =Summary!P87 -> 0 | Q71: =Summary!Q87 -> 0 | R71: =Summary!R87 -> 0 | S71: =Summary!S87 -> 0 | T71: =Summary!T87 -> 0 | U71: =Summary!U87 -> 0 | V71: =Summary!V87 -> 0 | W71: =Summary!W87 -> 0 | X71: =Summary!X87 -> 0 | Y71: =Summary!Y87 -> 0 | Z71: =Summary!Z87 -> 0
A72: Res showerhd, geyser blankt | B72: x | C72: =Summary!C88 -> 0 | D72: =Summary!D88 -> 0 | E72: =Summary!E88 -> 0 | F72: =Summary!F88 -> 0 | G72: =Summary!G88 -> 0 | H72: =Summary!H88 -> 0 | I72: =Summary!I88 -> 0 | J72: =Summary!J88 -> 0 | K72: =Summary!K88 -> 0 | L72: =Summary!L88 -> 0 | M72: =Summary!M88 -> 0 | N72: =Summary!N88 -> 0 | O72: =Summary!O88 -> 0 | P72: =Summary!P88 -> 0 | Q72: =Summary!Q88 -> 0 | R72: =Summary!R88 -> 0 | S72: =Summary!S88 -> 0 | T72: =Summary!T88 -> 0 | U72: =Summary!U88 -> 0 | V72: =Summary!V88 -> 0 | W72: =Summary!W88 -> 0 | X72: =Summary!X88 -> 0 | Y72: =Summary!Y88 -> 0 | Z72: =Summary!Z88 -> 0
A73: Domestic appliance load shifting | B73: x | C73: =Summary!C89 -> 0 | D73: =Summary!D89 -> 0 | E73: =Summary!E89 -> 0 | F73: =Summary!F89 -> 0 | G73: =Summary!G89 -> 0 | H73: =Summary!H89 -> 0 | I73: =Summary!I89 -> 0 | J73: =Summary!J89 -> 0 | K73: =Summary!K89 -> 0 | L73: =Summary!L89 -> 0 | M73: =Summary!M89 -> 0 | N73: =Summary!N89 -> 0 | O73: =Summary!O89 -> 0 | P73: =Summary!P89 -> 0 | Q73: =Summary!Q89 -> 0 | R73: =Summary!R89 -> 0 | S73: =Summary!S89 -> 0 | T73: =Summary!T89 -> 0 | U73: =Summary!U89 -> 0 | V73: =Summary!V89 -> 0 | W73: =Summary!W89 -> 0 | X73: =Summary!X89 -> 0 | Y73: =Summary!Y89 -> 0 | Z73: =Summary!Z89 -> 0
A74: Indust eff LV | B74: x | C74: =Summary!C90 -> 0 | D74: =Summary!D90 -> 0 | E74: =Summary!E90 -> 0 | F74: =Summary!F90 -> 0 | G74: =Summary!G90 -> 0 | H74: =Summary!H90 -> 0 | I74: =Summary!I90 -> 0 | J74: =Summary!J90 -> 0 | K74: =Summary!K90 -> 0 | L74: =Summary!L90 -> 0 | M74: =Summary!M90 -> 0 | N74: =Summary!N90 -> 0 | O74: =Summary!O90 -> 0 | P74: =Summary!P90 -> 0 | Q74: =Summary!Q90 -> 0 | R74: =Summary!R90 -> 0 | S74: =Summary!S90 -> 0 | T74: =Summary!T90 -> 0 | U74: =Summary!U90 -> 0 | V74: =Summary!V90 -> 0 | W74: =Summary!W90 -> 0 | X74: =Summary!X90 -> 0 | Y74: =Summary!Y90 -> 0 | Z74: =Summary!Z90 -> 0
A75: Indust eff MV | B75: x | C75: =Summary!C91 -> 0 | D75: =Summary!D91 -> 0 | E75: =Summary!E91 -> 0 | F75: =Summary!F91 -> 0 | G75: =Summary!G91 -> 0 | H75: =Summary!H91 -> 0 | I75: =Summary!I91 -> 0 | J75: =Summary!J91 -> 0 | K75: =Summary!K91 -> 0 | L75: =Summary!L91 -> 0 | M75: =Summary!M91 -> 0 | N75: =Summary!N91 -> 0 | O75: =Summary!O91 -> 0 | P75: =Summary!P91 -> 0 | Q75: =Summary!Q91 -> 0 | R75: =Summary!R91 -> 0 | S75: =Summary!S91 -> 0 | T75: =Summary!T91 -> 0 | U75: =Summary!U91 -> 0 | V75: =Summary!V91 -> 0 | W75: =Summary!W91 -> 0 | X75: =Summary!X91 -> 0 | Y75: =Summary!Y91 -> 0 | Z75: =Summary!Z91 -> 0
A76: Indust eff MV TOU | B76: x | C76: =Summary!C92 -> 0 | D76: =Summary!D92 -> 0 | E76: =Summary!E92 -> 0 | F76: =Summary!F92 -> 0 | G76: =Summary!G92 -> 0 | H76: =Summary!H92 -> 0 | I76: =Summary!I92 -> 0 | J76: =Summary!J92 -> 0 | K76: =Summary!K92 -> 0 | L76: =Summary!L92 -> 0 | M76: =Summary!M92 -> 0 | N76: =Summary!N92 -> 0 | O76: =Summary!O92 -> 0 | P76: =Summary!P92 -> 0 | Q76: =Summary!Q92 -> 0 | R76: =Summary!R92 -> 0 | S76: =Summary!S92 -> 0 | T76: =Summary!T92 -> 0 | U76: =Summary!U92 -> 0 | V76: =Summary!V92 -> 0 | W76: =Summary!W92 -> 0 | X76: =Summary!X92 -> 0 | Y76: =Summary!Y92 -> 0 | Z76: =Summary!Z92 -> 0
A77: Indust eff HV TOU | B77: x | C77: =Summary!C93 -> 0 | D77: =Summary!D93 -> 0 | E77: =Summary!E93 -> 0 | F77: =Summary!F93 -> 0 | G77: =Summary!G93 -> 0 | H77: =Summary!H93 -> 0 | I77: =Summary!I93 -> 0 | J77: =Summary!J93 -> 0 | K77: =Summary!K93 -> 0 | L77: =Summary!L93 -> 0 | M77: =Summary!M93 -> 0 | N77: =Summary!N93 -> 0 | O77: =Summary!O93 -> 0 | P77: =Summary!P93 -> 0 | Q77: =Summary!Q93 -> 0 | R77: =Summary!R93 -> 0 | S77: =Summary!S93 -> 0 | T77: =Summary!T93 -> 0 | U77: =Summary!U93 -> 0 | V77: =Summary!V93 -> 0 | W77: =Summary!W93 -> 0 | X77: =Summary!X93 -> 0 | Y77: =Summary!Y93 -> 0 | Z77: =Summary!Z93 -> 0
A78: Load balancing | B78: x | C78: =Summary!C94 -> 0 | D78: =Summary!D94 -> 0 | E78: =Summary!E94 -> 0 | F78: =Summary!F94 -> 0 | G78: =Summary!G94 -> 0 | H78: =Summary!H94 -> 0 | I78: =Summary!I94 -> 0 | J78: =Summary!J94 -> 0 | K78: =Summary!K94 -> 0 | L78: =Summary!L94 -> 0 | M78: =Summary!M94 -> 0 | N78: =Summary!N94 -> 0 | O78: =Summary!O94 -> 0 | P78: =Summary!P94 -> 0 | Q78: =Summary!Q94 -> 0 | R78: =Summary!R94 -> 0 | S78: =Summary!S94 -> 0 | T78: =Summary!T94 -> 0 | U78: =Summary!U94 -> 0 | V78: =Summary!V94 -> 0 | W78: =Summary!W94 -> 0 | X78: =Summary!X94 -> 0 | Y78: =Summary!Y94 -> 0 | Z78: =Summary!Z94 -> 0
A81: Tariff (Megaflex) Weekend
A82: Period | C82: off pk | D82: off pk | E82: off pk | F82: off pk | G82: off pk | H82: off pk | I82: off pk | J82: off pk | K82: std | L82: std | M82: std | N82: off pk | O82: off pk | P82: off pk | Q82: off pk | R82: off pk | S82: off pk | T82: off pk | U82: off pk | V82: off pk | W82: off pk | X82: off pk | Y82: off pk | Z82: off pk
A83: Low demand c/kWh | C83: =Summary!C99 -> 0 | D83: =$C$83 -> 0 | E83: =$C$83 -> 0 | F83: 0 | G83: 0 | H83: 0 | I83: 0 | J83: 0 | K83: =Summary!I99 -> 0 | L83: =$K$83 -> 0 | M83: =$K$83 -> 0 | N83: =$C$83 -> 0 | O83: 0 | P83: 0 | Q83: 0 | R83: 0 | S83: 0 | T83: 0 | U83: 0 | V83: 0 | W83: 0 | X83: 0 | Y83: 0 | Z83: 0
A84: Hi demand c/kWh | C84: =Summary!C100 -> 0 | D84: =$C$84 -> 0 | E84: =$C$84 -> 0 | F84: 0 | G84: 0 | H84: 0 | I84: 0 | J84: 0 | K84: =Summary!I100 -> 0 | L84: =$K$84 -> 0 | M84: =$K$84 -> 0 | N84: =$C$84 -> 0 | O84: 0 | P84: 0 | Q84: 0 | R84: 0 | S84: 0 | T84: 0 | U84: 0 | V84: 0 | W84: 0 | X84: 0 | Y84: 0 | Z84: 0
A86: Revenue lost from PV buy back
A87: Resid PV buyback tariff (summer) | B87: =Summary!B103 ->  | C87: c/kWh
A88: Resid PV buyback tariff (winter) | B88: =Summary!B104 ->  | C88: c/kWh
A89: Resid PV net generation buyback(summer) | C89: =C43*$B$87/100*1000 ->  | D89: =D43*$B$87/100*1000 ->  | AA89: =SUM(C89:Z89)-Summary!B144*Summary!AC8*Summary!B59 -> 
A90: Resid PV net generation buyback (winter) | C90: =C44*$B$87/100*1000 ->  | D90: =D44*$B$87/100*1000 ->  | AA90: =SUM(C90:Z90)-Summary!B144*Summary!AC8*Summary!B60 -> 
A92: Comm PV buyback tariff (summer) | B92: =Summary!B108 ->  | C92: c/kWh
A93: Comm PV buyback tariff (winter) | B93: =Summary!B109 ->  | C93: c/kWh
A94: Comm PV net generation buyback(summer) | C94: =C50*$B$92/100*1000 ->  | D94: =D50*$B$92/100*1000 ->  | AA94: =SUM(C94:Z94)-Summary!B149*Summary!AC11*Summary!B66 -> 
A95: Comm PV net generation buyback (winter) | C95: =C51*$B$93/100*1000 ->  | D95: =D51*$B$93/100*1000 ->  | AA95: =SUM(C95:Z95)-Summary!B149*Summary!AC11*Summary!B67 -> 
A97: Indus PV buyback tariff (summer) | B97: =Summary!B113 ->  | C97: c/kWh
A98: Indus PV buyback tariff (winter) | B98: =Summary!B114 ->  | C98: c/kWh
A99: Indus PV net generation buyback(summer) | C99: =C56*$B$97/100*1000 ->  | D99: =D56*$B$97/100*1000 ->  | AA99: =SUM(C99:Z99)-Summary!B154*Summary!AC14*Summary!B72 -> 
A100: Indus PV net generation buyback (winter) | C100: =C57*$B$98/100*1000 ->  | D100: =D57*$B$98/100*1000 ->  | AA100: =SUM(C100:Z100)-Summary!B154*Summary!AC14*Summary!B73 -> 
A102: Revenue gained from PV resale
A103: Resid PV resale tariff (summer) | B103: =Summary!B119 ->  | C103: c/kWh
A104: Resid PV resale tariff (winter) | B104: =Summary!B120 ->  | C104: c/kWh
A105: Resid PV net generation resale (summer) | C105: =C43*$B$103/100*1000 ->  | D105: =D43*$B$103/100*1000 ->  | AA105: =-SUM(C105:Z105) -> 
A106: Resid PV net generation resale (winter) | C106: =C44*$B$104/100*1000 ->  | D106: =D44*$B$104/100*1000 ->  | AA106: =-SUM(C106:Z106) -> 
A107: Comm PV resale tariff (summer) | B107: =Summary!B124 ->  | C107: c/kWh
A108: Comm PV resale tariff (winter) | B108: =Summary!B125 ->  | C108: c/kWh
A109: Comm PV net generation resale (summer) | C109: =C50*$B$107/100*1000 ->  | D109: =D50*$B$107/100*1000 ->  | AA109: =-SUM(C109:Z109) -> 
A110: Comm PV net generation resale (winter) | C110: =C51*$B$108/100*1000 ->  | D110: =D51*$B$108/100*1000 ->  | AA110: =-SUM(C110:Z110) -> 
A111: Indus PV resale tariff (summer) | B111: =Summary!B129 ->  | C111: c/kWh
A112: Indus PV resale tariff (winter) | B112: =Summary!B130 ->  | C112: c/kWh
A113: Indus PV net generation resale(summer) | C113: =C56*$B$111/100*1000 ->  | D113: =D56*$B$111/100*1000 ->  | AA113: =-SUM(C113:Z113) -> 
A114: Indus PV net generation resale (winter) | C114: =C57*$B$112/100*1000 ->  | D114: =D57*$B$112/100*1000 ->  | AA114: =-SUM(C114:Z114) -> 
A115: Financial savings from reduced purchases | AA115: Daily save
A116: Saving - low demand (kWh related) | C116: =(C36-C34)*C83/100*1000/(1-Summary!$AC$113) ->  | D116: =(D36-D34)*D83/100*1000/(1-Summary!$AC$113) ->  | E116: =(E36-E34)*E83/100*1000/(1-Summary!$AC$113) ->  | F116: =(F36-F34)*F83/100*1000/(1-Summary!$AC$113) ->  | G116: =(G36-G34)*G83/100*1000/(1-Summary!$AC$113) ->  | H116: =(H36-H34)*H83/100*1000/(1-Summary!$AC$113) ->  | I116: =(I36-I34)*I83/100*1000/(1-Summary!$AC$113) ->  | J116: =(J36-J34)*J83/100*1000/(1-Summary!$AC$113) ->  | K116: =(K36-K34)*K83/100*1000/(1-Summary!$AC$113) ->  | L116: =(L36-L34)*L83/100*1000/(1-Summary!$AC$113) ->  | M116: =(M36-M34)*M83/100*1000/(1-Summary!$AC$113) ->  | N116: =(N36-N34)*N83/100*1000/(1-Summary!$AC$113) ->  | O116: =(O36-O34)*O83/100*1000/(1-Summary!$AC$113) ->  | P116: =(P36-P34)*P83/100*1000/(1-Summary!$AC$113) ->  | Q116: =(Q36-Q34)*Q83/100*1000/(1-Summary!$AC$113) ->  | R116: =(R36-R34)*R83/100*1000/(1-Summary!$AC$113) ->  | S116: =(S36-S34)*S83/100*1000/(1-Summary!$AC$113) ->  | T116: =(T36-T34)*T83/100*1000/(1-Summary!$AC$113) ->  | U116: =(U36-U34)*U83/100*1000/(1-Summary!$AC$113) ->  | V116: =(V36-V34)*V83/100*1000/(1-Summary!$AC$113) ->  | W116: =(W36-W34)*W83/100*1000/(1-Summary!$AC$113) ->  | X116: =(X36-X34)*X83/100*1000/(1-Summary!$AC$113) ->  | Y116: =(Y36-Y34)*Y83/100*1000/(1-Summary!$AC$113) ->  | Z116: =(Z36-Z34)*Z83/100*1000/(1-Summary!$AC$113) ->  | AA116: =SUM(C116:Z116) -> 
A117: Saving - hi demand (kWh related) | C117: =(C37-C35)*C84/100*1000/(1-Summary!$AC$113) ->  | D117: =(D37-D35)*D84/100*1000/(1-Summary!$AC$113) ->  | E117: =(E37-E35)*E84/100*1000/(1-Summary!$AC$113) ->  | F117: =(F37-F35)*F84/100*1000/(1-Summary!$AC$113) ->  | G117: =(G37-G35)*G84/100*1000/(1-Summary!$AC$113) ->  | H117: =(H37-H35)*H84/100*1000/(1-Summary!$AC$113) ->  | I117: =(I37-I35)*I84/100*1000/(1-Summary!$AC$113) ->  | J117: =(J37-J35)*J84/100*1000/(1-Summary!$AC$113) ->  | K117: =(K37-K35)*K84/100*1000/(1-Summary!$AC$113) ->  | L117: =(L37-L35)*L84/100*1000/(1-Summary!$AC$113) ->  | M117: =(M37-M35)*M84/100*1000/(1-Summary!$AC$113) ->  | N117: =(N37-N35)*N84/100*1000/(1-Summary!$AC$113) ->  | O117: =(O37-O35)*O84/100*1000/(1-Summary!$AC$113) ->  | P117: =(P37-P35)*P84/100*1000/(1-Summary!$AC$113) ->  | Q117: =(Q37-Q35)*Q84/100*1000/(1-Summary!$AC$113) ->  | R117: =(R37-R35)*R84/100*1000/(1-Summary!$AC$113) ->  | S117: =(S37-S35)*S84/100*1000/(1-Summary!$AC$113) ->  | T117: =(T37-T35)*T84/100*1000/(1-Summary!$AC$113) ->  | U117: =(U37-U35)*U84/100*1000/(1-Summary!$AC$113) ->  | V117: =(V37-V35)*V84/100*1000/(1-Summary!$AC$113) ->  | W117: =(W37-W35)*W84/100*1000/(1-Summary!$AC$113) ->  | X117: =(X37-X35)*X84/100*1000/(1-Summary!$AC$113) ->  | Y117: =(Y37-Y35)*Y84/100*1000/(1-Summary!$AC$113) ->  | Z117: =(Z37-Z35)*Z84/100*1000/(1-Summary!$AC$113) ->  | AA117: =SUM(C117:Z117) -> 
A118: Revenue reductions from reduced sales | AA118: Daily loss
A119: Resid PV c/kWh lost (winter) | B119: =Summary!B142 ->  | C119: c/kWh
A120: Resid PV c/kWh lost (summer) | B120: =Summary!B143 ->  | C120: c/kWh
A121: Resid PV daily charge | B121: =Summary!B144 ->  | C121: R/day | AC121: DO NOT REMOVE
A122: Resid PV revenue loss (summer) | C122: =(C45)*1000*$B$120/100*Input!$F$56 ->  | D122: =(D45)*1000*$B$120/100*Input!$F$56 ->  | E122: =(E45)*1000*$B$120/100*Input!$F$56 ->  | F122: =(F45)*1000*$B$120/100*Input!$F$56 ->  | G122: =(G45)*1000*$B$120/100*Input!$F$56 ->  | H122: =(H45)*1000*$B$120/100*Input!$F$56 ->  | I122: =(I45)*1000*$B$120/100*Input!$F$56 ->  | J122: =(J45)*1000*$B$120/100*Input!$F$56 ->  | K122: =(K45)*1000*$B$120/100*Input!$F$56 ->  | L122: =(L45)*1000*$B$120/100*Input!$F$56 ->  | M122: =(M45)*1000*$B$120/100*Input!$F$56 ->  | N122: =(N45)*1000*$B$120/100*Input!$F$56 ->  | O122: =(O45)*1000*$B$120/100*Input!$F$56 ->  | P122: =(P45)*1000*$B$120/100*Input!$F$56 ->  | Q122: =(Q45)*1000*$B$120/100*Input!$F$56 ->  | R122: =(R45)*1000*$B$120/100*Input!$F$56 ->  | S122: =(S45)*1000*$B$120/100*Input!$F$56 ->  | T122: =(T45)*1000*$B$120/100*Input!$F$56 ->  | U122: =(U45)*1000*$B$120/100*Input!$F$56 ->  | V122: =(V45)*1000*$B$120/100*Input!$F$56 ->  | W122: =(W45)*1000*$B$120/100*Input!$F$56 ->  | X122: =(X45)*1000*$B$120/100*Input!$F$56 ->  | Y122: =(Y45)*1000*$B$120/100*Input!$F$56 ->  | Z122: =(Z45)*1000*$B$120/100*Input!$F$56 ->  | AA122: =IF(Summary!AC57>0,'RE generation'!AN35,AC122) ->  | AC122: =SUM(C122:Z122) -> 
A123: Resid PV revenue loss (winter) | C123: =(C46)*1000*$B$119/100*Input!$F$56 ->  | D123: =(D46)*1000*$B$119/100*Input!$F$56 ->  | E123: =(E46)*1000*$B$119/100*Input!$F$56 ->  | F123: =(F46)*1000*$B$119/100*Input!$F$56 ->  | G123: =(G46)*1000*$B$119/100*Input!$F$56 ->  | H123: =(H46)*1000*$B$119/100*Input!$F$56 ->  | I123: =(I46)*1000*$B$119/100*Input!$F$56 ->  | J123: =(J46)*1000*$B$119/100*Input!$F$56 ->  | K123: =(K46)*1000*$B$119/100*Input!$F$56 ->  | L123: =(L46)*1000*$B$119/100*Input!$F$56 ->  | M123: =(M46)*1000*$B$119/100*Input!$F$56 ->  | N123: =(N46)*1000*$B$119/100*Input!$F$56 ->  | O123: =(O46)*1000*$B$119/100*Input!$F$56 ->  | P123: =(P46)*1000*$B$119/100*Input!$F$56 ->  | Q123: =(Q46)*1000*$B$119/100*Input!$F$56 ->  | R123: =(R46)*1000*$B$119/100*Input!$F$56 ->  | S123: =(S46)*1000*$B$119/100*Input!$F$56 ->  | T123: =(T46)*1000*$B$119/100*Input!$F$56 ->  | U123: =(U46)*1000*$B$119/100*Input!$F$56 ->  | V123: =(V46)*1000*$B$119/100*Input!$F$56 ->  | W123: =(W46)*1000*$B$119/100*Input!$F$56 ->  | X123: =(X46)*1000*$B$119/100*Input!$F$56 ->  | Y123: =(Y46)*1000*$B$119/100*Input!$F$56 ->  | Z123: =(Z46)*1000*$B$119/100*Input!$F$56 ->  | AA123: =IF(Summary!AC57>0,'RE generation'!AN36,AC123) ->  | AC123: =SUM(C123:Z123) -> 
A124: Comm PV c/kWh lost (winter) | B124: =Summary!B147 ->  | C124: c/kWh
A125: Comm PV c/kWh lost (summer) | B125: =Summary!B148 ->  | C125: c/kWh
A126: Comm PV daily charge | B126: =Summary!B149 -> 0 | C126: R/day
A127: Comm PV revenue loss (summer) | C127: =(C52)*1000*$B$125/100 ->  | D127: =(D52)*1000*$B$125/100 ->  | AA127: =SUM(C127:Z127) -> 
A128: Comm PV revenue loss (winter) | C128: =(C53)*1000*$B$124/100 ->  | D128: =(D53)*1000*$B$124/100 ->  | AA128: =SUM(C128:Z128) -> 
A130: Ind PV c/kWh lost (winter) | B130: =Summary!B152 ->  | C130: c/kWh
A131: Ind PV c/kWh lost (summer) | B131: =Summary!B153 ->  | C131: c/kWh
A132: Ind PV daily charge | B132: =Summary!B154 -> 0 | C132: R/day
A133: Ind KVA summer | B133: =Summary!B155 ->  | C133: R/KVA | F133: Max KVA reduction | I133: =Summary!G155 ->  | K133: KVA charge lost to city/day | O133: =Summary!L155 ->  | AA133: =O133 -> 
A134: Ind KVA winter | B134: =Summary!B156 ->  | C134: R/KVA | F134: Max KVA reduction | I134: =Summary!G156 ->  | K134: KVA charge lost to city/day | O134: =Summary!L156 ->  | AA134: =O134 -> 
A135: Ind PV revenue loss (summer) | C135: =C58*1000*$B$131/100 ->  | AA135: =SUM(C135:Z135) -> 
A136: Ind PV revenue loss (winter) | C136: =C59*1000*$B$130/100 ->  | AA136: =SUM(C136:Z136) -> 
A138: Landfill gas av generation cost | B138: =Summary!B160 -> 0 | C138: c.kWh
A139: (revenue loss thro greater expend) | C139: =C47*1000*$B$138/100*$B$47 -> 0 | D139: =D47*1000*$B$138/100*$B$47 -> 0 | E139: 0 | F139: 0 | G139: 0 | H139: 0 | I139: 0 | J139: 0 | K139: 0 | L139: 0 | M139: 0 | N139: 0 | O139: 0 | P139: 0 | Q139: 0 | R139: 0 | S139: 0 | T139: 0 | U139: 0 | V139: 0 | W139: 0 | X139: 0 | Y139: 0 | Z139: 0 | AA139: =SUM(C139:Z139) -> 0
A141: Revenue loss from EE
A142: Residential tariff (summer) | B142: =Summary!B164 ->  | C142: c/kWh
A143: Residential tariff (winter) | B143: =Summary!B165 ->  | C143: c/kWh
A144: Res revenue loss from EE (summer) | C144: =(C68+C70+C71+C72)*1000*$B$142/100 ->  | D144: =(D68+D70+D71+D72)*1000*$B$142/100 ->  | AA144: =SUM(C144:Z144) -> 
A145: Res revenue loss from EE(winter) | C145: =(C69+C70+C71+C72)*1000*$B$143/100 ->  | D145: =(D69+D70+D71+D72)*1000*$B$143/100 ->  | AA145: =SUM(C145:Z145) -> 
A147: Comm tariff (summer) | B147: =Summary!B170 ->  | C147: c/kWh
A148: Comm tariff (winter) | B148: =Summary!B169 ->  | C148: c/kWh
A149: Comm rev loss from EE (summer) | C149: =(C67*1000*$B$147/100) ->  | D149: =(D67*1000*$B$147/100) ->  | E149: =(E67*1000*$B$147/100) ->  | AA149: =SUM(C149:Z149) -> 
A150: Comm rev loss from EE (winter) | C150: =(C67*1000*$B$148/100) ->  | D150: =(D67*1000*$B$148/100) ->  | AA150: =SUM(C150:Z150) -> 
A152: LV (winter) | B152: =Summary!B174 ->  | C152: c/kWh
A153: LV (summer) | B153: =Summary!B175 ->  | C153: c/kWh
A154: LV KVA summer | B154: =Summary!B176 ->  | C154: R/KVA | E154: Max KVA reduction | I154: =MAX(C74:Z74)*1000 -> 0 | L154: KVA charge lost to city/day | P154: =B154/30*I154 ->  | AA154: =P154 -> 
A155: LV KVA winter | B155: =Summary!B177 ->  | C155: R/KVA | E155: Max KVA reduction | I155: =I154 -> 0 | L155: KVA charge lost to city/day | P155: =B155/30*I155 ->  | AA155: =P155 -> 
A156: LV Indust revenue loss from EE (summer) | C156: =(C74*1000*$B$153/100) ->  | D156: =(D74*1000*$B$153/100) ->  | AA156: =SUM(C156:Z156) -> 
A157: LV Indust revenue loss from EE (winter) | C157: =(C74*1000*$B$152/100) ->  | D157: =(D74*1000*$B$152/100) ->  | AA157: =SUM(C157:Z157) -> 
A159: MV (winter) | B159: =Summary!B181 ->  | C159: c/kWh
A160: MV (summer) | B160: =Summary!B182 ->  | C160: c/kWh
A161: MV KVA summer | B161: =Summary!B183 ->  | C161: R/KVA | E161: Max KVA reduction | I161: =MAX(C75:Z75)*1000 -> 0 | L161: KVA charge lost to city/day | P161: =B161/30*I161 ->  | AA161: =P161 -> 
A162: MV KVA winter | B162: =Summary!B184 ->  | C162: R/KVA | E162: Max KVA reduction | I162: =I161 -> 0 | L162: KVA charge lost to city/day | P162: =B162/30*I162 ->  | AA162: =P162 -> 
A163: MV Indust revenue loss from EE (summer) | C163: =(C$75*1000*$B$160/100) ->  | AA163: =SUM(C163:Z163) -> 
A164: MV Indust revenue loss from EE (winter) | C164: =(C$75*1000*$B$159/100) ->  | AA164: =SUM(C164:Z164) -> 
A166: MV TOU (winter) Peak | B166: =Summary!B188 ->  | C166: c/kWh
A167: MV TOU (summer) Peak | B167: =Summary!B189 ->  | C167: c/kWh
A168: MV TOU (winter) Std | B168: =Summary!B190 ->  | C168: c/kWh
A169: MV TOU (summer) Std | B169: =Summary!B191 ->  | C169: c/kWh
A170: MV TOU (winter) Off peak | B170: =Summary!B192 ->  | C170: c/kWh
A171: MV TOU (summer) Off peak | B171: =Summary!B193 ->  | C171: c/kWh
A172: MV KVA TOU summer | B172: =Summary!B194 ->  | C172: R/KVA | E172: Max KVA reduction | H172: =MAX(C76:Z76)*1000 -> 0 | M172: KVA charge lost to city/day | P172: =B172/30*H172 ->  | AA172: =P172 -> 
A173: MV KVA TOU winter | B173: =Summary!B195 ->  | C173: R/KVA | E173: Max KVA reduction | H173: =H172 -> 0 | M173: KVA charge lost to city/day | P173: =B173/30*H173 ->  | AA173: =P173 -> 
A174: MV TOU Indust revenue loss from EE (summer) | C174: =(C76*1000*$B$171/100) ->  | I174: =(I76*1000*$B$169/100) ->  | J174: =(J76*1000*$B$167/100) ->  | K174: =(K76*1000*$B$167/100) ->  | L174: =(L76*1000*$B$167/100) ->  | M174: =(M76*1000*$B$169/100) ->  | U174: =(U76*1000*$B$167/100) ->  | V174: =(V76*1000*$B$167/100) ->  | W174: =(W76*1000*$B$169/100) ->  | X174: =(X76*1000*$B$169/100) ->  | Y174: =(Y76*1000*$B$171/100) ->  | Z174: =(Z76*1000*$B$171/100) ->  | AA174: =SUM(C174:Z174) -> 
A175: MV TOU Indust revenue loss from EE (winter) | C175: =(C76*1000*$B$170/100) ->  | I175: =(I76*1000*$B$168/100) ->  | J175: =(J76*1000*$B$166/100) ->  | K175: =(K76*1000*$B$166/100) ->  | L175: =(L76*1000*$B$166/100) ->  | M175: =(M76*1000*$B$168/100) ->  | U175: =(U76*1000*$B$166/100) ->  | V175: =(V76*1000*$B$166/100) ->  | W175: =(W76*1000*$B$168/100) ->  | X175: =(X76*1000*$B$168/100) ->  | Y175: =(Y76*1000*$B$170/100) ->  | Z175: =(Z76*1000*$B$170/100) ->  | AA175: =SUM(C175:Z175) -> 
A177: HV TOU (winter) Peak | B177: =Summary!B199 ->  | C177: c/kWh
A178: HV TOU (summer) Peak | B178: =Summary!B200 ->  | C178: c/kWh
A179: HV TOU (winter) Std | B179: =Summary!B201 ->  | C179: c/kWh
A180: HV TOU (summer) Std | B180: =Summary!B202 ->  | C180: c/kWh
A181: HV TOU (winter) Off peak | B181: =Summary!B203 ->  | C181: c/kWh
A182: HV TOU (summer) Off peak | B182: =Summary!B204 ->  | C182: c/kWh
A183: HV KVA TOU summer | B183: =Summary!B205 ->  | C183: R/KVA | E183: Max KVA reduction | G183: =MAX(C77:Z77)*1000 -> 0 | I183: KVA charge lost to city/day | M183: =B183/30*G183 ->  | AA183: =M183 -> 
A184: HV KVA TOU winter | B184: =Summary!B206 ->  | C184: R/KVA | E184: Max KVA reduction | G184: =G183 -> 0 | I184: KVA charge lost to city/day | M184: =B184/30*G184 ->  | AA184: =M184 -> 
A185: HV TOU Indust revenue loss from EE (summer) | C185: =(C77*1000*$B$182/100) ->  | I185: =(I77*1000*$B$180/100) ->  | J185: =(J77*1000*$B$178/100) ->  | K185: =(K77*1000*$B$178/100) ->  | L185: =(L77*1000*$B$178/100) ->  | M185: =(M77*1000*$B$180/100) ->  | U185: =(U77*1000*$B$178/100) ->  | V185: =(V77*1000*$B$178/100) ->  | W185: =(W77*1000*$B$180/100) ->  | X185: =(X77*1000*$B$180/100) ->  | Y185: =(Y77*1000*$B$182/100) ->  | Z185: =(Z77*1000*$B$182/100) ->  | AA185: =SUM(C185:Z185) -> 
A186: HV TOU Indust revenue loss from EE (winter) | C186: =(C77*1000*$B$181/100) ->  | I186: =(I77*1000*$B$179/100) ->  | J186: =(J77*1000*$B$177/100) ->  | K186: =(K77*1000*$B$177/100) ->  | L186: =(L77*1000*$B$177/100) ->  | M186: =(M77*1000*$B$179/100) ->  | U186: =(U77*1000*$B$177/100) ->  | V186: =(V77*1000*$B$177/100) ->  | W186: =(W77*1000*$B$179/100) ->  | X186: =(X77*1000*$B$179/100) ->  | Y186: =(Y77*1000*$B$181/100) ->  | Z186: =(Z77*1000*$B$181/100) ->  | AA186: =SUM(C186:Z186) -> 
A188: TOTAL revenue loss (summer) | C188: =C89+C94+C99+C122+C127+C135+C139+C144+C149+C156+C163+C174+C185 ->  | AA188: =AA89+AA94+AA99+AA122+AA127+AA139+AA144+AA149+AA156+AA163+AA105+AA109+AA113+AA133+AA135+AA154+AA161+AA172+AA174+AA183+AA185 -> 
A189: TOTAL revenue loss (winter) | C189: =C90+C95+C100+C123+C128+C136+C139+C145+C150+C157+C164+C175+C186 ->  | AA189: =AA90+AA95+AA100+AA123+AA128+AA139+AA145+AA150+AA157+AA164+AA106+AA110+AA114+AA134+AA136+AA155+AA162+AA173+AA175+AA184+AA186 -> 
Z190: Savings (loss) from interventions - low demand (summer): | AA190: =AA116-AA188 -> 
Z192: Savings (loss) from interventions - hi demand (winter)*: | AA192: =AA117-AA189 -> 
Z193: * Megaflex hi demand only for 3 mths

Sheet Load profiles
A1: Load profiles (MW) | E1: Adjustment to full load factor | I1: =Input!B32 -> 0
A2: Weekday
A3: hr | B3: 0 | C3: 1 | D3: 2 | E3: 3 | F3: 4 | G3: 5 | H3: 6 | I3: 7 | J3: 8 | K3: 9 | L3: 10 | M3: 11 | N3: 12 | O3: 13 | P3: 14 | Q3: 15 | R3: 16 | S3: 17 | T3: 18 | U3: 19 | V3: 20 | W3: 21 | X3: 22 | Y3: 23
A4: Winter | B4: =AA4*$I$1 -> 0 | C4: =AB4*$I$1 -> 0 | D4: 0 | E4: 0 | F4: 0 | G4: 0 | H4: 0 | I4: 0 | J4: 0 | K4: 0 | L4: 0 | M4: 0 | N4: 0 | O4: 0 | P4: 0 | Q4: 0 | R4: 0 | S4: 0 | T4: 0 | U4: 0 | V4: 0 | W4: 0 | X4: 0 | Y4: 0 | AA4: =Input!B26 -> 1320 | AB4: =Input!C26 -> 1261 | AC4: =Input!D26 -> 1244 | AD4: =Input!E26 -> 1264 | AE4: =Input!F26 -> 1365 | AF4: =Input!G26 -> 1683 | AG4: =Input!H26 -> 2111 | AH4: =Input!I26 -> 2219 | AI4: =Input!J26 -> 2220 | AJ4: =Input!K26 -> 2212 | AK4: =Input!L26 -> 2319 | AL4: =Input!M26 -> 2228 | AM4: =Input!N26 -> 2108 | AN4: =Input!O26 -> 2023 | AO4: =Input!P26 -> 1981 | AP4: =Input!Q26 -> 1984 | AQ4: =Input!R26 -> 2031 | AR4: =Input!S26 -> 2212 | AS4: =Input!T26 -> 2371 | AT4: =Input!U26 -> 2318 | AU4: =Input!V26 -> 2340 | AV4: =Input!W26 -> 2058 | AW4: =Input!X26 -> 1712 | AX4: =Input!Y26 -> 1470
A5: Summer | B5: =AA5*$I$1 -> 0 | C5: =AB5*$I$1 -> 0 | D5: 0 | E5: 0 | F5: 0 | G5: 0 | H5: 0 | I5: 0 | J5: 0 | K5: 0 | L5: 0 | M5: 0 | N5: 0 | O5: 0 | P5: 0 | Q5: 0 | R5: 0 | S5: 0 | T5: 0 | U5: 0 | V5: 0 | W5: 0 | X5: 0 | Y5: 0 | AA5: =Input!B27 -> 1120 | AB5: =Input!C27 -> 1080 | AC5: =Input!D27 -> 1067 | AD5: =Input!E27 -> 1081 | AE5: =Input!F27 -> 1154 | AF5: =Input!G27 -> 1388 | AG5: =Input!H27 -> 1692 | AH5: =Input!I27 -> 1750 | AI5: =Input!J27 -> 1792 | AJ5: =Input!K27 -> 1804 | AK5: =Input!L27 -> 1910 | AL5: =Input!M27 -> 1841 | AM5: =Input!N27 -> 1774 | AN5: =Input!O27 -> 1739 | AO5: =Input!P27 -> 1723 | AP5: =Input!Q27 -> 1722 | AQ5: =Input!R27 -> 1729 | AR5: =Input!S27 -> 1750 | AS5: =Input!T27 -> 1821 | AT5: =Input!U27 -> 1869 | AU5: =Input!V27 -> 1853 | AV5: =Input!W27 -> 1619 | AW5: =Input!X27 -> 1384 | AX5: =Input!Y27 -> 1226
A24: Weekend average load profile (MW)
A25: hr | B25: 0 | C25: 1 | D25: 2 | E25: 3 | F25: 4 | G25: 5 | H25: 6 | I25: 7 | J25: 8 | K25: 9 | L25: 10 | M25: 11 | N25: 12 | O25: 13 | P25: 14 | Q25: 15 | R25: 16 | S25: 17 | T25: 18 | U25: 19 | V25: 20 | W25: 21 | X25: 22 | Y25: 23
A26: Winter | B26: =AA26*$I$1 -> 0 | C26: =AB26*$I$1 -> 0 | D26: 0 | E26: 0 | F26: 0 | G26: 0 | H26: 0 | I26: 0 | J26: 0 | K26: 0 | L26: 0 | M26: 0 | N26: 0 | O26: 0 | P26: 0 | Q26: 0 | R26: 0 | S26: 0 | T26: 0 | U26: 0 | V26: 0 | W26: 0 | X26: 0 | Y26: 0 | AA26: =Input!B29 -> 1315 | AB26: =Input!C29 -> 1244 | AC26: =Input!D29 -> 1212 | AD26: =Input!E29 -> 1210 | AE26: =Input!F29 -> 1242 | AF26: =Input!G29 -> 1305 | AG26: =Input!H29 -> 1431 | AH26: =Input!I29 -> 1706 | AI26: =Input!J29 -> 1977 | AJ26: =Input!K29 -> 2042 | AK26: =Input!L29 -> 2018 | AL26: =Input!M29 -> 1955 | AM26: =Input!N29 -> 1977 | AN26: =Input!O29 -> 1858 | AO26: =Input!P29 -> 1758 | AP26: =Input!Q29 -> 1721 | AQ26: =Input!R29 -> 1775 | AR26: =Input!S29 -> 1964 | AS26: =Input!T29 -> 2182 | AT26: =Input!U29 -> 2159 | AU26: =Input!V29 -> 2051 | AV26: =Input!W29 -> 1832 | AW26: =Input!X29 -> 1579 | AX26: =Input!Y29 -> 1382
A27: Summer | B27: =AA27*$I$1 -> 0 | C27: 0 | D27: 0 | E27: 0 | F27: 0 | G27: 0 | H27: 0 | I27: 0 | J27: 0 | K27: 0 | L27: 0 | M27: 0 | N27: 0 | O27: 0 | P27: 0 | Q27: 0 | R27: 0 | S27: 0 | T27: 0 | U27: 0 | V27: 0 | W27: 0 | X27: 0 | Y27: 0 | AA27: =Input!B30 -> 1107 | AB27: =Input!C30 -> 1060 | AC27: =Input!D30 -> 1039 | AD27: =Input!E30 -> 1038 | AE27: =Input!F30 -> 1059 | AF27: =Input!G30 -> 1100 | AG27: =Input!H30 -> 1224 | AH27: =Input!I30 -> 1448 | AI27: =Input!J30 -> 1627 | AJ27: =Input!K30 -> 1652 | AK27: =Input!L30 -> 1642 | AL27: =Input!M30 -> 1603 | AM27: =Input!N30 -> 1610 | AN27: =Input!O30 -> 1531 | AO27: =Input!P30 -> 1463 | AP27: =Input!Q30 -> 1436 | AQ27: =Input!R30 -> 1451 | AR27: =Input!S30 -> 1507 | AS27: =Input!T30 -> 1636 | AT27: =Input!U30 -> 1694 | AU27: =Input!V30 -> 1612 | AV27: =Input!W30 -> 1442 | AW27: =Input!X30 -> 1271 | AX27: =Input!Y30 -> 1139
A46: CITY LOAD PROFILES | N46: % consumption for hour for an average day in summer and winter, weekday/weekend.
D47: 1000 | O47: Residential
B48: CONSUMPTION PROFILES | O48: CONSUMPTION PROFILES
B49: Winter | D49: Summer | O49: Winter | Q49: Summer
B50: WD | C50: WE | D50: WD | E50: WE | O50: WWD | P50: WWE | Q50: SWD | R50: SWE
A51: 0 | B51: =O51*Summary!$AC$3/365 -> 0 | C51: =P51*Summary!$AC$3/365 -> 0 | D51: =Q51*Summary!$AC$3/365 -> 0 | E51: =R51*Summary!$AC$3/365 -> 0 | H51: No of days/year | N51: 0 | O51: 0.0237 | P51: 0.0285 | Q51: 0.0294 | R51: 0.0285
A52: 1 | B52: =O52*Summary!$AC$3/365 -> 0 | C52: =P52*Summary!$AC$3/365 -> 0 | D52: =Q52*Summary!$AC$3/365 -> 0 | E52: =R52*Summary!$AC$3/365 -> 0 | H52: wwe | I52: 26 | J52: swe | K52: 65 | N52: 1 | O52: 0.0197 | P52: 0.0244 | Q52: 0.0252 | R52: 0.0244
A53: 2 | B53: =O53*Summary!$AC$3/365 -> 0 | C53: =P53*Summary!$AC$3/365 -> 0 | D53: =Q53*Summary!$AC$3/365 -> 0 | E53: =R53*Summary!$AC$3/365 -> 0 | H53: wwd | I53: 78 | J53: swd | K53: 195 | N53: 2 | O53: 0.0197 | P53: 0.0204 | Q53: 0.0252 | R53: 0.0204
A54: 3 | B54: =O54*Summary!$AC$3/365 -> 0 | C54: =P54*Summary!$AC$3/365 -> 0 | D54: =Q54*Summary!$AC$3/365 -> 0 | E54: =R54*Summary!$AC$3/365 -> 0 | N54: 3 | O54: 0.0197 | P54: 0.0204 | Q54: 0.0252 | R54: 0.0204
A55: 4 | B55: =O55*Summary!$AC$3/365 -> 0 | C55: =P55*Summary!$AC$3/365 -> 0 | D55: =Q55*Summary!$AC$3/365 -> 0 | E55: =R55*Summary!$AC$3/365 -> 0 | N55: 4 | O55: 0.0217 | P55: 0.0204 | Q55: 0.0263 | R55: 0.0204
A56: 5 | B56: =O56*Summary!$AC$3/365 -> 0 | C56: =P56*Summary!$AC$3/365 -> 0 | D56: =Q56*Summary!$AC$3/365 -> 0 | E56: =R56*Summary!$AC$3/365 -> 0 | N56: 5 | O56: 0.0316 | P56: 0.0261 | Q56: 0.0336 | R56: 0.0261
A57: 6 | B57: =O57*Summary!$AC$3/365 -> 0 | C57: =P57*Summary!$AC$3/365 -> 0 | D57: =Q57*Summary!$AC$3/365 -> 0 | E57: =R57*Summary!$AC$3/365 -> 0 | N57: 6 | O57: 0.0513 | P57: 0.04 | Q57: 0.0547 | R57: 0.04
A58: 7 | B58: =O58*Summary!$AC$3/365 -> 0 | C58: =P58*Summary!$AC$3/365 -> 0 | D58: =Q58*Summary!$AC$3/365 -> 0 | E58: =R58*Summary!$AC$3/365 -> 0 | G58: annum | H58: =B75*$I$53+C75*$I$52+D75*$K$53+E75*$K$52 -> 0 | N58: 7 | O58: 0.0473 | P58: 0.0431 | Q58: 0.0473 | R58: 0.0431
A59: 8 | B59: =O59*Summary!$AC$3/365 -> 0 | C59: =P59*Summary!$AC$3/365 -> 0 | D59: =Q59*Summary!$AC$3/365 -> 0 | E59: =R59*Summary!$AC$3/365 -> 0 | G59: =B75/$H58 ->  | H59: =C75/$H58 ->  | I59: =D75/$H58 ->  | J59: =E75/$H58 ->  | N59: 8 | O59: 0.0454 | P59: 0.0433 | Q59: 0.0421 | R59: 0.0433
A60: 9 | B60: =O60*Summary!$AC$3/365 -> 0 | C60: =P60*Summary!$AC$3/365 -> 0 | D60: =Q60*Summary!$AC$3/365 -> 0 | E60: =R60*Summary!$AC$3/365 -> 0 | G60: wwd | H60: wwe | I60: swd | J60: swe | N60: 9 | O60: 0.0493 | P60: 0.045 | Q60: 0.0473 | R60: 0.045
A61: 10 | B61: =O61*Summary!$AC$3/365 -> 0 | C61: =P61*Summary!$AC$3/365 -> 0 | D61: =Q61*Summary!$AC$3/365 -> 0 | E61: =R61*Summary!$AC$3/365 -> 0 | G61: winter | I61: summer | N61: 10 | O61: 0.0473 | P61: 0.0453 | Q61: 0.0421 | R61: 0.0453
A62: 11 | B62: =O62*Summary!$AC$3/365 -> 0 | C62: =P62*Summary!$AC$3/365 -> 0 | D62: =Q62*Summary!$AC$3/365 -> 0 | E62: =R62*Summary!$AC$3/365 -> 0 | N62: 11 | O62: 0.0434 | P62: 0.048 | Q62: 0.0368 | R62: 0.048
A63: 12 | B63: =O63*Summary!$AC$3/365 -> 0 | C63: =P63*Summary!$AC$3/365 -> 0 | D63: =Q63*Summary!$AC$3/365 -> 0 | E63: =R63*Summary!$AC$3/365 -> 0 | N63: 12 | O63: 0.0394 | P63: 0.0487 | Q63: 0.0336 | R63: 0.0487
A64: 13 | B64: =O64*Summary!$AC$3/365 -> 0 | C64: =P64*Summary!$AC$3/365 -> 0 | D64: =Q64*Summary!$AC$3/365 -> 0 | E64: =R64*Summary!$AC$3/365 -> 0 | N64: 13 | O64: 0.0355 | P64: 0.0475 | Q64: 0.0326 | R64: 0.0475
A65: 14 | B65: =O65*Summary!$AC$3/365 -> 0 | C65: =P65*Summary!$AC$3/365 -> 0 | D65: =Q65*Summary!$AC$3/365 -> 0 | E65: =R65*Summary!$AC$3/365 -> 0 | N65: 14 | O65: 0.0355 | P65: 0.0456 | Q65: 0.0326 | R65: 0.0456
A66: 15 | B66: =O66*Summary!$AC$3/365 -> 0 | C66: =P66*Summary!$AC$3/365 -> 0 | D66: =Q66*Summary!$AC$3/365 -> 0 | E66: =R66*Summary!$AC$3/365 -> 0 | N66: 15 | O66: 0.0355 | P66: 0.0457 | Q66: 0.0326 | R66: 0.0457
A67: 16 | B67: =O67*Summary!$AC$3/365 -> 0 | C67: =P67*Summary!$AC$3/365 -> 0 | D67: =Q67*Summary!$AC$3/365 -> 0 | E67: =R67*Summary!$AC$3/365 -> 0 | N67: 16 | O67: 0.0394 | P67: 0.048 | Q67: 0.0421 | R67: 0.048
A68: 17 | B68: =O68*Summary!$AC$3/365 -> 0 | C68: =P68*Summary!$AC$3/365 -> 0 | D68: =Q68*Summary!$AC$3/365 -> 0 | E68: =R68*Summary!$AC$3/365 -> 0 | N68: 17 | O68: 0.0631 | P68: 0.0489 | Q68: 0.0547 | R68: 0.0489
A69: 18 | B69: =O69*Summary!$AC$3/365 -> 0 | C69: =P69*Summary!$AC$3/365 -> 0 | D69: =Q69*Summary!$AC$3/365 -> 0 | E69: =R69*Summary!$AC$3/365 -> 0 | N69: 18 | O69: 0.0552 | P69: 0.05 | Q69: 0.0526 | R69: 0.05
A70: 19 | B70: =O70*Summary!$AC$3/365 -> 0 | C70: =P70*Summary!$AC$3/365 -> 0 | D70: =Q70*Summary!$AC$3/365 -> 0 | E70: =R70*Summary!$AC$3/365 -> 0 | N70: 19 | O70: 0.0631 | P70: 0.06 | Q70: 0.0631 | R70: 0.06
A71: 20 | B71: =O71*Summary!$AC$3/365 -> 0 | C71: =P71*Summary!$AC$3/365 -> 0 | D71: =Q71*Summary!$AC$3/365 -> 0 | E71: =R71*Summary!$AC$3/365 -> 0 | N71: 20 | O71: 0.071 | P71: 0.06 | Q71: 0.0683 | R71: 0.06
A72: 21 | B72: =O72*Summary!$AC$3/365 -> 0 | C72: =P72*Summary!$AC$3/365 -> 0 | D72: =Q72*Summary!$AC$3/365 -> 0 | E72: =R72*Summary!$AC$3/365 -> 0 | N72: 21 | O72: 0.0631 | P72: 0.057 | Q72: 0.0631 | R72: 0.057
A73: 22 | B73: =O73*Summary!$AC$3/365 -> 0 | C73: =P73*Summary!$AC$3/365 -> 0 | D73: =Q73*Summary!$AC$3/365 -> 0 | E73: =R73*Summary!$AC$3/365 -> 0 | N73: 22 | O73: 0.0473 | P73: 0.047 | Q73: 0.0526 | R73: 0.047
A74: 23 | B74: =O74*Summary!$AC$3/365 -> 0 | C74: =P74*Summary!$AC$3/365 -> 0 | D74: =Q74*Summary!$AC$3/365 -> 0 | E74: =R74*Summary!$AC$3/365 -> 0 | N74: 23 | O74: 0.0316 | P74: 0.035 | Q74: 0.0368 | R74: 0.035
A75: Total | B75: =SUM(B51:B74) -> 0 | C75: =SUM(C51:C74) -> 0 | D75: =SUM(D51:D74) -> 0 | E75: =SUM(E51:E74) -> 0 | O75: =SUM(O51:O74) -> 0.9998 | P75: =SUM(P51:P74) -> 0.9983 | Q75: =SUM(Q51:Q74) -> 0.9999 | R75: =SUM(R51:R74) -> 0.9983
O84: Industrial
B85: CONSUMPTION PROFILES | O85: CONSUMPTION PROFILES
B86: Winter | D86: Summer | O86: Winter | Q86: Summer
B87: WD | C87: WE | D87: WD | E87: WE | O87: WWD | P87: WWE | Q87: SWD | R87: SWE
A88: 0 | B88: =O88*Summary!$AC$5/365 -> 0 | C88: =P88*Summary!$AC$5/365 -> 0 | D88: =Q88*Summary!$AC$5/365 -> 0 | E88: =R88*Summary!$AC$5/365 -> 0 | N88: 0 | O88: 0.0407 | P88: 0.02101139601 | Q88: 0.0341 | R88: 0.01441139601
A89: 1 | B89: =O89*Summary!$AC$5/365 -> 0 | C89: =P89*Summary!$AC$5/365 -> 0 | D89: =Q89*Summary!$AC$5/365 -> 0 | E89: =R89*Summary!$AC$5/365 -> 0 | N89: 1 | O89: 0.0427 | P89: 0.02172364672 | Q89: 0.0338 | R89: 0.01282364672
A90: 2 | B90: =O90*Summary!$AC$5/365 -> 0 | C90: =P90*Summary!$AC$5/365 -> 0 | D90: =Q90*Summary!$AC$5/365 -> 0 | E90: =R90*Summary!$AC$5/365 -> 0 | N90: 2 | O90: 0.0379 | P90: 0.02065527066 | Q90: 0.0294 | R90: 0.01215527066
A91: 3 | B91: =O91*Summary!$AC$5/365 -> 0 | C91: =P91*Summary!$AC$5/365 -> 0 | D91: =Q91*Summary!$AC$5/365 -> 0 | E91: =R91*Summary!$AC$5/365 -> 0 | N91: 3 | O91: 0.042 | P91: 0.02101139601 | Q91: 0.0329 | R91: 0.01191139601
A92: 4 | B92: =O92*Summary!$AC$5/365 -> 0 | C92: =P92*Summary!$AC$5/365 -> 0 | D92: =Q92*Summary!$AC$5/365 -> 0 | E92: =R92*Summary!$AC$5/365 -> 0 | N92: 4 | O92: 0.04 | P92: 0.02136752137 | Q92: 0.0319 | R92: 0.01326752137
A93: 5 | B93: =O93*Summary!$AC$5/365 -> 0 | C93: =P93*Summary!$AC$5/365 -> 0 | D93: =Q93*Summary!$AC$5/365 -> 0 | E93: =R93*Summary!$AC$5/365 -> 0 | N93: 5 | O93: 0.032 | P93: 0.02172364672 | Q93: 0.0255 | R93: 0.01522364672
A94: 6 | B94: =O94*Summary!$AC$5/365 -> 0 | C94: =P94*Summary!$AC$5/365 -> 0 | D94: =Q94*Summary!$AC$5/365 -> 0 | E94: =R94*Summary!$AC$5/365 -> 0 | N94: 6 | O94: 0.0315 | P94: 0.03418803419 | Q94: 0.0289 | R94: 0.03158803419
A95: 7 | B95: =O95*Summary!$AC$5/365 -> 0 | C95: =P95*Summary!$AC$5/365 -> 0 | D95: =Q95*Summary!$AC$5/365 -> 0 | E95: =R95*Summary!$AC$5/365 -> 0 | G95: annum | H95: =B112*$I$53+C112*$I$52+D112*$K$53+E112*$K$52 -> 0 | N95: 7 | O95: 0.0424 | P95: 0.04736467236 | Q95: 0.0412 | R95: 0.04616467236
A96: 8 | B96: =O96*Summary!$AC$5/365 -> 0 | C96: =P96*Summary!$AC$5/365 -> 0 | D96: =Q96*Summary!$AC$5/365 -> 0 | E96: =R96*Summary!$AC$5/365 -> 0 | G96: =B112/$H95 ->  | H96: =C112/$H95 ->  | I96: =D112/$H95 ->  | J96: =E112/$H95 ->  | N96: 8 | O96: 0.0526 | P96: 0.0584045584 | Q96: 0.0533 | R96: 0.0591045584
A97: 9 | B97: =O97*Summary!$AC$5/365 -> 0 | C97: =P97*Summary!$AC$5/365 -> 0 | D97: =Q97*Summary!$AC$5/365 -> 0 | E97: =R97*Summary!$AC$5/365 -> 0 | G97: wwd | H97: wwe | I97: swd | J97: swe | N97: 9 | O97: 0.0534 | P97: 0.05947293447 | Q97: 0.0548 | R97: 0.06087293447
A98: 10 | B98: =O98*Summary!$AC$5/365 -> 0 | C98: =P98*Summary!$AC$5/365 -> 0 | D98: =Q98*Summary!$AC$5/365 -> 0 | E98: =R98*Summary!$AC$5/365 -> 0 | G98: winter | I98: summer | N98: 10 | O98: 0.0492 | P98: 0.05555555556 | Q98: 0.0503 | R98: 0.05665555556
A99: 11 | B99: =O99*Summary!$AC$5/365 -> 0 | C99: =P99*Summary!$AC$5/365 -> 0 | D99: =Q99*Summary!$AC$5/365 -> 0 | E99: =R99*Summary!$AC$5/365 -> 0 | N99: 11 | O99: 0.0538 | P99: 0.05876068376 | Q99: 0.0564 | R99: 0.06136068376
A100: 12 | B100: =O100*Summary!$AC$5/365 -> 0 | C100: =P100*Summary!$AC$5/365 -> 0 | D100: =Q100*Summary!$AC$5/365 -> 0 | E100: =R100*Summary!$AC$5/365 -> 0 | N100: 12 | O100: 0.0538 | P100: 0.05769230769 | Q100: 0.0568 | R100: 0.06069230769
A101: 13 | B101: =O101*Summary!$AC$5/365 -> 0 | C101: =P101*Summary!$AC$5/365 -> 0 | D101: =Q101*Summary!$AC$5/365 -> 0 | E101: =R101*Summary!$AC$5/365 -> 0 | N101: 13 | O101: 0.0466 | P101: 0.05128205128 | Q101: 0.0495 | R101: 0.05418205128
A102: 14 | B102: =O102*Summary!$AC$5/365 -> 0 | C102: =P102*Summary!$AC$5/365 -> 0 | D102: =Q102*Summary!$AC$5/365 -> 0 | E102: =R102*Summary!$AC$5/365 -> 0 | N102: 14 | O102: 0.0516 | P102: 0.05555555556 | Q102: 0.0568 | R102: 0.06075555556
A103: 15 | B103: =O103*Summary!$AC$5/365 -> 0 | C103: =P103*Summary!$AC$5/365 -> 0 | D103: =Q103*Summary!$AC$5/365 -> 0 | E103: =R103*Summary!$AC$5/365 -> 0 | N103: 15 | O103: 0.0497 | P103: 0.05448717949 | Q103: 0.0553 | R103: 0.06008717949
A104: 16 | B104: =O104*Summary!$AC$5/365 -> 0 | C104: =P104*Summary!$AC$5/365 -> 0 | D104: =Q104*Summary!$AC$5/365 -> 0 | E104: =R104*Summary!$AC$5/365 -> 0 | N104: 16 | O104: 0.0392 | P104: 0.04700854701 | Q104: 0.0442 | R104: 0.05200854701
A105: 17 | B105: =O105*Summary!$AC$5/365 -> 0 | C105: =P105*Summary!$AC$5/365 -> 0 | D105: =Q105*Summary!$AC$5/365 -> 0 | E105: =R105*Summary!$AC$5/365 -> 0 | N105: 17 | O105: 0.0347 | P105: 0.04237891738 | Q105: 0.0375 | R105: 0.04517891738
A106: 18 | B106: =O106*Summary!$AC$5/365 -> 0 | C106: =P106*Summary!$AC$5/365 -> 0 | D106: =Q106*Summary!$AC$5/365 -> 0 | E106: =R106*Summary!$AC$5/365 -> 0 | N106: 18 | O106: 0.0296 | P106: 0.03525641026 | Q106: 0.0305 | R106: 0.03615641026
A107: 19 | B107: =O107*Summary!$AC$5/365 -> 0 | C107: =P107*Summary!$AC$5/365 -> 0 | D107: =Q107*Summary!$AC$5/365 -> 0 | E107: =R107*Summary!$AC$5/365 -> 0 | N107: 19 | O107: 0.0319 | P107: 0.03917378917 | Q107: 0.0344 | R107: 0.04167378917
A108: 20 | B108: =O108*Summary!$AC$5/365 -> 0 | C108: =P108*Summary!$AC$5/365 -> 0 | D108: =Q108*Summary!$AC$5/365 -> 0 | E108: =R108*Summary!$AC$5/365 -> 0 | N108: 20 | O108: 0.0354 | P108: 0.04415954416 | Q108: 0.0401 | R108: 0.04885954416
A109: 21 | B109: =O109*Summary!$AC$5/365 -> 0 | C109: =P109*Summary!$AC$5/365 -> 0 | D109: =Q109*Summary!$AC$5/365 -> 0 | E109: =R109*Summary!$AC$5/365 -> 0 | N109: 21 | O109: 0.0369 | P109: 0.04487179487 | Q109: 0.0423 | R109: 0.05027179487
A110: 22 | B110: =O110*Summary!$AC$5/365 -> 0 | C110: =P110*Summary!$AC$5/365 -> 0 | D110: =Q110*Summary!$AC$5/365 -> 0 | E110: =R110*Summary!$AC$5/365 -> 0 | N110: 22 | O110: 0.0373 | P110: 0.04522792023 | Q110: 0.0423 | R110: 0.05022792023
A111: 23 | B111: =O111*Summary!$AC$5/365 -> 0 | C111: =P111*Summary!$AC$5/365 -> 0 | D111: =Q111*Summary!$AC$5/365 -> 0 | E111: =R111*Summary!$AC$5/365 -> 0 | N111: 23 | O111: 0.0347 | P111: 0.04166666667 | Q111: 0.0378 | R111: 0.04476666667
A112: Total | B112: =SUM(B88:B111) -> 0 | C112: =SUM(C88:C111) -> 0 | D112: =SUM(D88:D111) -> 0 | E112: =SUM(E88:E111) -> 0 | O112: =SUM(O88:O111) -> 0.9996 | P112: =SUM(P88:P111) -> 1 | Q112: =SUM(Q88:Q111) -> 1 | R112: =SUM(R88:R111) -> 1.0004
O122: Commercial
B123: CONSUMPTION PROFILES | O123: CONSUMPTION PROFILES
B124: Winter | D124: Summer | O124: Winter | Q124: Summer
B125: WD | C125: WE | D125: WD | E125: WE | O125: WWD | P125: WWE | Q125: SWD | R125: SWE
A126: 0 | B126: =O126*Summary!$AC$4/365 -> 0 | C126: =P126*Summary!$AC$4/365 -> 0 | D126: =Q126*Summary!$AC$4/365 -> 0 | E126: =R126*Summary!$AC$4/365 -> 0 | N126: 0 | O126: 0.02873563218 | P126: 0.04020903472 | Q126: 0.03233563218 | R126: 0.04020903472
A127: 1 | B127: =O127*Summary!$AC$4/365 -> 0 | C127: =P127*Summary!$AC$4/365 -> 0 | D127: =Q127*Summary!$AC$4/365 -> 0 | E127: =R127*Summary!$AC$4/365 -> 0 | N127: 1 | O127: 0.02873563218 | P127: 0.0403999799 | Q127: 0.03443563218 | R127: 0.0403999799
A128: 2 | B128: =O128*Summary!$AC$4/365 -> 0 | C128: =P128*Summary!$AC$4/365 -> 0 | D128: =Q128*Summary!$AC$4/365 -> 0 | E128: =R128*Summary!$AC$4/365 -> 0 | N128: 2 | O128: 0.02873563218 | P128: 0.04044017889 | Q128: 0.03393563218 | R128: 0.04044017889
A129: 3 | B129: =O129*Summary!$AC$4/365 -> 0 | C129: =P129*Summary!$AC$4/365 -> 0 | D129: =Q129*Summary!$AC$4/365 -> 0 | E129: =R129*Summary!$AC$4/365 -> 0 | N129: 3 | O129: 0.02873563218 | P129: 0.0403999799 | Q129: 0.03213563218 | R129: 0.0403999799
A130: 4 | B130: =O130*Summary!$AC$4/365 -> 0 | C130: =P130*Summary!$AC$4/365 -> 0 | D130: =Q130*Summary!$AC$4/365 -> 0 | E130: =R130*Summary!$AC$4/365 -> 0 | N130: 4 | O130: 0.02873563218 | P130: 0.04050047736 | Q130: 0.03213563218 | R130: 0.04050047736
A131: 5 | B131: =O131*Summary!$AC$4/365 -> 0 | C131: =P131*Summary!$AC$4/365 -> 0 | D131: =Q131*Summary!$AC$4/365 -> 0 | E131: =R131*Summary!$AC$4/365 -> 0 | N131: 5 | O131: 0.03017241379 | P131: 0.04220893422 | Q131: 0.03677241379 | R131: 0.04220893422
A132: 6 | B132: =O132*Summary!$AC$4/365 -> 0 | C132: =P132*Summary!$AC$4/365 -> 0 | D132: =Q132*Summary!$AC$4/365 -> 0 | E132: =R132*Summary!$AC$4/365 -> 0 | N132: 6 | O132: 0.03448275862 | P132: 0.04261092407 | Q132: 0.04118275862 | R132: 0.04261092407
A133: 7 | B133: =O133*Summary!$AC$4/365 -> 0 | C133: =P133*Summary!$AC$4/365 -> 0 | D133: =Q133*Summary!$AC$4/365 -> 0 | E133: =R133*Summary!$AC$4/365 -> 0 | G133: annum | H133: =B150*$I$53+C150*$I$52+D150*$K$53+E150*$K$52 -> 0 | N133: 7 | O133: 0.04885057471 | P133: 0.042811919 | Q133: 0.05205057471 | R133: 0.042811919
A134: 8 | B134: =O134*Summary!$AC$4/365 -> 0 | C134: =P134*Summary!$AC$4/365 -> 0 | D134: =Q134*Summary!$AC$4/365 -> 0 | E134: =R134*Summary!$AC$4/365 -> 0 | G134: =B150/$H133 ->  | H134: =C150/$H133 ->  | I134: =D150/$H133 ->  | J134: =E150/$H133 ->  | N134: 8 | O134: 0.05387931034 | P134: 0.04301291392 | Q134: 0.04807931034 | R134: 0.04301291392
A135: 9 | B135: =O135*Summary!$AC$4/365 -> 0 | C135: =P135*Summary!$AC$4/365 -> 0 | D135: =Q135*Summary!$AC$4/365 -> 0 | E135: =R135*Summary!$AC$4/365 -> 0 | G135: wwd | H135: wwe | I135: swd | J135: swe | N135: 9 | O135: 0.05603448276 | P135: 0.04321390885 | Q135: 0.05373448276 | R135: 0.04321390885
A136: 10 | B136: =O136*Summary!$AC$4/365 -> 0 | C136: =P136*Summary!$AC$4/365 -> 0 | D136: =Q136*Summary!$AC$4/365 -> 0 | E136: =R136*Summary!$AC$4/365 -> 0 | G136: winter | I136: summer | N136: 10 | O136: 0.05675287356 | P136: 0.04301291392 | Q136: 0.05185287356 | R136: 0.04301291392
A137: 11 | B137: =O137*Summary!$AC$4/365 -> 0 | C137: =P137*Summary!$AC$4/365 -> 0 | D137: =Q137*Summary!$AC$4/365 -> 0 | E137: =R137*Summary!$AC$4/365 -> 0 | N137: 11 | O137: 0.05603448276 | P137: 0.04331440631 | Q137: 0.05013448276 | R137: 0.04331440631
A138: 12 | B138: =O138*Summary!$AC$4/365 -> 0 | C138: =P138*Summary!$AC$4/365 -> 0 | D138: =Q138*Summary!$AC$4/365 -> 0 | E138: =R138*Summary!$AC$4/365 -> 0 | N138: 12 | O138: 0.05459770115 | P138: 0.04301291392 | Q138: 0.05409770115 | R138: 0.04301291392
A139: 13 | B139: =O139*Summary!$AC$4/365 -> 0 | C139: =P139*Summary!$AC$4/365 -> 0 | D139: =Q139*Summary!$AC$4/365 -> 0 | E139: =R139*Summary!$AC$4/365 -> 0 | N139: 13 | O139: 0.05387931034 | P139: 0.042811919 | Q139: 0.05297931034 | R139: 0.042811919
A140: 14 | B140: =O140*Summary!$AC$4/365 -> 0 | C140: =P140*Summary!$AC$4/365 -> 0 | D140: =Q140*Summary!$AC$4/365 -> 0 | E140: =R140*Summary!$AC$4/365 -> 0 | N140: 14 | O140: 0.05316091954 | P140: 0.04261092407 | Q140: 0.05356091954 | R140: 0.04261092407
A141: 15 | B141: =O141*Summary!$AC$4/365 -> 0 | C141: =P141*Summary!$AC$4/365 -> 0 | D141: =Q141*Summary!$AC$4/365 -> 0 | E141: =R141*Summary!$AC$4/365 -> 0 | N141: 15 | O141: 0.05316091954 | P141: 0.042811919 | Q141: 0.05356091954 | R141: 0.042811919
A142: 16 | B142: =O142*Summary!$AC$4/365 -> 0 | C142: =P142*Summary!$AC$4/365 -> 0 | D142: =Q142*Summary!$AC$4/365 -> 0 | E142: =R142*Summary!$AC$4/365 -> 0 | N142: 16 | O142: 0.05244252874 | P142: 0.04220893422 | Q142: 0.05464252874 | R142: 0.04220893422
A143: 17 | B143: =O143*Summary!$AC$4/365 -> 0 | C143: =P143*Summary!$AC$4/365 -> 0 | D143: =Q143*Summary!$AC$4/365 -> 0 | E143: =R143*Summary!$AC$4/365 -> 0 | N143: 17 | O143: 0.04956896552 | P143: 0.04220893422 | Q143: 0.05906896552 | R143: 0.04220893422
A144: 18 | B144: =O144*Summary!$AC$4/365 -> 0 | C144: =P144*Summary!$AC$4/365 -> 0 | D144: =Q144*Summary!$AC$4/365 -> 0 | E144: =R144*Summary!$AC$4/365 -> 0 | N144: 18 | O144: 0.0466954023 | P144: 0.04050047736 | Q144: 0.0364954023 | R144: 0.04050047736
A145: 19 | B145: =O145*Summary!$AC$4/365 -> 0 | C145: =P145*Summary!$AC$4/365 -> 0 | D145: =Q145*Summary!$AC$4/365 -> 0 | E145: =R145*Summary!$AC$4/365 -> 0 | N145: 19 | O145: 0.03879310345 | P145: 0.0403999799 | Q145: 0.04029310345 | R145: 0.0403999799
A146: 20 | B146: =O146*Summary!$AC$4/365 -> 0 | C146: =P146*Summary!$AC$4/365 -> 0 | D146: =Q146*Summary!$AC$4/365 -> 0 | E146: =R146*Summary!$AC$4/365 -> 0 | N146: 20 | O146: 0.03017241379 | P146: 0.04044017889 | Q146: 0.03167241379 | R146: 0.04044017889
A147: 21 | B147: =O147*Summary!$AC$4/365 -> 0 | C147: =P147*Summary!$AC$4/365 -> 0 | D147: =Q147*Summary!$AC$4/365 -> 0 | E147: =R147*Summary!$AC$4/365 -> 0 | N147: 21 | O147: 0.03017241379 | P147: 0.04046027838 | Q147: 0.02087241379 | R147: 0.04046027838
A148: 22 | B148: =O148*Summary!$AC$4/365 -> 0 | C148: =P148*Summary!$AC$4/365 -> 0 | D148: =Q148*Summary!$AC$4/365 -> 0 | E148: =R148*Summary!$AC$4/365 -> 0 | N148: 22 | O148: 0.02873563218 | P148: 0.04019898498 | Q148: 0.02023563218 | R148: 0.04019898498
A149: 23 | B149: =O149*Summary!$AC$4/365 -> 0 | C149: =P149*Summary!$AC$4/365 -> 0 | D149: =Q149*Summary!$AC$4/365 -> 0 | E149: =R149*Summary!$AC$4/365 -> 0 | N149: 23 | O149: 0.02873563218 | P149: 0.04019898498 | Q149: 0.02373563218 | R149: 0.04019898498
A150: Total | B150: =SUM(B126:B149) -> 0 | C150: =SUM(C126:C149) -> 0 | D150: =SUM(D126:D149) -> 0 | E150: =SUM(E126:E149) -> 0 | O150: =SUM(O126:O149) -> 1 | P150: =SUM(P126:P149) -> 1 | Q150: =SUM(Q126:Q149) -> 1 | R150: =SUM(R126:R149) -> 1

Sheet Net metering
F1: Resid customers >600kwh/month
F2: Average monthly consumption: | H2: kwh | I2: =Summary!AC3/12/Projections!F11*Summary!AC8 -> 
F3: Size of PV panel pk DC kW | H3: kwh | I3: =Summary!AC8*Summary!AC9 -> 2
F4: Ave daily DC output per kWh pk DC pv panel kWh | I4: ='RE generation'!X11 -> 5.109251413
F5: Yearly DC output per kWh pk DC pv panel kWh | I5: =I4*365 -> 1864.876766
F6: Inverter efficiency : | I6: =1-'RE generation'!B8 -> 0.82
F7: Summer- 1 day's consumption as % of yearly (weekday) | I7: ='Load profiles'!I59*100 -> 
F8: Winter- 1 day's consumption as % of yearly (weekday) | I8: ='Load profiles'!G59*100 -> 
F9: Summer -1 day's consumption as % of yearly (weekend) | I9: ='Load profiles'!J59*100 -> 
F10: Winter- 1 day's consumption as % of yearly (weekend) | I10: ='Load profiles'!H59*100 -> 
F11: Summer -1 day's generation as % of yearly | I11: ='RE generation'!AB7*100 -> 0.2740016358
F12: Winter -1 day's generation as % of yearly | I12: ='RE generation'!AB8*100 -> 0.2738855035
C29: Low Demand | E29: total c/kWh
C30: Eskom tariff off-peak | E30: =Projections!I44 -> 0
C31: Eskom tariff-standard | E31: =Projections!I45 -> 0
C32: Eskom tariff- peak | E32: =Projections!I46 -> 0
C34: High Demand | E34: total c/kWh
C35: Eskom tariff off-peak | E35: =Projections!J44 -> 0
C36: Eskom tariff-standard | E36: =Projections!J45 -> 0
C37: Eskom tariff- peak | E37: =Projections!J46 -> 0
F39: Summer weekday | Y39: Summer weekend
A41: Hour | C41: % generation | F41: % consumption | G41: Total Generation (load shifters & non-load shifters (kWh's) | H41: Load shifters- Total Generation kWh's | I41: Non Load shifters- Generation kWhs | J41: Total Consumption (load shifters & non-load shifters (kWh's) | K41: Load shifters- Total Consumption kWh's | L41: Non Load shifters- consumption kWhs | M41: Load shifters Consumption- Generation kWh's | N41: Non - Load shifters Consumption- Generation kWh's | O41: Feed in - Load shifters (kwh) | P41: Feed in - Non load shifters (kwh) | Q41: Total feed in (kwh) | R41: Hour | T41: % generation | W41: % consumption | X41: Total Generation (load shifters & non-load shifters (kWh's) | Y41: Load shifters- Total Generation kWh's | Z41: Non Load shifters- Generation kWhs | AA41: Total Consumption (load shifters & non-load shifters (kWh's) | AB41: Load shifters- total Consumption kWh's | AC41: Non Load shifters- consumption kWhs | AD41: Load shifters Consumption- Generation kWh's | AE41: Non - Load shifters Consumption- Generation kWh's | AF41: Feed in - Load shifters (kwh) | AG41: Feed in - Non load shifters (kwh) | AH41: Total feed in (kwh)
A42: 0 | C42: 0 | D42: =C42/$C$66*100 -> 0 | E42: ='Load profiles'!Q51 -> 0.0294 | F42: =E42/$E$66*100 -> 2.940294029 | G42: =(D42/100)*$I$3*($I$11/100)*$I$5*$I$6 -> 0 | H42: =G42*Input!$B$46 -> 0 | I42: =G42-G42*Input!$B$46 -> 0 | J42: =$I$2*12*($I$7/100)*(F42/100) ->  | K42: =J42*Input!$B$46-('EE interventions'!$B40*Summary!$AC$8*Input!$B$46)-('EE interventions'!$F40*Summary!$AC$8*Input!$B$46) ->  | L42: =J42-(J42*Input!$B$46) ->  | M42: =K42-H42 ->  | N42: =L42-I42 ->  | O42: =IF(M42>0,0,M42) ->  | P42: =IF(N42>0,0,N42) ->  | Q42: =P42+O42-'RE generation'!C$3*(1-Input!$F$56) ->  | R42: 0 | T42: 0 | U42: =T42/$T$66*100 -> 0 | V42: ='Load profiles'!R51 -> 0.0285 | W42: =V42/$V$66*100 -> 2.854853251 | X42: =(U42/100)*$I$3*($I$11/100)*$I$5*$I$6 -> 0 | Y42: =X42*Input!$B$46 -> 0 | Z42: =X42-X42*Input!$B$46 -> 0 | AA42: =$I$2*12*($I$9/100)*(W42/100) ->  | AB42: =AA42*Input!$B$46-('EE interventions'!$B40*Summary!$AC$8*Input!$B$46)-('EE interventions'!$F40*Summary!$AC$8*Input!$B$46) ->  | AC42: =AA42-(AA42*Input!$B$46) ->  | AD42: =AB42-Y42 ->  | AE42: =AC42-Z42 ->  | AF42: =IF(AD42>0,0,AD42) ->  | AG42: =IF(AE42>0,0,AE42) ->  | AH42: =AG42+AF42-'RE generation'!C$3*(1-Input!$F$56) ->  | AI42: 0
A43: 1 | C43: 0 | D43: =C43/$C$66*100 -> 0 | E43: ='Load profiles'!Q52 -> 0.0252 | F43: =E43/$E$66*100 -> 2.520252025 | G43: =(D43/100)*$I$3*($I$11/100)*$I$5*$I$6 -> 0 | H43: =G43*Input!$B$46 -> 0 | I43: =G43-G43*Input!$B$46 -> 0 | J43: =$I$2*12*($I$7/100)*(F43/100) ->  | K43: =J43*Input!$B$46-('EE interventions'!$B41*Summary!$AC$8*Input!$B$46)-('EE interventions'!$F41*Summary!$AC$8*Input!$B$46) ->  | L43: =J43-(J43*Input!$B$46) ->  | M43: =K43-H43 ->  | N43: =L43-I43 ->  | O43: =IF(M43>0,0,M43) ->  | P43: =IF(N43>0,0,N43) ->  | Q43: =P43+O43-'RE generation'!D$3*(1-Input!$F$56) ->  | R43: 1 | T43: 0 | U43: =T43/$T$66*100 -> 0 | V43: ='Load profiles'!R52 -> 0.0244 | W43: =V43/$V$66*100 -> 2.444155064 | X43: =(U43/100)*$I$3*($I$11/100)*$I$5*$I$6 -> 0 | Y43: =X43*Input!$B$46 -> 0 | Z43: =X43-X43*Input!$B$46 -> 0 | AA43: =$I$2*12*($I$9/100)*(W43/100) ->  | AB43: =AA43*Input!$B$46-('EE interventions'!$B41*Summary!$AC$8*Input!$B$46)-('EE interventions'!$F41*Summary!$AC$8*Input!$B$46) ->  | AC43: =AA43-(AA43*Input!$B$46) ->  | AD43: =AB43-Y43 ->  | AE43: =AC43-Z43 ->  | AF43: =IF(AD43>0,0,AD43) ->  | AG43: =IF(AE43>0,0,AE43) ->  | AH43: =AG43+AF43-'RE generation'!D$3*(1-Input!$F$56) ->  | AI43: 1
A44: 2 | C44: 0 | D44: 0 | E44: ='Load profiles'!Q53 -> 0.0252 | F44: 2.520252025 | G44: 0 | H44: =G44*Input!$B$46 -> 0 | I44: =G44-G44*Input!$B$46 -> 0 | K44: =J44*Input!$B$46-('EE interventions'!$B42*Summary!$AC$8*Input!$B$46)-('EE interventions'!$F42*Summary!$AC$8*Input!$B$46) ->  | L44: =J44-(J44*Input!$B$46) ->  | Q44: =P44+O44-'RE generation'!E$3*(1-Input!$F$56) ->  | R44: 2 | T44: 0 | U44: 0 | V44: ='Load profiles'!R53 -> 0.0204 | W44: 2.043473906 | X44: 0 | Y44: =X44*Input!$B$46 -> 0 | Z44: =X44-X44*Input!$B$46 -> 0 | AB44: =AA44*Input!$B$46-('EE interventions'!$B42*Summary!$AC$8*Input!$B$46)-('EE interventions'!$F42*Summary!$AC$8*Input!$B$46) ->  | AC44: =AA44-(AA44*Input!$B$46) ->  | AH44: =AG44+AF44-'RE generation'!E$3*(1-Input!$F$56) ->  | AI44: 2
A45: 3 | C45: 0 | D45: 0 | E45: ='Load profiles'!Q54 -> 0.0252 | F45: 2.520252025 | G45: 0 | H45: =G45*Input!$B$46 -> 0 | I45: =G45-G45*Input!$B$46 -> 0 | K45: =J45*Input!$B$46-('EE interventions'!$B43*Summary!$AC$8*Input!$B$46)-('EE interventions'!$F43*Summary!$AC$8*Input!$B$46) ->  | L45: =J45-(J45*Input!$B$46) ->  | Q45: =P45+O45-'RE generation'!F$3*(1-Input!$F$56) ->  | R45: 3 | T45: 0 | U45: 0 | V45: ='Load profiles'!R54 -> 0.0204 | W45: 2.043473906 | X45: 0 | Y45: =X45*Input!$B$46 -> 0 | Z45: =X45-X45*Input!$B$46 -> 0 | AB45: =AA45*Input!$B$46-('EE interventions'!$B43*Summary!$AC$8*Input!$B$46)-('EE interventions'!$F43*Summary!$AC$8*Input!$B$46) ->  | AC45: =AA45-(AA45*Input!$B$46) ->  | AH45: =AG45+AF45-'RE generation'!F$3*(1-Input!$F$56) ->  | AI45: 3
A46: 4 | C46: 0 | D46: 0 | E46: ='Load profiles'!Q55 -> 0.0263 | F46: 2.630263026 | G46: 0 | H46: =G46*Input!$B$46 -> 0 | I46: =G46-G46*Input!$B$46 -> 0 | K46: =J46*Input!$B$46-('EE interventions'!$B44*Summary!$AC$8*Input!$B$46)-('EE interventions'!$F44*Summary!$AC$8*Input!$B$46) ->  | L46: =J46-(J46*Input!$B$46) ->  | Q46: =P46+O46-'RE generation'!G$3*(1-Input!$F$56) ->  | R46: 4 | T46: 0 | U46: 0 | V46: ='Load profiles'!R55 -> 0.0204 | W46: 2.043473906 | X46: 0 | Y46: =X46*Input!$B$46 -> 0 | Z46: =X46-X46*Input!$B$46 -> 0 | AB46: =AA46*Input!$B$46-('EE interventions'!$B44*Summary!$AC$8*Input!$B$46)-('EE interventions'!$F44*Summary!$AC$8*Input!$B$46) ->  | AC46: =AA46-(AA46*Input!$B$46) ->  | AH46: =AG46+AF46-'RE generation'!G$3*(1-Input!$F$56) ->  | AI46: 4
A47: 5 | C47: 0 | D47: 0 | E47: ='Load profiles'!Q56 -> 0.0336 | F47: 3.360336034 | G47: 0 | H47: =G47*Input!$B$46 -> 0 | I47: =G47-G47*Input!$B$46 -> 0 | K47: =J47*Input!$B$46-('EE interventions'!$B45*Summary!$AC$8*Input!$B$46)-('EE interventions'!$F45*Summary!$AC$8*Input!$B$46) ->  | L47: =J47-(J47*Input!$B$46) ->  | Q47: =P47+O47-'RE generation'!H$3*(1-Input!$F$56) ->  | R47: 5 | T47: 0 | U47: 0 | V47: ='Load profiles'!R56 -> 0.0261 | W47: 2.614444556 | X47: 0 | Y47: =X47*Input!$B$46 -> 0 | Z47: =X47-X47*Input!$B$46 -> 0 | AB47: =AA47*Input!$B$46-('EE interventions'!$B45*Summary!$AC$8*Input!$B$46)-('EE interventions'!$F45*Summary!$AC$8*Input!$B$46) ->  | AC47: =AA47-(AA47*Input!$B$46) ->  | AH47: =AG47+AF47-'RE generation'!H$3*(1-Input!$F$56) ->  | AI47: 5
A48: 6 | C48: 0.01088045812 | D48: 0.147443981 | E48: ='Load profiles'!Q57 -> 0.0547 | F48: 5.470547055 | G48: 0.01235589446 | H48: =G48*Input!$B$46 -> 0 | I48: =G48-G48*Input!$B$46 -> 0.01235589446 | K48: =J48*Input!$B$46-('EE interventions'!$B46*Summary!$AC$8*Input!$B$46)-('EE interventions'!$F46*Summary!$AC$8*Input!$B$46) ->  | L48: =J48-(J48*Input!$B$46) ->  | Q48: =P48+O48-'RE generation'!I$3*(1-Input!$F$56) ->  | R48: 6 | T48: 0.01088045812 | U48: 0.147443981 | V48: ='Load profiles'!R57 -> 0.04 | W48: 4.00681158 | X48: 0.01235589446 | Y48: =X48*Input!$B$46 -> 0 | Z48: =X48-X48*Input!$B$46 -> 0.01235589446 | AB48: =AA48*Input!$B$46-('EE interventions'!$B46*Summary!$AC$8*Input!$B$46)-('EE interventions'!$F46*Summary!$AC$8*Input!$B$46) ->  | AC48: =AA48-(AA48*Input!$B$46) ->  | AH48: =AG48+AF48-'RE generation'!I$3*(1-Input!$F$56) ->  | AI48: 6
A49: 7 | C49: 0.1186828919 | D49: 1.608303424 | E49: ='Load profiles'!Q58 -> 0.0473 | F49: 4.730473047 | G49: 0.1347767962 | H49: =G49*Input!$B$46 -> 0 | I49: =G49-G49*Input!$B$46 -> 0.1347767962 | K49: =J49*Input!$B$46-('EE interventions'!$B47*Summary!$AC$8*Input!$B$46)-('EE interventions'!$F47*Summary!$AC$8*Input!$B$46) ->  | L49: =J49-(J49*Input!$B$46) ->  | Q49: =P49+O49-'RE generation'!J$3*(1-Input!$F$56) ->  | R49: 7 | T49: 0.1186828919 | U49: 1.608303424 | V49: ='Load profiles'!R58 -> 0.0431 | W49: 4.317339477 | X49: 0.1347767962 | Y49: =X49*Input!$B$46 -> 0 | Z49: =X49-X49*Input!$B$46 -> 0.1347767962 | AB49: =AA49*Input!$B$46-('EE interventions'!$B47*Summary!$AC$8*Input!$B$46)-('EE interventions'!$F47*Summary!$AC$8*Input!$B$46) ->  | AC49: =AA49-(AA49*Input!$B$46) ->  | AH49: =AG49+AF49-'RE generation'!J$3*(1-Input!$F$56) ->  | AI49: 7
A50: 8 | C50: 0.3357193987 | D50: 4.549422834 | E50: ='Load profiles'!Q59 -> 0.0421 | F50: 4.210421042 | G50: 0.3812443752 | H50: =G50*Input!$B$46 -> 0 | I50: =G50-G50*Input!$B$46 -> 0.3812443752 | K50: =J50*Input!$B$46-('EE interventions'!$B48*Summary!$AC$8*Input!$B$46)-('EE interventions'!$F48*Summary!$AC$8*Input!$B$46) ->  | L50: =J50-(J50*Input!$B$46) ->  | Q50: =P50+O50-'RE generation'!K$3*(1-Input!$F$56) ->  | R50: 8 | T50: 0.3357193987 | U50: 4.549422834 | V50: ='Load profiles'!R59 -> 0.0433 | W50: 4.337373535 | X50: 0.3812443752 | Y50: =X50*Input!$B$46 -> 0 | Z50: =X50-X50*Input!$B$46 -> 0.3812443752 | AB50: =AA50*Input!$B$46-('EE interventions'!$B48*Summary!$AC$8*Input!$B$46)-('EE interventions'!$F48*Summary!$AC$8*Input!$B$46) ->  | AC50: =AA50-(AA50*Input!$B$46) ->  | AH50: =AG50+AF50-'RE generation'!K$3*(1-Input!$F$56) ->  | AI50: 8
A51: 9 | C51: 0.572226199 | D51: 7.754389369 | E51: ='Load profiles'!Q60 -> 0.0473 | F51: 4.730473047 | G51: 0.6498225022 | H51: =G51*Input!$B$46 -> 0 | I51: =G51-G51*Input!$B$46 -> 0.6498225022 | K51: =J51*Input!$B$46-('EE interventions'!$B49*Summary!$AC$8*Input!$B$46)-('EE interventions'!$F49*Summary!$AC$8*Input!$B$46) ->  | L51: =J51-(J51*Input!$B$46) ->  | Q51: =P51+O51-'RE generation'!L$3*(1-Input!$F$56) ->  | R51: 9 | T51: 0.572226199 | U51: 7.754389369 | V51: ='Load profiles'!R60 -> 0.045 | W51: 4.507663027 | X51: 0.6498225022 | Y51: =X51*Input!$B$46 -> 0 | Z51: =X51-X51*Input!$B$46 -> 0.6498225022 | AB51: =AA51*Input!$B$46-('EE interventions'!$B49*Summary!$AC$8*Input!$B$46)-('EE interventions'!$F49*Summary!$AC$8*Input!$B$46) ->  | AC51: =AA51-(AA51*Input!$B$46) ->  | AH51: =AG51+AF51-'RE generation'!L$3*(1-Input!$F$56) ->  | AI51: 9
A52: 10 | C52: 0.7789549034 | D52: 10.55582501 | E52: ='Load profiles'!Q61 -> 0.0421 | F52: 4.210421042 | G52: =(D52/100)*$I$3*($I$11/100)*$I$5*$I$6 -> 0.884584497 | H52: =G52*Input!$B$46 -> 0 | I52: =G52-G52*Input!$B$46 -> 0.884584497 | K52: =J52*Input!$B$46-('EE interventions'!$B50*Summary!$AC$8*Input!$B$46)-('EE interventions'!$F50*Summary!$AC$8*Input!$B$46) ->  | L52: =J52-(J52*Input!$B$46) ->  | Q52: =P52+O52-'RE generation'!M$3*(1-Input!$F$56) ->  | R52: 10 | T52: 0.7789549034 | U52: 10.55582501 | V52: ='Load profiles'!R61 -> 0.0453 | W52: 4.537714114 | X52: =(U52/100)*$I$3*($I$11/100)*$I$5*$I$6 -> 0.884584497 | Y52: =X52*Input!$B$46 -> 0 | Z52: =X52-X52*Input!$B$46 -> 0.884584497 | AB52: =AA52*Input!$B$46-('EE interventions'!$B50*Summary!$AC$8*Input!$B$46)-('EE interventions'!$F50*Summary!$AC$8*Input!$B$46) ->  | AC52: =AA52-(AA52*Input!$B$46) ->  | AH52: =AG52+AF52-'RE generation'!M$3*(1-Input!$F$56) ->  | AI52: 10
A53: 11 | C53: 0.9302791696 | D53: 12.60646037 | E53: ='Load profiles'!Q62 -> 0.0368 | F53: 3.680368037 | G53: =(D53/100)*$I$3*($I$11/100)*$I$5*$I$6 -> 1.056428977 | H53: =G53*Input!$B$46 -> 0 | I53: =G53-G53*Input!$B$46 -> 1.056428977 | K53: =J53*Input!$B$46-('EE interventions'!$B51*Summary!$AC$8*Input!$B$46)-('EE interventions'!$F51*Summary!$AC$8*Input!$B$46) ->  | L53: =J53-(J53*Input!$B$46) ->  | Q53: =P53+O53-'RE generation'!N$3*(1-Input!$F$56) ->  | R53: 11 | T53: 0.9302791696 | U53: 12.60646037 | V53: ='Load profiles'!R62 -> 0.048 | W53: 4.808173896 | X53: =(U53/100)*$I$3*($I$11/100)*$I$5*$I$6 -> 1.056428977 | Y53: =X53*Input!$B$46 -> 0 | Z53: =X53-X53*Input!$B$46 -> 1.056428977 | AB53: =AA53*Input!$B$46-('EE interventions'!$B51*Summary!$AC$8*Input!$B$46)-('EE interventions'!$F51*Summary!$AC$8*Input!$B$46) ->  | AC53: =AA53-(AA53*Input!$B$46) ->  | AH53: =AG53+AF53-'RE generation'!N$3*(1-Input!$F$56) ->  | AI53: 11
A54: 12 | C54: 1.001574803 | D54: 13.57260646 | E54: ='Load profiles'!Q63 -> 0.0336 | F54: 3.360336034 | G54: 1.137392601 | H54: =G54*Input!$B$46 -> 0 | I54: =G54-G54*Input!$B$46 -> 1.137392601 | K54: =J54*Input!$B$46-('EE interventions'!$B52*Summary!$AC$8*Input!$B$46)-('EE interventions'!$F52*Summary!$AC$8*Input!$B$46) ->  | L54: =J54-(J54*Input!$B$46) ->  | Q54: =P54+O54-'RE generation'!O$3*(1-Input!$F$56) ->  | R54: 12 | T54: 1.001574803 | U54: 13.57260646 | V54: ='Load profiles'!R63 -> 0.0487 | W54: 4.878293098 | X54: 1.137392601 | Y54: =X54*Input!$B$46 -> 0 | Z54: =X54-X54*Input!$B$46 -> 1.137392601 | AB54: =AA54*Input!$B$46-('EE interventions'!$B52*Summary!$AC$8*Input!$B$46)-('EE interventions'!$F52*Summary!$AC$8*Input!$B$46) ->  | AC54: =AA54-(AA54*Input!$B$46) ->  | AH54: =AG54+AF54-'RE generation'!O$3*(1-Input!$F$56) ->  | AI54: 12
A55: 13 | C55: 1 | D55: 13.55126588 | E55: ='Load profiles'!Q64 -> 0.0326 | F55: 3.260326033 | G55: 1.135604248 | H55: =G55*Input!$B$46 -> 0 | I55: =G55-G55*Input!$B$46 -> 1.135604248 | K55: =J55*Input!$B$46-('EE interventions'!$B53*Summary!$AC$8*Input!$B$46)-('EE interventions'!$F53*Summary!$AC$8*Input!$B$46) ->  | L55: =J55-(J55*Input!$B$46) ->  | Q55: =P55+O55-'RE generation'!P$3*(1-Input!$F$56) ->  | R55: 13 | T55: 1 | U55: 13.55126588 | V55: ='Load profiles'!R64 -> 0.0475 | W55: 4.758088751 | X55: 1.135604248 | Y55: =X55*Input!$B$46 -> 0 | Z55: =X55-X55*Input!$B$46 -> 1.135604248 | AB55: =AA55*Input!$B$46-('EE interventions'!$B53*Summary!$AC$8*Input!$B$46)-('EE interventions'!$F53*Summary!$AC$8*Input!$B$46) ->  | AC55: =AA55-(AA55*Input!$B$46) ->  | AH55: =AG55+AF55-'RE generation'!P$3*(1-Input!$F$56) ->  | AI55: 13
A56: 14 | C56: 0.9138153185 | D56: 12.38335435 | E56: ='Load profiles'!Q65 -> 0.0326 | F56: 3.260326033 | G56: 1.037732557 | H56: =G56*Input!$B$46 -> 0 | I56: =G56-G56*Input!$B$46 -> 1.037732557 | K56: =J56*Input!$B$46-('EE interventions'!$B54*Summary!$AC$8*Input!$B$46)-('EE interventions'!$F54*Summary!$AC$8*Input!$B$46) ->  | L56: =J56-(J56*Input!$B$46) ->  | Q56: =P56+O56-'RE generation'!Q$3*(1-Input!$F$56) ->  | R56: 14 | T56: 0.9138153185 | U56: 12.38335435 | V56: ='Load profiles'!R65 -> 0.0456 | W56: 4.567765201 | X56: 1.037732557 | Y56: =X56*Input!$B$46 -> 0 | Z56: =X56-X56*Input!$B$46 -> 1.037732557 | AB56: =AA56*Input!$B$46-('EE interventions'!$B54*Summary!$AC$8*Input!$B$46)-('EE interventions'!$F54*Summary!$AC$8*Input!$B$46) ->  | AC56: =AA56-(AA56*Input!$B$46) ->  | AH56: =AG56+AF56-'RE generation'!Q$3*(1-Input!$F$56) ->  | AI56: 14
A57: 15 | C57: 0.7511811024 | D57: 10.17945485 | E57: ='Load profiles'!Q66 -> 0.0326 | F57: 3.260326033 | G57: 0.8530444506 | H57: =G57*Input!$B$46 -> 0 | I57: =G57-G57*Input!$B$46 -> 0.8530444506 | K57: =J57*Input!$B$46-('EE interventions'!$B55*Summary!$AC$8*Input!$B$46)-('EE interventions'!$F55*Summary!$AC$8*Input!$B$46) ->  | L57: =J57-(J57*Input!$B$46) ->  | Q57: =P57+O57-'RE generation'!R$3*(1-Input!$F$56) ->  | R57: 15 | T57: 0.7511811024 | U57: 10.17945485 | V57: ='Load profiles'!R66 -> 0.0457 | W57: 4.57778223 | X57: 0.8530444506 | Y57: =X57*Input!$B$46 -> 0 | Z57: =X57-X57*Input!$B$46 -> 0.8530444506 | AB57: =AA57*Input!$B$46-('EE interventions'!$B55*Summary!$AC$8*Input!$B$46)-('EE interventions'!$F55*Summary!$AC$8*Input!$B$46) ->  | AC57: =AA57-(AA57*Input!$B$46) ->  | AH57: =AG57+AF57-'RE generation'!R$3*(1-Input!$F$56) ->  | AI57: 15
A58: 16 | C58: 0.538869005 | D58: 7.302357164 | E58: ='Load profiles'!Q67 -> 0.0421 | F58: 4.210421042 | G58: 0.611941931 | H58: =G58*Input!$B$46 -> 0 | I58: =G58-G58*Input!$B$46 -> 0.611941931 | K58: =J58*Input!$B$46-('EE interventions'!$B56*Summary!$AC$8*Input!$B$46)-('EE interventions'!$F56*Summary!$AC$8*Input!$B$46) ->  | L58: =J58-(J58*Input!$B$46) ->  | Q58: =P58+O58-'RE generation'!S$3*(1-Input!$F$56) ->  | R58: 16 | T58: 0.538869005 | U58: 7.302357164 | V58: ='Load profiles'!R67 -> 0.048 | W58: 4.808173896 | X58: 0.611941931 | Y58: =X58*Input!$B$46 -> 0 | Z58: =X58-X58*Input!$B$46 -> 0.611941931 | AB58: =AA58*Input!$B$46-('EE interventions'!$B56*Summary!$AC$8*Input!$B$46)-('EE interventions'!$F56*Summary!$AC$8*Input!$B$46) ->  | AC58: =AA58-(AA58*Input!$B$46) ->  | AH58: =AG58+AF58-'RE generation'!S$3*(1-Input!$F$56) ->  | AI58: 16
A59: 17 | C59: 0.3089477452 | D59: 4.186633039 | E59: ='Load profiles'!Q68 -> 0.0547 | F59: 5.470547055 | G59: 0.3508423717 | H59: =G59*Input!$B$46 -> 0 | I59: =G59-G59*Input!$B$46 -> 0.3508423717 | K59: =J59*Input!$B$46-('EE interventions'!$B57*Summary!$AC$8*Input!$B$46)-('EE interventions'!$F57*Summary!$AC$8*Input!$B$46) ->  | L59: =J59-(J59*Input!$B$46) ->  | Q59: =P59+O59-'RE generation'!T$3*(1-Input!$F$56) ->  | R59: 17 | T59: 0.3089477452 | U59: 4.186633039 | V59: ='Load profiles'!R68 -> 0.0489 | W59: 4.898327156 | X59: 0.3508423717 | Y59: =X59*Input!$B$46 -> 0 | Z59: =X59-X59*Input!$B$46 -> 0.3508423717 | AB59: =AA59*Input!$B$46-('EE interventions'!$B57*Summary!$AC$8*Input!$B$46)-('EE interventions'!$F57*Summary!$AC$8*Input!$B$46) ->  | AC59: =AA59-(AA59*Input!$B$46) ->  | AH59: =AG59+AF59-'RE generation'!T$3*(1-Input!$F$56) ->  | AI59: 17
A60: 18 | C60: 0.1078024338 | D60: 1.460859443 | E60: ='Load profiles'!Q69 -> 0.0526 | F60: 5.260526053 | G60: 0.1224209017 | H60: =G60*Input!$B$46 -> 0 | I60: =G60-G60*Input!$B$46 -> 0.1224209017 | K60: =J60*Input!$B$46-('EE interventions'!$B58*Summary!$AC$8*Input!$B$46)-('EE interventions'!$F58*Summary!$AC$8*Input!$B$46) ->  | L60: =J60-(J60*Input!$B$46) ->  | Q60: =P60+O60-'RE generation'!U$3*(1-Input!$F$56) ->  | R60: 18 | T60: 0.1078024338 | U60: 1.460859443 | V60: ='Load profiles'!R69 -> 0.05 | W60: 5.008514475 | X60: 0.1224209017 | Y60: =X60*Input!$B$46 -> 0 | Z60: =X60-X60*Input!$B$46 -> 0.1224209017 | AB60: =AA60*Input!$B$46-('EE interventions'!$B58*Summary!$AC$8*Input!$B$46)-('EE interventions'!$F58*Summary!$AC$8*Input!$B$46) ->  | AC60: =AA60-(AA60*Input!$B$46) ->  | AH60: =AG60+AF60-'RE generation'!U$3*(1-Input!$F$56) ->  | AI60: 18
A61: 19 | C61: 0.01045096636 | D61: 0.1416238238 | E61: ='Load profiles'!Q70 -> 0.0631 | F61: 6.310631063 | G61: 0.01186816179 | H61: =G61*Input!$B$46 -> 0 | I61: =G61-G61*Input!$B$46 -> 0.01186816179 | K61: =J61*Input!$B$46-('EE interventions'!$B59*Summary!$AC$8*Input!$B$46)-('EE interventions'!$F59*Summary!$AC$8*Input!$B$46) ->  | L61: =J61-(J61*Input!$B$46) ->  | Q61: =P61+O61-'RE generation'!V$3*(1-Input!$F$56) ->  | R61: 19 | T61: 0.01045096636 | U61: 0.1416238238 | V61: ='Load profiles'!R70 -> 0.06 | W61: 6.01021737 | X61: 0.01186816179 | Y61: =X61*Input!$B$46 -> 0 | Z61: =X61-X61*Input!$B$46 -> 0.01186816179 | AB61: =AA61*Input!$B$46-('EE interventions'!$B59*Summary!$AC$8*Input!$B$46)-('EE interventions'!$F59*Summary!$AC$8*Input!$B$46) ->  | AC61: =AA61-(AA61*Input!$B$46) ->  | AH61: =AG61+AF61-'RE generation'!V$3*(1-Input!$F$56) ->  | AI61: 19
A62: 20 | C62: 0 | D62: 0 | E62: ='Load profiles'!Q71 -> 0.0683 | F62: 6.830683068 | G62: 0 | H62: =G62*Input!$B$46 -> 0 | I62: =G62-G62*Input!$B$46 -> 0 | K62: =J62*Input!$B$46-('EE interventions'!$B60*Summary!$AC$8*Input!$B$46)-('EE interventions'!$F60*Summary!$AC$8*Input!$B$46) ->  | L62: =J62-(J62*Input!$B$46) ->  | Q62: =P62+O62-'RE generation'!W$3*(1-Input!$F$56) ->  | R62: 20 | T62: 0 | U62: 0 | V62: ='Load profiles'!R71 -> 0.06 | W62: 6.01021737 | X62: 0 | Y62: =X62*Input!$B$46 -> 0 | Z62: =X62-X62*Input!$B$46 -> 0 | AB62: =AA62*Input!$B$46-('EE interventions'!$B60*Summary!$AC$8*Input!$B$46)-('EE interventions'!$F60*Summary!$AC$8*Input!$B$46) ->  | AC62: =AA62-(AA62*Input!$B$46) ->  | AH62: =AG62+AF62-'RE generation'!W$3*(1-Input!$F$56) ->  | AI62: 20
A63: 21 | C63: 0 | D63: 0 | E63: ='Load profiles'!Q72 -> 0.0631 | F63: 6.310631063 | G63: 0 | H63: =G63*Input!$B$46 -> 0 | I63: =G63-G63*Input!$B$46 -> 0 | K63: =J63*Input!$B$46-('EE interventions'!$B61*Summary!$AC$8*Input!$B$46)-('EE interventions'!$F61*Summary!$AC$8*Input!$B$46) ->  | L63: =J63-(J63*Input!$B$46) ->  | Q63: =P63+O63-'RE generation'!X$3*(1-Input!$F$56) ->  | R63: 21 | T63: 0 | U63: 0 | V63: ='Load profiles'!R72 -> 0.057 | W63: 5.709706501 | X63: 0 | Y63: =X63*Input!$B$46 -> 0 | Z63: =X63-X63*Input!$B$46 -> 0 | AB63: =AA63*Input!$B$46-('EE interventions'!$B61*Summary!$AC$8*Input!$B$46)-('EE interventions'!$F61*Summary!$AC$8*Input!$B$46) ->  | AC63: =AA63-(AA63*Input!$B$46) ->  | AH63: =AG63+AF63-'RE generation'!X$3*(1-Input!$F$56) ->  | AI63: 21
A64: 22 | C64: 0 | D64: 0 | E64: ='Load profiles'!Q73 -> 0.0526 | F64: 5.260526053 | G64: 0 | H64: =G64*Input!$B$46 -> 0 | I64: =G64-G64*Input!$B$46 -> 0 | K64: =J64*Input!$B$46-('EE interventions'!$B62*Summary!$AC$8*Input!$B$46)-('EE interventions'!$F62*Summary!$AC$8*Input!$B$46) ->  | L64: =J64-(J64*Input!$B$46) ->  | Q64: =P64+O64-'RE generation'!Y$3*(1-Input!$F$56) ->  | R64: 22 | T64: 0 | U64: 0 | V64: ='Load profiles'!R73 -> 0.047 | W64: 4.708003606 | X64: 0 | Y64: =X64*Input!$B$46 -> 0 | Z64: =X64-X64*Input!$B$46 -> 0 | AB64: =AA64*Input!$B$46-('EE interventions'!$B62*Summary!$AC$8*Input!$B$46)-('EE interventions'!$F62*Summary!$AC$8*Input!$B$46) ->  | AC64: =AA64-(AA64*Input!$B$46) ->  | AH64: =AG64+AF64-'RE generation'!Y$3*(1-Input!$F$56) ->  | AI64: 22
A65: 23 | C65: 0 | D65: 0 | E65: ='Load profiles'!Q74 -> 0.0368 | F65: 3.680368037 | G65: 0 | H65: =G65*Input!$B$46 -> 0 | I65: =G65-G65*Input!$B$46 -> 0 | K65: =J65*Input!$B$46-('EE interventions'!$B63*Summary!$AC$8*Input!$B$46)-('EE interventions'!$F63*Summary!$AC$8*Input!$B$46) ->  | L65: =J65-(J65*Input!$B$46) ->  | Q65: =P65+O65-'RE generation'!Z$3*(1-Input!$F$56) ->  | R65: 23 | T65: 0 | U65: 0 | V65: ='Load profiles'!R74 -> 0.035 | W65: 3.505960132 | X65: 0 | Y65: =X65*Input!$B$46 -> 0 | Z65: =X65-X65*Input!$B$46 -> 0 | AB65: =AA65*Input!$B$46-('EE interventions'!$B63*Summary!$AC$8*Input!$B$46)-('EE interventions'!$F63*Summary!$AC$8*Input!$B$46) ->  | AC65: =AA65-(AA65*Input!$B$46) ->  | AH65: =AG65+AF65-'RE generation'!Z$3*(1-Input!$F$56) ->  | AI65: 23
C66: =SUM(C42:C65) -> 7.379384395 | E66: =SUM(E42:E65) -> 0.9999 | F66: =SUM(F42:F65) -> 100 | G66: =SUM(G42:G65) -> 8.380060264 | H66: =SUM(H42:H65) -> 0 | I66: =SUM(I42:I65) -> 8.380060264 | K66: =SUM(K42:K65) ->  | L66: =SUM(L42:L65) ->  | T66: =SUM(T42:T65) -> 7.379384395 | V66: =SUM(V42:V65) -> 0.9983 | W66: =SUM(W42:W65) -> 100 | X66: =SUM(X42:X65) -> 8.380060264 | Y66: =SUM(Y42:Y65) -> 0 | Z66: =SUM(Z42:Z65) -> 8.380060264 | AA66: =$I$2*12*($I$7/100)*(W66/100) ->  | AB66: =SUM(AB42:AB65) ->  | AC66: =SUM(AC42:AC65) -> 
H67: cross check | I67: =SUM(H66:I66) -> 8.380060264 | L67: =SUM(K66:L66) ->  | Z67: =SUM(Y66:Z66) -> 8.380060264 | AC67: =SUM(AB66:AC66) -> 
F73: Winter weekday | W73: Winter weekend
A75: Hour | C75: % generation | F75: % consumption | G75: Total Generation (load shifters & non-load shifters (kWh's) | H75: Load shifters- Actual Generation kWh's | I75: Non Load shifters- Generation kWhs | J75: Total Consumption (load shifters & non-load shifters (kWh's) | K75: Load shifters- Actual Consumption kWh's | L75: Non Load shifters- consumption kWhs | M75: Load shifters Consumption- Generation kWh's | N75: Non - Load shifters Consumption- Generation kWh's | O75: Feed in - Load shifters (kwh) | P75: Feed in - Non load shifters (kwh) | Q75: Total feed in (kwh) | R75: Hour | T75: % generation | W75: % consumption | X75: Total Generation (load shifters & non-load shifters (kWh's) | Y75: Load shifters- Total Generation kWh's | Z75: Non Load shifters- Generation kWhs | AA75: Total Consumption (load shifters & non-load shifters (kWh's) | AB75: Load shifters- total Consumption kWh's | AC75: Non Load shifters- consumption kWhs | AD75: Load shifters Consumption- Generation kWh's | AE75: Non - Load shifters Consumption- Generation kWh's | AF75: Feed in - Load shifters (kwh) | AG75: Feed in - Non load shifters (kwh) | AH75: Total feed in (kwh) | AJ75: Weekend
A76: 0 | C76: 0 | D76: =C76/$C$100*100 -> 0 | E76: ='Load profiles'!O51 -> 0.0237 | F76: =E76/$E$100*100 -> 2.370474095 | G76: =(D76/100)*$I$3*($I$12/100)*$I$5*$I$6 -> 0 | H76: =G76*Input!$B$46 -> 0 | I76: =G76-G76*Input!$B$46 -> 0 | J76: =$I$2*12*($I$8/100)*(F76/100) ->  | K76: =J76*Input!$B$46-('EE interventions'!$B40*Summary!$AC$8*Input!$B$46)-('EE interventions'!$M40*Summary!$AC$8*Input!$B$46) ->  | L76: =J76-(J76*Input!$B$46) ->  | M76: =K76-H76 ->  | N76: =L76-I76 ->  | O76: =IF(M76>0,0,M76) ->  | P76: =IF(N76>0,0,N76) ->  | Q76: =P76+O76-'RE generation'!C$5*(1-Input!$F$56) ->  | R76: 0 | T76: 0 | U76: =T76/$C$100*100 -> 0 | V76: ='Load profiles'!P51 -> 0.0285 | W76: =V76/$V$100*100 -> 2.854853251 | X76: =(U76/100)*$I$3*($I$11/100)*$I$5*$I$6 -> 0 | Y76: =X76*Input!$B$46 -> 0 | Z76: =X76-X76*Input!$B$46 -> 0 | AA76: =$I$2*12*($I$10/100)*(W76/100) ->  | AB76: =AA76*Input!$B$46-('EE interventions'!$B40*Summary!$AC$8*Input!$B$46)-('EE interventions'!$M40*Summary!$AC$8*Input!$B$46) ->  | AC76: =AA76-(AA76*Input!$B$46) ->  | AD76: =AB76-Y76 ->  | AE76: =AC76-Z76 ->  | AF76: =IF(AD76>0,0,AD76) ->  | AG76: =IF(AE76>0,0,AE76) ->  | AH76: =AG76+AF76-'RE generation'!C$5*(1-Input!$F$56) ->  | AJ76: Time | AK76: 0 | AL76: 1 | AM76: 2 | AN76: 3 | AO76: 4 | AP76: 5 | AQ76: 6 | AR76: 7 | AS76: 8 | AT76: 9 | AU76: 10 | AV76: 11 | AW76: 12 | AX76: 13 | AY76: 14 | AZ76: 15 | BA76: 16 | BB76: 17 | BC76: 18 | BD76: 19 | BE76: 20 | BF76: 21 | BG76: 22 | BH76: 23
A77: 1 | C77: 0 | D77: =C77/$C$100*100 -> 0 | E77: ='Load profiles'!O52 -> 0.0197 | F77: =E77/$E$100*100 -> 1.970394079 | G77: =(D77/100)*$I$3*($I$12/100)*$I$5*$I$6 -> 0 | H77: =G77*Input!$B$46 -> 0 | I77: =G77-G77*Input!$B$46 -> 0 | J77: =$I$2*12*($I$8/100)*(F77/100) ->  | K77: =J77*Input!$B$46-('EE interventions'!$B41*Summary!$AC$8*Input!$B$46)-('EE interventions'!$M41*Summary!$AC$8*Input!$B$46) ->  | L77: =J77-(J77*Input!$B$46) ->  | M77: =K77-H77 ->  | N77: =L77-I77 ->  | O77: =IF(M77>0,0,M77) ->  | P77: =IF(N77>0,0,N77) ->  | Q77: =P77+O77-'RE generation'!D$5*(1-Input!$F$56) ->  | R77: 1 | T77: 0 | U77: =T77/$C$100*100 -> 0 | V77: ='Load profiles'!P52 -> 0.0244 | W77: =V77/$V$100*100 -> 2.444155064 | X77: =(U77/100)*$I$3*($I$12/100)*$I$5*$I$6 -> 0 | Y77: =X77*Input!$B$46 -> 0 | Z77: =X77-X77*Input!$B$46 -> 0 | AA77: =$I$2*12*($I$8/100)*(W77/100) ->  | AB77: =AA77*Input!$B$46-('EE interventions'!$B41*Summary!$AC$8*Input!$B$46)-('EE interventions'!$M41*Summary!$AC$8*Input!$B$46) ->  | AC77: =AA77-(AA77*Input!$B$46) ->  | AD77: =AB77-Y77 ->  | AE77: =AC77-Z77 ->  | AF77: =IF(AD77>0,0,AD77) ->  | AG77: =IF(AE77>0,0,AE77) ->  | AH77: =AG77+AF77-'RE generation'!D$5*(1-Input!$F$56) ->  | AJ77: Consumption-Generation kWh's (summer) | AK77: =AH42 ->  | AL77: =AH43 ->  | AM77: =AH44 ->  | AN77: =AH45 ->  | AO77: =AH46 ->  | AP77: =AH47 ->  | AQ77: =AH48 ->  | AR77: =AH49 ->  | AS77: =AH50 ->  | AT77: =AH51 ->  | AU77: =AH52 ->  | AV77: =AH53 ->  | AW77: =AH54 ->  | AX77: =AH55 ->  | AY77: =AH56 ->  | AZ77: =AH57 ->  | BA77: =AH58 ->  | BB77: =AH59 ->  | BC77: =AH60 ->  | BD77: =AH61 ->  | BE77: =AH62 ->  | BF77: =AH63 ->  | BG77: =AH64 ->  | BH77: =AH65 -> 
A78: 2 | C78: 0 | D78: 0 | E78: ='Load profiles'!O53 -> 0.0197 | F78: 1.970394079 | G78: 0 | H78: =G78*Input!$B$46 -> 0 | I78: =G78-G78*Input!$B$46 -> 0 | K78: =J78*Input!$B$46-('EE interventions'!$B42*Summary!$AC$8*Input!$B$46)-('EE interventions'!$M42*Summary!$AC$8*Input!$B$46) ->  | L78: =J78-(J78*Input!$B$46) ->  | Q78: =P78+O78-'RE generation'!E$5*(1-Input!$F$56) ->  | R78: 2 | T78: 0 | U78: 0 | V78: ='Load profiles'!P53 -> 0.0204 | W78: 2.043473906 | X78: 0 | Y78: =X78*Input!$B$46 -> 0 | Z78: =X78-X78*Input!$B$46 -> 0 | AB78: =AA78*Input!$B$46-('EE interventions'!$B42*Summary!$AC$8*Input!$B$46)-('EE interventions'!$M42*Summary!$AC$8*Input!$B$46) ->  | AC78: =AA78-(AA78*Input!$B$46) ->  | AH78: =AG78+AF78-'RE generation'!E$5*(1-Input!$F$56) ->  | AJ78: Consumption-Generation kWh's (winter) | AK78: =AH76 ->  | AL78: =AH77 ->  | AM78: =AH78 ->  | AN78: =AH79 ->  | AO78: =AH80 ->  | AP78: =AH81 ->  | AQ78: =AH82 ->  | AR78: =AH83 ->  | AS78: =AH84 ->  | AT78: =AH85 ->  | AU78: =AH86 ->  | AV78: =AH87 ->  | AW78: =AH88 ->  | AX78: =AH89 ->  | AY78: =AH90 ->  | AZ78: =AH91 ->  | BA78: =AH92 ->  | BB78: =AH93 ->  | BC78: =AH94 ->  | BD78: =AH95 ->  | BE78: =AH96 ->  | BF78: =AH97 ->  | BG78: =AH98 ->  | BH78: =AH99 -> 
A79: 3 | C79: 0 | D79: 0 | E79: ='Load profiles'!O54 -> 0.0197 | F79: 1.970394079 | G79: 0 | H79: =G79*Input!$B$46 -> 0 | I79: =G79-G79*Input!$B$46 -> 0 | K79: =J79*Input!$B$46-('EE interventions'!$B43*Summary!$AC$8*Input!$B$46)-('EE interventions'!$M43*Summary!$AC$8*Input!$B$46) ->  | L79: =J79-(J79*Input!$B$46) ->  | Q79: =P79+O79-'RE generation'!F$5*(1-Input!$F$56) ->  | R79: 3 | T79: 0 | U79: 0 | V79: ='Load profiles'!P54 -> 0.0204 | W79: 2.043473906 | X79: 0 | Y79: =X79*Input!$B$46 -> 0 | Z79: =X79-X79*Input!$B$46 -> 0 | AB79: =AA79*Input!$B$46-('EE interventions'!$B43*Summary!$AC$8*Input!$B$46)-('EE interventions'!$M43*Summary!$AC$8*Input!$B$46) ->  | AC79: =AA79-(AA79*Input!$B$46) ->  | AH79: =AG79+AF79-'RE generation'!F$5*(1-Input!$F$56) -> 
A80: 4 | C80: 0 | D80: 0 | E80: ='Load profiles'!O55 -> 0.0217 | F80: 2.170434087 | G80: 0 | H80: =G80*Input!$B$46 -> 0 | I80: =G80-G80*Input!$B$46 -> 0 | K80: =J80*Input!$B$46-('EE interventions'!$B44*Summary!$AC$8*Input!$B$46)-('EE interventions'!$M44*Summary!$AC$8*Input!$B$46) ->  | L80: =J80-(J80*Input!$B$46) ->  | Q80: =P80+O80-'RE generation'!G$5*(1-Input!$F$56) ->  | R80: 4 | T80: 0 | U80: 0 | V80: ='Load profiles'!P55 -> 0.0204 | W80: 2.043473906 | X80: 0 | Y80: =X80*Input!$B$46 -> 0 | Z80: =X80-X80*Input!$B$46 -> 0 | AB80: =AA80*Input!$B$46-('EE interventions'!$B44*Summary!$AC$8*Input!$B$46)-('EE interventions'!$M44*Summary!$AC$8*Input!$B$46) ->  | AC80: =AA80-(AA80*Input!$B$46) ->  | AH80: =AG80+AF80-'RE generation'!G$5*(1-Input!$F$56) ->  | AJ80: Weekday
A81: 5 | C81: 0 | D81: 0 | E81: ='Load profiles'!O56 -> 0.0316 | F81: 3.160632126 | G81: 0 | H81: =G81*Input!$B$46 -> 0 | I81: =G81-G81*Input!$B$46 -> 0 | K81: =J81*Input!$B$46-('EE interventions'!$B45*Summary!$AC$8*Input!$B$46)-('EE interventions'!$M45*Summary!$AC$8*Input!$B$46) ->  | L81: =J81-(J81*Input!$B$46) ->  | Q81: =P81+O81-'RE generation'!H$5*(1-Input!$F$56) ->  | R81: 5 | T81: 0 | U81: 0 | V81: ='Load profiles'!P56 -> 0.0261 | W81: 2.614444556 | X81: 0 | Y81: =X81*Input!$B$46 -> 0 | Z81: =X81-X81*Input!$B$46 -> 0 | AB81: =AA81*Input!$B$46-('EE interventions'!$B45*Summary!$AC$8*Input!$B$46)-('EE interventions'!$M45*Summary!$AC$8*Input!$B$46) ->  | AC81: =AA81-(AA81*Input!$B$46) ->  | AH81: =AG81+AF81-'RE generation'!H$5*(1-Input!$F$56) ->  | AJ81: Time | AK81: 0 | AL81: 1 | AM81: 2 | AN81: 3 | AO81: 4 | AP81: 5 | AQ81: 6 | AR81: 7 | AS81: 8 | AT81: 9 | AU81: 10 | AV81: 11 | AW81: 12 | AX81: 13 | AY81: 14 | AZ81: 15 | BA81: 16 | BB81: 17 | BC81: 18 | BD81: 19 | BE81: 20 | BF81: 21 | BG81: 22 | BH81: 23
A82: 6 | C82: 0 | D82: 0 | E82: ='Load profiles'!O57 -> 0.0513 | F82: 5.131026205 | G82: 0 | H82: =G82*Input!$B$46 -> 0 | I82: =G82-G82*Input!$B$46 -> 0 | J82: =$I$2*12*($I$8/100)*(F82/100) ->  | K82: =J82*Input!$B$46-('EE interventions'!$B46*Summary!$AC$8*Input!$B$46)-('EE interventions'!$M46*Summary!$AC$8*Input!$B$46) ->  | L82: =J82-(J82*Input!$B$46) ->  | Q82: =P82+O82-'RE generation'!I$5*(1-Input!$F$56) ->  | R82: 6 | T82: 0 | U82: 0 | V82: ='Load profiles'!P57 -> 0.04 | W82: 4.00681158 | X82: 0 | Y82: =X82*Input!$B$46 -> 0 | Z82: =X82-X82*Input!$B$46 -> 0 | AB82: =AA82*Input!$B$46-('EE interventions'!$B46*Summary!$AC$8*Input!$B$46)-('EE interventions'!$M46*Summary!$AC$8*Input!$B$46) ->  | AC82: =AA82-(AA82*Input!$B$46) ->  | AH82: =AG82+AF82-'RE generation'!I$5*(1-Input!$F$56) ->  | AJ82: Consumption-Generation kWh's (summer) | AK82: =Q42 ->  | AL82: =Q43 ->  | AM82: =Q44 ->  | AN82: =Q45 ->  | AO82: =Q46 ->  | AP82: =Q47 ->  | AQ82: =Q48 ->  | AR82: =Q49 ->  | AS82: =Q50 ->  | AT82: =Q51 ->  | AU82: =Q52 ->  | AV82: =Q53 ->  | AW82: =Q54 ->  | AX82: =Q55 ->  | AY82: =Q56 ->  | AZ82: =Q57 ->  | BA82: =Q58 ->  | BB82: =Q59 ->  | BC82: =Q60 ->  | BD82: =Q61 ->  | BE82: =Q62 ->  | BF82: =Q63 ->  | BG82: =Q64 ->  | BH82: =Q65 -> 
A83: 7 | C83: 0.0110775428 | D83: 0.1700285957 | E83: ='Load profiles'!O58 -> 0.0473 | F83: 4.730946189 | G83: 0.01424245973 | H83: =G83*Input!$B$46 -> 0 | I83: =G83-G83*Input!$B$46 -> 0.01424245973 | K83: =J83*Input!$B$46-('EE interventions'!$B47*Summary!$AC$8*Input!$B$46)-('EE interventions'!$M47*Summary!$AC$8*Input!$B$46) ->  | L83: =J83-(J83*Input!$B$46) ->  | Q83: =P83+O83-'RE generation'!J$5*(1-Input!$F$56) ->  | R83: 7 | T83: 0.0110775428 | U83: 0.1700285957 | V83: ='Load profiles'!P58 -> 0.0431 | W83: 4.317339477 | X83: 0.01424245973 | Y83: =X83*Input!$B$46 -> 0 | Z83: =X83-X83*Input!$B$46 -> 0.01424245973 | AB83: =AA83*Input!$B$46-('EE interventions'!$B47*Summary!$AC$8*Input!$B$46)-('EE interventions'!$M47*Summary!$AC$8*Input!$B$46) ->  | AC83: =AA83-(AA83*Input!$B$46) ->  | AH83: =AG83+AF83-'RE generation'!J$5*(1-Input!$F$56) ->  | AJ83: Consumption-Generation kWh's (winter) | AK83: =Q76 ->  | AL83: =Q77 ->  | AM83: =Q78 ->  | AN83: =Q79 ->  | AO83: =Q80 ->  | AP83: =Q81 ->  | AQ83: =Q82 ->  | AR83: =Q83 ->  | AS83: =Q84 ->  | AT83: =Q85 ->  | AU83: =Q86 ->  | AV83: =Q87 ->  | AW83: =Q88 ->  | AX83: =Q89 ->  | AY83: =Q90 ->  | AZ83: =Q91 ->  | BA83: =Q92 ->  | BB83: =Q93 ->  | BC83: =Q94 ->  | BD83: =Q95 ->  | BE83: =Q96 ->  | BF83: =Q97 ->  | BG83: =Q98 ->  | BH83: =Q99 -> 
A84: 8 | C84: 0.1827794562 | D84: 2.805471829 | E84: ='Load profiles'!O59 -> 0.0454 | F84: 4.540908182 | G84: 0.2350005855 | H84: =G84*Input!$B$46 -> 0 | I84: =G84-G84*Input!$B$46 -> 0.2350005855 | K84: =J84*Input!$B$46-('EE interventions'!$B48*Summary!$AC$8*Input!$B$46)-('EE interventions'!$M48*Summary!$AC$8*Input!$B$46) ->  | L84: =J84-(J84*Input!$B$46) ->  | Q84: =P84+O84-'RE generation'!K$5*(1-Input!$F$56) ->  | R84: 8 | T84: 0.1827794562 | U84: 2.805471829 | V84: ='Load profiles'!P59 -> 0.0433 | W84: 4.337373535 | X84: 0.2350005855 | Y84: =X84*Input!$B$46 -> 0 | Z84: =X84-X84*Input!$B$46 -> 0.2350005855 | AB84: =AA84*Input!$B$46-('EE interventions'!$B48*Summary!$AC$8*Input!$B$46)-('EE interventions'!$M48*Summary!$AC$8*Input!$B$46) ->  | AC84: =AA84-(AA84*Input!$B$46) ->  | AH84: =AG84+AF84-'RE generation'!K$5*(1-Input!$F$56) -> 
A85: 9 | C85: 0.4607250755 | D85: 7.071643867 | E85: ='Load profiles'!O60 -> 0.0493 | F85: 4.930986197 | G85: 0.5923568478 | H85: =G85*Input!$B$46 -> 0 | I85: =G85-G85*Input!$B$46 -> 0.5923568478 | K85: =J85*Input!$B$46-('EE interventions'!$B49*Summary!$AC$8*Input!$B$46)-('EE interventions'!$M49*Summary!$AC$8*Input!$B$46) ->  | L85: =J85-(J85*Input!$B$46) ->  | Q85: =P85+O85-'RE generation'!L$5*(1-Input!$F$56) ->  | R85: 9 | T85: 0.4607250755 | U85: 7.071643867 | V85: ='Load profiles'!P60 -> 0.045 | W85: 4.507663027 | X85: 0.5923568478 | Y85: =X85*Input!$B$46 -> 0 | Z85: =X85-X85*Input!$B$46 -> 0.5923568478 | AB85: =AA85*Input!$B$46-('EE interventions'!$B49*Summary!$AC$8*Input!$B$46)-('EE interventions'!$M49*Summary!$AC$8*Input!$B$46) ->  | AC85: =AA85-(AA85*Input!$B$46) ->  | AH85: =AG85+AF85-'RE generation'!L$5*(1-Input!$F$56) -> 
A86: 10 | C86: 0.7129909366 | D86: 10.94365871 | E86: ='Load profiles'!O61 -> 0.0473 | F86: 4.730946189 | G86: 0.916696499 | H86: =G86*Input!$B$46 -> 0 | I86: =G86-G86*Input!$B$46 -> 0.916696499 | K86: =J86*Input!$B$46-('EE interventions'!$B50*Summary!$AC$8*Input!$B$46)-('EE interventions'!$M50*Summary!$AC$8*Input!$B$46) ->  | L86: =J86-(J86*Input!$B$46) ->  | Q86: =P86+O86-'RE generation'!M$5*(1-Input!$F$56) ->  | R86: 10 | T86: 0.7129909366 | U86: 10.94365871 | V86: ='Load profiles'!P61 -> 0.0453 | W86: 4.537714114 | X86: 0.916696499 | Y86: =X86*Input!$B$46 -> 0 | Z86: =X86-X86*Input!$B$46 -> 0.916696499 | AB86: =AA86*Input!$B$46-('EE interventions'!$B50*Summary!$AC$8*Input!$B$46)-('EE interventions'!$M50*Summary!$AC$8*Input!$B$46) ->  | AC86: =AA86-(AA86*Input!$B$46) ->  | AH86: =AG86+AF86-'RE generation'!M$5*(1-Input!$F$56) -> 
A87: 11 | C87: 0.9003021148 | D87: 13.81868769 | E87: ='Load profiles'!O62 -> 0.0434 | F87: 4.340868174 | G87: 1.157523545 | H87: =G87*Input!$B$46 -> 0 | I87: =G87-G87*Input!$B$46 -> 1.157523545 | K87: =J87*Input!$B$46-('EE interventions'!$B51*Summary!$AC$8*Input!$B$46)-('EE interventions'!$M51*Summary!$AC$8*Input!$B$46) ->  | L87: =J87-(J87*Input!$B$46) ->  | Q87: =P87+O87-'RE generation'!N$5*(1-Input!$F$56) ->  | R87: 11 | T87: 0.9003021148 | U87: 13.81868769 | V87: ='Load profiles'!P62 -> 0.048 | W87: 4.808173896 | X87: 1.157523545 | Y87: =X87*Input!$B$46 -> 0 | Z87: =X87-X87*Input!$B$46 -> 1.157523545 | AB87: =AA87*Input!$B$46-('EE interventions'!$B51*Summary!$AC$8*Input!$B$46)-('EE interventions'!$M51*Summary!$AC$8*Input!$B$46) ->  | AC87: =AA87-(AA87*Input!$B$46) ->  | AH87: =AG87+AF87-'RE generation'!N$5*(1-Input!$F$56) ->  | AJ87: Net metering selection (no=0, yes=1) | AK87: =Input!B72 -> 1
A88: 12 | C88: 1 | D88: 15.34894505 | E88: ='Load profiles'!O63 -> 0.0394 | F88: 3.940788158 | G88: 1.285705683 | H88: =G88*Input!$B$46 -> 0 | I88: =G88-G88*Input!$B$46 -> 1.285705683 | K88: =J88*Input!$B$46-('EE interventions'!$B52*Summary!$AC$8*Input!$B$46)-('EE interventions'!$M52*Summary!$AC$8*Input!$B$46) ->  | L88: =J88-(J88*Input!$B$46) ->  | Q88: =P88+O88-'RE generation'!O$5*(1-Input!$F$56) ->  | R88: 12 | T88: 1 | U88: 15.34894505 | V88: ='Load profiles'!P63 -> 0.0487 | W88: 4.878293098 | X88: 1.285705683 | Y88: =X88*Input!$B$46 -> 0 | Z88: =X88-X88*Input!$B$46 -> 1.285705683 | AB88: =AA88*Input!$B$46-('EE interventions'!$B52*Summary!$AC$8*Input!$B$46)-('EE interventions'!$M52*Summary!$AC$8*Input!$B$46) ->  | AC88: =AA88-(AA88*Input!$B$46) ->  | AH88: =AG88+AF88-'RE generation'!O$5*(1-Input!$F$56) -> 
A89: 13 | C89: 0.9924471299 | D89: 15.23301646 | E89: ='Load profiles'!O64 -> 0.0355 | F89: 3.550710142 | G89: 1.275994915 | H89: =G89*Input!$B$46 -> 0 | I89: =G89-G89*Input!$B$46 -> 1.275994915 | K89: =J89*Input!$B$46-('EE interventions'!$B53*Summary!$AC$8*Input!$B$46)-('EE interventions'!$M53*Summary!$AC$8*Input!$B$46) ->  | L89: =J89-(J89*Input!$B$46) ->  | Q89: =P89+O89-'RE generation'!P$5*(1-Input!$F$56) ->  | R89: 13 | T89: 0.9924471299 | U89: 15.23301646 | V89: ='Load profiles'!P64 -> 0.0475 | W89: 4.758088751 | X89: 1.275994915 | Y89: =X89*Input!$B$46 -> 0 | Z89: =X89-X89*Input!$B$46 -> 1.275994915 | AB89: =AA89*Input!$B$46-('EE interventions'!$B53*Summary!$AC$8*Input!$B$46)-('EE interventions'!$M53*Summary!$AC$8*Input!$B$46) ->  | AC89: =AA89-(AA89*Input!$B$46) ->  | AH89: =AG89+AF89-'RE generation'!P$5*(1-Input!$F$56) ->  | AJ89: Weekend
A90: 14 | C90: 0.8967774421 | D90: 13.76458768 | E90: ='Load profiles'!O65 -> 0.0355 | F90: 3.550710142 | G90: 1.152991854 | H90: =G90*Input!$B$46 -> 0 | I90: =G90-G90*Input!$B$46 -> 1.152991854 | K90: =J90*Input!$B$46-('EE interventions'!$B54*Summary!$AC$8*Input!$B$46)-('EE interventions'!$M54*Summary!$AC$8*Input!$B$46) ->  | L90: =J90-(J90*Input!$B$46) ->  | Q90: =P90+O90-'RE generation'!Q$5*(1-Input!$F$56) ->  | R90: 14 | T90: 0.8967774421 | U90: 13.76458768 | V90: ='Load profiles'!P65 -> 0.0456 | W90: 4.567765201 | X90: 1.152991854 | Y90: =X90*Input!$B$46 -> 0 | Z90: =X90-X90*Input!$B$46 -> 1.152991854 | AB90: =AA90*Input!$B$46-('EE interventions'!$B54*Summary!$AC$8*Input!$B$46)-('EE interventions'!$M54*Summary!$AC$8*Input!$B$46) ->  | AC90: =AA90-(AA90*Input!$B$46) ->  | AH90: =AG90+AF90-'RE generation'!Q$5*(1-Input!$F$56) ->  | AJ90: Time
A91: 15 | C91: 0.7099697885 | D91: 10.89728727 | E91: ='Load profiles'!O66 -> 0.0355 | F91: 3.550710142 | G91: 0.9128121918 | H91: =G91*Input!$B$46 -> 0 | I91: =G91-G91*Input!$B$46 -> 0.9128121918 | K91: =J91*Input!$B$46-('EE interventions'!$B55*Summary!$AC$8*Input!$B$46)-('EE interventions'!$M55*Summary!$AC$8*Input!$B$46) ->  | L91: =J91-(J91*Input!$B$46) ->  | Q91: =P91+O91-'RE generation'!R$5*(1-Input!$F$56) ->  | R91: 15 | T91: 0.7099697885 | U91: 10.89728727 | V91: ='Load profiles'!P66 -> 0.0457 | W91: 4.57778223 | X91: 0.9128121918 | Y91: =X91*Input!$B$46 -> 0 | Z91: =X91-X91*Input!$B$46 -> 0.9128121918 | AB91: =AA91*Input!$B$46-('EE interventions'!$B55*Summary!$AC$8*Input!$B$46)-('EE interventions'!$M55*Summary!$AC$8*Input!$B$46) ->  | AC91: =AA91-(AA91*Input!$B$46) ->  | AH91: =AG91+AF91-'RE generation'!R$5*(1-Input!$F$56) ->  | AJ91: Consumption-Generation kWh's (summer) | AK91: =IF($AK$87=0,AK77=0,AK77) ->  | AL91: =IF($AK$87=0,AL77=0,AL77) -> 
A92: 16 | C92: 0.4582074522 | D92: 7.033001005 | E92: ='Load profiles'!O67 -> 0.0394 | F92: 3.940788158 | G92: 0.5891199252 | H92: =G92*Input!$B$46 -> 0 | I92: =G92-G92*Input!$B$46 -> 0.5891199252 | K92: =J92*Input!$B$46-('EE interventions'!$B56*Summary!$AC$8*Input!$B$46)-('EE interventions'!$M56*Summary!$AC$8*Input!$B$46) ->  | L92: =J92-(J92*Input!$B$46) ->  | Q92: =P92+O92-'RE generation'!S$5*(1-Input!$F$56) ->  | R92: 16 | T92: 0.4582074522 | U92: 7.033001005 | V92: ='Load profiles'!P67 -> 0.048 | W92: 4.808173896 | X92: 0.5891199252 | Y92: =X92*Input!$B$46 -> 0 | Z92: =X92-X92*Input!$B$46 -> 0.5891199252 | AB92: =AA92*Input!$B$46-('EE interventions'!$B56*Summary!$AC$8*Input!$B$46)-('EE interventions'!$M56*Summary!$AC$8*Input!$B$46) ->  | AC92: =AA92-(AA92*Input!$B$46) ->  | AH92: =AG92+AF92-'RE generation'!S$5*(1-Input!$F$56) ->  | AJ92: Consumption-Generation kWh's (winter) | AK92: =IF($AK$87=0,AK78=0,AK78) ->  | AL92: =IF($AK$87=0,AL78=0,AL78) -> 
A93: 17 | C93: 0.1797583082 | D93: 2.759100394 | E93: ='Load profiles'!O68 -> 0.0631 | F93: 6.311262252 | G93: 0.2311162783 | H93: =G93*Input!$B$46 -> 0 | I93: =G93-G93*Input!$B$46 -> 0.2311162783 | K93: =J93*Input!$B$46-('EE interventions'!$B57*Summary!$AC$8*Input!$B$46)-('EE interventions'!$M57*Summary!$AC$8*Input!$B$46) ->  | L93: =J93-(J93*Input!$B$46) ->  | Q93: =P93+O93-'RE generation'!T$5*(1-Input!$F$56) ->  | R93: 17 | T93: 0.1797583082 | U93: 2.759100394 | V93: ='Load profiles'!P68 -> 0.0489 | W93: 4.898327156 | X93: 0.2311162783 | Y93: =X93*Input!$B$46 -> 0 | Z93: =X93-X93*Input!$B$46 -> 0.2311162783 | AB93: =AA93*Input!$B$46-('EE interventions'!$B57*Summary!$AC$8*Input!$B$46)-('EE interventions'!$M57*Summary!$AC$8*Input!$B$46) ->  | AC93: =AA93-(AA93*Input!$B$46) ->  | AH93: =AG93+AF93-'RE generation'!T$5*(1-Input!$F$56) -> 
A94: 18 | C94: 0.01007049345 | D94: 0.1545714507 | E94: ='Load profiles'!O69 -> 0.0552 | F94: 5.521104221 | G94: 0.01294769066 | H94: =G94*Input!$B$46 -> 0 | I94: =G94-G94*Input!$B$46 -> 0.01294769066 | K94: =J94*Input!$B$46-('EE interventions'!$B58*Summary!$AC$8*Input!$B$46)-('EE interventions'!$M58*Summary!$AC$8*Input!$B$46) ->  | L94: =J94-(J94*Input!$B$46) ->  | Q94: =P94+O94-'RE generation'!U$5*(1-Input!$F$56) ->  | R94: 18 | T94: 0.01007049345 | U94: 0.1545714507 | V94: ='Load profiles'!P69 -> 0.05 | W94: 5.008514475 | X94: 0.01294769066 | Y94: =X94*Input!$B$46 -> 0 | Z94: =X94-X94*Input!$B$46 -> 0.01294769066 | AB94: =AA94*Input!$B$46-('EE interventions'!$B58*Summary!$AC$8*Input!$B$46)-('EE interventions'!$M58*Summary!$AC$8*Input!$B$46) ->  | AC94: =AA94-(AA94*Input!$B$46) ->  | AH94: =AG94+AF94-'RE generation'!U$5*(1-Input!$F$56) ->  | AJ94: Weekday
A95: 19 | C95: 0 | D95: 0 | E95: ='Load profiles'!O70 -> 0.0631 | F95: 6.311262252 | G95: 0 | H95: =G95*Input!$B$46 -> 0 | I95: =G95-G95*Input!$B$46 -> 0 | K95: =J95*Input!$B$46-('EE interventions'!$B59*Summary!$AC$8*Input!$B$46)-('EE interventions'!$M59*Summary!$AC$8*Input!$B$46) ->  | L95: =J95-(J95*Input!$B$46) ->  | Q95: =P95+O95-'RE generation'!V$5*(1-Input!$F$56) ->  | R95: 19 | T95: 0 | U95: 0 | V95: ='Load profiles'!P70 -> 0.06 | W95: 6.01021737 | X95: 0 | Y95: =X95*Input!$B$46 -> 0 | Z95: =X95-X95*Input!$B$46 -> 0 | AB95: =AA95*Input!$B$46-('EE interventions'!$B59*Summary!$AC$8*Input!$B$46)-('EE interventions'!$M59*Summary!$AC$8*Input!$B$46) ->  | AC95: =AA95-(AA95*Input!$B$46) ->  | AH95: =AG95+AF95-'RE generation'!V$5*(1-Input!$F$56) ->  | AJ95: Time
A96: 20 | C96: 0 | D96: 0 | E96: ='Load profiles'!O71 -> 0.071 | F96: 7.101420284 | G96: 0 | H96: =G96*Input!$B$46 -> 0 | I96: =G96-G96*Input!$B$46 -> 0 | K96: =J96*Input!$B$46-('EE interventions'!$B60*Summary!$AC$8*Input!$B$46)-('EE interventions'!$M60*Summary!$AC$8*Input!$B$46) ->  | L96: =J96-(J96*Input!$B$46) ->  | Q96: =P96+O96-'RE generation'!W$5*(1-Input!$F$56) ->  | R96: 20 | T96: 0 | U96: 0 | V96: ='Load profiles'!P71 -> 0.06 | W96: 6.01021737 | X96: 0 | Y96: =X96*Input!$B$46 -> 0 | Z96: =X96-X96*Input!$B$46 -> 0 | AB96: =AA96*Input!$B$46-('EE interventions'!$B60*Summary!$AC$8*Input!$B$46)-('EE interventions'!$M60*Summary!$AC$8*Input!$B$46) ->  | AC96: =AA96-(AA96*Input!$B$46) ->  | AH96: =AG96+AF96-'RE generation'!W$5*(1-Input!$F$56) ->  | AJ96: Consumption-Generation kWh's (summer) | AK96: =IF($AK$87=0,AK82=0,AK82) ->  | AL96: =IF($AK$87=0,AL82=0,AL82) -> 
A97: 21 | C97: 0 | D97: 0 | E97: ='Load profiles'!O72 -> 0.0631 | F97: 6.311262252 | G97: 0 | H97: =G97*Input!$B$46 -> 0 | I97: =G97-G97*Input!$B$46 -> 0 | K97: =J97*Input!$B$46-('EE interventions'!$B61*Summary!$AC$8*Input!$B$46)-('EE interventions'!$M61*Summary!$AC$8*Input!$B$46) ->  | L97: =J97-(J97*Input!$B$46) ->  | Q97: =P97+O97-'RE generation'!X$5*(1-Input!$F$56) ->  | R97: 21 | T97: 0 | U97: 0 | V97: ='Load profiles'!P72 -> 0.057 | W97: 5.709706501 | X97: 0 | Y97: =X97*Input!$B$46 -> 0 | Z97: =X97-X97*Input!$B$46 -> 0 | AB97: =AA97*Input!$B$46-('EE interventions'!$B61*Summary!$AC$8*Input!$B$46)-('EE interventions'!$M61*Summary!$AC$8*Input!$B$46) ->  | AC97: =AA97-(AA97*Input!$B$46) ->  | AH97: =AG97+AF97-'RE generation'!X$5*(1-Input!$F$56) ->  | AJ97: Consumption-Generation kWh's (winter) | AK97: =IF($AK$87=0,AK83=0,AK83) ->  | AL97: =IF($AK$87=0,AL83=0,AL83) -> 
A98: 22 | C98: 0 | D98: 0 | E98: ='Load profiles'!O73 -> 0.0473 | F98: 4.730946189 | G98: 0 | H98: =G98*Input!$B$46 -> 0 | I98: =G98-G98*Input!$B$46 -> 0 | K98: =J98*Input!$B$46-('EE interventions'!$B62*Summary!$AC$8*Input!$B$46)-('EE interventions'!$M62*Summary!$AC$8*Input!$B$46) ->  | L98: =J98-(J98*Input!$B$46) ->  | Q98: =P98+O98-'RE generation'!Y$5*(1-Input!$F$56) ->  | R98: 22 | T98: 0 | U98: 0 | V98: ='Load profiles'!P73 -> 0.047 | W98: 4.708003606 | X98: 0 | Y98: =X98*Input!$B$46 -> 0 | Z98: =X98-X98*Input!$B$46 -> 0 | AB98: =AA98*Input!$B$46-('EE interventions'!$B62*Summary!$AC$8*Input!$B$46)-('EE interventions'!$M62*Summary!$AC$8*Input!$B$46) ->  | AC98: =AA98-(AA98*Input!$B$46) ->  | AH98: =AG98+AF98-'RE generation'!Y$5*(1-Input!$F$56) -> 
A99: 23 | C99: 0 | D99: 0 | E99: ='Load profiles'!O74 -> 0.0316 | F99: 3.160632126 | G99: 0 | H99: =G99*Input!$B$46 -> 0 | I99: =G99-G99*Input!$B$46 -> 0 | K99: =J99*Input!$B$46-('EE interventions'!$B63*Summary!$AC$8*Input!$B$46)-('EE interventions'!$M63*Summary!$AC$8*Input!$B$46) ->  | L99: =J99-(J99*Input!$B$46) ->  | Q99: =P99+O99-'RE generation'!Z$5*(1-Input!$F$56) ->  | R99: 23 | T99: 0 | U99: 0 | V99: ='Load profiles'!P74 -> 0.035 | W99: 3.505960132 | X99: 0 | Y99: =X99*Input!$B$46 -> 0 | Z99: =X99-X99*Input!$B$46 -> 0 | AB99: =AA99*Input!$B$46-('EE interventions'!$B63*Summary!$AC$8*Input!$B$46)-('EE interventions'!$M63*Summary!$AC$8*Input!$B$46) ->  | AC99: =AA99-(AA99*Input!$B$46) ->  | AH99: =AG99+AF99-'RE generation'!Z$5*(1-Input!$F$56) -> 
C100: =SUM(C76:C99) -> 6.51510574 | E100: =SUM(E76:E99) -> 0.9998 | F100: 100 | G100: 8.376508475 | H100: 0 | I100: 8.376508475 | T100: =SUM(T76:T99) -> 6.51510574 | V100: =SUM(V76:V99) -> 0.9983 | W100: 100 | X100: 8.376508475 | Y100: 0 | Z100: 8.376508475
I101: =SUM(H100:I100) -> 8.376508475 | L101: =SUM(K100:L100) ->  | Z101: =SUM(Y100:Z100) -> 8.376508475 | AC101: =SUM(AB100:AC100) -> 
F110: Comm customers >600kwh/month
F111: Average monthly consumption: | H111: kwh | I111: =Summary!AC4/12/Projections!G11*Summary!AC11 -> 
F112: Size of PV panel pk DC kW | H112: kwh | I112: =Summary!AC12*Summary!AC11 -> 4.5
F113: Ave daily DC output per kWh pk DC pv panel kWh | I113: ='RE generation'!AB33 -> 5.109251413
F114: Yearly DC output per kWh pk DC pv panel kWh | I114: =I113*365 -> 1864.876766
F115: Inverter efficiency | I115: 0.8
F116: Summer- 1 day's consumption as % of yearly | I116: ='Load profiles'!I134*100 -> 
F117: Winter- 1 day's consumption as % of yearly | I117: ='Load profiles'!G134*100 -> 
F118: Summer -1 day's generation as % of yearly | I118: ='RE generation'!AB30*100 -> 0.2740016358
F119: Winter -1 day's generation as % of yearly | I119: ='RE generation'!AB31*100 -> 0.2738855035
F120: Summer -1 day's consumption as % of yearly (weekend) | I120: ='Load profiles'!J134*100 -> 
F121: Winter- 1 day's consumption as % of yearly (weekend) | I121: ='Load profiles'!H134*100 -> 
C136: Low Demand | E136: total c/kWh
C137: Eskom tariff off-peak | E137: =Projections!I44 -> 0
C138: Eskom tariff-standard | E138: =Projections!I45 -> 0
C139: Eskom tariff- peak | E139: =Projections!I46 -> 0
C141: High Demand | E141: total c/kWh
C142: Eskom tariff off-peak | E142: =Projections!J44 -> 0
C143: Eskom tariff-standard | E143: =Projections!J45 -> 0
C144: Eskom tariff- peak | E144: =Projections!J46 -> 0
F146: Summer | P146: Summer weekend
A148: Hour | C148: % generation | F148: % consumption | G148: Actual Generation kWh's | H148: Actual Consumption kWh's | I148: Consumption- Generation kWh's | K148: Hour | M148: % generation | P148: % consumption | Q148: Actual Generation kWh's | R148: Actual Consumption kWh's | S148: Consumption- Generation kWh's
A149: 0 | C149: 0 | D149: =C149/$C$66*100 -> 0 | E149: ='Load profiles'!Q126 -> 0.03233563218 | F149: =E149/E$173*100 -> 3.233563218 | G149: =(D149/100)*$I$112*($I$118/100)*$I$114*$I$115 -> 0 | H149: =$I$111*12*($I$116/100)*(F149/100) ->  | I149: =H149-G149 ->  | K149: 0 | M149: 0 | N149: =M149/$C$66*100 -> 0 | O149: ='Load profiles'!R126 -> 0.04020903472 | P149: =O149/O$173*100 -> 4.020903472 | Q149: =(N149/100)*$I$112*($I$118/100)*$I$114*$I$115 -> 0 | R149: =$I$111*12*($I$120/100)*(P149/100) ->  | S149: =R149-Q149 -> 
A150: 1 | C150: 0 | D150: =C150/$C$66*100 -> 0 | E150: ='Load profiles'!Q127 -> 0.03443563218 | F150: 3.443563218 | G150: 0 | I150: =H150-G150 ->  | K150: 1 | M150: 0 | N150: =M150/$C$66*100 -> 0 | O150: ='Load profiles'!R127 -> 0.0403999799 | P150: 4.03999799 | Q150: 0 | S150: =R150-Q150 -> 
A151: 2 | C151: 0 | D151: 0 | E151: ='Load profiles'!Q128 -> 0.03393563218 | F151: 3.393563218 | G151: 0 | K151: 2 | M151: 0 | N151: 0 | O151: ='Load profiles'!R128 -> 0.04044017889 | P151: 4.044017889 | Q151: 0
A152: 3 | C152: 0 | D152: 0 | E152: ='Load profiles'!Q129 -> 0.03213563218 | F152: 3.213563218 | G152: 0 | K152: 3 | M152: 0 | N152: 0 | O152: ='Load profiles'!R129 -> 0.0403999799 | P152: 4.03999799 | Q152: 0
A153: 4 | C153: 0 | D153: 0 | E153: ='Load profiles'!Q130 -> 0.03213563218 | F153: 3.213563218 | G153: 0 | K153: 4 | M153: 0 | N153: 0 | O153: ='Load profiles'!R130 -> 0.04050047736 | P153: 4.050047736 | Q153: 0
A154: 5 | C154: 0 | D154: 0 | E154: ='Load profiles'!Q131 -> 0.03677241379 | F154: 3.677241379 | G154: 0 | K154: 5 | M154: 0 | N154: 0 | O154: ='Load profiles'!R131 -> 0.04220893422 | P154: 4.220893422 | Q154: 0
A155: 6 | C155: 0.01088045812 | D155: 0.147443981 | E155: ='Load profiles'!Q132 -> 0.04118275862 | F155: 4.118275862 | G155: 0.02712269516 | K155: 6 | M155: 0.01088045812 | N155: 0.147443981 | O155: ='Load profiles'!R132 -> 0.04261092407 | P155: 4.261092407 | Q155: 0.02712269516
A156: 7 | C156: 0.1186828919 | D156: 1.608303424 | E156: ='Load profiles'!Q133 -> 0.05205057471 | F156: 5.205057471 | G156: 0.2958515038 | K156: 7 | M156: 0.1186828919 | N156: 1.608303424 | O156: ='Load profiles'!R133 -> 0.042811919 | P156: 4.2811919 | Q156: 0.2958515038
A157: 8 | C157: 0.3357193987 | D157: 4.549422834 | E157: ='Load profiles'!Q134 -> 0.04807931034 | F157: 4.807931034 | G157: 0.8368778968 | K157: 8 | M157: 0.3357193987 | N157: 4.549422834 | O157: ='Load profiles'!R134 -> 0.04301291392 | P157: 4.301291392 | Q157: 0.8368778968
A158: 9 | C158: 0.572226199 | D158: 7.754389369 | E158: ='Load profiles'!Q135 -> 0.05373448276 | F158: 5.373448276 | G158: 1.426439639 | K158: 9 | M158: 0.572226199 | N158: 7.754389369 | O158: ='Load profiles'!R135 -> 0.04321390885 | P158: 4.321390885 | Q158: 1.426439639
A159: 10 | C159: 0.7789549034 | D159: 10.55582501 | E159: ='Load profiles'!Q136 -> 0.05185287356 | F159: 5.185287356 | G159: 1.941770847 | I159: =H159-G159 ->  | K159: 10 | M159: 0.7789549034 | N159: 10.55582501 | O159: ='Load profiles'!R136 -> 0.04301291392 | P159: 4.301291392 | Q159: 1.941770847 | S159: =R159-Q159 -> 
A160: 11 | C160: 0.9302791696 | D160: 12.60646037 | E160: ='Load profiles'!Q137 -> 0.05013448276 | F160: 5.013448276 | G160: 2.318990436 | I160: =H160-G160 ->  | K160: 11 | M160: 0.9302791696 | N160: 12.60646037 | O160: ='Load profiles'!R137 -> 0.04331440631 | P160: 4.331440631 | Q160: 2.318990436 | S160: =R160-Q160 -> 
A161: 12 | C161: 1.001574803 | D161: 13.57260646 | E161: ='Load profiles'!Q138 -> 0.05409770115 | F161: 5.409770115 | G161: 2.496715465 | K161: 12 | M161: 1.001574803 | N161: 13.57260646 | O161: ='Load profiles'!R138 -> 0.04301291392 | P161: 4.301291392 | Q161: 2.496715465
A162: 13 | C162: 1 | D162: 13.55126588 | E162: ='Load profiles'!Q139 -> 0.05297931034 | F162: 5.297931034 | G162: 2.492789812 | K162: 13 | M162: 1 | N162: 13.55126588 | O162: ='Load profiles'!R139 -> 0.042811919 | P162: 4.2811919 | Q162: 2.492789812
A163: 14 | C163: 0.9138153185 | D163: 12.38335435 | E163: ='Load profiles'!Q140 -> 0.05356091954 | F163: 5.356091954 | G163: 2.277949516 | K163: 14 | M163: 0.9138153185 | N163: 12.38335435 | O163: ='Load profiles'!R140 -> 0.04261092407 | P163: 4.261092407 | Q163: 2.277949516
A164: 15 | C164: 0.7511811024 | D164: 10.17945485 | E164: ='Load profiles'!Q141 -> 0.05356091954 | F164: 5.356091954 | G164: 1.872536599 | K164: 15 | M164: 0.7511811024 | N164: 10.17945485 | O164: ='Load profiles'!R141 -> 0.042811919 | P164: 4.2811919 | Q164: 1.872536599
A165: 16 | C165: 0.538869005 | D165: 7.302357164 | E165: ='Load profiles'!Q142 -> 0.05464252874 | F165: 5.464252874 | G165: 1.343287166 | K165: 16 | M165: 0.538869005 | N165: 7.302357164 | O165: ='Load profiles'!R142 -> 0.04220893422 | P165: 4.220893422 | Q165: 1.343287166
A166: 17 | C166: 0.3089477452 | D166: 4.186633039 | E166: ='Load profiles'!Q143 -> 0.05906896552 | F166: 5.906896552 | G166: 0.7701417916 | K166: 17 | M166: 0.3089477452 | N166: 4.186633039 | O166: ='Load profiles'!R143 -> 0.04220893422 | P166: 4.220893422 | Q166: 0.7701417916
A167: 18 | C167: 0.1078024338 | D167: 1.460859443 | E167: ='Load profiles'!Q144 -> 0.0364954023 | F167: 3.64954023 | G167: 0.2687288086 | K167: 18 | M167: 0.1078024338 | N167: 1.460859443 | O167: ='Load profiles'!R144 -> 0.04050047736 | P167: 4.050047736 | Q167: 0.2687288086
A168: 19 | C168: 0.01045096636 | D168: 0.1416238238 | E168: ='Load profiles'!Q145 -> 0.04029310345 | F168: 4.029310345 | G168: 0.02605206246 | K168: 19 | M168: 0.01045096636 | N168: 0.1416238238 | O168: ='Load profiles'!R145 -> 0.0403999799 | P168: 4.03999799 | Q168: 0.02605206246
A169: 20 | C169: 0 | D169: 0 | E169: ='Load profiles'!Q146 -> 0.03167241379 | F169: 3.167241379 | G169: 0 | K169: 20 | M169: 0 | N169: 0 | O169: ='Load profiles'!R146 -> 0.04044017889 | P169: 4.044017889 | Q169: 0
A170: 21 | C170: 0 | D170: 0 | E170: ='Load profiles'!Q147 -> 0.02087241379 | F170: 2.087241379 | G170: 0 | K170: 21 | M170: 0 | N170: 0 | O170: ='Load profiles'!R147 -> 0.04046027838 | P170: 4.046027838 | Q170: 0
A171: 22 | C171: 0 | D171: 0 | E171: ='Load profiles'!Q148 -> 0.02023563218 | F171: 2.023563218 | G171: 0 | K171: 22 | M171: 0 | N171: 0 | O171: ='Load profiles'!R148 -> 0.04019898498 | P171: 4.019898498 | Q171: 0
A172: 23 | C172: 0 | D172: 0 | E172: ='Load profiles'!Q149 -> 0.02373563218 | F172: 2.373563218 | G172: 0 | K172: 23 | M172: 0 | N172: 0 | O172: ='Load profiles'!R149 -> 0.04019898498 | P172: 4.019898498 | Q172: 0
C173: =SUM(C149:C172) -> 7.379384395 | E173: =SUM(E149:E172) -> 1 | F173: =SUM(F149:F172) -> 100 | G173: =(D173/100)*$I$112*($I$118/100)*$I$113*$I$114 -> 0 | M173: =SUM(M149:M172) -> 7.379384395 | O173: =SUM(O149:O172) -> 1 | P173: =SUM(P149:P172) -> 100 | Q173: =(N173/100)*$I$112*($I$118/100)*$I$113*$I$114 -> 0
F180: Winter | P180: Winter weekend
A182: Hour | C182: % generation | F182: % consumption | G182: Actual Generation kWh's | H182: Actual Consumption kWh's | I182: Consumption- Generation kWh's | K182: Hour | M182: % generation | P182: % consumption | Q182: Actual Generation kWh's | R182: Actual Consumption kWh's | S182: Consumption- Generation kWh's | U182: Weekend
A183: 0 | C183: 0 | D183: =C183/$C$100*100 -> 0 | E183: ='Load profiles'!O126 -> 0.02873563218 | F183: =E183/E$207*100 -> 2.873563218 | G183: =(D183/100)*$I$112*($I$119/100)*$I$114*$I$115 -> 0 | H183: =$I$111*12*($I$117/100)*(F183/100) ->  | I183: =H183-G183 ->  | K183: 0 | M183: 0 | N183: =M183/$C$100*100 -> 0 | O183: ='Load profiles'!P126 -> 0.04020903472 | P183: =O183/O$207*100 -> 4.020903472 | Q183: =(N183/100)*$I$112*($I$119/100)*$I$114*$I$115 -> 0 | R183: =$I$111*12*($I$121/100)*(P183/100) ->  | S183: =R183-Q183 ->  | U183: Time | V183: 0 | W183: 1 | X183: 2 | Y183: 3 | Z183: 4 | AA183: 5 | AB183: 6 | AC183: 7 | AD183: 8 | AE183: 9 | AF183: 10 | AG183: 11 | AH183: 12 | AI183: 13 | AJ183: 14 | AK183: 15 | AL183: 16 | AM183: 17 | AN183: 18 | AO183: 19 | AP183: 20 | AQ183: 21 | AR183: 22 | AS183: 23
A184: 1 | C184: 0 | D184: =C184/$C$100*100 -> 0 | E184: ='Load profiles'!O127 -> 0.02873563218 | F184: 2.873563218 | G184: 0 | I184: =H184-G184 ->  | K184: 1 | M184: 0 | N184: =M184/$C$100*100 -> 0 | O184: ='Load profiles'!P127 -> 0.0403999799 | P184: 4.03999799 | Q184: 0 | S184: =R184-Q184 ->  | U184: Consumption-Generation kWh's (summer) | V184: =S149 ->  | W184: =S150 ->  | X184: =S151 ->  | Y184: =S152 ->  | Z184: =S153 ->  | AA184: =S154 ->  | AB184: =S155 ->  | AC184: =S156 ->  | AD184: =S157 ->  | AE184: =S158 ->  | AF184: =S159 ->  | AG184: =S160 ->  | AH184: =S161 ->  | AI184: =S162 ->  | AJ184: =S163 ->  | AK184: =S164 ->  | AL184: =S165 ->  | AM184: =S166 ->  | AN184: =S167 ->  | AO184: =S168 ->  | AP184: =S169 ->  | AQ184: =S170 ->  | AR184: =S171 ->  | AS184: =S172 -> 
A185: 2 | C185: 0 | D185: 0 | E185: ='Load profiles'!O128 -> 0.02873563218 | F185: 2.873563218 | G185: 0 | K185: 2 | M185: 0 | N185: 0 | O185: ='Load profiles'!P128 -> 0.04044017889 | P185: 4.044017889 | Q185: 0 | U185: Consumption-Generation kWh's (winter) | V185: =S183 ->  | W185: =S184 ->  | X185: =S185 ->  | Y185: =S186 ->  | Z185: =S187 ->  | AA185: =S188 ->  | AB185: =S189 ->  | AC185: =S190 ->  | AD185: =S191 ->  | AE185: =S192 ->  | AF185: =S193 ->  | AG185: =S194 ->  | AH185: =S195 ->  | AI185: =S196 ->  | AJ185: =S197 ->  | AK185: =S198 ->  | AL185: =S199 ->  | AM185: =S200 ->  | AN185: =S201 ->  | AO185: =S202 ->  | AP185: =S203 ->  | AQ185: =S204 ->  | AR185: =S205 ->  | AS185: =S206 -> 
A186: 3 | C186: 0 | D186: 0 | E186: ='Load profiles'!O129 -> 0.02873563218 | F186: 2.873563218 | G186: 0 | K186: 3 | M186: 0 | N186: 0 | O186: ='Load profiles'!P129 -> 0.0403999799 | P186: 4.03999799 | Q186: 0
A187: 4 | C187: 0 | D187: 0 | E187: ='Load profiles'!O130 -> 0.02873563218 | F187: 2.873563218 | G187: 0 | K187: 4 | M187: 0 | N187: 0 | O187: ='Load profiles'!P130 -> 0.04050047736 | P187: 4.050047736 | Q187: 0 | U187: Weekday
A188: 5 | C188: 0 | D188: 0 | E188: ='Load profiles'!O131 -> 0.03017241379 | F188: 3.017241379 | G188: 0 | K188: 5 | M188: 0 | N188: 0 | O188: ='Load profiles'!P131 -> 0.04220893422 | P188: 4.220893422 | Q188: 0 | U188: Time | V188: 0 | W188: 1 | X188: 2 | Y188: 3 | Z188: 4 | AA188: 5 | AB188: 6 | AC188: 7 | AD188: 8 | AE188: 9 | AF188: 10 | AG188: 11 | AH188: 12 | AI188: 13 | AJ188: 14 | AK188: 15 | AL188: 16 | AM188: 17 | AN188: 18 | AO188: 19 | AP188: 20 | AQ188: 21 | AR188: 22 | AS188: 23
A189: 6 | C189: 0 | D189: 0 | E189: ='Load profiles'!O132 -> 0.03448275862 | F189: 3.448275862 | G189: 0 | K189: 6 | M189: 0 | N189: 0 | O189: ='Load profiles'!P132 -> 0.04261092407 | P189: 4.261092407 | Q189: 0 | U189: Consumption-Generation kWh's (summer) | V189: =I149 ->  | W189: =I150 ->  | X189: =I151 ->  | Y189: =I152 ->  | Z189: =I153 ->  | AA189: =I154 ->  | AB189: =I155 ->  | AC189: =I156 ->  | AD189: =I157 ->  | AE189: =I158 ->  | AF189: =I159 ->  | AG189: =I160 ->  | AH189: =I161 ->  | AI189: =I162 ->  | AJ189: =I163 ->  | AK189: =I164 ->  | AL189: =I165 ->  | AM189: =I166 ->  | AN189: =I167 ->  | AO189: =I168 ->  | AP189: =I169 ->  | AQ189: =I170 ->  | AR189: =I171 ->  | AS189: =I172 -> 
A190: 7 | C190: 0.0110775428 | D190: 0.1700285957 | E190: ='Load profiles'!O133 -> 0.04885057471 | F190: 4.885057471 | G190: 0.03126393599 | K190: 7 | M190: 0.0110775428 | N190: 0.1700285957 | O190: ='Load profiles'!P133 -> 0.042811919 | P190: 4.2811919 | Q190: 0.03126393599 | U190: Consumption-Generation kWh's (winter) | V190: =I183 ->  | W190: =I184 ->  | X190: =I185 ->  | Y190: =I186 ->  | Z190: =I187 ->  | AA190: =I188 ->  | AB190: =I189 ->  | AC190: =I190 ->  | AD190: =I191 ->  | AE190: =I192 ->  | AF190: =I193 ->  | AG190: =I194 ->  | AH190: =I195 ->  | AI190: =I196 ->  | AJ190: =I197 ->  | AK190: =I198 ->  | AL190: =I199 ->  | AM190: =I200 ->  | AN190: =I201 ->  | AO190: =I202 ->  | AP190: =I203 ->  | AQ190: =I204 ->  | AR190: =I205 ->  | AS190: =I206 -> 
A191: 8 | C191: 0.1827794562 | D191: 2.805471829 | E191: ='Load profiles'!O134 -> 0.05387931034 | F191: 5.387931034 | G191: 0.5158549439 | K191: 8 | M191: 0.1827794562 | N191: 2.805471829 | O191: ='Load profiles'!P134 -> 0.04301291392 | P191: 4.301291392 | Q191: 0.5158549439
A192: 9 | C192: 0.4607250755 | D192: 7.071643867 | E192: ='Load profiles'!O135 -> 0.05603448276 | F192: 5.603448276 | G192: 1.30029552 | K192: 9 | M192: 0.4607250755 | N192: 7.071643867 | O192: ='Load profiles'!P135 -> 0.04321390885 | P192: 4.321390885 | Q192: 1.30029552
A193: 10 | C193: 0.7129909366 | D193: 10.94365871 | E193: ='Load profiles'!O136 -> 0.05675287356 | F193: 5.675287356 | G193: 2.012260607 | K193: 10 | M193: 0.7129909366 | N193: 10.94365871 | O193: ='Load profiles'!P136 -> 0.04301291392 | P193: 4.301291392 | Q193: 2.012260607
A194: 11 | C194: 0.9003021148 | D194: 13.81868769 | E194: ='Load profiles'!O137 -> 0.05603448276 | F194: 5.603448276 | G194: 2.540905343 | K194: 11 | M194: 0.9003021148 | N194: 13.81868769 | O194: ='Load profiles'!P137 -> 0.04331440631 | P194: 4.331440631 | Q194: 2.540905343 | U194: Net metering selection (no=0, yes=1) | V194: =Input!B73 -> 1
A195: 12 | C195: 1 | D195: 15.34894505 | E195: ='Load profiles'!O138 -> 0.05459770115 | F195: 5.459770115 | G195: 2.822280767 | K195: 12 | M195: 1 | N195: 15.34894505 | O195: ='Load profiles'!P138 -> 0.04301291392 | P195: 4.301291392 | Q195: 2.822280767
A196: 13 | C196: 0.9924471299 | D196: 15.23301646 | E196: ='Load profiles'!O139 -> 0.05387931034 | F196: 5.387931034 | G196: 2.800964447 | K196: 13 | M196: 0.9924471299 | N196: 15.23301646 | O196: ='Load profiles'!P139 -> 0.042811919 | P196: 4.2811919 | Q196: 2.800964447 | U196: Weekend
A197: 14 | C197: 0.8967774421 | D197: 13.76458768 | E197: ='Load profiles'!O140 -> 0.05316091954 | F197: 5.316091954 | G197: 2.530957727 | K197: 14 | M197: 0.8967774421 | N197: 13.76458768 | O197: ='Load profiles'!P140 -> 0.04261092407 | P197: 4.261092407 | Q197: 2.530957727 | U197: Time
A198: 15 | C198: 0.7099697885 | D198: 10.89728727 | E198: ='Load profiles'!O141 -> 0.05316091954 | F198: 5.316091954 | G198: 2.003734079 | K198: 15 | M198: 0.7099697885 | N198: 10.89728727 | O198: ='Load profiles'!P141 -> 0.042811919 | P198: 4.2811919 | Q198: 2.003734079 | U198: Consumption-Generation kWh's (summer) | V198: =IF($V$194=0,V184=0,V184) ->  | W198: =IF($V$194=0,W184=0,W184) -> 
A199: 16 | C199: 0.4582074522 | D199: 7.033001005 | E199: ='Load profiles'!O142 -> 0.05244252874 | F199: 5.244252874 | G199: 1.29319008 | K199: 16 | M199: 0.4582074522 | N199: 7.033001005 | O199: ='Load profiles'!P142 -> 0.04220893422 | P199: 4.220893422 | Q199: 1.29319008 | U199: Consumption-Generation kWh's (winter) | V199: =IF($V$194=0,V185=0,V185) ->  | W199: =IF($V$194=0,W185=0,W185) -> 
A200: 17 | C200: 0.1797583082 | D200: 2.759100394 | E200: ='Load profiles'!O143 -> 0.04956896552 | F200: 4.956896552 | G200: 0.5073284159 | K200: 17 | M200: 0.1797583082 | N200: 2.759100394 | O200: ='Load profiles'!P143 -> 0.04220893422 | P200: 4.220893422 | Q200: 0.5073284159
A201: 18 | C201: 0.01007049345 | D201: 0.1545714507 | E201: ='Load profiles'!O144 -> 0.0466954023 | F201: 4.66954023 | G201: 0.02842175999 | K201: 18 | M201: 0.01007049345 | N201: 0.1545714507 | O201: ='Load profiles'!P144 -> 0.04050047736 | P201: 4.050047736 | Q201: 0.02842175999 | U201: Weekday
A202: 19 | C202: 0 | D202: 0 | E202: ='Load profiles'!O145 -> 0.03879310345 | F202: 3.879310345 | G202: 0 | K202: 19 | M202: 0 | N202: 0 | O202: ='Load profiles'!P145 -> 0.0403999799 | P202: 4.03999799 | Q202: 0 | U202: Time
A203: 20 | C203: 0 | D203: 0 | E203: ='Load profiles'!O146 -> 0.03017241379 | F203: 3.017241379 | G203: 0 | K203: 20 | M203: 0 | N203: 0 | O203: ='Load profiles'!P146 -> 0.04044017889 | P203: 4.044017889 | Q203: 0 | U203: Consumption-Generation kWh's (summer) | V203: =IF($V$194=0,V189=0,V189) ->  | W203: =IF($V$194=0,W189=0,W189) -> 
A204: 21 | C204: 0 | D204: 0 | E204: ='Load profiles'!O147 -> 0.03017241379 | F204: 3.017241379 | G204: 0 | K204: 21 | M204: 0 | N204: 0 | O204: ='Load profiles'!P147 -> 0.04046027838 | P204: 4.046027838 | Q204: 0 | U204: Consumption-Generation kWh's (winter) | V204: =IF($V$194=0,V190=0,V190) ->  | W204: =IF($V$194=0,W190=0,W190) -> 
A205: 22 | C205: 0 | D205: 0 | E205: ='Load profiles'!O148 -> 0.02873563218 | F205: 2.873563218 | G205: 0 | K205: 22 | M205: 0 | N205: 0 | O205: ='Load profiles'!P148 -> 0.04019898498 | P205: 4.019898498 | Q205: 0
A206: 23 | C206: 0 | D206: 0 | E206: ='Load profiles'!O149 -> 0.02873563218 | F206: 2.873563218 | G206: 0 | K206: 23 | M206: 0 | N206: 0 | O206: ='Load profiles'!P149 -> 0.04019898498 | P206: 4.019898498 | Q206: 0
C207: =SUM(C183:C206) -> 6.51510574 | E207: =SUM(E183:E206) -> 1 | F207: =SUM(F183:F206) -> 100 | G207: 0 | H207: =SUM(H183:H206) ->  | M207: =SUM(M183:M206) -> 6.51510574 | O207: =SUM(O183:O206) -> 1 | P207: =SUM(P183:P206) -> 100 | Q207: 0
F211: Indus customers
F212: Average monthly consumption: | H212: kwh | I212: =Summary!AC5/12/Projections!L11*Summary!AC14 -> 
F213: Size of PV panel pk DC kW | H213: kwh | I213: =Summary!AC14*Summary!AC15 -> 250
F214: Ave daily DC output per kWh pk DC pv panel kWh | I214: ='RE generation'!AB41 -> 5.109251413
F215: Yearly DC output per kWh pk DC pv panel kWh | I215: =I214*365 -> 1864.876766
F216: Inverter efficiency | I216: 0.8
F217: Summer- 1 day's consumption as % of yearly | I217: ='Load profiles'!I96*100 -> 
F218: Winter- 1 day's consumption as % of yearly | I218: ='Load profiles'!G96*100 -> 
F219: Summer -1 day's generation as % of yearly | I219: ='RE generation'!AB38*100 -> 0.2740016358
F220: Winter -1 day's generation as % of yearly | I220: ='RE generation'!AB39*100 -> 0.2738855035
F221: Summer -1 day's consumption as % of yearly (weekend) | I221: ='Load profiles'!J96*100 -> 
F222: Winter- 1 day's consumption as % of yearly (weekend) | I222: ='Load profiles'!H96*100 -> 
C237: Low Demand | E237: total c/kWh
C238: Eskom tariff off-peak | E238: =Projections!I44 -> 0
C239: Eskom tariff-standard | E239: =Projections!I45 -> 0
C240: Eskom tariff- peak | E240: =Projections!I46 -> 0
C242: High Demand | E242: total c/kWh
C243: Eskom tariff off-peak | E243: =Projections!J44 -> 0
C244: Eskom tariff-standard | E244: =Projections!J45 -> 0
C245: Eskom tariff- peak | E245: =Projections!J46 -> 0
F248: Summer | P248: Summer weekend
U249: Weekend
A250: Hour | C250: % generation | F250: % consumption | G250: Actual Generation kWh's | H250: Actual Consumption kWh's | I250: Consumption- Generation kWh's | K250: Hour | M250: % generation | P250: % consumption | Q250: Actual Generation kWh's | R250: Actual Consumption kWh's | S250: Consumption- Generation kWh's | U250: Time | V250: 0 | W250: 1 | X250: 2 | Y250: 3 | Z250: 4 | AA250: 5 | AB250: 6 | AC250: 7 | AD250: 8 | AE250: 9 | AF250: 10 | AG250: 11 | AH250: 12 | AI250: 13 | AJ250: 14 | AK250: 15 | AL250: 16 | AM250: 17 | AN250: 18 | AO250: 19 | AP250: 20 | AQ250: 21 | AR250: 22 | AS250: 23
A251: 0 | C251: 0 | D251: =C251/$C$66*100 -> 0 | E251: ='Load profiles'!Q88 -> 0.0341 | F251: =E251/$E$275*100 -> 3.41 | G251: =(D251/100)*$I$213*($I$219/100)*$I$215*$I$216 -> 0 | H251: =$I$212*12*($I$217/100)*(F251/100) ->  | I251: =H251-G251 ->  | K251: 0 | M251: 0 | N251: =M251/$C$66*100 -> 0 | O251: ='Load profiles'!R88 -> 0.01441139601 | P251: =O251/$O$275*100 -> 1.440563376 | Q251: =(N251/100)*$I$213*($I$219/100)*$I$215*$I$216 -> 0 | R251: =$I$212*12*($I$221/100)*(P251/100) ->  | S251: =R251-Q251 ->  | U251: Consumption-Generation kWh's (summer) | V251: =S251 ->  | W251: =S252 ->  | X251: =S253 ->  | Y251: =S254 ->  | Z251: =S255 ->  | AA251: =S256 ->  | AB251: =S257 ->  | AC251: =S258 ->  | AD251: =S259 ->  | AE251: =S260 ->  | AF251: =S261 ->  | AG251: =S262 ->  | AH251: =S263 ->  | AI251: =S264 ->  | AJ251: =S265 ->  | AK251: =S266 ->  | AL251: =S267 ->  | AM251: =S268 ->  | AN251: =S269 ->  | AO251: =S270 ->  | AP251: =S271 ->  | AQ251: =S272 ->  | AR251: =S273 ->  | AS251: =S274 -> 
A252: 1 | C252: 0 | D252: =C252/$C$66*100 -> 0 | E252: ='Load profiles'!Q89 -> 0.0338 | F252: 3.38 | G252: 0 | I252: =H252-G252 ->  | K252: 1 | M252: 0 | N252: =M252/$C$66*100 -> 0 | O252: ='Load profiles'!R89 -> 0.01282364672 | P252: 1.281851932 | Q252: 0 | S252: =R252-Q252 ->  | U252: Consumption-Generation kWh's (winter) | V252: =S286 ->  | W252: =S287 ->  | X252: =S288 ->  | Y252: =S289 ->  | Z252: =S290 ->  | AA252: =S291 ->  | AB252: =S292 ->  | AC252: =S293 ->  | AD252: =S294 ->  | AE252: =S295 ->  | AF252: =S296 ->  | AG252: =S297 ->  | AH252: =S298 ->  | AI252: =S299 ->  | AJ252: =S300 ->  | AK252: =S301 ->  | AL252: =S302 ->  | AM252: =S303 ->  | AN252: =S304 ->  | AO252: =S305 ->  | AP252: =S306 ->  | AQ252: =S307 ->  | AR252: =S308 ->  | AS252: =S309 -> 
A253: 2 | C253: 0 | D253: 0 | E253: ='Load profiles'!Q90 -> 0.0294 | F253: 2.94 | G253: 0 | K253: 2 | M253: 0 | N253: 0 | O253: ='Load profiles'!R90 -> 0.01215527066 | P253: 1.215041049 | Q253: 0
A254: 3 | C254: 0 | D254: 0 | E254: ='Load profiles'!Q91 -> 0.0329 | F254: 3.29 | G254: 0 | K254: 3 | M254: 0 | N254: 0 | O254: ='Load profiles'!R91 -> 0.01191139601 | P254: 1.190663336 | Q254: 0 | U254: Weekday
A255: 4 | C255: 0 | D255: 0 | E255: ='Load profiles'!Q92 -> 0.0319 | F255: 3.19 | G255: 0 | K255: 4 | M255: 0 | N255: 0 | O255: ='Load profiles'!R92 -> 0.01326752137 | P255: 1.326221648 | Q255: 0 | U255: Time | V255: 0 | W255: 1 | X255: 2 | Y255: 3 | Z255: 4 | AA255: 5 | AB255: 6 | AC255: 7 | AD255: 8 | AE255: 9 | AF255: 10 | AG255: 11 | AH255: 12 | AI255: 13 | AJ255: 14 | AK255: 15 | AL255: 16 | AM255: 17 | AN255: 18 | AO255: 19 | AP255: 20 | AQ255: 21 | AR255: 22 | AS255: 23
A256: 5 | C256: 0 | D256: 0 | E256: ='Load profiles'!Q93 -> 0.0255 | F256: 2.55 | G256: 0 | K256: 5 | M256: 0 | N256: 0 | O256: ='Load profiles'!R93 -> 0.01522364672 | P256: 1.52175597 | Q256: 0 | U256: Consumption-Generation kWh's (summer) | V256: =I251 ->  | W256: =I252 ->  | X256: =I253 ->  | Y256: =I254 ->  | Z256: =I255 ->  | AA256: =I256 ->  | AB256: =I257 ->  | AC256: =I258 ->  | AD256: =I259 ->  | AE256: =I260 ->  | AF256: =I261 ->  | AG256: =I262 ->  | AH256: =I263 ->  | AI256: =I264 ->  | AJ256: =I265 ->  | AK256: =I266 ->  | AL256: =I267 ->  | AM256: =I268 ->  | AN256: =I269 ->  | AO256: =I270 ->  | AP256: =I271 ->  | AQ256: =I272 ->  | AR256: =I273 ->  | AS256: =I274 -> 
A257: 6 | C257: 0.01088045812 | D257: 0.147443981 | E257: ='Load profiles'!Q94 -> 0.0289 | F257: 2.89 | G257: 1.506816398 | K257: 6 | M257: 0.01088045812 | N257: 0.147443981 | O257: ='Load profiles'!R94 -> 0.03158803419 | P257: 3.157540403 | Q257: 1.506816398 | U257: Consumption-Generation kWh's (winter) | V257: =I286 ->  | W257: =I287 ->  | X257: =I288 ->  | Y257: =I289 ->  | Z257: =I290 ->  | AA257: =I291 ->  | AB257: =I292 ->  | AC257: =I293 ->  | AD257: =I294 ->  | AE257: =I295 ->  | AF257: =I296 ->  | AG257: =I297 ->  | AH257: =I298 ->  | AI257: =I299 ->  | AJ257: =I300 ->  | AK257: =I301 ->  | AL257: =I302 ->  | AM257: =I303 ->  | AN257: =I304 ->  | AO257: =I305 ->  | AP257: =I306 ->  | AQ257: =I307 ->  | AR257: =I308 ->  | AS257: =I309 -> 
A258: 7 | C258: 0.1186828919 | D258: 1.608303424 | E258: ='Load profiles'!Q95 -> 0.0412 | F258: 4.12 | G258: 16.43619466 | K258: 7 | M258: 0.1186828919 | N258: 1.608303424 | O258: ='Load profiles'!R95 -> 0.04616467236 | P258: 4.614621388 | Q258: 16.43619466
A259: 8 | C259: 0.3357193987 | D259: 4.549422834 | E259: ='Load profiles'!Q96 -> 0.0533 | F259: 5.33 | G259: 46.49321649 | K259: 8 | M259: 0.3357193987 | N259: 4.549422834 | O259: ='Load profiles'!R96 -> 0.0591045584 | P259: 5.908092603 | Q259: 46.49321649
A260: 9 | C260: 0.572226199 | D260: 7.754389369 | E260: ='Load profiles'!Q97 -> 0.0548 | F260: 5.48 | G260: 79.24664661 | K260: 9 | M260: 0.572226199 | N260: 7.754389369 | O260: ='Load profiles'!R97 -> 0.06087293447 | P260: 6.084859503 | Q260: 79.24664661
A261: 10 | C261: 0.7789549034 | D261: 10.55582501 | E261: ='Load profiles'!Q98 -> 0.0503 | F261: 5.03 | G261: 107.8761582 | I261: =H261-G261 ->  | K261: 10 | M261: 0.7789549034 | N261: 10.55582501 | O261: ='Load profiles'!R98 -> 0.05665555556 | P261: 5.663290239 | Q261: 107.8761582 | S261: =R261-Q261 ->  | U261: Net metering selection (no=0, yes=1) | V261: =Input!B74 -> 1
A262: 11 | C262: 0.9302791696 | D262: 12.60646037 | E262: ='Load profiles'!Q99 -> 0.0564 | F262: 5.64 | G262: 128.832802 | I262: =H262-G262 ->  | K262: 11 | M262: 0.9302791696 | N262: 12.60646037 | O262: ='Load profiles'!R99 -> 0.06136068376 | P262: 6.13361493 | Q262: 128.832802 | S262: =R262-Q262 -> 
A263: 12 | C263: 1.001574803 | D263: 13.57260646 | E263: ='Load profiles'!Q100 -> 0.0568 | F263: 5.68 | G263: 138.7064147 | K263: 12 | M263: 1.001574803 | N263: 13.57260646 | O263: ='Load profiles'!R100 -> 0.06069230769 | P263: 6.066804048 | Q263: 138.7064147 | U263: Weekend
A264: 13 | C264: 1 | D264: 13.55126588 | E264: ='Load profiles'!Q101 -> 0.0495 | F264: 4.95 | G264: 138.4883229 | K264: 13 | M264: 1 | N264: 13.55126588 | O264: ='Load profiles'!R101 -> 0.05418205128 | P264: 5.416038713 | Q264: 138.4883229 | U264: Time
A265: 14 | C265: 0.9138153185 | D265: 12.38335435 | E265: ='Load profiles'!Q102 -> 0.0568 | F265: 5.68 | G265: 126.5527509 | K265: 14 | M265: 0.9138153185 | N265: 12.38335435 | O265: ='Load profiles'!R102 -> 0.06075555556 | P265: 6.073126305 | Q265: 126.5527509 | U265: Consumption-Generation kWh's (summer) | V265: =IF($V$261=0,V251=0,V251) ->  | W265: =IF($V$261=0,W251=0,W251) -> 
A266: 15 | C266: 0.7511811024 | D266: 10.17945485 | E266: ='Load profiles'!Q103 -> 0.0553 | F266: 5.53 | G266: 104.029811 | K266: 15 | M266: 0.7511811024 | N266: 10.17945485 | O266: ='Load profiles'!R103 -> 0.06008717949 | P266: 6.006315423 | Q266: 104.029811 | U266: Consumption-Generation kWh's (winter) | V266: =IF($V$261=0,V252=0,V252) ->  | W266: =IF($V$261=0,W252=0,W252) -> 
A267: 16 | C267: 0.538869005 | D267: 7.302357164 | E267: ='Load profiles'!Q104 -> 0.0442 | F267: 4.42 | G267: 74.62706476 | K267: 16 | M267: 0.538869005 | N267: 7.302357164 | O267: ='Load profiles'!R104 -> 0.05200854701 | P267: 5.198775191 | Q267: 74.62706476
A268: 17 | C268: 0.3089477452 | D268: 4.186633039 | E268: ='Load profiles'!Q105 -> 0.0375 | F268: 3.75 | G268: 42.78565509 | K268: 17 | M268: 0.3089477452 | N268: 4.186633039 | O268: ='Load profiles'!R105 -> 0.04517891738 | P268: 4.516085304 | Q268: 42.78565509 | U268: Weekday
A269: 18 | C269: 0.1078024338 | D269: 1.460859443 | E269: ='Load profiles'!Q106 -> 0.0305 | F269: 3.05 | G269: 14.92937826 | K269: 18 | M269: 0.1078024338 | N269: 1.460859443 | O269: ='Load profiles'!R106 -> 0.03615641026 | P269: 3.614195348 | Q269: 14.92937826 | U269: Time
A270: 19 | C270: 0.01045096636 | D270: 0.1416238238 | E270: ='Load profiles'!Q107 -> 0.0344 | F270: 3.44 | G270: 1.447336803 | K270: 19 | M270: 0.01045096636 | N270: 0.1416238238 | O270: ='Load profiles'!R107 -> 0.04167378917 | P270: 4.165712632 | Q270: 1.447336803 | U270: Consumption-Generation kWh's (summer) | V270: =IF($V$261=0,V256=0,V256) ->  | W270: =IF($V$261=0,W256=0,W256) -> 
A271: 20 | C271: 0 | D271: 0 | E271: ='Load profiles'!Q108 -> 0.0401 | F271: 4.01 | G271: 0 | K271: 20 | M271: 0 | N271: 0 | O271: ='Load profiles'!R108 -> 0.04885954416 | P271: 4.884000816 | Q271: 0 | U271: Consumption-Generation kWh's (winter) | V271: =IF($V$261=0,V257=0,V257) ->  | W271: =IF($V$261=0,W257=0,W257) -> 
A272: 21 | C272: 0 | D272: 0 | E272: ='Load profiles'!Q109 -> 0.0423 | F272: 4.23 | G272: 0 | K272: 21 | M272: 0 | N272: 0 | O272: ='Load profiles'!R109 -> 0.05027179487 | P272: 5.025169419 | Q272: 0
A273: 22 | C273: 0 | D273: 0 | E273: ='Load profiles'!Q110 -> 0.0423 | F273: 4.23 | G273: 0 | K273: 22 | M273: 0 | N273: 0 | O273: ='Load profiles'!R110 -> 0.05022792023 | P273: 5.020783709 | Q273: 0
A274: 23 | C274: 0 | D274: 0 | E274: ='Load profiles'!Q111 -> 0.0378 | F274: 3.78 | G274: 0 | K274: 23 | M274: 0 | N274: 0 | O274: ='Load profiles'!R111 -> 0.04476666667 | P274: 4.474876716 | Q274: 0
C275: =SUM(C251:C274) -> 7.379384395 | E275: =SUM(E251:E274) -> 1 | F275: =SUM(F251:F274) -> 100 | G275: 0 | M275: =SUM(M251:M274) -> 7.379384395 | O275: =SUM(O251:O274) -> 1.0004 | P275: =SUM(P251:P274) -> 100 | Q275: 0
H276: KVA MAX | I276: KVA MAX | J276: KVA Saved
H277: =MAX(H251:H274) ->  | I277: =MAX(I251:I274) ->  | J277: =H277-I277 -> 
... 29 more rows

Sheet RE generation
A1: RE generation | C1: MW
B2: Hour | C2: 0 | D2: 1 | E2: 2 | F2: 3 | G2: 4 | H2: 5 | I2: 6 | J2: 7 | K2: 8 | L2: 9 | M2: 10 | N2: 11 | O2: 12 | P2: 13 | Q2: 14 | R2: 15 | S2: 16 | T2: 17 | U2: 18 | V2: 19 | W2: 20 | X2: 21 | Y2: 22 | Z2: 23 | AB2: don't change below
A3: Resid PV | B3: MW (summer)* | C3: =C4*$AB$5*$AC$45/(1+$B$8) -> 0 | D3: 0 | E3: 0 | F3: 0 | G3: 0 | H3: 0 | I3: 2.078031488e-05 | J3: 0.0001922179126 | K3: 0.0004923780164 | L3: 0.0008009079693 | M3: 0.001067011446 | N3: 0.001266733361 | O3: 0.001360533394 | P3: 0.001359378932 | Q3: 0.001245664431 | R3: 0.001026893894 | S3: 0.0007472254892 | T3: 0.000445622308 | U3: 0.0001740351371 | V3: 2.020308391e-05 | W3: 0 | X3: 0 | Y3: 0 | Z3: 0 | AA3: No sys | AB3: =Summary!AC8 -> 1
B4: % of max output (summer) | C4: =C46 -> 0 | D4: =D46 -> 0 | E4: 0 | F4: 0 | G4: 0 | H4: 0 | I4: =I46 -> 0.01527365295 | J4: 0.1412812898 | K4: 0.3619007213 | L4: 0.5886720407 | M4: 0.7842596521 | N4: 0.9310564277 | O4: 1 | P4: 0.9991514637 | Q4: 0.9155706406 | R4: 0.7547730165 | S4: 0.5492151039 | T4: 0.3275350021 | U4: 0.1279168434 | V4: 0.01484938481 | W4: 0 | X4: 0 | Y4: 0 | Z4: 0 | AA4: kWp/sys | AB4: =Summary!AC9 -> 2 | AC4: kWp (rated)
B5: MW (winter)* | C5: =C6*$AB$5*$AC$47/(1+$B$8) -> 0 | D5: 0 | E5: 0 | F5: 0 | G5: 0 | H5: 0 | I5: 0 | J5: 1.750413531e-05 | K5: 0.0002888182326 | L5: 0.0007280129003 | M5: 0.0011266298 | N5: 0.001422608815 | O5: 0.001580146033 | P5: 0.001568211395 | Q5: 0.001417039317 | R5: 0.001042291693 | S5: 0.0007240346877 | T5: 0.0002840443775 | U5: 1.591285028e-05 | V5: 0 | W5: 0 | X5: 0 | Y5: 0 | Z5: 0 | AA5: Max cap | AB5: =AB3*AB4/1000 -> 0.002 | AC5: MWp (rated)
B6: % of max output (winter) | C6: =C48 -> 0 | D6: =D48 -> 0 | E6: 0 | F6: 0 | G6: 0 | H6: 0 | I6: 0 | J6: 0.0110775428 | K6: 0.1827794562 | L6: 0.4607250755 | M6: 0.7129909366 | N6: 0.9003021148 | O6: 1 | P6: 0.9924471299 | Q6: 0.8967774421 | R6: 0.6596173212 | S6: 0.4582074522 | T6: 0.1797583082 | U6: 0.01007049345 | V6: 0 | W6: 0 | X6: 0 | Y6: 0 | Z6: 0
A7: * - NB to select Wp rating factor for chosen tilt angle (in red below right) - same tilt for summer & winter (i.e. fixed mounting) | X7: =SUM(C3:Z3)*365*0.75 -> 2.797611582 | Z7: summer | AA7: =SUM(C3:Z3) -> 0.01021958569 | AB7: =AA7/X9 -> 0.002740016358
A8: System losses: | B8: 0.18 | C8: (inverter, wiring etc) | X8: =SUM(C5:Z5)*365*1/4 -> 0.9321419492 | Z8: winter | AA8: =SUM(C5:Z5) -> 0.01021525424 | AB8: =AA8/X9 -> 0.002738855035
A9: Tilt angle chosen: | B9: =AC44 -> 25 | C9: =AC43 -> ann max | X9: =SUM(X7:X8) -> 3.729753531 | Z9: av
X10: =X9/AB5 -> 1864.876766 | Y10: MWh/MWp/year
X11: =X10/365 -> 5.109251413 | Y11: MWh/MWp/day
X13: =X10/12 -> 155.4063971 | AH13: Year | AI13: FC charge | AJ13: No FC Charge | AK13: difference (R)
AH14: 0 | AI14: =Projections!E85 -> 0 | AJ14: =Projections!G85 -> 0 | AK14: =(AJ14-AI14)/100 -> 0
AH15: 3 | AI15: =Projections!E88 ->  | AJ15: =Projections!G88 ->  | AK15: =(AJ15-AI15)/100 -> 
AH16: 5 | AI16: =Projections!E91 ->  | AJ16: =Projections!G91 ->  | AK16: =(AJ16-AI16)/100 -> 
AH17: 10 | AI17: =Projections!E94 ->  | AJ17: =Projections!G94 ->  | AK17: =(AJ17-AI17)/100 -> 
AH19: average monthly consump | AJ19: =Input!D21 ->  | AK19: kwh/month
AH20: average daily consump | AJ20: =AJ19*12/365 ->  | AK20: kwh/day
AA21: =AA16*AK17 ->  | AH21: daily generation summer | AJ21: =SUM(C3:Z3)/AB3*1000 -> 10.21958569 | AK21: kwh
AA22: =AA18*AK17 ->  | AH22: daily generation winter | AJ22: =SUM(C5:Z5)/AB3*1000 -> 10.21525424 | AK22: kwh
AA23: summer | AB23: =IF(Summary!$B$144>0, 'RE generation'!AA21, 0) -> 
AA24: winter | AB24: =IF(Summary!$B$144>0, 'RE generation'!AA22, 0) -> 
B25: Hour | C25: 0 | D25: 1 | E25: 2 | F25: 3 | G25: 4 | H25: 5 | I25: 6 | J25: 7 | K25: 8 | L25: 9 | M25: 10 | N25: 11 | O25: 12 | P25: 13 | Q25: 14 | R25: 15 | S25: 16 | T25: 17 | U25: 18 | V25: 19 | W25: 20 | X25: 21 | Y25: 22 | Z25: 23 | AB25: don't change below
A26: Commer PV | B26: MW (summer)* | C26: =C27*$AB$28*$AC$45/(1+$B$8) -> 0 | D26: =D27*$AB$28*$AC$45/(1+$B$8) -> 0 | E26: 0 | F26: 0 | G26: 0 | H26: 0 | I26: 4.675570848e-05 | J26: 0.0004324903034 | K26: 0.001107850537 | L26: 0.001802042931 | M26: 0.002400775753 | N26: 0.002850150063 | O26: 0.003061200136 | P26: 0.003058602596 | Q26: 0.002802744969 | R26: 0.002310511261 | S26: 0.001681257351 | T26: 0.001002650193 | U26: 0.0003915790585 | V26: 4.54569388e-05 | W26: 0 | X26: 0 | Y26: 0 | Z26: 0 | AA26: No sys | AB26: =Summary!AC11 -> 1 | AI26: Block 1 tariff | AJ26: Block 2 tariff
B27: % of max output (summer) | C27: =C46 -> 0 | D27: =D46 -> 0 | E27: 0 | F27: 0 | G27: 0 | H27: 0 | I27: 0.01527365295 | J27: 0.1412812898 | K27: 0.3619007213 | L27: 0.5886720407 | M27: 0.7842596521 | N27: 0.9310564277 | O27: 1 | P27: 0.9991514637 | Q27: 0.9155706406 | R27: 0.7547730165 | S27: 0.5492151039 | T27: 0.3275350021 | U27: 0.1279168434 | V27: 0.01484938481 | W27: 0 | X27: 0 | Y27: 0 | Z27: 0 | AA27: kWp/sys | AB27: =Summary!AC12 -> 4.5 | AC27: kWp (rated) | AH27: Tariff | AI27: =IF(Summary!AC58=Projections!D52,Projections!H85, IF(Summary!AC58=Projections!D56,Projections!H88, IF(Summary!AC58=Projections!D60,Projections!H91, IF(Summary!AC58=Projections!D64,Projections!H94)))) ->  | AJ27: =IF(Summary!AC58=Projections!D52,Projections!G85, IF(Summary!AC58=Projections!D56,Projections!G88, IF(Summary!AC58=Projections!D60,Projections!G91, IF(Summary!AC58=Projections!D64,Projections!G94)))) -> 
B28: MW (winter)* | C28: =C29*$AB$28*$AC$47/(1+$B$8) -> 0 | D28: 0 | E28: 0 | F28: 0 | G28: 0 | H28: 0 | I28: 0 | J28: 3.938430444e-05 | K28: 0.0006498410233 | L28: 0.001638029026 | M28: 0.00253491705 | N28: 0.003200869834 | O28: 0.003555328574 | P28: 0.003528475639 | Q28: 0.003188338464 | R28: 0.00234515631 | S28: 0.001629078047 | T28: 0.0006390998494 | U28: 3.580391313e-05 | V28: 0 | W28: 0 | X28: 0 | Y28: 0 | Z28: 0 | AA28: Max cap | AB28: =AB26*AB27/1000 -> 0.0045 | AC28: MWp (rated) | AH28: % PV energy used by hh
B29: % of max output (winter) | C29: =C48 -> 0 | D29: =D48 -> 0 | E29: 0 | F29: 0 | G29: 0 | H29: 0 | I29: 0 | J29: 0.0110775428 | K29: 0.1827794562 | L29: 0.4607250755 | M29: 0.7129909366 | N29: 0.9003021148 | O29: 1 | P29: 0.9924471299 | Q29: 0.8967774421 | R29: 0.6596173212 | S29: 0.4582074522 | T29: 0.1797583082 | U29: 0.01007049345 | V29: 0 | W29: 0 | X29: 0 | Y29: 0 | Z29: 0 | AH29: =Input!F56 -> 0.7
A30: * - NB to select Wp rating factor for chosen tilt angle (in red below right) - same tilt for summer & winter (i.e. fixed mounting) | X30: =SUM(C26:Z26)*365*9/12 -> 6.29462606 | Z30: summer | AA30: =SUM(C26:Z26) -> 0.0229940678 | AB30: =AA30/X32 -> 0.002740016358
X31: =SUM(C28:Z28)*365*1/4 -> 2.097319386 | Z31: winter | AA31: =SUM(C28:Z28) -> 0.02298432203 | AB31: =AA31/X32 -> 0.002738855035 | AI31: Without PV | AK31: With PV
X32: =SUM(X30:X31) -> 8.391945445 | Z32: average | AG32: summer | AH32: average cons | AI32: =Input!D21 ->  | AJ32: kwh/month | AK32: =AI32-AJ21*AH29*365/12 ->  | AL32: kwh/month
X33: =X32/AB28 -> 1864.876766 | Y33: MWh/MWp/year | AB33: =X33/365 -> 5.109251413 | AC33: MWh/MWp/day | AG33: winter | AH33: average cons | AI33: =AI32 ->  | AJ33: kwh/month | AK33: =AI32-AJ22*AH29*365/12 ->  | AL33: kwh/month
A34: Industrial PV | B34: =B26 -> MW (summer)* | C34: =C35*$AB$36*$AC$45/(1+$B$8) -> 0 | D34: =D35*$AB$36*$AC$45/(1+$B$8) -> 0 | E34: 0 | F34: 0 | G34: 0 | H34: 0 | I34: 0.00259753936 | J34: 0.02402723908 | K34: 0.06154725205 | L34: 0.1001134962 | M34: 0.1333764307 | N34: 0.1583416701 | O34: 0.1700666742 | P34: 0.1699223665 | Q34: 0.1557080538 | R34: 0.1283617367 | S34: 0.09340318615 | T34: 0.05570278849 | U34: 0.02175439214 | V34: 0.002525385489 | W34: 0 | X34: 0 | Y34: 0 | Z34: 0 | AA34: =AA26 -> No sys | AB34: =Summary!AC14 -> 1 | AC34: =AC26 -> 0 | AM34: difference/day/hh (loss) | AN34: Total resid diff/day (loss)
B35: =B27 -> % of max output (summer) | C35: 0 | D35: 0 | E35: 0 | F35: 0 | G35: 0 | H35: 0 | I35: 0.01527365295 | J35: 0.1412812898 | K35: 0.3619007213 | L35: 0.5886720407 | M35: 0.7842596521 | N35: 0.9310564277 | O35: 1 | P35: 0.9991514637 | Q35: 0.9155706406 | R35: 0.7547730165 | S35: 0.5492151039 | T35: 0.3275350021 | U35: 0.1279168434 | V35: 0.01484938481 | W35: 0 | X35: 0 | Y35: 0 | Z35: 0 | AA35: kWp/sys | AB35: =Summary!AC15 -> 250 | AC35: kWp (rated) | AF35: summer | AG35: city income from hh | AI35: =(AI32-600)*AJ27/100+(600*AI27)/100 ->  | AJ35: month | AK35: =(AK32*Summary!AC56/100)+(Summary!AC57*AB4*365/12) ->  | AL35: month | AM35: =(AI35-AK35)*12/365 ->  | AN35: =AM35*Summary!AC8 -> 
B36: =B28 -> MW (winter)* | C36: =C37*$AB$36*$AC$47/(1+$B$8) -> 0 | D36: =D37*$AB$36*$AC$47/(1+$B$8) -> 0 | E36: 0 | F36: 0 | G36: 0 | H36: 0 | I36: 0 | J36: 0.002188016914 | K36: 0.03610227907 | L36: 0.09100161254 | M36: 0.140828725 | N36: 0.1778261019 | O36: 0.1975182541 | P36: 0.1960264244 | Q36: 0.1771299147 | R36: 0.1302864617 | S36: 0.09050433597 | T36: 0.03550554719 | U36: 0.001989106285 | V36: 0 | W36: 0 | X36: 0 | Y36: 0 | Z36: 0 | AA36: =AA28 -> Max cap | AB36: =AB34*AB35/1000 -> 0.25 | AC36: =AC28 -> MWp (rated) | AF36: winter | AG36: city income from hh | AI36: =AI35 ->  | AJ36: month | AK36: =(AK33*Summary!AC55/100)+(Summary!AC57*AB4*365/12) ->  | AL36: month | AM36: =(AI36-AK36)*12/365 ->  | AN36: =AM36*Summary!AC8 -> 
B37: =B29 -> % of max output (winter) | C37: 0 | D37: 0 | E37: 0 | F37: 0 | G37: 0 | H37: 0 | I37: 0 | J37: 0.0110775428 | K37: 0.1827794562 | L37: 0.4607250755 | M37: 0.7129909366 | N37: 0.9003021148 | O37: 1 | P37: 0.9924471299 | Q37: 0.8967774421 | R37: 0.6596173212 | S37: 0.4582074522 | T37: 0.1797583082 | U37: 0.01007049345 | V37: 0 | W37: 0 | X37: 0 | Y37: 0 | Z37: 0
X38: =SUM(C34:Z34)*365*9/12 -> 349.7014478 | Z38: summer | AA38: =SUM(C34:Z34) -> 1.277448211 | AB38: =AA38/X40 -> 0.002740016358
X39: =SUM(C36:Z36)*365*1/4 -> 116.5177436 | Z39: winter | AA39: =SUM(C36:Z36) -> 1.27690678 | AB39: =AA39/X40 -> 0.002738855035
X40: =SUM(X38:X39) -> 466.2191914 | Z40: average
X41: =X40/AB36 -> 1864.876766 | Y41: MWh/MWp/year | AB41: =X41/365 -> 5.109251413 | AC41: MWh/MWp/day
A42: Solar radiation calcs & data
AB43: flat | AC43: ann max
B44: Hour | C44: 0 | D44: 1 | E44: 2 | F44: 3 | G44: 4 | H44: 5 | I44: 6 | J44: 7 | K44: 8 | L44: 9 | M44: 10 | N44: 11 | O44: 12 | P44: 13 | Q44: 14 | R44: 15 | S44: 16 | T44: 17 | U44: 18 | V44: 19 | W44: 20 | X44: 21 | Y44: 22 | Z44: 23 | AA44: Tilt angle: | AB44: 0 | AC44: 25
B45: Summer hourly global average (no tilt) | H45: =O61 -> 0 | I45: =O62 -> 12 | J45: =O63 -> 111 | K45: =O64 -> 284.3333333 | L45: =O65 -> 462.5 | M45: =O66 -> 616.1666667 | N45: =O67 -> 731.5 | O45: =O68 -> 785.6666667 | P45: =O69 -> 785 | Q45: =O70 -> 719.3333333 | R45: =O71 -> 593 | S45: =O72 -> 431.5 | T45: =O73 -> 257.3333333 | U45: =O74 -> 100.5 | V45: =O75 -> 11.66666667 | W45: =O76 -> 0 | AA45: Wp rating factor | AB45: =MAX(C45:Z45)/1000 -> 0.7856666667 | AC45: =AB45*(AC46/AB46) -> 0.8027147022
B46: % of max daily radiation | C46: =C45/MAX($C45:$Z45) -> 0 | D46: =D45/MAX($C45:$Z45) -> 0 | E46: 0 | F46: 0 | G46: 0 | H46: 0 | I46: 0.01527365295 | J46: 0.1412812898 | K46: 0.3619007213 | L46: 0.5886720407 | M46: 0.7842596521 | N46: 0.9310564277 | O46: 1 | P46: 0.9991514637 | Q46: 0.9155706406 | R46: 0.7547730165 | S46: 0.5492151039 | T46: 0.3275350021 | U46: 0.1279168434 | V46: 0.01484938481 | W46: 0 | X46: 0 | Y46: 0 | Z46: 0 | AA46: kWh/m2/day | AB46: =SUM(C45:Z45)/1000 -> 5.9015 | AC46: =IF(Input!$B$53="BLOEM",'RE generation'!AJ124,IF(Input!$B$53="CTN",'RE generation'!AJ83,IF(Input!$B$53="PE",'RE generation'!AJ146,IF(Input!$B$53="DBN",'RE generation'!AJ103,IF(Input!$B$53="JHB",'RE generation'!AJ166,IF(Input!$B$53="Pretoria",'RE generation'!AJ166,IF(Input!$B$53="Nelspruit",'RE generation'!AJ187,IF(Input!$B$53="UPINGTON",'RE generation'!AJ208)))))))) -> 6.029555556
B47: Winter hourly global average (no tilt) | H47: =P61 -> 0 | I47: =P62 -> 0 | J47: =P63 -> 7.333333333 | K47: =P64 -> 121 | L47: =P65 -> 305 | M47: =P66 -> 472 | N47: =P67 -> 596 | O47: =P68 -> 662 | P47: =P69 -> 657 | Q47: =P70 -> 593.6666667 | R47: =P71 -> 436.6666667 | S47: =P72 -> 303.3333333 | T47: =P73 -> 119 | U47: =P74 -> 6.666666667 | V47: =P75 -> 0 | W47: =P76 -> 0 | AA47: Wp rating factor | AB47: =MAX(C47:Z47)/1000 -> 0.662 | AC47: =AB47*(AC48/AB48) -> 0.9322861594
B48: % of max daily radiation | C48: =C47/MAX($C47:$Z47) -> 0 | D48: =D47/MAX($C47:$Z47) -> 0 | E48: 0 | F48: 0 | G48: 0 | H48: 0 | I48: 0 | J48: 0.0110775428 | K48: 0.1827794562 | L48: 0.4607250755 | M48: 0.7129909366 | N48: 0.9003021148 | O48: 1 | P48: 0.9924471299 | Q48: 0.8967774421 | R48: 0.6596173212 | S48: 0.4582074522 | T48: 0.1797583082 | U48: 0.01007049345 | V48: 0 | W48: 0 | X48: 0 | Y48: 0 | Z48: 0 | AA48: kWh/m2/day | AB48: =SUM(C47:Z47)/1000 -> 4.279666667 | AC48: =IF(Input!$B$53="BLOEM",'RE generation'!AI124,IF(Input!$B$53="CTN",'RE generation'!AI83,IF(Input!$B$53="PE",'RE generation'!AI146,IF(Input!$B$53="DBN",'RE generation'!AI103,IF(Input!$B$53="JHB",'RE generation'!AI166,IF(Input!$B$53="Pretoria",'RE generation'!AI166,IF(Input!$B$53="Nelspruit",'RE generation'!AI187,IF(Input!$B$53="UPINGTON",'RE generation'!AI208)))))))) -> 6.027
A54: Landfill gas | B54: MW | C54: =C55*$AB$54 -> 0 | D54: 0 | E54: 0 | F54: 0 | G54: 0 | H54: 0 | I54: 0 | J54: 0 | K54: 0 | L54: 0 | M54: 0 | N54: 0 | O54: 0 | P54: 0 | Q54: 0 | R54: 0 | S54: 0 | T54: 0 | U54: 0 | V54: 0 | W54: 0 | X54: 0 | Y54: 0 | Z54: 0 | AA54: Install MW | AB54: =Summary!AC17 -> 0 | AC54: MW
B55: CF | C55: 0.8 | D55: 0.8 | E55: 0.8 | F55: 0.8 | G55: 0.8 | H55: 0.8 | I55: 0.8 | J55: 0.8 | K55: 0.8 | L55: 0.8 | M55: 0.8 | N55: 0.8 | O55: 0.8 | P55: 0.8 | Q55: 0.8 | R55: 0.8 | S55: 0.8 | T55: 0.8 | U55: 0.8 | V55: 0.8 | W55: 0.8 | X55: 0.8 | Y55: 0.8 | Z55: 0.8
O59: Radiation (W/m2)
O60: Sum Ave | P60: Win Ave
O61: =IF(Input!$B$53="BLOEM",'RE generation'!N125,IF(Input!$B$53="CTN",'RE generation'!N84,IF(Input!$B$53="PE",'RE generation'!N146,IF(Input!$B$53="DBN",'RE generation'!N104,IF(Input!$B$53="JHB",'RE generation'!N167,IF(Input!$B$53="Pretoria",'RE generation'!N167,IF(Input!$B$53="Nelspruit",'RE generation'!N188,IF(Input!$B$53="UPINGTON",'RE generation'!N209)))))))) -> 0 | P61: =IF(Input!$B$53="BLOEM",'RE generation'!O125,IF(Input!$B$53="CTN",'RE generation'!O84,IF(Input!$B$53="PE",'RE generation'!O146,IF(Input!$B$53="DBN",'RE generation'!O104,IF(Input!$B$53="JHB",'RE generation'!O167,IF(Input!$B$53="Pretoria",'RE generation'!O167,IF(Input!$B$53="Nelspruit",'RE generation'!O188,IF(Input!$B$53="UPINGTON",'RE generation'!O209)))))))) -> 0
O62: =IF(Input!$B$53="BLOEM",'RE generation'!N126,IF(Input!$B$53="CTN",'RE generation'!N85,IF(Input!$B$53="PE",'RE generation'!N147,IF(Input!$B$53="DBN",'RE generation'!N105,IF(Input!$B$53="JHB",'RE generation'!N168,IF(Input!$B$53="Pretoria",'RE generation'!N168,IF(Input!$B$53="Nelspruit",'RE generation'!N189,IF(Input!$B$53="UPINGTON",'RE generation'!N210)))))))) -> 12 | P62: =IF(Input!$B$53="BLOEM",'RE generation'!O126,IF(Input!$B$53="CTN",'RE generation'!O85,IF(Input!$B$53="PE",'RE generation'!O147,IF(Input!$B$53="DBN",'RE generation'!O105,IF(Input!$B$53="JHB",'RE generation'!O168,IF(Input!$B$53="Pretoria",'RE generation'!O168,IF(Input!$B$53="Nelspruit",'RE generation'!O189,IF(Input!$B$53="UPINGTON",'RE generation'!O210)))))))) -> 0
O63: =IF(Input!$B$53="BLOEM",'RE generation'!N127,IF(Input!$B$53="CTN",'RE generation'!N86,IF(Input!$B$53="PE",'RE generation'!N148,IF(Input!$B$53="DBN",'RE generation'!N106,IF(Input!$B$53="JHB",'RE generation'!N169,IF(Input!$B$53="Pretoria",'RE generation'!N169,IF(Input!$B$53="Nelspruit",'RE generation'!N190,IF(Input!$B$53="UPINGTON",'RE generation'!N211)))))))) -> 111 | P63: =IF(Input!$B$53="BLOEM",'RE generation'!O127,IF(Input!$B$53="CTN",'RE generation'!O86,IF(Input!$B$53="PE",'RE generation'!O148,IF(Input!$B$53="DBN",'RE generation'!O106,IF(Input!$B$53="JHB",'RE generation'!O169,IF(Input!$B$53="Pretoria",'RE generation'!O169,IF(Input!$B$53="Nelspruit",'RE generation'!O190,IF(Input!$B$53="UPINGTON",'RE generation'!O211)))))))) -> 7.333333333
O64: =IF(Input!$B$53="BLOEM",'RE generation'!N128,IF(Input!$B$53="CTN",'RE generation'!N87,IF(Input!$B$53="PE",'RE generation'!N149,IF(Input!$B$53="DBN",'RE generation'!N107,IF(Input!$B$53="JHB",'RE generation'!N170,IF(Input!$B$53="Pretoria",'RE generation'!N170,IF(Input!$B$53="Nelspruit",'RE generation'!N191,IF(Input!$B$53="UPINGTON",'RE generation'!N212)))))))) -> 284.3333333 | P64: =IF(Input!$B$53="BLOEM",'RE generation'!O128,IF(Input!$B$53="CTN",'RE generation'!O87,IF(Input!$B$53="PE",'RE generation'!O149,IF(Input!$B$53="DBN",'RE generation'!O107,IF(Input!$B$53="JHB",'RE generation'!O170,IF(Input!$B$53="Pretoria",'RE generation'!O170,IF(Input!$B$53="Nelspruit",'RE generation'!O191,IF(Input!$B$53="UPINGTON",'RE generation'!O212)))))))) -> 121
O65: =IF(Input!$B$53="BLOEM",'RE generation'!N129,IF(Input!$B$53="CTN",'RE generation'!N88,IF(Input!$B$53="PE",'RE generation'!N150,IF(Input!$B$53="DBN",'RE generation'!N108,IF(Input!$B$53="JHB",'RE generation'!N171,IF(Input!$B$53="Pretoria",'RE generation'!N171,IF(Input!$B$53="Nelspruit",'RE generation'!N192,IF(Input!$B$53="UPINGTON",'RE generation'!N213)))))))) -> 462.5 | P65: =IF(Input!$B$53="BLOEM",'RE generation'!O129,IF(Input!$B$53="CTN",'RE generation'!O88,IF(Input!$B$53="PE",'RE generation'!O150,IF(Input!$B$53="DBN",'RE generation'!O108,IF(Input!$B$53="JHB",'RE generation'!O171,IF(Input!$B$53="Pretoria",'RE generation'!O171,IF(Input!$B$53="Nelspruit",'RE generation'!O192,IF(Input!$B$53="UPINGTON",'RE generation'!O213)))))))) -> 305
O66: =IF(Input!$B$53="BLOEM",'RE generation'!N130,IF(Input!$B$53="CTN",'RE generation'!N89,IF(Input!$B$53="PE",'RE generation'!N151,IF(Input!$B$53="DBN",'RE generation'!N109,IF(Input!$B$53="JHB",'RE generation'!N172,IF(Input!$B$53="Pretoria",'RE generation'!N172,IF(Input!$B$53="Nelspruit",'RE generation'!N193,IF(Input!$B$53="UPINGTON",'RE generation'!N214)))))))) -> 616.1666667 | P66: =IF(Input!$B$53="BLOEM",'RE generation'!O130,IF(Input!$B$53="CTN",'RE generation'!O89,IF(Input!$B$53="PE",'RE generation'!O151,IF(Input!$B$53="DBN",'RE generation'!O109,IF(Input!$B$53="JHB",'RE generation'!O172,IF(Input!$B$53="Pretoria",'RE generation'!O172,IF(Input!$B$53="Nelspruit",'RE generation'!O193,IF(Input!$B$53="UPINGTON",'RE generation'!O214)))))))) -> 472
O67: =IF(Input!$B$53="BLOEM",'RE generation'!N131,IF(Input!$B$53="CTN",'RE generation'!N90,IF(Input!$B$53="PE",'RE generation'!N152,IF(Input!$B$53="DBN",'RE generation'!N110,IF(Input!$B$53="JHB",'RE generation'!N173,IF(Input!$B$53="Pretoria",'RE generation'!N173,IF(Input!$B$53="Nelspruit",'RE generation'!N194,IF(Input!$B$53="UPINGTON",'RE generation'!N215)))))))) -> 731.5 | P67: =IF(Input!$B$53="BLOEM",'RE generation'!O131,IF(Input!$B$53="CTN",'RE generation'!O90,IF(Input!$B$53="PE",'RE generation'!O152,IF(Input!$B$53="DBN",'RE generation'!O110,IF(Input!$B$53="JHB",'RE generation'!O173,IF(Input!$B$53="Pretoria",'RE generation'!O173,IF(Input!$B$53="Nelspruit",'RE generation'!O194,IF(Input!$B$53="UPINGTON",'RE generation'!O215)))))))) -> 596
O68: =IF(Input!$B$53="BLOEM",'RE generation'!N132,IF(Input!$B$53="CTN",'RE generation'!N91,IF(Input!$B$53="PE",'RE generation'!N153,IF(Input!$B$53="DBN",'RE generation'!N111,IF(Input!$B$53="JHB",'RE generation'!N174,IF(Input!$B$53="Pretoria",'RE generation'!N174,IF(Input!$B$53="Nelspruit",'RE generation'!N195,IF(Input!$B$53="UPINGTON",'RE generation'!N216)))))))) -> 785.6666667 | P68: =IF(Input!$B$53="BLOEM",'RE generation'!O132,IF(Input!$B$53="CTN",'RE generation'!O91,IF(Input!$B$53="PE",'RE generation'!O153,IF(Input!$B$53="DBN",'RE generation'!O111,IF(Input!$B$53="JHB",'RE generation'!O174,IF(Input!$B$53="Pretoria",'RE generation'!O174,IF(Input!$B$53="Nelspruit",'RE generation'!O195,IF(Input!$B$53="UPINGTON",'RE generation'!O216)))))))) -> 662
O69: =IF(Input!$B$53="BLOEM",'RE generation'!N133,IF(Input!$B$53="CTN",'RE generation'!N92,IF(Input!$B$53="PE",'RE generation'!N154,IF(Input!$B$53="DBN",'RE generation'!N112,IF(Input!$B$53="JHB",'RE generation'!N175,IF(Input!$B$53="Pretoria",'RE generation'!N175,IF(Input!$B$53="Nelspruit",'RE generation'!N196,IF(Input!$B$53="UPINGTON",'RE generation'!N217)))))))) -> 785 | P69: =IF(Input!$B$53="BLOEM",'RE generation'!O133,IF(Input!$B$53="CTN",'RE generation'!O92,IF(Input!$B$53="PE",'RE generation'!O154,IF(Input!$B$53="DBN",'RE generation'!O112,IF(Input!$B$53="JHB",'RE generation'!O175,IF(Input!$B$53="Pretoria",'RE generation'!O175,IF(Input!$B$53="Nelspruit",'RE generation'!O196,IF(Input!$B$53="UPINGTON",'RE generation'!O217)))))))) -> 657
O70: =IF(Input!$B$53="BLOEM",'RE generation'!N134,IF(Input!$B$53="CTN",'RE generation'!N93,IF(Input!$B$53="PE",'RE generation'!N155,IF(Input!$B$53="DBN",'RE generation'!N113,IF(Input!$B$53="JHB",'RE generation'!N176,IF(Input!$B$53="Pretoria",'RE generation'!N176,IF(Input!$B$53="Nelspruit",'RE generation'!N197,IF(Input!$B$53="UPINGTON",'RE generation'!N218)))))))) -> 719.3333333 | P70: =IF(Input!$B$53="BLOEM",'RE generation'!O134,IF(Input!$B$53="CTN",'RE generation'!O93,IF(Input!$B$53="PE",'RE generation'!O155,IF(Input!$B$53="DBN",'RE generation'!O113,IF(Input!$B$53="JHB",'RE generation'!O176,IF(Input!$B$53="Pretoria",'RE generation'!O176,IF(Input!$B$53="Nelspruit",'RE generation'!O197,IF(Input!$B$53="UPINGTON",'RE generation'!O218)))))))) -> 593.6666667
O71: =IF(Input!$B$53="BLOEM",'RE generation'!N135,IF(Input!$B$53="CTN",'RE generation'!N94,IF(Input!$B$53="PE",'RE generation'!N156,IF(Input!$B$53="DBN",'RE generation'!N114,IF(Input!$B$53="JHB",'RE generation'!N177,IF(Input!$B$53="Pretoria",'RE generation'!N177,IF(Input!$B$53="Nelspruit",'RE generation'!N198,IF(Input!$B$53="UPINGTON",'RE generation'!N219)))))))) -> 593 | P71: =IF(Input!$B$53="BLOEM",'RE generation'!O135,IF(Input!$B$53="CTN",'RE generation'!O94,IF(Input!$B$53="PE",'RE generation'!O156,IF(Input!$B$53="DBN",'RE generation'!O114,IF(Input!$B$53="JHB",'RE generation'!O177,IF(Input!$B$53="Pretoria",'RE generation'!O177,IF(Input!$B$53="Nelspruit",'RE generation'!O198,IF(Input!$B$53="UPINGTON",'RE generation'!O219)))))))) -> 436.6666667
O72: =IF(Input!$B$53="BLOEM",'RE generation'!N136,IF(Input!$B$53="CTN",'RE generation'!N95,IF(Input!$B$53="PE",'RE generation'!N157,IF(Input!$B$53="DBN",'RE generation'!N115,IF(Input!$B$53="JHB",'RE generation'!N178,IF(Input!$B$53="Pretoria",'RE generation'!N178,IF(Input!$B$53="Nelspruit",'RE generation'!N199,IF(Input!$B$53="UPINGTON",'RE generation'!N220)))))))) -> 431.5 | P72: =IF(Input!$B$53="BLOEM",'RE generation'!O136,IF(Input!$B$53="CTN",'RE generation'!O95,IF(Input!$B$53="PE",'RE generation'!O157,IF(Input!$B$53="DBN",'RE generation'!O115,IF(Input!$B$53="JHB",'RE generation'!O178,IF(Input!$B$53="Pretoria",'RE generation'!O178,IF(Input!$B$53="Nelspruit",'RE generation'!O199,IF(Input!$B$53="UPINGTON",'RE generation'!O220)))))))) -> 303.3333333
O73: =IF(Input!$B$53="BLOEM",'RE generation'!N137,IF(Input!$B$53="CTN",'RE generation'!N96,IF(Input!$B$53="PE",'RE generation'!N158,IF(Input!$B$53="DBN",'RE generation'!N116,IF(Input!$B$53="JHB",'RE generation'!N179,IF(Input!$B$53="Pretoria",'RE generation'!N179,IF(Input!$B$53="Nelspruit",'RE generation'!N200,IF(Input!$B$53="UPINGTON",'RE generation'!N221)))))))) -> 257.3333333 | P73: =IF(Input!$B$53="BLOEM",'RE generation'!O137,IF(Input!$B$53="CTN",'RE generation'!O96,IF(Input!$B$53="PE",'RE generation'!O158,IF(Input!$B$53="DBN",'RE generation'!O116,IF(Input!$B$53="JHB",'RE generation'!O179,IF(Input!$B$53="Pretoria",'RE generation'!O179,IF(Input!$B$53="Nelspruit",'RE generation'!O200,IF(Input!$B$53="UPINGTON",'RE generation'!O221)))))))) -> 119
O74: =IF(Input!$B$53="BLOEM",'RE generation'!N138,IF(Input!$B$53="CTN",'RE generation'!N97,IF(Input!$B$53="PE",'RE generation'!N159,IF(Input!$B$53="DBN",'RE generation'!N117,IF(Input!$B$53="JHB",'RE generation'!N180,IF(Input!$B$53="Pretoria",'RE generation'!N180,IF(Input!$B$53="Nelspruit",'RE generation'!N201,IF(Input!$B$53="UPINGTON",'RE generation'!N222)))))))) -> 100.5 | P74: =IF(Input!$B$53="BLOEM",'RE generation'!O138,IF(Input!$B$53="CTN",'RE generation'!O97,IF(Input!$B$53="PE",'RE generation'!O159,IF(Input!$B$53="DBN",'RE generation'!O117,IF(Input!$B$53="JHB",'RE generation'!O180,IF(Input!$B$53="Pretoria",'RE generation'!O180,IF(Input!$B$53="Nelspruit",'RE generation'!O201,IF(Input!$B$53="UPINGTON",'RE generation'!O222)))))))) -> 6.666666667
O75: =IF(Input!$B$53="BLOEM",'RE generation'!N139,IF(Input!$B$53="CTN",'RE generation'!N98,IF(Input!$B$53="PE",'RE generation'!N160,IF(Input!$B$53="DBN",'RE generation'!N118,IF(Input!$B$53="JHB",'RE generation'!N181,IF(Input!$B$53="Pretoria",'RE generation'!N181,IF(Input!$B$53="Nelspruit",'RE generation'!N202,IF(Input!$B$53="UPINGTON",'RE generation'!N223)))))))) -> 11.66666667 | P75: =IF(Input!$B$53="BLOEM",'RE generation'!O139,IF(Input!$B$53="CTN",'RE generation'!O98,IF(Input!$B$53="PE",'RE generation'!O160,IF(Input!$B$53="DBN",'RE generation'!O118,IF(Input!$B$53="JHB",'RE generation'!O181,IF(Input!$B$53="Pretoria",'RE generation'!O181,IF(Input!$B$53="Nelspruit",'RE generation'!O202,IF(Input!$B$53="UPINGTON",'RE generation'!O223)))))))) -> 0
O76: =IF(Input!$B$53="BLOEM",'RE generation'!N140,IF(Input!$B$53="CTN",'RE generation'!N99,IF(Input!$B$53="PE",'RE generation'!N161,IF(Input!$B$53="DBN",'RE generation'!N119,IF(Input!$B$53="JHB",'RE generation'!N182,IF(Input!$B$53="Pretoria",'RE generation'!N182,IF(Input!$B$53="Nelspruit",'RE generation'!N203,IF(Input!$B$53="UPINGTON",'RE generation'!N224)))))))) -> 0 | P76: =IF(Input!$B$53="BLOEM",'RE generation'!O140,IF(Input!$B$53="CTN",'RE generation'!O99,IF(Input!$B$53="PE",'RE generation'!O161,IF(Input!$B$53="DBN",'RE generation'!O119,IF(Input!$B$53="JHB",'RE generation'!O182,IF(Input!$B$53="Pretoria",'RE generation'!O182,IF(Input!$B$53="Nelspruit",'RE generation'!O203,IF(Input!$B$53="UPINGTON",'RE generation'!O224)))))))) -> 0
O77: =SUM(O61:O76) -> 5901.5 | P77: =SUM(P61:P76) -> 4279.666667
A80: Radiation | T80: Radiation at optimum tilt angle (Eberhard 1990) Wh/m2/day
A82: Cape Town Solar Radiation (Eberhard 1990) | G82: Avg annual PV generation (kWh)/kWp/yr | N82: 1762.052966 | T82: Month | V82: January | W82: February | X82: March | Y82: April | Z82: May | AA82: June | AB82: July | AC82: August | AD82: September | AE82: October | AF82: November | AG82: December | AH82: Average | AI82: Avg winter | AJ82: Avg summer
A83: Hour | B83: J | C83: F | D83: M | E83: A | F83: M | G83: J | H83: J | I83: A | J83: S | K83: O | L83: N | M83: D | N83: Sum Ave | O83: Win Ave | T83: Optimum angle | U83: 35 | V83: 7187 | W83: 7237 | X83: 6878 | Y83: 5969 | Z83: 4721 | AA83: 4193 | AB83: 4528 | AC83: 5066 | AD83: 5862 | AE83: 6676 | AF83: 7048 | AG83: 6989 | AH83: 6029.5 | AI83: =4480.666667/1000 -> 4.480666667 | AJ83: =6545.777778/1000 -> 6.545777778
A84: 5 | B84: 0 | C84: 0 | D84: 0 | E84: 0 | F84: 0 | G84: 0 | H84: 0 | I84: 0 | J84: 0 | K84: 0 | L84: 0 | M84: 0 | N84: 0 | O84: =AVERAGE(G84:I84) -> 0
A85: 6 | B85: 52 | C85: 18 | D85: 2 | E85: 0 | F85: 0 | G85: 0 | H85: 0 | I85: 0 | J85: 0 | K85: 9 | L85: 41 | M85: 64 | N85: 29.5 | O85: =AVERAGE(G85:I85) -> 0
A86: 7 | B86: 215 | C86: 153 | D86: 75 | E86: 18 | F86: 1 | G86: 0 | H86: 0 | I86: 8 | J86: 42 | K86: 116 | L86: 192 | M86: 225 | N86: 146.3333333 | O86: 2.666666667
A87: 8 | B87: 413 | C87: 348 | D87: 251 | E87: 134 | F87: 59 | G87: 34 | H87: 47 | I87: 97 | J87: 182 | K87: 293 | L87: 388 | M87: 418 | N87: 325.3333333 | O87: 59.33333333
A88: 9 | B88: 598 | C88: 538 | D88: 444 | E88: 298 | F88: 190 | G88: 143 | H88: 166 | I88: 241 | J88: 346 | K88: 476 | L88: 576 | M88: 599 | N88: 508.8333333 | O88: 183.3333333
A89: 10 | B89: 763 | C89: 712 | D89: 610 | E89: 447 | F89: 316 | G89: 363 | H89: 291 | I89: 374 | J89: 485 | K89: 620 | L89: 739 | M89: 751 | N89: 670.3333333 | O89: 342.6666667
A90: 11 | B90: 892 | C90: 835 | D90: 737 | E90: 558 | F90: 416 | G90: 352 | H90: 381 | I90: 471 | J90: 595 | K90: 745 | L90: 859 | M90: 872 | N90: 792.1666667 | O90: 401.3333333
A91: 12 | B91: 964 | C91: 906 | D91: 799 | E91: 621 | F91: 470 | G91: 395 | H91: 432 | I91: 524 | J91: 659 | K91: 813 | L91: 922 | M91: 940 | N91: 858.6666667 | O91: 450.3333333
A92: 13 | B92: 965 | C92: 916 | D92: 802 | E92: 620 | F92: 472 | G92: 397 | H92: 441 | I92: 524 | J92: 670 | K92: 824 | L92: 927 | M92: 958 | N92: 864.6666667 | O92: 454
A93: 14 | B93: 914 | C93: 855 | D93: 743 | E93: 568 | F93: 424 | G93: 352 | H93: 394 | I93: 479 | J93: 621 | K93: 776 | L93: 868 | M93: 899 | N93: 807.8333333 | O93: 408.3333333
A94: 15 | B94: 797 | C94: 742 | D94: 625 | E94: 463 | F94: 329 | G94: 265 | H94: 301 | I94: 384 | J94: 511 | K94: 657 | L94: 758 | M94: 796 | N94: 696.8333333 | O94: 316.6666667
A95: 16 | B95: 638 | C95: 580 | D95: 455 | E95: 312 | F95: 198 | G95: 149 | H95: 177 | I95: 247 | J95: 367 | K95: 503 | L95: 606 | M95: 642 | N95: 538.8333333 | O95: 191
A96: 17 | B96: 444 | C96: 378 | D96: 262 | E96: 143 | F96: 63 | G96: 37 | H96: 49 | I96: 99 | J96: 194 | K96: 314 | L96: 414 | M96: 454 | N96: 349.1666667 | O96: 61.66666667
A97: 18 | B97: 234 | C97: 168 | D97: 74 | E97: 17 | F97: 1 | G97: 0 | H97: 0 | I97: 7 | J97: 40 | K97: 123 | L97: 208 | M97: 251 | N97: 158.6666667 | O97: 2.333333333
A98: 19 | B98: 58 | C98: 20 | D98: 1 | E98: 0 | F98: 0 | G98: 0 | H98: 0 | I98: 0 | J98: 0 | K98: 8 | L98: 45 | M98: 73 | N98: 32.83333333 | O98: 0
A99: 20 | B99: 0 | C99: 0 | D99: 0 | E99: 0 | F99: 0 | G99: 0 | H99: 0 | I99: 0 | J99: 0 | K99: 0 | L99: 0 | M99: 0 | N99: 0 | O99: 0
A102: Durban Solar Radiation (Eberhard 1990) | G102: Avg annual PV generation (kWh)/kWp/yr | N102: 1570.47952 | T102: Month | V102: January | W102: February | X102: March | Y102: April | Z102: May | AA102: June | AB102: July | AC102: August | AD102: September | AE102: October | AF102: November | AG102: December | AH102: Average | AI102: Avg winter | AJ102: Avg summer
A103: Hour | B103: J | C103: F | D103: M | E103: A | F103: M | G103: J | H103: J | I103: A | J103: S | K103: O | L103: N | M103: D | N103: Sum Ave | O103: Win Ave | T103: Optimum angle | U103: 35 | V103: 4996 | W103: 5311 | X103: 5488 | Y103: 5310 | Z103: 5013 | AA103: 5113 | AB103: 5117 | AC103: 5068 | AD103: 4759 | AE103: 4897 | AF103: 4776 | AG103: 5055 | AH103: 5075.25 | AI103: =5081/1000 -> 5.081 | AJ103: =5073.333333/1000 -> 5.073333333
A104: 5 | B104: 0 | C104: 0 | D104: 0 | E104: 0 | F104: 0 | G104: 0 | H104: 0 | I104: 0 | J104: 0 | K104: 0 | L104: 0 | M104: 0 | N104: 0 | O104: =AVERAGE(G104:I104) -> 0
A105: 6 | B105: 26 | C105: 11 | D105: 1 | E105: 0 | F105: 0 | G105: 0 | H105: 0 | I105: 0 | J105: 0 | K105: 19 | L105: 34 | M105: 42 | N105: 19 | O105: =AVERAGE(G105:I105) -> 0
A106: 7 | B106: 130 | C106: 105 | D106: 60 | E106: 22 | F106: 5 | G106: 0 | H106: 2 | I106: 11 | J106: 35 | K106: 73 | L106: 115 | M106: 143 | N106: 95.83333333 | O106: 4.333333333
A107: 8 | B107: 271 | C107: 255 | D107: 205 | E107: 139 | F107: 83 | G107: 60 | H107: 68 | I107: 108 | J107: 151 | K107: 208 | L107: 254 | M107: 297 | N107: 236.8333333 | O107: 78.66666667
A108: 9 | B108: 426 | C108: 417 | D108: 369 | E108: 297 | F108: 230 | G108: 200 | H108: 212 | I108: 257 | J108: 297 | K108: 363 | L108: 399 | M108: 457 | N108: 394.1666667 | O108: 223
A109: 10 | B109: 582 | C109: 556 | D109: 519 | E109: 433 | F109: 363 | G109: 338 | H109: 352 | I109: 393 | J109: 437 | K109: 505 | L109: 539 | M109: 611 | N109: 540 | O109: 361
A110: 11 | B110: 682 | C110: 677 | D110: 634 | E110: 535 | F110: 461 | G110: 433 | H110: 452 | I110: 497 | J110: 543 | K110: 623 | L110: 646 | M110: 714 | N110: 648 | O110: 460.6666667
A111: 12 | B111: 743 | C111: 742 | D111: 700 | E111: 597 | F111: 513 | G111: 485 | H111: 505 | I111: 554 | J111: 602 | K111: 677 | L111: 706 | M111: 767 | N111: 709.1666667 | O111: 514.6666667
A112: 13 | B112: 743 | C112: 745 | D112: 702 | E112: 602 | F112: 515 | G112: 487 | H112: 506 | I112: 560 | J112: 605 | K112: 677 | L112: 703 | M112: 760 | N112: 709.1666667 | O112: 517.6666667
A113: 14 | B113: 681 | C113: 676 | D113: 643 | E113: 537 | F113: 458 | G113: 436 | H113: 453 | I113: 500 | J113: 527 | K113: 601 | L113: 634 | M113: 694 | N113: 644.1666667 | O113: 463
A114: 15 | B114: 548 | C114: 541 | D114: 515 | E114: 425 | F114: 355 | G114: 336 | H114: 351 | I114: 386 | J114: 405 | K114: 476 | L114: 509 | M114: 546 | N114: 514 | O114: 357.6666667
A115: 16 | B115: 377 | C115: 370 | D115: 336 | E115: 270 | F115: 214 | G115: 196 | H115: 204 | I115: 242 | J115: 264 | K115: 315 | L115: 343 | M115: 376 | N115: 345.3333333 | O115: 214
A116: 17 | B116: 209 | C116: 206 | D116: 160 | E116: 114 | F116: 74 | G116: 57 | H116: 64 | I116: 95 | J116: 126 | K116: 170 | L116: 191 | M116: 217 | N116: 182.8333333 | O116: 72
A117: 18 | B117: 88 | C117: 77 | D117: 41 | E117: 15 | F117: 4 | G117: 0 | H117: 1 | I117: 9 | J117: 25 | K117: 57 | L117: 80 | M117: 97 | N117: 66.33333333 | O117: 3.333333333
A118: 19 | B118: 18 | C118: 8 | D118: 0 | E118: 0 | F118: 0 | G118: 0 | H118: 0 | I118: 0 | J118: 0 | K118: 3 | L118: 15 | M118: 24 | N118: 10.83333333 | O118: 0
A119: 20 | B119: 0 | C119: 0 | D119: 0 | E119: 0 | F119: 0 | G119: 0 | H119: 0 | I119: 0 | J119: 0 | K119: 0 | L119: 0 | M119: 0 | N119: 0 | O119: 0
A123: Bloemfontein Solar Radiation (Eberhard 1990) | H123: Avg annual PV generation (kWh)/kWp/yr | O123: 2055.662718 | T123: Month | V123: January | W123: February | X123: March | Y123: April | Z123: May | AA123: June | AB123: July | AC123: August | AD123: September | AE123: October | AF123: November | AG123: December | AH123: Average | AI123: Avg winter | AJ123: Avg summer
A124: Hour | B124: J | C124: F | D124: M | E124: A | F124: M | G124: J | H124: J | I124: A | J124: S | K124: O | L124: N | M124: D | N124: Sum Ave | O124: Win Ave | T124: Optimum angle | U124: 30 | V124: 6733 | W124: 6774 | X124: 6544 | Y124: 6440 | Z124: 6207 | AA124: 6058 | AB124: 6290 | AC124: 6606 | AD124: 6999 | AE124: 7053 | AF124: 7066 | AG124: 7097 | AH124: 6655.583333 | AI124: =6185/1000 -> 6.185 | AJ124: =6812.444444/1000 -> 6.812444444
A125: 5 | B125: 0 | C125: 0 | D125: 0 | E125: 0 | F125: 0 | G125: 0 | H125: 0 | I125: 0 | J125: 0 | K125: 0 | L125: 0 | M125: 0 | N125: 0 | O125: =AVERAGE(G125:I125) -> 0
A126: 6 | B126: 45 | C126: 18 | D126: 3 | E126: 0 | F126: 0 | G126: 0 | H126: 0 | I126: 0 | J126: 0 | K126: 11 | L126: 39 | M126: 59 | N126: 27.33333333 | O126: 0
A127: 7 | B127: 209 | C127: 152 | D127: 86 | E127: 33 | F127: 10 | G127: 3 | H127: 6 | I127: 21 | J127: 65 | K127: 134 | L127: 203 | M127: 237 | N127: 153.3333333 | O127: 10
A128: 8 | B128: 423 | C128: 361 | D128: 274 | E128: 186 | F128: 117 | G128: 87 | H128: 101 | I128: 162 | J128: 250 | K128: 342 | L128: 428 | M128: 463 | N128: 355.8333333 | O128: 116.6666667
A129: 9 | B129: 625 | C129: 569 | D129: 475 | E129: 384 | F129: 296 | G129: 252 | H129: 279 | I129: 357 | J129: 459 | K129: 548 | L129: 639 | M129: 674 | N129: 561 | O129: 296
A130: 10 | B130: 798 | C130: 745 | D130: 647 | E130: 552 | F130: 463 | G130: 416 | H130: 447 | I130: 533 | J130: 640 | K130: 729 | L130: 812 | M130: 852 | N130: 734.3333333 | O130: 465.3333333
A131: 11 | B131: 907 | C131: 856 | D131: 763 | E131: 669 | F131: 587 | G131: 537 | H131: 569 | I131: 658 | J131: 764 | K131: 851 | L131: 924 | M131: 979 | N131: 849.6666667 | O131: 588
A132: 12 | B132: 953 | C132: 905 | D132: 815 | E132: 726 | F132: 651 | G132: 598 | H132: 633 | I132: 716 | J132: 830 | K132: 908 | L132: 975 | M132: 1017 | N132: 898.5 | O132: 649
A133: 13 | B133: 917 | C133: 880 | D133: 791 | E133: 704 | F133: 644 | G133: 593 | H133: 630 | I133: 709 | J133: 823 | K133: 900 | L133: 940 | M133: 975 | N133: 867.8333333 | O133: 644
A134: 14 | B134: 827 | C134: 790 | D134: 713 | E134: 630 | F134: 574 | G134: 528 | H134: 562 | I134: 638 | J134: 744 | K134: 815 | L134: 861 | M134: 869 | N134: 781.6666667 | O134: 576
A135: 15 | B135: 686 | C135: 643 | D135: 583 | E135: 501 | F135: 446 | G135: 405 | H135: 436 | I135: 508 | J135: 605 | K135: 677 | L135: 720 | M135: 741 | N135: 645.6666667 | O135: 449.6666667
A136: 16 | B136: 517 | C136: 481 | D136: 410 | E136: 338 | F136: 283 | G136: 244 | H136: 269 | I136: 341 | J136: 425 | K136: 496 | L136: 552 | M136: 575 | N136: 478.8333333 | O136: 284.6666667
A137: 17 | B137: 342 | C137: 299 | D137: 230 | E137: 156 | F137: 105 | G137: 78 | H137: 94 | I137: 150 | J137: 227 | K137: 302 | L137: 365 | M137: 390 | N137: 297 | O137: 107.3333333
A138: 18 | B138: 174 | C138: 124 | D138: 67 | E138: 23 | F138: 6 | G138: 0 | H138: 3 | I138: 16 | J138: 54 | K138: 114 | L138: 173 | M138: 206 | N138: 127.8333333 | O138: 6.333333333
A139: 19 | B139: 37 | C139: 13 | D139: 2 | E139: 0 | F139: 0 | G139: 0 | H139: 0 | I139: 0 | J139: 0 | K139: 8 | L139: 31 | M139: 52 | N139: 22.5 | O139: 0
A140: 20 | B140: 0 | C140: 0 | D140: 0 | E140: 0 | F140: 0 | G140: 0 | H140: 0 | I140: 0 | J140: 0 | K140: 0 | L140: 0 | M140: 0 | N140: 0 | O140: 0
A144: Port Elizabeth Solar Radiation (Eberhard 1990) | H144: Avg annual PV generation (kWh)/kWp/yr | O144: 1698.470104
A145: Hour | B145: J | C145: F | D145: M | E145: A | F145: M | G145: J | H145: J | I145: A | J145: S | K145: O | L145: N | M145: D | N145: Sum Ave | O145: Win Ave | T145: Month | V145: January | W145: February | X145: March | Y145: April | Z145: May | AA145: June | AB145: July | AC145: August | AD145: September | AE145: October | AF145: November | AG145: December | AH145: Average | AI145: Avg winter | AJ145: Avg summer
A146: 5 | B146: 0 | C146: 0 | D146: 0 | E146: 0 | F146: 0 | G146: 0 | H146: 0 | I146: 0 | J146: 0 | K146: 0 | L146: 0 | M146: 0 | N146: 0 | O146: =AVERAGE(G146:I146) -> 0 | T146: Optimum angle | U146: 35 | V146: 6416 | W146: 6319 | X146: 5974 | Y146: 5669 | Z146: 5011 | AA146: 4782 | AB146: 5024 | AC146: 5384 | AD146: 5733 | AE146: 6162 | AF146: 6330 | AG146: 6399 | AH146: 5766.916667 | AI146: =4939/1000 -> 4.939 | AJ146: =6042.888889/1000 -> 6.042888889
A147: 6 | B147: 41 | C147: 16 | D147: 1 | E147: 0 | F147: 0 | G147: 0 | H147: 0 | I147: 0 | J147: 0 | K147: 8 | L147: 33 | M147: 54 | N147: 24.16666667 | O147: 0
A148: 7 | B148: 172 | C148: 125 | D148: 62 | E148: 18 | F148: 1 | G148: 0 | H148: 0 | I148: 8 | J148: 41 | K148: 103 | L148: 164 | M148: 201 | N148: 123.6666667 | O148: 2.666666667
A149: 8 | B149: 344 | C149: 290 | D149: 207 | E149: 132 | F149: 65 | G149: 38 | H149: 50 | I149: 100 | J149: 179 | K149: 267 | L149: 330 | M149: 369 | N149: 278.6666667 | O149: 62.66666667
A150: 9 | B150: 517 | C150: 461 | D150: 377 | E150: 289 | F150: 203 | G150: 163 | H150: 180 | I150: 252 | J150: 342 | K150: 438 | L150: 505 | M150: 543 | N150: 448.6666667 | O150: 198.3333333
A151: 10 | B151: 674 | C151: 613 | D151: 529 | E151: 435 | F151: 339 | G151: 291 | H151: 314 | I151: 399 | J151: 492 | K151: 592 | L151: 659 | M151: 697 | N151: 601.1666667 | O151: 334.6666667
A152: 11 | B152: 786 | C152: 732 | D152: 646 | E152: 537 | F152: 441 | G152: 385 | H152: 416 | I152: 503 | J152: 594 | K152: 702 | L152: 773 | M152: 802 | N152: 712.6666667 | O152: 434.6666667
A153: 12 | B153: 875 | C153: 818 | D153: 703 | E153: 588 | F153: 487 | G153: 435 | H153: 470 | I153: 561 | J153: 647 | K153: 767 | L153: 832 | M153: 868 | N153: 780.6666667 | O153: 488.6666667
A154: 13 | B154: 887 | C154: 823 | D154: 710 | E154: 590 | F154: 488 | G154: 441 | H154: 473 | I154: 553 | J154: 657 | K154: 767 | L154: 844 | M154: 882 | N154: 789.3333333 | O154: 489
A155: 14 | B155: 830 | C155: 762 | D155: 661 | E155: 543 | F155: 438 | G155: 391 | H155: 420 | I155: 499 | J155: 599 | K155: 713 | L155: 799 | M155: 838 | N155: 738.8333333 | O155: 436.6666667
A156: 15 | B156: 713 | C156: 647 | D156: 551 | E156: 437 | F156: 339 | G156: 293 | H156: 323 | I156: 399 | J156: 493 | K156: 599 | L156: 689 | M156: 730 | N156: 627.8333333 | O156: 338.3333333
A157: 16 | B157: 551 | C157: 489 | D157: 399 | E157: 285 | F157: 202 | G157: 167 | H157: 191 | I157: 253 | J157: 343 | K157: 447 | L157: 525 | M157: 571 | N157: 470 | O157: 203.6666667
A158: 17 | B158: 369 | C158: 303 | D158: 215 | E158: 127 | F158: 64 | G158: 41 | H158: 53 | I158: 99 | J158: 176 | K158: 272 | L158: 351 | M158: 388 | N158: 292.1666667 | O158: 64.33333333
A159: 18 | B159: 191 | C159: 126 | D159: 58 | E159: 15 | F159: 1 | G159: 0 | H159: 0 | I159: 7 | J159: 38 | K159: 101 | L159: 173 | M159: 207 | N159: 128.3333333 | O159: 2.333333333
A160: 19 | B160: 47 | C160: 16 | D160: 1 | E160: 0 | F160: 0 | G160: 0 | H160: 0 | I160: 0 | J160: 0 | K160: 8 | L160: 37 | M160: 59 | N160: 26.66666667 | O160: 0
A161: 20 | B161: 0 | C161: 0 | D161: 0 | E161: 0 | F161: 0 | G161: 0 | H161: 0 | I161: 0 | J161: 0 | K161: 0 | L161: 0 | M161: 0 | N161: 0 | O161: 0
A165: Pretoria Solar Radiation (Eberhard 1990) | G165: Avg annual PV generation (kWh)/kWp/yr | O165: 1870.300858 | T165: Month | V165: January | W165: February | X165: March | Y165: April | Z165: May | AA165: June | AB165: July | AC165: August | AD165: September | AE165: October | AF165: November | AG165: December | AH165: Average | AI165: Avg winter | AJ165: Avg summer
A166: Hour | B166: J | C166: F | D166: M | E166: A | F166: M | G166: J | H166: J | I166: A | J166: S | K166: O | L166: N | M166: D | N166: Sum Ave | O166: Win Ave | T166: Optimum angle | U166: 30 | V166: 5652 | W166: 5774 | X166: 5732 | Y166: 5742 | Z166: 5934 | AA166: 5984 | AB166: 6163 | AC166: 6668 | AD166: 6624 | AE166: 6289 | AF166: 5818 | AG166: 5967 | AH166: 6028.916667 | AI166: =6027/1000 -> 6.027 | AJ166: =6029.555556/1000 -> 6.029555556
A167: 5 | B167: 0 | C167: 0 | D167: 0 | E167: 0 | F167: 0 | G167: 0 | H167: 0 | I167: 0 | J167: 0 | K167: 0 | L167: 0 | M167: 0 | N167: 0 | O167: =AVERAGE(G167:I167) -> 0
A168: 6 | B168: 21 | C168: 9 | D168: 1 | E168: 0 | F168: 0 | G168: 0 | H168: 0 | I168: 0 | J168: 0 | K168: 4 | L168: 15 | M168: 26 | N168: 12 | O168: 0
A169: 7 | B169: 153 | C169: 116 | D169: 67 | E169: 25 | F169: 8 | G169: 2 | H169: 4 | I169: 16 | J169: 53 | K169: 102 | L169: 139 | M169: 166 | N169: 111 | O169: 7.333333333
A170: 8 | B170: 334 | C170: 297 | D170: 234 | E170: 170 | F170: 123 | G170: 96 | H170: 107 | I170: 160 | J170: 230 | K170: 286 | L170: 316 | M170: 355 | N170: 284.3333333 | O170: 121
A171: 9 | B171: 509 | C171: 477 | D171: 414 | E171: 349 | F171: 304 | G171: 272 | H171: 289 | I171: 354 | J171: 436 | K171: 482 | L171: 489 | M171: 537 | N171: 462.5 | O171: 305
A172: 10 | B172: 653 | C172: 624 | D172: 564 | E172: 508 | F172: 472 | G172: 431 | H172: 455 | I172: 530 | J172: 617 | K172: 655 | L172: 650 | M172: 698 | N172: 616.1666667 | O172: 472
A173: 11 | B173: 757 | C173: 733 | D173: 680 | E173: 626 | F173: 585 | G173: 549 | H173: 576 | I173: 663 | J173: 747 | K173: 777 | L173: 772 | M173: 821 | N173: 731.5 | O173: 596
A174: 12 | B174: 805 | C174: 793 | D174: 739 | E174: 672 | F174: 632 | G174: 615 | H174: 642 | I174: 729 | J174: 815 | K174: 835 | L174: 827 | M174: 878 | N174: 785.6666667 | O174: 662
A175: 13 | B175: 816 | C175: 802 | D175: 732 | E175: 655 | F175: 626 | G175: 605 | H175: 639 | I175: 727 | J175: 809 | K175: 840 | L175: 822 | M175: 883 | N175: 785 | O175: 657
A176: 14 | B176: 750 | C176: 722 | D176: 672 | E176: 587 | F176: 562 | G176: 545 | H176: 576 | I176: 660 | J176: 737 | K176: 768 | L176: 767 | M176: 818 | N176: 719.3333333 | O176: 593.6666667
A177: 15 | B177: 624 | C177: 584 | D177: 538 | E177: 477 | F177: 446 | G177: 426 | H177: 353 | I177: 531 | J177: 600 | K177: 643 | L177: 656 | M177: 679 | N177: 593 | O177: 436.6666667
A178: 16 | B178: 460 | C178: 430 | D178: 380 | E178: 327 | F178: 291 | G178: 266 | H178: 287 | I178: 357 | J178: 422 | K178: 462 | L178: 481 | M178: 511 | N178: 431.5 | O178: 303.3333333
A179: 17 | B179: 292 | C179: 258 | D179: 210 | E179: 154 | F179: 116 | G179: 92 | H179: 107 | I179: 158 | J179: 220 | K179: 278 | L179: 304 | M179: 326 | N179: 257.3333333 | O179: 119
A180: 18 | B180: 135 | C180: 100 | D180: 57 | E180: 21 | F180: 7 | G180: 1 | H180: 4 | I180: 15 | J180: 48 | K180: 95 | L180: 132 | M180: 158 | N180: 100.5 | O180: 6.666666667
A181: 19 | B181: 19 | C181: 7 | D181: 0 | E181: 0 | F181: 0 | G181: 0 | H181: 0 | I181: 0 | J181: 0 | K181: 3 | L181: 16 | M181: 28 | N181: 11.66666667 | O181: 0
A182: 20 | B182: 0 | C182: 0 | D182: 0 | E182: 0 | F182: 0 | G182: 0 | H182: 0 | I182: 0 | J182: 0 | K182: 0 | L182: 0 | M182: 0 | N182: 0 | O182: 0
A186: Nelspruit Solar Radiation (Eberhard 1990) | G186: Avg annual PV generation (kWh)/kWp/yr | O186: 1776.176346 | T186: Month | V186: January | W186: February | X186: March | Y186: April | Z186: May | AA186: June | AB186: July | AC186: August | AD186: September | AE186: October | AF186: November | AG186: December | AH186: Average | AI186: Avg winter | AJ186: Avg summer
A187: Hour | B187: J | C187: F | D187: M | E187: A | F187: M | G187: J | H187: J | I187: A | J187: S | K187: O | L187: N | M187: D | N187: Sum Ave | O187: Win Ave | T187: Optimum angle | U187: 30 | V187: 5113 | W187: 5713 | X187: 5761 | Y187: 6038 | Z187: 5913 | AA187: 6010 | AB187: 6073 | AC187: 5831 | AD187: 5555 | AE187: 5076 | AF187: 4840 | AG187: 5250 | AH187: 5597.75 | AI187: =5998.666667/1000 -> 5.998666667 | AJ187: =5464.111111/1000 -> 5.464111111
A188: 5 | B188: 0 | C188: 0 | D188: 0 | E188: 0 | F188: 0 | G188: 0 | H188: 0 | I188: 0 | J188: 0 | K188: 0 | L188: 0 | M188: 0 | N188: 0 | O188: =AVERAGE(G188:I188) -> 0
A189: 6 | B189: 18 | C189: 10 | D189: 1 | E189: 0 | F189: 0 | G189: 0 | H189: 0 | I189: 0 | J189: 0 | K189: 3 | L189: 16 | M189: 26 | N189: 11.83333333 | O189: 0
A190: 7 | B190: 109 | C190: 98 | D190: 64 | E190: 31 | F190: 13 | G190: 4 | H190: 7 | I190: 17 | J190: 45 | K190: 73 | L190: 107 | M190: 132 | N190: 90.16666667 | O190: 9.333333333
A191: 8 | B191: 251 | C191: 269 | D191: 224 | E191: 171 | F191: 123 | G191: 95 | H191: 106 | I191: 139 | J191: 184 | K191: 212 | L191: 247 | M191: 289 | N191: 241.8333333 | O191: 113.3333333
A192: 9 | B192: 427 | C192: 445 | D192: 404 | E192: 357 | F192: 302 | G192: 272 | H192: 283 | I192: 314 | J192: 354 | K192: 361 | L192: 406 | M192: 463 | N192: 417 | O192: 289.6666667
A193: 10 | B193: 590 | C193: 606 | D193: 573 | E193: 524 | F193: 459 | G193: 435 | H193: 452 | I193: 474 | J193: 507 | K193: 509 | L193: 548 | M193: 622 | N193: 577.1666667 | O193: 453.6666667
A194: 11 | B194: 701 | C194: 729 | D194: 687 | E194: 642 | F194: 576 | G194: 554 | H194: 571 | I194: 584 | J194: 626 | K194: 633 | L194: 657 | M194: 751 | N194: 694.5 | O194: 569.6666667
A195: 12 | B195: 784 | C195: 804 | D195: 739 | E195: 709 | F195: 630 | G195: 615 | H195: 626 | I195: 640 | J195: 698 | K195: 698 | L195: 729 | M195: 819 | N195: 764 | O195: 627
A196: 13 | B196: 782 | C196: 813 | D196: 741 | E196: 708 | F196: 630 | G196: 611 | H196: 626 | I196: 649 | J196: 696 | K196: 712 | L196: 719 | M196: 803 | N196: 761 | O196: 628.6666667
A197: 14 | B197: 683 | C197: 708 | D197: 669 | E197: 635 | F197: 564 | G197: 542 | H197: 563 | I197: 589 | J197: 637 | K197: 625 | L197: 643 | M197: 713 | N197: 675.1666667 | O197: 564.6666667
A198: 15 | B198: 557 | C198: 605 | D198: 549 | E198: 497 | F198: 444 | G198: 422 | H198: 443 | I198: 465 | J198: 512 | K198: 525 | L198: 519 | M198: 581 | N198: 551.3333333 | O198: 443.3333333
A199: 16 | B199: 401 | C199: 437 | D199: 390 | E199: 335 | F199: 283 | G199: 265 | H199: 278 | I199: 306 | J199: 348 | K199: 369 | L199: 369 | M199: 429 | N199: 393.5 | O199: 283
A200: 17 | B200: 248 | C200: 255 | D200: 204 | E200: 157 | F200: 111 | G200: 95 | H200: 107 | I200: 137 | J200: 177 | K200: 213 | L200: 216 | M200: 269 | N200: 224.8333333 | O200: 113
A201: 18 | B201: 110 | C201: 96 | D201: 61 | E201: 25 | F201: 9 | G201: 3 | H201: 7 | I201: 16 | J201: 39 | K201: 70 | L201: 91 | M201: 121 | N201: 84 | O201: 8.666666667
A202: 19 | B202: 17 | C202: 9 | D202: 0 | E202: 0 | F202: 0 | G202: 0 | H202: 0 | I202: 0 | J202: 0 | K202: 2 | L202: 11 | M202: 22 | N202: 9.833333333 | O202: 0
A203: 20 | B203: 0 | C203: 0 | D203: 0 | E203: 0 | F203: 0 | G203: 0 | H203: 0 | I203: 0 | J203: 0 | K203: 0 | L203: 0 | M203: 0 | N203: 0 | O203: 0
A207: Upington Solar Radiation (Eberhard 1990) | G207: Avg annual PV generation (kWh)/kWp/yr | O207: 2075.779884 | T207: Month | V207: January | W207: February | X207: March | Y207: April | Z207: May | AA207: June | AB207: July | AC207: August | AD207: September | AE207: October | AF207: November | AG207: December | AH207: Average | AI207: Avg winter | AJ207: Avg summer
A208: Hour | B208: J | C208: F | D208: M | E208: A | F208: M | G208: J | H208: J | I208: A | J208: S | K208: O | L208: N | M208: D | N208: Sum Ave | O208: Win Ave | T208: Optimum angle | U208: 30 | V208: 7118 | W208: 7166 | X208: 6880 | Y208: 6795 | Z208: 6372 | AA208: 6105 | AB208: 6162 | AC208: 7083 | AD208: 7091 | AE208: 7420 | AF208: 7533 | AG208: 7246 | AH208: 6914.25 | AI208: =6213/1000 -> 6.213 | AJ208: =7148/1000 -> 7.148
A209: 5 | B209: 0 | C209: 0 | D209: 0 | E209: 0 | F209: 0 | G209: 0 | H209: 0 | I209: 0 | J209: 0 | K209: 0 | L209: 0 | M209: 0 | N209: 0 | O209: =AVERAGE(G209:I209) -> 0
A210: 6 | B210: 43 | C210: 16 | D210: 2 | E210: 0 | F210: 0 | G210: 0 | H210: 0 | I210: 0 | J210: 0 | K210: 8 | L210: 35 | M210: 51 | N210: 24.5 | O210: 0
A211: 7 | B211: 223 | C211: 161 | D211: 86 | E211: 30 | F211: 7 | G211: 1 | H211: 4 | I211: 21 | J211: 60 | K211: 138 | L211: 214 | M211: 239 | N211: 158.8333333 | O211: 8.666666667
A212: 8 | B212: 443 | C212: 382 | D212: 285 | E212: 195 | F212: 122 | G212: 86 | H212: 98 | I212: 179 | J212: 250 | K212: 361 | L212: 447 | M212: 461 | N212: 368.8333333 | O212: 121
A213: 9 | B213: 647 | C213: 590 | D213: 502 | E213: 397 | F213: 310 | G213: 261 | H213: 275 | I213: 385 | J213: 466 | K213: 574 | L213: 663 | M213: 670 | N213: 578.1666667 | O213: 307
A214: 10 | B214: 820 | C214: 766 | D214: 672 | E214: 572 | F214: 474 | G214: 417 | H214: 437 | I214: 558 | J214: 642 | K214: 754 | L214: 840 | M214: 846 | N214: 752.6666667 | O214: 470.6666667
A215: 11 | B215: 938 | C215: 892 | D215: 788 | E215: 690 | F215: 594 | G215: 540 | H215: 554 | I215: 687 | J215: 772 | K215: 884 | L215: 962 | M215: 962 | N215: 872 | O215: 593.6666667
A216: 12 | B216: 994 | C216: 938 | D216: 848 | E216: 754 | F216: 657 | G216: 601 | H216: 620 | I216: 759 | J216: 835 | K216: 950 | L216: 1024 | M216: 1024 | N216: 930.3333333 | O216: 660
A217: 13 | B217: 985 | C217: 930 | D217: 836 | E217: 751 | F217: 654 | G217: 604 | H217: 618 | I217: 758 | J217: 831 | K217: 947 | L217: 1024 | M217: 1020 | N217: 924.3333333 | O217: 660
A218: 14 | B218: 902 | C218: 845 | D218: 749 | E218: 684 | F218: 587 | G218: 541 | H218: 558 | I218: 687 | J218: 760 | K218: 870 | L218: 948 | M218: 944 | N218: 845.3333333 | O218: 595.3333333
